Workbook

Sheet CF (hidden)
B2: CONDITIONAL FORMATTING MAP
F3: =INDEX(dms_CF_3.6.5, MATCH(dms_TradingName,dms_CF_TradingName))="Y" | G3: =INDEX(dms_CF_3.6.6.1, MATCH(dms_TradingName,dms_CF_TradingName))="Y" | H3: =INDEX(dms_CF_3.6.6.2, MATCH(dms_TradingName,dms_CF_TradingName))="Y" | I3: =INDEX(dms_CF_3.6.6.3, MATCH(dms_TradingName,dms_CF_TradingName))="Y" | J3: =INDEX(dms_CF_3.6.7.1, MATCH(dms_TradingName,dms_CF_TradingName))="Y" | K3: =INDEX(dms_CF_3.6.7.2, MATCH(dms_TradingName,dms_CF_TradingName))="Y" | L3: =INDEX(dms_CF_3.6.7.3, MATCH(dms_TradingName,dms_CF_TradingName))="Y" | M3: =INDEX(dms_CF_3.6.7.4, MATCH(dms_TradingName,dms_CF_TradingName))="Y" | N3: =INDEX(dms_CF_6.6.1, MATCH(dms_TradingName,dms_CF_TradingName))="Y" | O3: =INDEX(dms_CF_6.8, MATCH(dms_TradingName,dms_CF_TradingName))="Y" | P3: =INDEX(dms_CF_7.12, MATCH(dms_TradingName,dms_CF_TradingName))="Y" | Q3: =INDEX(dms_CF_8.1_A, MATCH(dms_TradingName,dms_CF_TradingName))="Y" | R3: =INDEX(dms_CF_8.1_B, MATCH(dms_TradingName,dms_CF_TradingName))="Y" | S3: =INDEX(dms_CF_8.1_Neg, MATCH(dms_TradingName,dms_CF_TradingName))="Y"
B4: dms_CF_TradingName | C4: JurisdictionList | D4: Sector | E4: Segment | F4: dms_CF_3.6.5 | G4: dms_CF_3.6.6.1 | H4: dms_CF_3.6.6.2 | I4: dms_CF_3.6.6.3 | J4: dms_CF_3.6.7.1 | K4: dms_CF_3.6.7.2 | L4: dms_CF_3.6.7.3 | M4: dms_CF_3.6.7.4 | N4: dms_CF_6.6.1 | O4: dms_CF_6.8 | P4: dms_CF_7.12 | Q4: dms_CF_8.1_A | R4: dms_CF_8.1_B | S4: dms_CF_8.1_Neg | T4: Spare1 | U4: Spare2
B5: ActewAGL Distribution | C5: ACT | D5: Electricity | E5: Distribution | F5: Y | G5: N | H5: Y | I5: Y | J5: Y | K5: Y | L5: N | M5: Y | N5: N | O5: Y | P5: Y | Q5: N | R5: Y | S5: Y | T5: N | U5: N
B6: Ausgrid | C6: NSW | D6: Electricity | E6: Distribution | F6: Y | G6: N | H6: Y | I6: Y | J6: N | K6: N | L6: N | M6: Y | N6: N | O6: Y | P6: Y | Q6: N | R6: Y | S6: Y | T6: N | U6: N
B7: AusNet (D) | C7: Vic | D7: Electricity | E7: Distribution | F7: N | G7: N | H7: N | I7: N | J7: N | K7: N | L7: N | M7: N | N7: N | O7: Y | P7: N | Q7: N | R7: N | S7: Y | T7: N | U7: N
B8: AusNet (T) | C8: Vic | D8: Electricity | E8: Transmission | F8: N | G8: N | H8: N | I8: N | J8: N | K8: N | L8: N | M8: N | N8: N | O8: Y | P8: N | Q8: N | R8: N | S8: Y | T8: N | U8: N
B9: CitiPower | C9: Vic | D9: Electricity | E9: Distribution | F9: N | G9: N | H9: N | I9: N | J9: N | K9: N | L9: N | M9: N | N9: N | O9: Y | P9: N | Q9: N | R9: N | S9: Y | T9: N | U9: N
B10: Directlink | C10: Qld | D10: Electricity | E10: Transmission | F10: N | G10: N | H10: N | I10: N | J10: N | K10: N | L10: N | M10: N | N10: N | O10: Y | P10: N | Q10: N | R10: Y | S10: Y | T10: N | U10: N
B11: ElectraNet | C11: SA | D11: Electricity | E11: Transmission | F11: N | G11: N | H11: N | I11: N | J11: N | K11: N | L11: N | M11: N | N11: N | O11: Y | P11: N | Q11: N | R11: Y | S11: Y | T11: N | U11: N
B12: Endeavour Energy | C12: NSW | D12: Electricity | E12: Distribution | F12: Y | G12: N | H12: Y | I12: Y | J12: N | K12: N | L12: N | M12: Y | N12: N | O12: Y | P12: Y | Q12: N | R12: Y | S12: Y | T12: N | U12: N
B13: Energex | C13: Qld | D13: Electricity | E13: Distribution | F13: Y | G13: N | H13: N | I13: N | J13: N | K13: N | L13: N | M13: N | N13: N | O13: Y | P13: Y | Q13: N | R13: Y | S13: Y | T13: N | U13: N
B14: Ergon Energy | C14: Qld | D14: Electricity | E14: Distribution | F14: Y | G14: N | H14: N | I14: N | J14: N | K14: N | L14: N | M14: N | N14: N | O14: Y | P14: Y | Q14: N | R14: Y | S14: Y | T14: N | U14: N
B15: Essential Energy | C15: NSW | D15: Electricity | E15: Distribution | F15: Y | G15: N | H15: Y | I15: Y | J15: N | K15: N | L15: N | M15: Y | N15: N | O15: Y | P15: Y | Q15: N | R15: Y | S15: Y | T15: N | U15: N
B16: Jemena Electricity | C16: Vic | D16: Electricity | E16: Distribution | F16: N | G16: N | H16: N | I16: N | J16: N | K16: N | L16: N | M16: N | N16: N | O16: Y | P16: N | Q16: N | R16: N | S16: Y | T16: N | U16: N
B17: Murraylink | C17: SA | D17: Electricity | E17: Transmission | F17: N | G17: N | H17: N | I17: N | J17: N | K17: N | L17: N | M17: N | N17: N | O17: Y | P17: N | Q17: N | R17: Y | S17: Y | T17: N | U17: N
B18: Power and Water | C18: NT | D18: Electricity | E18: Distribution | F18: N | G18: N | H18: N | I18: N | J18: N | K18: Y | L18: N | M18: N | N18: Y | O18: Y | P18: Y | Q18: N | R18: Y | S18: Y | T18: N | U18: N
B19: Powercor Australia | C19: Vic | D19: Electricity | E19: Distribution | F19: N | G19: N | H19: N | I19: N | J19: N | K19: N | L19: N | M19: N | N19: N | O19: Y | P19: N | Q19: N | R19: N | S19: Y | T19: N | U19: N
B20: Powerlink | C20: Qld | D20: Electricity | E20: Transmission | F20: N | G20: N | H20: N | I20: N | J20: N | K20: N | L20: N | M20: N | N20: N | O20: Y | P20: N | Q20: N | R20: Y | S20: Y | T20: N | U20: N
B21: SA Power Networks | C21: SA | D21: Electricity | E21: Distribution | F21: Y | G21: N | H21: N | I21: N | J21: N | K21: N | L21: N | M21: N | N21: N | O21: Y | P21: Y | Q21: Y | R21: Y | S21: N | T21: N | U21: N
B22: TasNetworks (D) | C22: Tas | D22: Electricity | E22: Distribution | F22: Y | G22: N | H22: N | I22: N | J22: N | K22: N | L22: N | M22: N | N22: N | O22: Y | P22: Y | Q22: N | R22: Y | S22: Y | T22: N | U22: N
B23: TasNetworks (T) | C23: Tas | D23: Electricity | E23: Transmission | F23: N | G23: N | H23: N | I23: N | J23: N | K23: N | L23: N | M23: N | N23: N | O23: Y | P23: N | Q23: N | R23: Y | S23: Y | T23: N | U23: N
B24: TransGrid | C24: NSW | D24: Electricity | E24: Transmission | F24: N | G24: N | H24: N | I24: N | J24: N | K24: N | L24: N | M24: N | N24: N | O24: Y | P24: N | Q24: N | R24: Y | S24: Y | T24: N | U24: N
B25: United Energy | C25: Vic | D25: Electricity | E25: Distribution | F25: N | G25: N | H25: N | I25: N | J25: N | K25: N | L25: N | M25: N | N25: N | O25: Y | P25: N | Q25: N | R25: N | S25: Y | T25: N | U25: N

Sheet AER only (hidden)
B1: Data in these columns used for data validation and database purposes.
B2: Date last modified: | C2: 2017-01-16 | D2: added (Albury and Victora) for AGN
C3: 2016-10-17 | D3: updated TransGrid's correct legal name, corrected TasNetworks (T) to June financial year
C4: 2017-02-01 | D4: inserted Power and Water, added NRs (dms_FeederCat_1 and dms_FeederCat_2)
C5: 2017-03-03 | D5: inserted AEMO as a business | AB5: FOR ELECTRICITY BUSINESSES ONLY
C6: 2018-03-28 | D6: major changes to accommodate STPIS
C7: Template Version | D7: 5 | AB7: Feeder Types | AF7: TasNetworks (D) | AG7: MAIFI flag | AH7: Feeder Names
AB9: CBD | AC9: Urban | AD9: Short rural | AE9: long rural | AF9: EXTRA
B10: dms_TradingName_List | C10: dms_TradingNameFull_List | D10: dms_ABN_List | E10: dms_JurisdictionList | F10: dms_Sector_List | G10: dms_Segment_List | H10: dms_FormControl_List | I10: dms_RPT_List | J10: dms_RPTMonth_List | K10: dms_CRCPlength_List | L10: dms_FRCPlength_List | M10: dms_663_List | N10: dms_DeterminationRef_List | O10: dms_Addr1_List | P10: dms_Addr2_List | Q10: dms_Suburb_List | R10: dms_State_List | S10: dms_PostCode_List | T10: dms_PAddr1_List | U10: dms_PAddr2_List | V10: dms_PSuburb_List | W10: dms_PState_List | X10: dms_PPostCode_List | Y10: dms_ContactName1_List | Z10: dms_ContactPh1_List | AA10: dms_ContactEmail_List | AB10: dms_CBD_flag | AC10: dms_Urban_flag | AD10: dms_ShortRural_flag | AE10: dms_LongRural_flag | AF10: dms_FeederType_5_flag | AG10: dms_MAIFI_flag_List | AH10: dms_FeederName_1 | AI10: dms_FeederName_2 | AJ10: dms_FeederName_3 | AK10: dms_FeederName_4 | AL10: dms_FeederName_5 | AM10: dms_Public_Lighting_List | AN10: Column1
B11: ActewAGL Distribution | C11: ActewAGL Distribution | D11: 76670568688 | E11: ACT | F11: Electricity | G11: Distribution | H11: Revenue cap | I11: Financial | J11: June | K11: 5 | L11: 5 | M11: 5 | N11: 2014-19 Distribution Determination | O11: 40 Bunda Street | Q11: CANBERRA | R11: ACT | S11: 2600 | T11: GPO BOX 366 | V11: CANBERRA | W11: ACT | X11: 2601 | Y11: Robert Walker | Z11: 02 6248 3847 | AA11: robert.walker@actewagle.com.au | AB11: NO | AC11: YES | AD11: YES | AE11: NO | AF11: NO | AG11: NO | AH11: CBD | AI11: Urban | AJ11: Short rural | AK11: Long rural | AM11: YES | AN11: ActewAGL Distribution
B12: ActewAGL Distribution (Tx Assets) | C12: ActewAGL Distribution (Tx Assets) | D12: 76670568688 | E12: ACT | F12: Electricity | G12: Distribution | H12: Revenue cap | I12: Financial | J12: June | K12: 5 | L12: 5 | M12: 5 | N12: distribution determination | O12: 40 Bunda Street | Q12: CANBERRA | R12: ACT | S12: 2600 | T12: GPO BOX 366 | V12: CANBERRA | W12: ACT | X12: 2601 | Y12: Robert Walker | Z12: 02 6248 3847 | AA12: robert.walker@actewagle.com.au | AB12: NO | AC12: YES | AD12: YES | AE12: NO | AF12: NO | AG12: NO | AH12: CBD | AI12: Urban | AJ12: Short rural | AK12: Long rural | AM12: NO | AN12: ActewAGL Distribution (Tx Assets)
B13: ActewAGL Gas | C13: ActewAGL Gas | D13: 76670568688 | E13: ACT | F13: Gas | G13: Distribution | H13: Weighted average price cap | I13: Financial | J13: June | K13: 5 | L13: 5 | M13: x | O13: 40 Bunda Street | Q13: CANBERRA | R13: ACT | S13: 2600 | T13: GPO BOX 366 | V13: CANBERRA | W13: ACT | X13: 2601 | Y13: Philip Deamer | Z13: 02 6248 3438 | AA13: GasAAReview@actewagl.com.au | AB13: NO | AC13: NO | AD13: NO | AE13: NO | AF13: NO | AG13: - | AH13: CBD | AI13: Urban | AJ13: Short rural | AK13: Long rural | AM13: NO | AN13: ActewAGL Gas
B14: AEMO | C14: Australian Energy Market Operator Ltd | D14: 94072010327 | E14: Vic | F14: Electricity | G14: Transmission | H14: - | I14: Financial | J14: March | K14: 5 | L14: 5 | M14: x | N14: - | O14: Level 22 | P14: 530 Collins Street | Q14: MELBOURNE | R14: VIC | S14: 3000 | T14: GPO Box 2008 | V14: MELBOURNE | W14: VIC | X14: 3001 | AB14: NO | AC14: NO | AD14: NO | AE14: NO | AF14: NO | AG14: - | AH14: CBD | AI14: Urban | AJ14: Short rural | AK14: Long rural | AM14: NO | AN14: AEMO
B15: AGN (Albury and Victoria) | C15: Australian Gas Networks Limited (reporting data for Albury and Victoria) | D15: 19078551685 | E15: Vic | F15: Gas | G15: Distribution | H15: Weighted average price cap | I15: Calendar | J15: December | K15: 5 | L15: 5 | M15: x | O15: Level 6 | P15: 400 King William Street | Q15: ADELAIDE | R15: SA | S15: 5000 | T15: PO Box 6468 | U15: Halifax Street | V15: ADELAIDE | W15: SA | X15: 5000 | Y15: Craig de Laine | Z15: 08 8418 1129 | AA15: craig.delaine@agn.com.au | AB15: NO | AC15: NO | AD15: NO | AE15: NO | AF15: NO | AG15: - | AH15: CBD | AI15: Urban | AJ15: Short rural | AK15: Long rural | AM15: NO | AN15: AGN (Albury)
B16: AGN (Albury) | C16: Australian Gas Networks Limited (reporting data for Albury) | D16: 19078551685 | E16: Vic | F16: Gas | G16: Distribution | H16: Weighted average price cap | I16: Calendar | J16: December | K16: 5 | L16: 5 | M16: x | O16: Level 6 | P16: 400 King William Street | Q16: ADELAIDE | R16: SA | S16: 5000 | T16: PO Box 6468 | U16: Halifax Street | V16: ADELAIDE | W16: SA | X16: 5000 | Y16: Craig de Laine | Z16: 08 8418 1129 | AA16: craig.delaine@agn.com.au | AB16: NO | AC16: NO | AD16: NO | AE16: NO | AF16: NO | AG16: - | AH16: CBD | AI16: Urban | AJ16: Short rural | AK16: Long rural | AM16: NO
B17: AGN (SA) | C17: Australian Gas Networks Limited (reporting data for SA) | D17: 19078551685 | E17: SA | F17: Gas | G17: Distribution | H17: Weighted average price cap | I17: Financial | J17: June | K17: 5 | L17: 5 | M17: 5 | N17: distribution determination | O17: Level 6 | P17: 400 King William Street | Q17: ADELAIDE | R17: SA | S17: 5000 | T17: PO Box 6468 | U17: Halifax Street | V17: ADELAIDE | W17: SA | X17: 5000 | Y17: Craig de Laine | Z17: 08 8418 1129 | AA17: craig.delaine@agn.com.au | AB17: NO | AC17: NO | AD17: NO | AE17: NO | AF17: NO | AG17: - | AH17: CBD | AI17: Urban | AJ17: Short rural | AK17: Long rural | AM17: NO | AN17: AGN (SA)
B18: AGN (Victoria) | C18: Australian Gas Networks Limited (reporting data for Victoria) | D18: 19078551685 | E18: Vic | F18: Gas | G18: Distribution | H18: Weighted average price cap | I18: Calendar | J18: December | K18: 5 | L18: 5 | M18: x | O18: Level 6 | P18: 400 King William Street | Q18: ADELAIDE | R18: SA | S18: 5000 | T18: PO Box 6468 | U18: Halifax Street | V18: ADELAIDE | W18: SA | X18: 5000 | Y18: Craig de Laine | Z18: 08 8418 1129 | AA18: craig.delaine@agn.com.au | AB18: NO | AC18: NO | AD18: NO | AE18: NO | AF18: NO | AG18: - | AH18: CBD | AI18: Urban | AJ18: Short rural | AK18: Long rural | AM18: NO | AN18: AGN (Victoria)
B19: Amadeus | C19: APT Pipelines (NT) Pty Ltd | D19: 39009737393 | E19: NT | F19: Gas | G19: Transmission | H19: Weighted average price cap | I19: Financial | J19: June | K19: 5 | L19: 5 | M19: x | N19: n/a | O19: Level 19, HSBC Building | P19: 580 George Street | Q19: SYDNEY | R19: NSW | S19: 2000 | T19: Level 19, HSBC Building | U19: 580 George Street | V19: SYDNEY | W19: NSW | X19: 2000 | Y19: Alexandra Curran | Z19: 02 9275 0020 | AA19: alexandra.curran@apa.com.au | AB19: NO | AC19: NO | AD19: NO | AE19: NO | AF19: NO | AG19: - | AH19: CBD | AI19: Urban | AJ19: Short rural | AK19: Long rural | AM19: NO | AN19: Amadeus
B20: APA GasNet | C20: APA GasNet Australia (Operations) Pty Ltd | D20: 065083009 | E20: Vic | F20: Gas | G20: Transmission | H20: Weighted average price cap | I20: Calendar | J20: December | K20: 5 | L20: 5 | M20: x | O20: Level 19, HSBC Building | P20: 580 George Street | Q20: SYDNEY | R20: NSW | S20: 2000 | T20: PO Box R41 | V20: ROYAL EXCHANGE | W20: NSW | X20: 1225 | Y20: Alexandra Curran | Z20: 02 9275 0020 | AA20: alexandra.curran@apa.com.au | AB20: NO | AC20: NO | AD20: NO | AE20: NO | AF20: NO | AG20: - | AH20: CBD | AI20: Urban | AJ20: Short rural | AK20: Long rural | AM20: NO | AN20: APA GasNet
B21: Ausgrid | C21: Ausgrid | D21: 78508211731 | E21: NSW | F21: Electricity | G21: Distribution | H21: Revenue cap | I21: Financial | J21: June | K21: 5 | L21: 5 | M21: 5 | N21: 2014-19 Distribution Determination | O21: 570 George St | Q21: SYDNEY | R21: NSW | S21: 2000 | T21: GPO Box 4009 | V21: SYDNEY | W21: NSW | X21: 2001 | Y21: John Thomson | Z21: 02 9269 2312 | AA21: john.thomson@ausgrid.com.au | AB21: YES | AC21: YES | AD21: YES | AE21: YES | AF21: NO | AG21: NO | AH21: CBD | AI21: Urban | AJ21: Short rural | AK21: Long rural | AM21: YES | AN21: Ausgrid
B22: Ausgrid (Tx Assets) | C22: Ausgrid (Tx Assets) | D22: 67505337385 | E22: NSW | F22: Electricity | G22: Distribution | H22: Revenue cap | I22: Financial | J22: June | K22: 5 | L22: 5 | M22: 5 | N22: distribution determination | O22: 570 George St | Q22: SYDNEY | R22: NSW | S22: 2000 | T22: GPO Box 4009 | V22: SYDNEY | W22: NSW | X22: 2001 | Y22: John Thomson | Z22: 02 9269 2312 | AA22: john.thomson@ausgrid.com.au | AB22: YES | AC22: YES | AD22: YES | AE22: YES | AF22: NO | AG22: NO | AH22: CBD | AI22: Urban | AJ22: Short rural | AK22: Long rural | AM22: NO | AN22: Ausgrid (Tx Assets)
B23: AusNet (D) | C23: AusNet Electricity Services Pty Ltd | D23: 91064651118 | E23: Vic | F23: Electricity | G23: Distribution | H23: Revenue cap | I23: Calendar | J23: December | K23: 5 | L23: 5 | M23: 2 | N23: 2016-20 Distribution Determination | O23: Level 32 | P23: 2 Southbank Boulevard | Q23: SOUTHBANK | R23: Vic | S23: 3006 | T23: Locked Bag 14051 | V23: MELBOURNE CITY MAIL CENTRE | W23: VIC | X23: 8001 | Y23: please provide contact details | AB23: NO | AC23: YES | AD23: YES | AE23: YES | AF23: NO | AG23: YES | AH23: CBD | AI23: Urban | AJ23: Short rural | AK23: Long rural | AM23: YES | AN23: AusNet (D)
B24: AusNet (Gas) | C24: AusNet Gas Services | D24: 086015036 | E24: Vic | F24: Gas | G24: Distribution | H24: Weighted average price cap | I24: Calendar | J24: December | K24: 5 | L24: 5 | M24: X | O24: Level 19, HSBC Building | P24: 580 George Street | Q24: SYDNEY | R24: NSW | S24: 2000 | T24: PO Box R41 | V24: ROYAL EXCHANGE | W24: NSW | X24: 1225 | Y24: Alexandra Curran | Z24: 02 9275 0020 | AA24: alexandra.curran@apa.com.au | AB24: NO | AC24: NO | AD24: NO | AE24: NO | AF24: NO | AG24: - | AH24: CBD | AI24: Urban | AJ24: Short rural | AK24: Long rural | AM24: NO | AN24: AusNet (Gas)
B25: AusNet (T) | C25: Ausnet Services (Transmission) Ltd | D25: 48116124362 | E25: Vic | F25: Electricity | G25: Transmission | H25: Revenue cap | I25: Financial | J25: March | K25: 5 | L25: 5 | M25: 2 | N25: transmission determination | O25: Level 32 | P25: 2 Southbank Boulevard | Q25: SOUTHBANK | R25: Vic | S25: 3006 | T25: Locked Bag 14051 | V25: MELBOURNE CITY MAIL CENTRE | W25: Vic | X25: 8001 | Y25: Clare Thompson | Z25: 03 9695 6670 | AA25: clare.e.thompson@ausnetservices.com.au | AB25: NO | AC25: NO | AD25: NO | AE25: NO | AF25: NO | AG25: - | AH25: CBD | AI25: Urban | AJ25: Short rural | AK25: Long rural | AM25: NO | AN25: AusNet (T)
B26: Australian Distribution Co. | C26: Australian Distribution Co. | D26: 11222333444 | E26: - | F26: Electricity | G26: Distribution | H26: Revenue cap | I26: Financial | J26: June | K26: 5 | L26: 5 | M26: 2 | N26: distribution determination | O26: 123 Straight Street | Q26: SYDNEY | R26: NSW | S26: 2000 | T26: PO Box 123 | V26: SYDNEY | W26: NSW | X26: 2000 | Y26: Bob Smith | Z26: 02 1234 5678 | AA26: bob@auselec.net.au | AB26: YES | AC26: YES | AD26: YES | AE26: YES | AF26: NO | AG26: NO | AH26: CBD | AI26: Urban | AJ26: Short rural | AK26: Long rural | AM26: YES | AN26: Australian Distribution Co.
B27: Australian Distribution Co. (Gas) | C27: Australian Gas Distribution Co. | D27: 11222333444 | E27: NSW | F27: Gas | G27: Distribution | H27: Weighted average price cap | I27: Financial | J27: June | K27: 5 | L27: 5 | O27: 123 Straight Street | Q27: SYDNEY | R27: NSW | S27: 2000 | T27: PO Box 123 | V27: SYDNEY | W27: NSW | X27: 2000 | Y27: Bob Smith | Z27: 02 1234 5678 | AA27: bob@auselec.net.au | AB27: NO | AC27: NO | AD27: NO | AE27: NO | AF27: NO | AG27: - | AH27: CBD | AI27: Urban | AJ27: Short rural | AK27: Long rural | AM27: NO | AN27: Australian Distribution Co. (Vic)
B28: Australian Distribution Co. (Vic) | C28: Australian Distribution Co. (Victoria) | D28: 11222333444 | E28: Vic | F28: Electricity | G28: Distribution | H28: Revenue cap | I28: Calendar | J28: December | K28: 5 | L28: 5 | M28: 2 | N28: distribution determination | O28: 123 Straight Street | Q28: MELBOURNE | R28: Vic | S28: 3000 | T28: PO Box 123 | V28: MELBOURNE | W28: VIC | X28: 3000 | Y28: Bob Smith | Z28: 02 1234 5678 | AA28: bob@auselec.net.au | AB28: NO | AC28: NO | AD28: NO | AE28: NO | AF28: NO | AG28: YES | AH28: CBD | AI28: Urban | AJ28: Short rural | AK28: Long rural | AM28: YES | AN28: Australian Distribution Co. (Vic)
B29: Australian Transmission Co. | C29: Australian Transmission Co. | D29: 11222333444 | E29: - | F29: Electricity | G29: Transmission | H29: Revenue cap | I29: Financial | J29: June | K29: 5 | L29: 5 | M29: 5 | N29: transmission determination | O29: 123 Straight Street | Q29: SYDNEY | R29: NSW | S29: 2000 | T29: PO Box 123 | V29: SYDNEY | W29: NSW | X29: 2000 | Y29: Bob Smith | Z29: 02 1234 5678 | AA29: bob@auselec.net.au | AB29: NO | AC29: NO | AD29: NO | AE29: NO | AF29: NO | AG29: - | AH29: CBD | AI29: Urban | AJ29: Short rural | AK29: Long rural | AM29: NO | AN29: Australian Transmission Co.
B30: Central Ranges Pipeline (D) | C30: Central Ranges Pipeline Pty Ltd | D30: 108218355 | E30: NSW | F30: Gas | G30: Distribution | H30: Weighted average price cap | I30: Financial | J30: June | K30: 15 | L30: 5 | M30: 5 | N30: distribution determination | O30: Level 19 | P30: 580 George Street | Q30: SYDNEY | R30: NSW | S30: 2000 | T30: PO Box R41 | V30: ROYAL EXCHANGE | W30: NSW | X30: 1225 | Y30: Scott Young | Z30: 02 9275 0031 | AA30: scott.young@apa.com.au | AB30: NO | AC30: NO | AD30: NO | AE30: NO | AF30: NO | AG30: - | AH30: CBD | AI30: Urban | AJ30: Short rural | AK30: Long rural | AM30: NO
B31: Central Ranges Pipeline (T) | C31: Central Ranges Pipeline Pty Ltd | D31: 108218355 | E31: NSW | F31: Gas | G31: Distribution | H31: Weighted average price cap | I31: Financial | J31: June | K31: 14 | L31: 5 | M31: 5 | N31: transmission determination | O31: Level 19 | P31: 580 George Street | Q31: SYDNEY | R31: NSW | S31: 2000 | T31: PO Box R41 | V31: ROYAL EXCHANGE | W31: NSW | X31: 1225 | Y31: Scott Young | Z31: 02 9275 0031 | AA31: scott.young@apa.com.au | AB31: NO | AC31: NO | AD31: NO | AE31: NO | AF31: NO | AG31: - | AH31: CBD | AI31: Urban | AJ31: Short rural | AK31: Long rural | AM31: NO
B32: CitiPower | C32: CitiPower | D32: 76064651056 | E32: Vic | F32: Electricity | G32: Distribution | H32: Revenue cap | I32: Calendar | J32: December | K32: 5 | L32: 5 | M32: 2 | N32: 2016-20 Distribution Determination | O32: 40 Market Street | Q32: MELBOURNE | R32: Vic | S32: 3000 | T32: Locked Bag 14090 | V32: MELBOURNE | W32: VIC | X32: 8001 | Y32: Hannah Williams | Z32: 03 9683 4088 | AA32: hwilliams@powercor.com.au | AB32: YES | AC32: YES | AD32: NO | AE32: NO | AF32: NO | AG32: YES | AH32: CBD | AI32: Urban | AJ32: Short rural | AK32: Long rural | AM32: YES | AN32: CitiPower
B33: Directlink | C33: Directlink | D33: 16779340889 | E33: Qld | F33: Electricity | G33: Transmission | H33: Revenue cap | I33: Financial | J33: June | K33: 5 | L33: 5 | M33: 5 | N33: transmission determination | O33: Level 19, HSBC Building | P33: 580 George Street | Q33: SYDNEY | R33: NSW | S33: 2000 | T33: PO Box R41 | V33: ROYAL EXCHANGE | W33: NSW | X33: 1225 | Y33: Scott Young | Z33: 02 9275 0031 | AA33: scott.young@apa.com.au | AB33: NO | AC33: NO | AD33: NO | AE33: NO | AF33: NO | AG33: - | AH33: CBD | AI33: Urban | AJ33: Short rural | AK33: Long rural | AM33: NO | AN33: Directlink
B34: ElectraNet | C34: ElectraNet | D34: 41094482416 | E34: SA | F34: Electricity | G34: Transmission | H34: Revenue cap | I34: Financial | J34: June | K34: 5 | L34: 5 | M34: 5 | N34: transmission determination | O34: 52-55 East Terrace | P34: Rymill Park | Q34: ADELAIDE | R34: SA | S34: 5000 | T34: PO Box 7096 | U34: Hutt Street Post Office | V34: ADELAIDE | W34: SA | X34: 5000 | Y34: Bill Jackson | Z34: 08 8404 7969 | AA34: jackson.bill@electranet.com.au | AB34: NO | AC34: NO | AD34: NO | AE34: NO | AF34: NO | AG34: - | AH34: CBD | AI34: Urban | AJ34: Short rural | AK34: Long rural | AM34: NO | AN34: ElectraNet
B35: Endeavour Energy | C35: Endeavour Energy | D35: 11247365823 | E35: NSW | F35: Electricity | G35: Distribution | H35: Revenue cap | I35: Financial | J35: June | K35: 5 | L35: 5 | M35: 5 | N35: 2014-19 Distribution Determination | O35: 51 Huntingwood Drive | Q35: HUNTINGWOOD | R35: NSW | S35: 2148 | T35: PO Box 811 | V35: SEVEN HILLS | W35: NSW | X35: 1730 | Y35: Jon Hocking | Z35: 02 9853 4386 / 0407 348 156 | AA35: Jon.Hocking@Endeavourenergy.com.au | AB35: NO | AC35: YES | AD35: YES | AE35: YES | AF35: NO | AG35: NO | AH35: CBD | AI35: Urban | AJ35: Short rural | AK35: Long rural | AM35: YES | AN35: Endeavour Energy
B36: Energex | C36: Energex | D36: 40078849055 | E36: Qld | F36: Electricity | G36: Distribution | H36: Revenue cap | I36: Financial | J36: June | K36: 5 | L36: 5 | M36: 5 | N36: 2015-20 Distribution Determination | O36: 26 Reddacliff Street | Q36: NEWSTEAD | R36: Qld | S36: 4006 | T36: 26 Reddacliff Street | V36: NEWSTEAD | W36: QLD | X36: 4006 | Y36: Jenny Doyle, Group Manager Regulatory Affairs | Z36: (07) 3851 6416 | AA36: jenny.doyle@ergon.com.au | AB36: YES | AC36: YES | AD36: YES | AE36: NO | AF36: NO | AG36: NO | AH36: CBD | AI36: Urban | AJ36: Short rural | AK36: Long rural | AM36: YES | AN36: Energex
B37: Ergon Energy | C37: Ergon Energy | D37: 50087646062 | E37: Qld | F37: Electricity | G37: Distribution | H37: Revenue cap | I37: Financial | J37: June | K37: 5 | L37: 5 | M37: 5 | N37: 2015-20 Distribution Determination | O37: 22 Walker Street | Q37: TOWNSVILLE | R37: Qld | S37: 4810 | T37: Po Box 264 | V37: FORTITUDE VALLEY | W37: QLD | X37: 4006 | Y37: Jenny Doyle, Group Manager Regulatory Affairs | Z37: (07) 3851 6416 | AA37: jenny.doyle@ergon.com.au | AB37: NO | AC37: YES | AD37: YES | AE37: YES | AF37: NO | AG37: NO | AH37: CBD | AI37: Urban | AJ37: Short rural | AK37: Long rural | AM37: YES | AN37: Ergon Energy
B38: Essential Energy | C38: Essential Energy | D38: 37428185226 | E38: NSW | F38: Electricity | G38: Distribution | H38: Revenue cap | I38: Financial | J38: June | K38: 5 | L38: 5 | M38: 5 | N38: 2014-19 Distribution Determination | O38: 8 Buller Street | Q38: PORT MACQUARIE | R38: NSW | S38: 2444 | T38: PO Box 5730 | V38: PORT MACQUARIE | W38: NSW | X38: 2444 | Y38: Catherine Waddell | Z38: 02 6338 3553 | AA38: catherine.waddell@essentialenergy.com.au | AB38: NO | AC38: NO | AD38: YES | AE38: YES | AF38: NO | AG38: NO | AH38: CBD | AI38: Urban | AJ38: Short rural | AK38: Long rural | AM38: YES | AN38: Essential Energy
B39: Jemena Electricity | C39: Jemena Electricity | D39: 82064651083 | E39: Vic | F39: Electricity | G39: Distribution | H39: Revenue cap | I39: Calendar | J39: December | K39: 5 | L39: 5 | M39: 2 | N39: 2016-20 Distribution Determination | O39: Level 16 | P39: 567 Collins Street | Q39: MELBOURNE | R39: VIC | S39: 3000 | T39: PO Box 16182 | V39: MELBOURNE | W39: VIC | X39: 8001 | Y39: Matthew Serpell | Z39: 03 9173 8231 | AA39: matthew.serpell@jemena.com.au | AB39: NO | AC39: YES | AD39: YES | AE39: NO | AF39: NO | AG39: YES | AH39: CBD | AI39: Urban | AJ39: Short rural | AK39: Long rural | AM39: YES | AN39: Jemena Electricity
B40: JGN | C40: Jemena Gas Networks (NSW) Ltd | D40: 003 004 322 | E40: NSW | F40: Gas | G40: Distribution | H40: Weighted average price cap | I40: Financial | J40: June | K40: 5 | L40: 5 | Y40: please provide contact details | AB40: NO | AC40: NO | AD40: NO | AE40: NO | AF40: NO | AG40: - | AH40: CBD | AI40: Urban | AJ40: Short rural | AK40: Long rural | AM40: NO | AN40: JGN
B41: Multinet Gas | C41: Multinet Gas (DB No.1) Pty Ltd (ACN 086 026 986), Multinet Gas (DB No.2) Pty Ltd (ACN 086 230 122) | D41: 086026986 | E41: Vic | F41: Gas | G41: Distribution | H41: Weighted average price cap | I41: Calendar | J41: December | K41: 5 | L41: 5 | M41: x | O41: 43-45 Centreway | Q41: MT WAVERLEY | R41: Vic | S41: 3149 | Y41: Andrew Schille | Z41: 03 8846 9860 | AA41: andrew.schille@ue.com.au | AB41: NO | AC41: NO | AD41: NO | AE41: NO | AF41: NO | AG41: - | AH41: CBD | AI41: Urban | AJ41: Short rural | AK41: Long rural | AM41: NO | AN41: Multinet Gas
B42: Murraylink | C42: Murraylink | D42: 79181207909 | E42: SA | F42: Electricity | G42: Transmission | H42: Revenue cap | I42: Financial | J42: June | K42: 5 | L42: 5 | M42: 5 | N42: transmission determination | O42: Level 19 | P42: 580 George Street | Q42: SYDNEY | R42: NSW | S42: 2000 | T42: PO Box R41 | V42: ROYAL EXCHANGE | W42: NSW | X42: 1225 | Y42: Scott Young | Z42: 02 9275 0031 | AA42: scott.young@apa.com.au | AB42: NO | AC42: NO | AD42: NO | AE42: NO | AF42: NO | AG42: - | AH42: CBD | AI42: Urban | AJ42: Short rural | AK42: Long rural | AM42: NO | AN42: Murraylink
B43: Power and Water | C43: Power and Water Corporation | D43: 15947352360 | E43: NT | F43: Electricity | G43: Distribution | H43: Revenue cap | I43: Financial | J43: June | K43: 5 | L43: 5 | M43: x | N43: distribution determination | O43: GPO Box 1921 | Q43: DARWIN | R43: NT | S43: 801 | T43: GPO Box 1921 | V43: DARWIN | W43: NT | X43: 801 | Y43: Lucy Moon | Z43: 08 8924 5822 | AA43: Lucy.Moon@powerwater.com.au | AB43: YES | AC43: YES | AD43: YES | AE43: YES | AF43: NO | AG43: NO | AH43: CBD | AI43: Urban | AJ43: Short rural | AK43: Long rural | AM43: NO | AN43: Power and Water
B44: Powercor Australia | C44: Powercor Australia | D44: 89064651109 | E44: Vic | F44: Electricity | G44: Distribution | H44: Revenue cap | I44: Calendar | J44: December | K44: 5 | L44: 5 | M44: 2 | N44: 2016-20 Distribution Determination | O44: 40 Market Street | Q44: MELBOURNE | R44: Vic | S44: 3000 | T44: Locked bag 14090 | V44: MELBOURNE | W44: VIC | X44: 8001 | Y44: Hannah Williams | Z44: 03 9683 4088 | AA44: hwilliams@powercor.com.au | AB44: NO | AC44: NO | AD44: YES | AE44: YES | AF44: NO | AG44: YES | AH44: CBD | AI44: Urban | AJ44: Short rural | AK44: Long rural | AM44: YES | AN44: Powercor Australia
B45: Powerlink | C45: Queensland Electricity Transmission Corporation Limited trading as Powerlink Queensland | D45: 82078849233 | E45: Qld | F45: Electricity | G45: Transmission | H45: Revenue cap | I45: Financial | J45: June | K45: 5 | L45: 5 | M45: 5 | N45: transmission determination | O45: 33 Harold St | Q45: VIRGINIA | R45: Qld | S45: 4014 | T45: PO Box 1193 | V45: VIRGINIA | W45: QLD | X45: 4014 | Y45: Jennifer Harris | Z45: 07 3860 2667 | AA45: jharris@powerlink.com.au | AB45: NO | AC45: NO | AD45: NO | AE45: NO | AF45: NO | AG45: - | AH45: CBD | AI45: Urban | AJ45: Short rural | AK45: Long rural | AM45: NO | AN45: Powerlink
B46: Roma to Brisbane Pipeline | C46: APT Petroleum Pipelines Limited t/a Roma to Brisbane Pipeline | D46: 009 737 393 | E46: Qld | F46: Gas | G46: Transmission | H46: Weighted average price cap | I46: Financial | J46: June | K46: 5 | L46: 5 | M46: x | N46: n/a | O46: 580 George Street | Q46: SYDNEY | R46: NSW | S46: 2000 | T46: PO Box R41 | V46: ROYAL EXCHANGE | W46: NSW | X46: 1225 | Y46: Mark Allen | Z46: 02 9275 0010 | AA46: mark.allen@apa.com.au | AB46: NO | AC46: NO | AD46: NO | AE46: NO | AF46: NO | AG46: - | AH46: CBD | AI46: Urban | AJ46: Short rural | AK46: Long rural | AM46: NO | AN46: Roma to Brisbane Pipeline
B47: SA Power Networks | C47: SA Power Networks | D47: 13332330749 | E47: SA | F47: Electricity | G47: Distribution | H47: Revenue cap | I47: Financial | J47: June | K47: 5 | L47: 5 | M47: 5 | N47: 2015-20 Distribution Determination | O47: 1 Anzac Highway | Q47: KESWICK | R47: SA | S47: 5035 | T47: GPO Box 77 | V47: ADELAIDE | W47: SA | X47: 5000 | Y47: Richard Sibly | Z47: 08 8404 5613 | AA47: richard.sibly@sapowernetworks.com.au | AB47: NO | AC47: NO | AD47: YES | AE47: YES | AF47: NO | AG47: NO | AH47: CBD | AI47: Urban | AJ47: Short rural | AK47: Long rural | AM47: NO | AN47: SA Power Networks
B48: TasNetworks (D) | C48: TasNetworks (D) | D48: 24167357299 | E48: Tas | F48: Electricity | G48: Distribution | H48: Revenue cap | I48: Financial | J48: June | K48: 5 | L48: 5 | M48: 5 | N48: distribution determination | O48: 1-7 Maria Street | Q48: LENAH VALLEY | R48: Tas | S48: 7008 | T48: PO Box 606 | V48: MOONAH | W48: Tas | X48: 7009 | Y48: John Sayers | Z48: 03 6271 6469 | AA48: john.sayers@tasnetworks.com.au | AB48: YES | AC48: YES | AD48: YES | AE48: YES | AF48: YES | AG48: NO | AH48: Critical Infrastructure | AI48: High density commercial | AJ48: Urban | AK48: High density rural | AL48: Low density rural | AM48: YES | AN48: TasNetworks (D)
B49: TasNetworks (T) | C49: TasNetworks (T) | D49: 24167357299 | E49: Tas | F49: Electricity | G49: Transmission | H49: Revenue cap | I49: Financial | J49: June | K49: 5 | L49: 5 | M49: 5 | N49: transmission determination | O49: 1-7 Maria Street | Q49: LENAH VALLEY | R49: Tas | S49: 7008 | T49: PO Box 606 | V49: MOONAH | W49: Tas | X49: 7009 | Y49: John Sayers | Z49: 03 6271 6469 | AA49: john.sayers@tasnetworks.com.au | AB49: NO | AC49: NO | AD49: NO | AE49: NO | AF49: NO | AG49: - | AH49: CBD | AI49: Urban | AJ49: Short rural | AK49: Long rural | AM49: NO | AN49: TasNetworks (T)
B50: TransGrid | C50: NSW Electricity Networks Operations Pty Ltd trading as TransGrid | D50: 70 250 995 390 | E50: NSW | F50: Electricity | G50: Transmission | H50: Revenue cap | I50: Financial | J50: June | K50: 4 | L50: 5 | M50: 5 | N50: transmission determination | O50: 180 Thomas Street | Q50: SYDNEY | R50: NSW | S50: 2000 | T50: PO Box A1000 | V50: SYDNEY SOUTH | W50: NSW | X50: 1235 | Y50: Garrie Chubb | Z50: 0408 210 221 | AA50: garrie.chubb@transgrid.com.au | AB50: NO | AC50: NO | AD50: NO | AE50: NO | AF50: NO | AG50: - | AH50: CBD | AI50: Urban | AJ50: Short rural | AK50: Long rural | AM50: NO | AN50: TransGrid
B51: United Energy | C51: United Energy | D51: 70064651029 | E51: Vic | F51: Electricity | G51: Distribution | H51: Revenue cap | I51: Calendar | J51: December | K51: 5 | L51: 5 | M51: 2 | N51: 2016-20 Distribution Determination | O51: Level 3 | P51: 6 Nexus Court | Q51: MULGRAVE | R51: Vic | S51: 3149 | T51: PO Box 449 | V51: MOUNT WAVERLEY | W51: VIC | X51: 3170 | Y51: Mathew Abraham | Z51: 03 8846 9758 | AA51: mathew.abraham@ue.com.au | AB51: NO | AC51: NO | AD51: YES | AE51: NO | AF51: NO | AG51: YES | AH51: CBD | AI51: Urban | AJ51: Short rural | AK51: Long rural | AM51: YES | AN51: United Energy
Z54: For EB & Reset RINs only | AE54: For AARs only
B55: The Reg Year Ending (dms_RYE) must be set to the last year of the regulatory period. For forecast data is is usually (FRCP_y5) for actual it is a single year (CRY). For historical actual data the RYE will need to be set manually in the business details sheet by setting the dms_Multiyear_flag to 1 and putting the correct value in 'dms_Specified_FinalYear. See cells C67:C68 | N55: Drop down selector box for CA & Reset RINs. | O55: For CA & Reset RINs only | Z55: for DNSP only | AE55: For DNSPs only
B56: dms_Model_List | C56: dms_Worksheet_List | E56: dms_RYE_Formula_Result | N56: dms_0203_ProjectType | O56: dms_020303_01_UOM | P56: dms_020501_01_UOM | Q56: dms_020501_02_UOM | R56: dms_020501_03_UOM | S56: dms_020501_04_UOM | T56: dms_020603_01_UOM | U56: dms_020701_01_UOM | V56: dms_020701_02_UOM | W56: dms_020701_01_Rows | X56: dms_040102_01_UOM | Y56: dms_040102_04_UOM | Z56: dms_030601_01_UOM | AA56: dms_030601_02_UOM | AB56: dms_030701_01_UOM | AC56: dms_030702_01_UOM | AD56: dms_030703_01_UOM | AE56: dms_030605_UOM | AF56: dms_03060703_UOM
B57: ARR | C57: ANNUAL REPORTING STATEMENT | E57: =LEFT(dms_SingleYear_FinalYear_Result,2)&RIGHT(dms_SingleYear_FinalYear_Result,2) -> 2009 | F57: =LEFT(dms_SingleYear_FinalYear_Result,2)&RIGHT(dms_SingleYear_FinalYear_Result,2) | H57: Formula errors are OK | N57: New line on new route - single circuit | O57: Circuit line length in km | P57: 0's | Q57: 0's | R57: 0's | S57: 0's | T57: 0's | U57: km | V57: km | W57: Route line length within zone | X57: 0's | Y57: days | Z57: minutes/customer | AA57: minutes/customer | AB57: Customer / km | AC57: % | AD57: km | AE57: number | AF57: number
B58: CA | C58: CATEGORY ANALYSIS | E58: =LEFT(dms_SingleYear_FinalYear_Result,2)&RIGHT(dms_SingleYear_FinalYear_Result,2) -> 2009 | F58: =LEFT(dms_SingleYear_FinalYear_Result,2)&RIGHT(dms_SingleYear_FinalYear_Result,2) | H58: Formula errors are OK | N58: New line on new route - dual circuit | O58: Circuit line length in km | P58: 0's | Q58: 0's | R58: 0's | S58: 0's | T58: 0's | U58: 0's | V58: 0's | W58: Number of maintenance spans | X58: 0's | Y58: 0's | Z58: minutes/customer | AA58: minutes/customer | AB58: MWh/customer | AC58: Number of spans | AE58: number | AF58: number
B59: CESS | C59: CAPITLAL EXPENDITURE SHARING SCHEMING | E59: 2016 | F59: =LEFT(dms_SingleYear_FinalYear_Result,2)&RIGHT(dms_SingleYear_FinalYear_Result,2) | N59: New line on new route - other | O59: Circuit line length in km | P59: MVA added | Q59: MVA added | R59: MVA added | S59: MVA added | T59: 0's | U59: km | V59: km | W59: Total length of maintenance spans | X59: 0's | Y59: $0s | Z59: interruptions/customer | AA59: interruptions/customer | AB59: kVA / customer | AC59: Number of spans | AE59: number | AF59: number
B60: CPI | C60: CPI | N60: Line rebuild over existing route - single circuit | O60: Circuit line length in km | P60: 0's | Q60: 0's | R60: 0's | S60: 0's | T60: 0's | U60: km | V60: km | W60: Length of vegetation corridors | X60: $0s | Y60: 0's | Z60: interruptions/customer | AA60: interruptions/customer | AC60: Number of spans | AE60: number | AF60: number
B61: EB | C61: ECONOMIC BENCHMARKING | E61: =LEFT(dms_SingleYear_FinalYear_Result,2)&RIGHT(dms_SingleYear_FinalYear_Result,2) -> 2009 | F61: =LEFT(dms_SingleYear_FinalYear_Result,2)&RIGHT(dms_SingleYear_FinalYear_Result,2) | H61: Formula errors are OK | N61: Line rebuild over existing route - dual circuit | O61: Number | P61: total spend $0s | Q61: total spend $0s | R61: total spend $0s | S61: total spend $0s | T61: (per cent) | U61: 0's | V61: 0's | W61: Average number of trees per maintenance span | AC61: Number of spans | AE61: number | AF61: (per cent)
B62: PTRM | C62: POST TAX REVENUE MODEL | E62: =LEFT(dms_MultiYear_FinalYear_Result,2)&RIGHT(dms_MultiYear_FinalYear_Result,2) -> 2019 | F62: =LEFT(dms_MultiYear_FinalYear_Result,2)&RIGHT(dms_MultiYear_FinalYear_Result,2) | N62: Reconductor - Single circuit | O62: Number | P62: net circuit km added | Q62: net circuit km added | R62: net circuit km added | S62: net circuit km added | U62: years | V62: years | W62: Average frequency of cutting cycle | AC62: Years | AE62: number
B63: Reset | C63: REGULATORY REPORTING STATEMENT | E63: =LEFT(dms_MultiYear_FinalYear_Result,2)&RIGHT(dms_MultiYear_FinalYear_Result,2) -> 2019 | F63: =LEFT(dms_MultiYear_FinalYear_Result,2)&RIGHT(dms_MultiYear_FinalYear_Result,2) | H63: Formula errors are OK | N63: Reconductor - Dual circuit | O63: Number | P63: total spend $0s | Q63: total spend $0s | R63: total spend $0s | S63: total spend $0s | AC63: Years | AE63: number
B64: RFM | C64: ROLL FORWARD MODEL | E64: =LEFT(dms_CRCP_FinalYear_Result,2)&RIGHT(dms_CRCP_FinalYear_Result,2) -> 2019 | F64: =LEFT(dms_CRCP_FinalYear_Result,2)&RIGHT(dms_CRCP_FinalYear_Result,2) | N64: Other | P64: net circuit km added | Q64: net circuit km added | R64: net circuit km added | S64: net circuit km added | AC64: Trees | AE64: number
B65: WACC | C65: WEIGHTED AVERAGE COST OF CAPITAL | E65: =LEFT(dms_MultiYear_FinalYear_Result,2)&RIGHT(dms_MultiYear_FinalYear_Result,2) -> 2019 | F65: =LEFT(dms_MultiYear_FinalYear_Result,2)&RIGHT(dms_MultiYear_FinalYear_Result,2) | P65: total spend $0s | Q65: total spend $0s | R65: total spend $0s | S65: total spend $0s | AC65: Trees | AE65: number
P66: 0's | R66: $0s | AC66: Defects | AE66: number
B67: dms_DataQuality_List | P67: 0's | AC67: Defects | AE67: number
B68: Actual | P68: 0's | AC68: Spans | AE68: number
B69: Estimate | P69: $0s | AC69: km | AE69: (per cent)
B70: Consolidated | AC70: Spans | AE70: (per cent)
B71: Recast
B72: Public
O73: For PTRM files - this field set the text for the named range "DMS_Xfactor" which in all cases is simply the text "x factors" - this saves putting in each old gas PTRM file | Z73: for TNSP only
B74: For all files either AER or business needs to be able to specify the type of submission | C74: For PTRM & RFM templates we must provide a choice in case they change their form of control - otherwise it is drawn from the business specific lookup table above. | O74: DMS_Xfactor | Z74: dms_030601_01_UOM | AB74: dms_030701_01_UOM | AC74: dms_030702_01_UOM
B75: dms_SourceList | C75: dms_FormControl_Choices | O75: x factors | Z75: % | AB75: Number of spans | AC75: km
B76: After appeal | C76: Revenue cap | Z76: number | AB76: Years | AC76: %
B77: Draft decision | C77: Revenue yield | Z77: number | AB77: Trees | AC77: km
B78: Final decision | C78: Weighted average price cap | Z78: % | AB78: Defects | AC78: number
B79: PTRM update 1 | Z79: number | AB79: Number of spans
B80: PTRM update 2 | Z80: number | AB80: km
B81: PTRM update 3 | Z81: % | AB81: km
B82: PTRM update 4 | Z82: number | AB82: Number of spans
B83: PTRM update 5 | Z83: number
B84: PTRM update 6 | Z84: %
B85: PTRM update 7 | Z85: number
B86: Regulatory proposal | Z86: %
B87: Reporting | Z87: number
B88: Revised regulatory proposal | Z88: %
Z89: number
B93: Reason for interruption | C93: dms_Reason_Interruption_Detailed | D93: dms_Reason_Interruption | E93: dms_STPIS_Exclusion_List | F93: dms_020301_ProjectType_List | G93: dms_020302_ProjectType_List
B94: Animal | C94: Animal impact | D94: Animal | E94: Weather | F94: New substation establishment | G94: New line on new route - single circuit
C95: Animal nesting/burrowing, etc and other | D95: Asset failure | E95: Equipment failure | F95: Capacity upgrade | G95: New line on new route - dual circuit
C96: Other | D96: Other | E96: Operational error | F96: Voltage upgrade | G96: New line on new route - other
B97: Asset failure | C97: LV | D97: Overloads | E97: Vegetation | F97: Other | G97: Line rebuild over existing route - single circuit
C98: Distribution substation | D98: Planned | E98: Animals | G98: Line rebuild over existing route - dual circuit
C99: HV | D99: Network business | E99: Third party impacts | G99: Reconductor - Single circuit
C100: Zone substation | D100: Third party | E100: Transmission failure | G100: Reconductor - Dual circuit
C101: Subtransmission | D101: Unknown | E101: Load shedding | G101: Reconductor - Other
B102: Other | C102: insert description of 'other' | D102: Vegetation | E102: Inter-distributor connection failure | G102: Line upgrade - raising/retensoring
B103: Overloads | C103: - | D103: Weather | E103: Other | G103: Line upgrade - voltage upgrade
B104: Planned | C104: - | D104: 2 - STPIS Exclusion (3.3)(a) | G104: Line upgrade - capacity
B105: Network business | C105: Network error | D105: 3 - STPIS Exclusion (3.3)(a) | G105: String spare circuit
C106: Switching and protection error | D106: 4 - STPIS Exclusion (3.3)(a) | G106: Other
B107: Third party | C107: Fire | D107: 5 - STPIS Exclusion (3.3)(a)
C108: Other | D108: 6 - STPIS Exclusion (3.3)(a)
C109: Dig-in | D109: 7 - STPIS Exclusion (3.3)(a)
C110: Unauthorised access
C111: Vehicle impact
B112: Unknown | C112: Unknown
B113: Vegetation | C113: Blow-in/Fall-in - NSP responsibility
C114: Grow-in - NSP responsibility
C115: Blow-in/Fall-in - Other responsible party
C116: Grow-in - Other responsible party
B117: Weather
B118: 2 - STPIS Exclusion (3.3)(a)
B119: 3 - STPIS Exclusion (3.3)(a)
B120: 4 - STPIS Exclusion (3.3)(a)
B121: 5 - STPIS Exclusion (3.3)(a)
B122: 6 - STPIS Exclusion (3.3)(a)
B123: 7 - STPIS Exclusion (3.3)(a)
B131: These are indeces and lookup values for various dates. All step from the value placed in FRCP_y1 on the business and other details worksheet | O131: These date tables are currently used in the Recast templates to provide column headings and conditional formatting
B132: dms_FRCPlength_Num_List | C132: dms_FinalYear_List | D132: dms_CRCPlength_Num_List | E132: dms_CFinalYear_List | F132: dms_FRCP_years | H132: dms_CRCP_years | J132: dms_CRCP_index | L132: dms_Financial_Years | M132: dms_Calendar_Years | O132: CRY from input cell on business sheet | P132: CRY - financial | Q132: dms_FinYears | R132: CRY calendar | S132: dms_CalYears
B133: 1 | C133: dms_FRCP_y1 | D133: 1 | E133: CRCP_y1 | F133: =FRCP_y1 -> 2008-09 | G133: dms_FRCP_y1 | H133: =IF(dms_RPT="financial",VALUE(LEFT(dms_FRCP_y1,4)-1)&"-"&TEXT(VALUE(MID(dms_FRCP_y1,3,2)),"00"),VALUE(LEFT(dms_FRCP_y1,4)-1)) -> 2007-08 | I133: dms_CRCP_yZ | J133: 1 | L133: 2005-06 | M133: 2006 | O133: =CRY -> 2008-09 | P133: =VALUE(LEFT(CRY,4))&"-"&TEXT(MID(CRY,3,2)+1,"00") -> 2008-09 | Q133: dms_CRYf_y1 | R133: =VALUE(LEFT(CRY,4)+1) -> 2009 | S133: dms_CRYc_y1
B134: 2 | C134: dms_FRCP_y2 | D134: 2 | E134: CRCP_y2 | F134: =IF(dms_RPT="financial",VALUE(LEFT(dms_FRCP_y1,4)+1)&"-"&TEXT(VALUE(RIGHT(dms_FRCP_y1,2)+1),"00"),VALUE(LEFT(dms_FRCP_y1,4)+1)) -> 2009-10 | G134: dms_FRCP_y2 | H134: =IF(dms_RPT="financial",VALUE(LEFT(dms_CRCP_yZ,4)-1)&"-"&TEXT(VALUE(MID(dms_CRCP_yZ,3,2)),"00"),VALUE(LEFT(dms_CRCP_yZ,4)-1)) -> 2006-07 | I134: dms_CRCP_yY | J134: 2 | L134: 2006-07 | M134: 2007 | P134: =VALUE(LEFT(dms_CRYf_y1,4)+1)&"-"&TEXT(MID(dms_CRYf_y1,3,2)+2,"00") -> 2009-10 | Q134: dms_CRYf_y2 | R134: =VALUE(LEFT(dms_CRYc_y1,4)+1) -> 2010 | S134: dms_CRYc_y2
B135: 3 | C135: dms_FRCP_y3 | D135: 3 | E135: CRCP_y3 | F135: =IF(dms_RPT="financial",VALUE(LEFT(dms_FRCP_y2,4)+1)&"-"&TEXT(VALUE(RIGHT(dms_FRCP_y2,2)+1),"00"),VALUE(LEFT(dms_FRCP_y2,4)+1)) -> 2010-11 | G135: dms_FRCP_y3 | H135: =IF(dms_RPT="financial",VALUE(LEFT(dms_CRCP_yY,4)-1)&"-"&TEXT(VALUE(MID(dms_CRCP_yY,3,2)),"00"),VALUE(LEFT(dms_CRCP_yY,4)-1)) -> 2005-06 | I135: dms_CRCP_yX | J135: 3 | L135: 2007-08 | M135: 2008 | P135: =VALUE(LEFT(dms_CRYf_y2,4)+1)&"-"&TEXT(MID(dms_CRYf_y2,3,2)+2,"00") -> 2010-11 | Q135: dms_CRYf_y3 | R135: =VALUE(LEFT(dms_CRYc_y2,4)+1) -> 2011 | S135: dms_CRYc_y3
B136: 4 | C136: dms_FRCP_y4 | D136: 4 | E136: CRCP_y4 | F136: =IF(dms_RPT="financial",VALUE(LEFT(dms_FRCP_y3,4)+1)&"-"&TEXT(VALUE(RIGHT(dms_FRCP_y3,2)+1),"00"),VALUE(LEFT(dms_FRCP_y3,4)+1)) -> 2011-12 | G136: dms_FRCP_y4 | H136: =IF(dms_RPT="financial",VALUE(LEFT(dms_CRCP_yX,4)-1)&"-"&TEXT(VALUE(MID(dms_CRCP_yX,3,2)),"00"),VALUE(LEFT(dms_CRCP_yX,4)-1)) -> 2004-05 | I136: dms_CRCP_yW | J136: 4 | L136: 2008-09 | M136: 2009 | P136: =VALUE(LEFT(dms_CRYf_y3,4)+1)&"-"&TEXT(MID(dms_CRYf_y3,3,2)+2,"00") -> 2011-12 | Q136: dms_CRYf_y4 | R136: =VALUE(LEFT(dms_CRYc_y3,4)+1) -> 2012 | S136: dms_CRYc_y4
B137: 5 | C137: dms_FRCP_y5 | D137: 5 | E137: CRCP_y5 | F137: =IF(dms_RPT="financial",VALUE(LEFT(dms_FRCP_y4,4)+1)&"-"&TEXT(VALUE(RIGHT(dms_FRCP_y4,2)+1),"00"),VALUE(LEFT(dms_FRCP_y4,4)+1)) -> 2012-13 | G137: dms_FRCP_y5 | H137: =IF(dms_RPT="financial",VALUE(LEFT(dms_CRCP_yW,4)-1)&"-"&TEXT(VALUE(MID(dms_CRCP_yW,3,2)),"00"),VALUE(LEFT(dms_CRCP_yW,4)-1)) -> 2003-04 | I137: dms_CRCP_yV | J137: 5 | L137: 2009-10 | M137: 2010 | P137: =VALUE(LEFT(dms_CRYf_y4,4)+1)&"-"&TEXT(MID(dms_CRYf_y4,3,2)+2,"00") -> 2012-13 | Q137: dms_CRYf_y5 | R137: =VALUE(LEFT(dms_CRYc_y4,4)+1) -> 2013 | S137: dms_CRYc_y5
B138: 6 | C138: dms_FRCP_y6 | D138: 6 | E138: CRCP_y6 | F138: =IF(dms_RPT="financial",VALUE(LEFT(dms_FRCP_y5,4)+1)&"-"&TEXT(VALUE(RIGHT(dms_FRCP_y5,2)+1),"00"),VALUE(LEFT(dms_FRCP_y5,4)+1)) -> 2013-14 | G138: dms_FRCP_y6 | H138: =IF(dms_RPT="financial",VALUE(LEFT(dms_CRCP_yV,4)-1)&"-"&TEXT(VALUE(MID(dms_CRCP_yV,3,2)),"00"),VALUE(LEFT(dms_CRCP_yV,4)-1)) -> 2002-03 | I138: dms_CRCP_yU | J138: 6 | L138: 2010-11 | M138: 2011 | P138: =VALUE(LEFT(dms_CRYf_y5,4)+1)&"-"&TEXT(MID(dms_CRYf_y5,3,2)+2,"00") -> 2013-14 | Q138: dms_CRYf_y6 | R138: =VALUE(LEFT(dms_CRYc_y5,4)+1) -> 2014 | S138: dms_CRYc_y6
B139: 7 | C139: dms_FRCP_y7 | D139: 7 | E139: CRCP_y7 | F139: =IF(dms_RPT="financial",VALUE(LEFT(dms_FRCP_y6,4)+1)&"-"&TEXT(VALUE(RIGHT(dms_FRCP_y6,2)+1),"00"),VALUE(LEFT(dms_FRCP_y6,4)+1)) -> 2014-15 | G139: dms_FRCP_y7 | H139: =IF(dms_RPT="financial",VALUE(LEFT(dms_CRCP_yU,4)-1)&"-"&TEXT(VALUE(MID(dms_CRCP_yU,3,2)),"00"),VALUE(LEFT(dms_CRCP_yU,4)-1)) -> 2001-02 | I139: dms_CRCP_yT | J139: 7 | L139: 2011-12 | M139: 2012 | P139: =VALUE(LEFT(dms_CRYf_y6,4)+1)&"-"&TEXT(MID(dms_CRYf_y6,3,2)+2,"00") -> 2014-15 | Q139: dms_CRYf_y7 | R139: =VALUE(LEFT(dms_CRYc_y6,4)+1) -> 2015 | S139: dms_CRYc_y7
B140: 8 | C140: dms_FRCP_y8 | D140: 8 | E140: CRCP_y8 | F140: =IF(dms_RPT="financial",VALUE(LEFT(dms_FRCP_y7,4)+1)&"-"&TEXT(VALUE(RIGHT(dms_FRCP_y7,2)+1),"00"),VALUE(LEFT(dms_FRCP_y7,4)+1)) -> 2015-16 | G140: dms_FRCP_y8 | H140: =IF(dms_RPT="financial",VALUE(LEFT(dms_CRCP_yT,4)-1)&"-"&TEXT(VALUE(MID(dms_CRCP_yT,3,2)),"00"),VALUE(LEFT(dms_CRCP_yT,4)-1)) -> 2000-01 | I140: dms_CRCP_yS | J140: 8 | L140: 2012-13 | M140: 2013 | P140: =VALUE(LEFT(dms_CRYf_y7,4)+1)&"-"&TEXT(MID(dms_CRYf_y7,3,2)+2,"00") -> 2015-16 | Q140: dms_CRYf_y8 | R140: =VALUE(LEFT(dms_CRYc_y7,4)+1) -> 2016 | S140: dms_CRYc_y8
B141: 9 | C141: dms_FRCP_y9 | D141: 9 | E141: CRCP_y9 | F141: =IF(dms_RPT="financial",VALUE(LEFT(dms_FRCP_y8,4)+1)&"-"&TEXT(VALUE(RIGHT(dms_FRCP_y8,2)+1),"00"),VALUE(LEFT(dms_FRCP_y8,4)+1)) -> 2016-17 | G141: dms_FRCP_y9 | H141: =IF(dms_RPT="financial",VALUE(LEFT(dms_CRCP_yS,4)-1)&"-"&TEXT(VALUE(MID(dms_CRCP_yS,3,2)),"00"),VALUE(LEFT(dms_CRCP_yS,4)-1)) -> 1999-00 | I141: dms_CRCP_yR | J141: 9 | L141: 2013-14 | M141: 2014 | P141: =VALUE(LEFT(dms_CRYf_y8,4)+1)&"-"&TEXT(MID(dms_CRYf_y8,3,2)+2,"00") -> 2016-17 | Q141: dms_CRYf_y9 | R141: =VALUE(LEFT(dms_CRYc_y8,4)+1) -> 2017 | S141: dms_CRYc_y9
B142: 10 | C142: dms_FRCP_y10 | D142: 10 | E142: CRCP_y10 | F142: =IF(dms_RPT="financial",VALUE(LEFT(dms_FRCP_y9,4)+1)&"-"&TEXT(VALUE(RIGHT(dms_FRCP_y9,2)+1),"00"),VALUE(LEFT(dms_FRCP_y9,4)+1)) -> 2017-18 | G142: dms_FRCP_y10 | H142: =IF(dms_RPT="financial",VALUE(LEFT(dms_CRCP_yR,4)-1)&"-"&TEXT(VALUE(MID(dms_CRCP_yR,3,2)),"00"),VALUE(LEFT(dms_CRCP_yR,4)-1)) -> 1998-99 | I142: dms_CRCP_yQ | J142: 10 | L142: 2014-15 | M142: 2015 | P142: =VALUE(LEFT(dms_CRYf_y9,4)+1)&"-"&TEXT(MID(dms_CRYf_y9,3,2)+2,"00") -> 2017-18 | Q142: dms_CRYf_y10 | R142: =VALUE(LEFT(dms_CRYc_y9,4)+1) -> 2018 | S142: dms_CRYc_y10
B143: 11 | C143: dms_FRCP_y11 | D143: 11 | E143: CRCP_y11 | F143: =IF(dms_RPT="financial",VALUE(LEFT(dms_FRCP_y10,4)+1)&"-"&TEXT(VALUE(RIGHT(dms_FRCP_y10,2)+1),"00"),VALUE(LEFT(dms_FRCP_y10,4)+1)) -> 2018-19 | G143: dms_FRCP_y11 | H143: =IF(dms_RPT="financial",VALUE(LEFT(dms_CRCP_yQ,4)-1)&"-"&TEXT(VALUE(MID(dms_CRCP_yQ,3,2)),"00"),VALUE(LEFT(dms_CRCP_yQ,4)-1)) -> 1997-98 | I143: dms_CRCP_yP | J143: 11 | L143: 2015-16 | M143: 2016 | P143: =VALUE(LEFT(dms_CRYf_y10,4)+1)&"-"&TEXT(MID(dms_CRYf_y10,3,2)+2,"00") -> 2018-19 | Q143: dms_CRYf_y11 | R143: =VALUE(LEFT(dms_CRYc_y10,4)+1) -> 2019 | S143: dms_CRYc_y11
B144: 12 | C144: dms_FRCP_y12 | D144: 12 | E144: CRCP_y12 | F144: =IF(dms_RPT="financial",VALUE(LEFT(dms_FRCP_y11,4)+1)&"-"&TEXT(VALUE(RIGHT(dms_FRCP_y11,2)+1),"00"),VALUE(LEFT(dms_FRCP_y11,4)+1)) -> 2019-20 | G144: dms_FRCP_y12 | H144: =IF(dms_RPT="financial",VALUE(LEFT(dms_CRCP_yP,4)-1)&"-"&TEXT(VALUE(MID(dms_CRCP_yP,3,2)),"00"),VALUE(LEFT(dms_CRCP_yP,4)-1)) -> 1996-97 | I144: dms_CRCP_yO | J144: 12 | L144: 2016-17 | M144: 2017 | P144: =VALUE(LEFT(dms_CRYf_y11,4)+1)&"-"&TEXT(MID(dms_CRYf_y11,3,2)+2,"00") -> 2019-20 | Q144: dms_CRYf_y12 | R144: =VALUE(LEFT(dms_CRYc_y11,4)+1) -> 2020 | S144: dms_CRYc_y12
B145: 13 | C145: dms_FRCP_y13 | D145: 13 | E145: CRCP_y13 | F145: =IF(dms_RPT="financial",VALUE(LEFT(dms_FRCP_y12,4)+1)&"-"&TEXT(VALUE(RIGHT(dms_FRCP_y12,2)+1),"00"),VALUE(LEFT(dms_FRCP_y12,4)+1)) -> 2020-21 | G145: dms_FRCP_y13 | H145: =IF(dms_RPT="financial",VALUE(LEFT(dms_CRCP_yO,4)-1)&"-"&TEXT(VALUE(MID(dms_CRCP_yO,3,2)),"00"),VALUE(LEFT(dms_CRCP_yO,4)-1)) -> 1995-96 | I145: dms_CRCP_yN | J145: 13 | L145: 2017-18 | M145: 2018 | P145: =VALUE(LEFT(dms_CRYf_y12,4)+1)&"-"&TEXT(MID(dms_CRYf_y12,3,2)+2,"00") -> 2020-21 | Q145: dms_CRYf_y13 | R145: =VALUE(LEFT(dms_CRYc_y12,4)+1) -> 2021 | S145: dms_CRYc_y13
B146: 14 | C146: dms_FRCP_y14 | D146: 14 | E146: CRCP_y14 | F146: =IF(dms_RPT="financial",VALUE(LEFT(dms_FRCP_y13,4)+1)&"-"&TEXT(VALUE(RIGHT(dms_FRCP_y13,2)+1),"00"),VALUE(LEFT(dms_FRCP_y13,4)+1)) -> 2021-22 | G146: dms_FRCP_y14 | H146: =IF(dms_RPT="financial",VALUE(LEFT(dms_CRCP_yN,4)-1)&"-"&TEXT(VALUE(MID(dms_CRCP_yN,3,2)),"00"),VALUE(LEFT(dms_CRCP_yN,4)-1)) -> 1994-95 | I146: dms_CRCP_yM | J146: 14 | L146: 2018-19 | M146: 2019 | P146: =VALUE(LEFT(dms_CRYf_y13,4)+1)&"-"&TEXT(MID(dms_CRYf_y13,3,2)+2,"00") -> 2021-22 | Q146: dms_CRYf_y14 | R146: =VALUE(LEFT(dms_CRYc_y13,4)+1) -> 2022 | S146: dms_CRYc_y14
B147: 15 | C147: dms_FRCP_y15 | D147: 15 | E147: CRCP_y15 | F147: =IF(dms_RPT="financial",VALUE(LEFT(dms_FRCP_y14,4)+1)&"-"&TEXT(VALUE(RIGHT(dms_FRCP_y14,2)+1),"00"),VALUE(LEFT(dms_FRCP_y14,4)+1)) -> 2022-23 | G147: dms_FRCP_y15 | H147: =IF(dms_RPT="financial",VALUE(LEFT(dms_CRCP_yM,4)-1)&"-"&TEXT(VALUE(MID(dms_CRCP_yM,3,2)),"00"),VALUE(LEFT(dms_CRCP_yM,4)-1)) -> 1993-94 | I147: dms_CRCP_yL | J147: 15 | L147: 2019-20 | M147: 2020 | P147: =VALUE(LEFT(dms_CRYf_y14,4)+1)&"-"&TEXT(MID(dms_CRYf_y14,3,2)+2,"00") -> 2022-23 | Q147: dms_CRYf_y15 | R147: =VALUE(LEFT(dms_CRYc_y14,4)+1) -> 2023 | S147: dms_CRYc_y15
L148: 2020-21 | M148: 2021 | P148: =VALUE(LEFT(dms_CRYf_y15,4)+1)&"-"&TEXT(MID(dms_CRYf_y15,3,2)+2,"00") -> 2023-24 | Q148: dms_CRYf_y16 | R148: =VALUE(LEFT(dms_CRYc_y15,4)+1) -> 2024 | S148: dms_CRYc_y16
B149: These are drop down lists for businesses to select the correct FRCP_y1 on the business and other details worksheet. This also populates the column headings in the worksheets | L149: 2021-22 | M149: 2022 | P149: =VALUE(LEFT(dms_CRYf_y16,4)+1)&"-"&TEXT(MID(dms_CRYf_y16,3,2)+2,"00") -> 2024-25 | Q149: dms_CRYf_y17 | R149: =VALUE(LEFT(dms_CRYc_y16,4)+1) -> 2025 | S149: dms_CRYc_y17
B150: dms_RCP_fyear_list | C150: dms_CRY_ListF | D150: dms_CRY_ListC | E150: dms_RCP_cyear_list | F150: dms_FRCP_fyear_list | G150: dms_FRCP_ListF | H150: dms_FRCP_ListC | I150: dms_FRCP_cyear_list | L150: 2022-23 | M150: 2023 | P150: =VALUE(LEFT(dms_CRYf_y17,4)+1)&"-"&TEXT(MID(dms_CRYf_y17,3,2)+2,"00") -> 2025-26 | Q150: dms_CRYf_y18 | R150: =VALUE(LEFT(dms_CRYc_y17,4)+1) -> 2026 | S150: dms_CRYc_y18
B151: dms_y1 | C151: =CRY -> 2008-09 | D151: 2006 | E151: dms_cy1 | F151: dms_frcp_fy1 | G151: 2010-11 | H151: 2011 | I151: dms_crcp_cy1 | L151: 2023-24 | M151: 2024 | P151: =VALUE(LEFT(dms_CRYf_y18,4)+1)&"-"&TEXT(MID(dms_CRYf_y18,3,2)+2,"00") -> 2026-27 | Q151: dms_CRYf_y19 | R151: =VALUE(LEFT(dms_CRYc_y18,4)+1) -> 2027 | S151: dms_CRYc_y19
B152: dms_y2 | C152: =IF(dms_RPT="financial",VALUE(LEFT(CRY,4)+1)&"-"&TEXT(MID(CRY,3,2)+2,"00"),VALUE(LEFT(CRY,4)+1)) -> 2009-10 | D152: 2007 | E152: dms_cy2 | F152: dms_frcp_fy2 | G152: 2011-12 | H152: 2012 | I152: dms_crcp_cy2 | L152: 2024-25 | M152: 2025 | P152: =VALUE(LEFT(dms_CRYf_y19,4)+1)&"-"&TEXT(MID(dms_CRYf_y19,3,2)+2,"00") -> 2027-28 | Q152: dms_CRYf_y20 | R152: =VALUE(LEFT(dms_CRYc_y19,4)+1) -> 2028 | S152: dms_CRYc_y20
B153: dms_y3 | C153: =IF(dms_RPT="financial",VALUE(LEFT(dms_fy2,4)+1)&"-"&TEXT(MID(dms_fy2,3,2)+2,"00"),VALUE(LEFT(dms_fy2,4)+1)) -> 2010-11 | D153: 2008 | E153: dms_cy3 | F153: dms_frcp_fy3 | G153: 2012-13 | H153: 2013 | I153: dms_crcp_cy3 | L153: 2025-26 | M153: 2026
B154: dms_y4 | C154: =IF(dms_RPT="financial",VALUE(LEFT(dms_fy3,4)+1)&"-"&TEXT(MID(dms_fy3,3,2)+2,"00"),VALUE(LEFT(dms_fy3,4)+1)) -> 2011-12 | D154: 2009 | E154: dms_cy4 | F154: dms_frcp_fy4 | G154: 2013-14 | H154: 2014 | I154: dms_crcp_cy4 | L154: 2026-27 | M154: 2027
B155: dms_y5 | C155: =IF(dms_RPT="financial",VALUE(LEFT(dms_fy4,4)+1)&"-"&TEXT(MID(dms_fy4,3,2)+2,"00"),VALUE(LEFT(dms_fy4,4)+1)) -> 2012-13 | D155: 2010 | E155: dms_cy5 | F155: dms_frcp_fy5 | G155: 2014-15 | H155: 2015 | I155: dms_crcp_cy5 | L155: 2027-28 | M155: 2028
B156: dms_y6 | C156: =IF(dms_RPT="financial",VALUE(LEFT(dms_fy5,4)+1)&"-"&TEXT(MID(dms_fy5,3,2)+2,"00"),VALUE(LEFT(dms_fy5,4)+1)) -> 2013-14 | D156: 2011 | E156: dms_cy6 | F156: dms_frcp_fy6 | G156: 2015-16 | H156: 2016 | I156: dms_crcp_cy6 | L156: 2028-29 | M156: 2029
B157: dms_y7 | C157: =IF(dms_RPT="financial",VALUE(LEFT(dms_fy6,4)+1)&"-"&TEXT(MID(dms_fy6,3,2)+2,"00"),VALUE(LEFT(dms_fy6,4)+1)) -> 2014-15 | D157: 2012 | E157: dms_cy7 | F157: dms_frcp_fy7 | G157: 2016-17 | H157: 2017 | I157: dms_crcp_cy7 | L157: 2029-30 | M157: 2030
B158: dms_y8 | C158: =IF(dms_RPT="financial",VALUE(LEFT(dms_fy7,4)+1)&"-"&TEXT(MID(dms_fy7,3,2)+2,"00"),VALUE(LEFT(dms_fy7,4)+1)) -> 2015-16 | D158: 2013 | E158: dms_cy8 | F158: dms_frcp_fy8 | G158: 2017-18 | H158: 2018 | I158: dms_crcp_cy8 | L158: 2030-31 | M158: 2031
B159: dms_y9 | C159: =IF(dms_RPT="financial",VALUE(LEFT(dms_fy8,4)+1)&"-"&TEXT(MID(dms_fy8,3,2)+2,"00"),VALUE(LEFT(dms_fy8,4)+1)) -> 2016-17 | D159: 2014 | E159: dms_cy9 | F159: dms_frcp_fy9 | G159: 2018-19 | H159: 2019 | I159: dms_crcp_cy9 | L159: 2031-32 | M159: 2032
B160: dms_y10 | C160: =IF(dms_RPT="financial",VALUE(LEFT(dms_fy9,4)+1)&"-"&TEXT(MID(dms_fy9,3,2)+2,"00"),VALUE(LEFT(dms_fy9,4)+1)) -> 2017-18 | D160: 2015 | E160: dms_cy10 | F160: dms_frcp_fy10 | G160: 2019-20 | H160: 2020 | I160: dms_crcp_cy10 | L160: 2032-33 | M160: 2033
B161: dms_y11 | C161: =IF(dms_RPT="financial",VALUE(LEFT(dms_fy10,4)+1)&"-"&TEXT(MID(dms_fy10,3,2)+2,"00"),VALUE(LEFT(dms_fy10,4)+1)) -> 2018-19 | D161: 2016 | E161: dms_cy11 | F161: dms_frcp_fy11 | G161: 2020-21 | H161: 2021 | I161: dms_crcp_cy11 | L161: 2033-34 | M161: 2034
B162: dms_y12 | C162: =IF(dms_RPT="financial",VALUE(LEFT(dms_fy11,4)+1)&"-"&TEXT(MID(dms_fy11,3,2)+2,"00"),VALUE(LEFT(dms_fy11,4)+1)) -> 2019-20 | D162: 2017 | E162: dms_cy12 | F162: dms_frcp_fy12 | G162: 2021-22 | H162: 2022 | I162: dms_crcp_cy12 | L162: 2034-35 | M162: 2035
B163: dms_y13 | C163: =IF(dms_RPT="financial",VALUE(LEFT(dms_fy12,4)+1)&"-"&TEXT(MID(dms_fy12,3,2)+2,"00"),VALUE(LEFT(dms_fy12,4)+1)) -> 2020-21 | D163: 2018 | E163: dms_cy13 | F163: dms_frcp_fy13 | G163: 2022-23 | H163: 2023 | I163: dms_crcp_cy13 | L163: 2035-36 | M163: 2036
B164: dms_y14 | C164: =IF(dms_RPT="financial",VALUE(LEFT(dms_fy13,4)+1)&"-"&TEXT(MID(dms_fy13,3,2)+2,"00"),VALUE(LEFT(dms_fy13,4)+1)) -> 2021-22 | D164: 2019 | E164: dms_cy14 | F164: dms_frcp_fy14 | G164: 2023-24 | H164: 2024 | I164: dms_crcp_cy14
B165: dms_y15 | C165: =IF(dms_RPT="financial",VALUE(LEFT(dms_fy14,4)+1)&"-"&TEXT(MID(dms_fy14,3,2)+2,"00"),VALUE(LEFT(dms_fy14,4)+1)) -> 2022-23 | D165: 2020 | E165: dms_cy15 | F165: dms_frcp_fy15 | G165: 2024-25 | H165: 2025 | I165: dms_crcp_cy15
B166: dms_y16 | C166: =IF(dms_RPT="financial",VALUE(LEFT(dms_fy15,4)+1)&"-"&TEXT(MID(dms_fy15,3,2)+2,"00"),VALUE(LEFT(dms_fy15,4)+1)) -> 2023-24 | D166: 2021 | E166: dms_cy16
B167: dms_y17 | C167: =IF(dms_RPT="financial",VALUE(LEFT(dms_fy16,4)+1)&"-"&TEXT(MID(dms_fy16,3,2)+2,"00"),VALUE(LEFT(dms_fy16,4)+1)) -> 2024-25 | D167: 2022 | E167: dms_cy17
B168: dms_y18 | C168: =IF(dms_RPT="financial",VALUE(LEFT(dms_fy17,4)+1)&"-"&TEXT(MID(dms_fy17,3,2)+2,"00"),VALUE(LEFT(dms_fy17,4)+1)) -> 2025-26 | D168: 2023 | E168: dms_cy18
B169: dms_y19 | C169: =IF(dms_RPT="financial",VALUE(LEFT(dms_fy18,4)+1)&"-"&TEXT(MID(dms_fy18,3,2)+2,"00"),VALUE(LEFT(dms_fy18,4)+1)) -> 2026-27 | D169: 2024 | E169: dms_cy19
B170: dms_y20 | C170: =IF(dms_RPT="financial",VALUE(LEFT(dms_fy19,4)+1)&"-"&TEXT(MID(dms_fy19,3,2)+2,"00"),VALUE(LEFT(dms_fy19)+1)) -> 2027-28 | D170: 2025 | E170: dms_cy20
B176: These "row descriptions" are the column headings in the various templates but become row descriptions in the ETL process
C177: Table 6.3 sustained interruptions - row descriptions
C178: dms_060301_CustNo_Affected_Row | D178: dms_060301_Avg_Duration_Sustained_Int_Row | E178: dms_060301_Effect_unplanned_SAIDI_Row | F178: dms_060301_Effect_unplanned_SAIFI_Row
C179: Number of customers affected by the interruption | D179: Average duration of sustained customer interruption | E179: Effect on unplanned SAIDI | F179: Effect on unplanned SAIFI
C183: Table 6.1 telephone answering - row descriptions and start date
C184: dms_060101_Rows | D184: dms_060102_Rows | E184: dms_060101_StartDateTxt
C185: Total number of calls (after removing excluded events) | D185: Number of calls answered within 30 seconds (after excluding excluded events) | E185: =dms_060701_StartDateTxt -> 1-Jul-2008
H189: dms_0603_FeederList | I189: =INDEX(dms_FeederName_1,MATCH(dms_TradingName,dms_TradingName_List)) -> CBD | J189: =INDEX(dms_FeederName_2,MATCH(dms_TradingName,dms_TradingName_List)) -> Urban | K189: =INDEX(dms_FeederName_3,MATCH(dms_TradingName,dms_TradingName_List)) -> Short rural | L189: =INDEX(dms_FeederName_4,MATCH(dms_TradingName,dms_TradingName_List)) -> Long rural
C190: Table 6.7.1 - daily performance data - unplanned - MAIFI -- row descriptions and header named range values
C191: These headings (Lists) are determined from the INDEX/MATCH function on the NSP selected on the Business & other details sheet
B192: dms_060701_Feeder_Header_Lvl4 | C192: =INDEX(dms_FeederName_1,MATCH(dms_TradingName,dms_TradingName_List)) -> CBD | D192: =INDEX(dms_FeederName_1,MATCH(dms_TradingName,dms_TradingName_List)) -> CBD | E192: =INDEX(dms_FeederName_2,MATCH(dms_TradingName,dms_TradingName_List)) -> Urban | F192: =INDEX(dms_FeederName_2,MATCH(dms_TradingName,dms_TradingName_List)) -> Urban | G192: =INDEX(dms_FeederName_3,MATCH(dms_TradingName,dms_TradingName_List)) -> Short rural | H192: =INDEX(dms_FeederName_3,MATCH(dms_TradingName,dms_TradingName_List)) -> Short rural | I192: =INDEX(dms_FeederName_4,MATCH(dms_TradingName,dms_TradingName_List)) -> Long rural | J192: =INDEX(dms_FeederName_4,MATCH(dms_TradingName,dms_TradingName_List)) -> Long rural | K192: =IF((INDEX(dms_FeederName_5,MATCH(dms_TradingName,dms_TradingName_List))=0),"Network",(INDEX(dms_FeederName_5,MATCH(dms_TradingName,dms_TradingName_List)))) -> Network | L192: =IF((INDEX(dms_FeederName_5,MATCH(dms_TradingName,dms_TradingName_List))=0),"Network",(INDEX(dms_FeederName_5,MATCH(dms_TradingName,dms_TradingName_List)))) -> Network | M192: Network | N192: Network
B194: dms_060701_Rows | C194: All events | D194: After removing excluded events | E194: All events | F194: After removing excluded events | G194: All events | H194: After removing excluded events | I194: All events | J194: After removing excluded events | K194: All events | L194: After removing excluded events | M194: All events | N194: After removing excluded events
C195: the number of column headings changes from 10 to 12 depending on the number of feeder categories for the NSP
C200: Table 6.8.1 - row descriptions
C201: dms_060801_01_Rows | D201: dms_060801_02_Rows | E201: dms_060801_03_Rows | F201: dms_060801_04_Rows
C202: Number of interruptions | D202: Duration of interruptions | E202: Total unplanned minutes off supply | F202: Effect on unplanned MAIFI
C207: Table 7.9.4 - market impact component - row descriptions
B208: dms_070904_01_Rows | C208: without exclusions | D208: with exclusions
C214: Use this to add to existing files
C215: ARRs 6.7 STPIS daily performance
C216: dms_060101_Values | D216: dms_060102_Values | E216: dms_060701_Values
C218: ARR's 6.8 STPIS exclusions
C219: dms_060801_Event_Date | D219: dms_060801_OutageID | E219: dms_060801_FeederID | F219: dms_060801_FeederClass | G219: dms_060801_CauseID | H219: dms_060801_01_Values | I219: dms_060801_02_Values | J219: dms_060801_03_Values | K219: dms_060801_Excl_Cat | L219: dms_060801_04_Values
C220: dms_060801_StartCell
C222: CA 6.3 sustained interruptions
C223: dms_060301_Event_Date | D223: dms_060301_Event_Time | E223: dms_060301_AssetID | F223: dms_060301_FeederClass | G223: dms_060301_Reason | H223: dms_060301_DetailedReason | I223: dms_060301_CustNo_Affected_Values | J223: dms_060301_Avg_Duration_Sustained_Int_Values | K223: dms_060301_Effect_unplanned_SAIDI_Values | L223: dms_060301_Effect_unplanned_SAIFI_Values | M223: dms_060301_MED

Sheet Instructions
B2: =CONCATENATE(dms_Segment," Network Service Provider") -> Distribution Network Service Provider
B3: Historical Reporting RIN Template
C4: =CONCATENATE("This template is to be used by ",dms_TradingName," to fulfil its reporting obligations to the AER.") -> This template is to be used by SA Power Networks to fulfil its reporting obligations to the AER.
C5: INSTRUCTIONS
C6: Complete the Business & other details worksheet before entering data or values in any other worksheets. The Business & other details worksheet is linked to other worksheets within the workbook and automatically generates certain column headings and conditional formatting.
C8: Identifying CONFIDENTIAL INFORMATION: Please use the macro at the top of each worksheet to identify confidential information.
C9: -Do this by selecting the cell or cells that contain confidential information and then run the Mark selection CONFIDENTIAL macro. This will format the cells a specific colour that is identified by the AER's database which in turn marks that information as confidential. -To reverse this, select the cell or cells and run the Return selection to NON-CONFIDENTIAL macro.
C11: UNITS OF MEASURE All amounts are to be unrounded and reported on a one for one basis: that is 1000 is to be entered as '1000'. Applicable units of measure may be identified in the table column headings or row descriptors.
C13: COLOUR CODING OF INPUT / NON-INPUT CELLS:
D14: Yellow = Input cell (mandatory)
D15: Darker yellow = input cell (mandatory)
D16: Orange = input cell (if data available)
D17: Grey = Not applicable/No inputs required
D18: PLEASE DO NOT ENTER TEXT into cells that are to contain numeric data.
C21: WORKSHEET NAVIGATION Many tables in the worksheets have been "grouped" to allow for easy navigation. To ungroup or group data use the outline symbols in the left margin of excel (for Row groupings) or above the columns (for column groupings).
C23: RETURNING COMPLETED RESPONSES Please return two (2) files to the AER: 1. A confidential version which must contain a complete set of all responses with confidential information marked using the Mark selected cells CONFIDENTIAL macro and which has been completed using the locked template file provided by the AER. 2. A public version with confidential information either removed completely or aggregated in some form together with writtten consent to disclose the public version of the response. Use the drop down box on the Business and other details worksheet to identify the file as either confidential ('consolidated') or public.
C25: SUBMITTING AMENDED DATA TO THE AER If an NSP wishes to correct data previously submitted to the AER it should resubmit that data using the original completed submission as the starting point. Please make any necessary changes to the data. Data that is not being amended should be left unchanged. NSPs must identify the reason for the amendments in the Amendment Reason box on the Business and other details worksheet. NSPs may provide further details regarding any amendments in the Amendments worksheet. .
C26: NSP may use Amended Data macro to highlight cells that contain amended data. NB: if data is also CONFIDENTIAL, re-apply the Confidentiality macro after applying the Amended macro
C27: Please resubmit two (2) files - a confidential version and a public version of the amended submission to the AER

Sheet Contents
B1: REGULATORY REPORTING STATEMENT
B2: =INDEX(dms_TradingNameFull_List,MATCH(dms_TradingName,dms_TradingName_List)) -> SA Power Networks
B3: =CONCATENATE((LOOKUP(dms_Model,dms_Model_List,dms_Worksheet_List))&" "&CRY) -> CATEGORY ANALYSIS 2008-09
B4: CONTENTS
E7: 1. Business details | L7: 2. Expenditure
E27: 4. Alternative control services | L27: 5. Network information | S27: 6. Service & quality

Sheet Business & other details
B1: =IF(dms_DataQuality="backcast",INDEX(dms_Worksheet_List,MATCH(dms_Model,dms_Model_List))&" BACKCAST",INDEX(dms_Worksheet_List,MATCH(dms_Model,dms_Model_List))) -> CATEGORY ANALYSIS
B2: =INDEX(dms_TradingNameFull_List,MATCH(dms_TradingName,dms_TradingName_List)) -> SA Power Networks
B3: =IF(SUM(dms_SingleYear_Model)>0,CONCATENATE(CRY),CONCATENATE(FRCP_y1," to ",dms_MultiYear_FinalYear_Result)) -> 2008-09
B4: BUSINESS & OTHER DETAILS
B7: Instructions
B8: Complete the following business details regulatory template before entering data or values in any other regulatory template. This regulatory template is linked to other cells within the spreadsheet and automatically generates column headings and conditional formatting to distinguish business specific input and non-input cells.
B10: SUBMISSION PARTICULARS INPUT SHEETS
B12: ENTITY DETAILS
B14: Short name | C14: SA Power Networks | F14: Select business name from drop down list first
B15: ACN / ABN | C15: =INDEX(dms_ABN_List,MATCH(dms_TradingName,dms_TradingName_List)) -> 13332330749
B18: Business address | C18: Address 1 | E18: =INDEX(dms_Addr1_List,MATCH(dms_TradingName,dms_TradingName_List)) -> 1 Anzac Highway
D19: Address 2 | E19: =IF(ISBLANK(INDEX(dms_Addr2_List,MATCH(dms_TradingName,dms_TradingName_List))),"",(INDEX(dms_Addr2_List,MATCH(dms_TradingName,dms_TradingName_List)))) -> 
C20: Suburb | E20: =INDEX(dms_Suburb_List,MATCH(dms_TradingName,dms_TradingName_List)) -> KESWICK
D21: State | E21: =INDEX(dms_State_List,MATCH(dms_TradingName,dms_TradingName_List)) -> SA | F21: p/code | G21: =INDEX(dms_PostCode_List,MATCH(dms_TradingName,dms_TradingName_List)) -> 5035
B23: Postal address | C23: Address 1 | E23: =INDEX(dms_PAddr1_List,MATCH(dms_TradingName,dms_TradingName_List)) -> GPO Box 77
D24: Address 2 | E24: =IF(ISBLANK(INDEX(dms_PAddr2_List,MATCH(dms_TradingName,dms_TradingName_List))),"",(INDEX(dms_PAddr2_List,MATCH(dms_TradingName,dms_TradingName_List)))) -> 
C25: Suburb | E25: =INDEX(dms_PSuburb_List,MATCH(dms_TradingName,dms_TradingName_List)) -> ADELAIDE
D26: State | E26: =INDEX(dms_PState_List,MATCH(dms_TradingName,dms_TradingName_List)) -> SA | F26: p/code | G26: =INDEX(dms_PPostCode_List,MATCH(dms_TradingName,dms_TradingName_List)) -> 5000
B29: Contact name/s | C29: =INDEX(dms_ContactName1_List,MATCH(dms_TradingName,dms_TradingName_List)) -> Richard Sibly
B30: Contact phone/s | C30: =INDEX(dms_ContactPh1_List,MATCH(dms_TradingName,dms_TradingName_List)) -> 08 8404 5613
B31: Contact email address/s | C31: =INDEX(dms_ContactEmail_List,MATCH(dms_TradingName,dms_TradingName_List)) -> richard.sibly@sapowernetworks.com.au
B33: REGULATORY CONTROL PERIODS
B35: Forthcoming regulatory control period | C35: 2008-09 | D35: =dms_FRCP_y2 -> 2009-10 | E35: =dms_FRCP_y3 -> 2010-11 | F35: =dms_FRCP_y4 -> 2011-12 | G35: =dms_FRCP_y5 -> 2012-13
C36: =dms_FRCP_y6 -> 2013-14 | D36: =dms_FRCP_y7 -> 2014-15 | E36: =dms_FRCP_y8 -> 2015-16 | F36: =dms_FRCP_y9 -> 2016-17 | G36: =dms_FRCP_y10 -> 2017-18
B39: Current regulatory control period | C39: =dms_CRCP_FirstYear_Result -> 2003-04 | D39: =IF(dms_RPT="financial",VALUE(LEFT(CRCP_y1,4)+1)&"-"&TEXT(MID(CRCP_y1,3,2)+2,"00"),VALUE(LEFT(CRCP_y1,4)+1)) -> 2004-05 | E39: =IF(dms_RPT="financial",VALUE(LEFT(CRCP_y1,4)+2)&"-"&TEXT(VALUE(MID(CRCP_y1,3,2)+3),"00"),VALUE(LEFT(CRCP_y1,4)+2)) -> 2005-06 | F39: =IF(dms_RPT="financial",VALUE(LEFT(CRCP_y1,4)+3)&"-"&TEXT(MID(CRCP_y1,3,2)+4,"00"),VALUE(LEFT(CRCP_y1,4)+3)) -> 2006-07 | G39: =IF(dms_RPT="financial",VALUE(LEFT(CRCP_y1,4)+4)&"-"&TEXT(MID(CRCP_y1,3,2)+5,"00"),VALUE(LEFT(CRCP_y1,4)+4)) -> 2007-08
C40: =IF(dms_RPT="financial",VALUE(LEFT(CRCP_y1,4)+5)&"-"&TEXT(MID(CRCP_y1,3,2)+6,"00"),VALUE(LEFT(CRCP_y1,4)+5)) -> 2008-09 | D40: =IF(dms_RPT="financial",VALUE(LEFT(CRCP_y1,4)+6)&"-"&TEXT(MID(CRCP_y1,3,2)+7,"00"),VALUE(LEFT(CRCP_y1,4)+6)) -> 2009-10 | E40: =IF(dms_RPT="financial",VALUE(LEFT(CRCP_y1,4)+7)&"-"&TEXT(MID(CRCP_y1,3,2)+8,"00"),VALUE(LEFT(CRCP_y1,4)+7)) -> 2010-11 | F40: =IF(dms_RPT="financial",VALUE(LEFT(CRCP_y1,4)+8)&"-"&TEXT(MID(CRCP_y1,3,2)+9,"00"),VALUE(LEFT(CRCP_y1,4)+8)) -> 2011-12 | G40: =IF(dms_RPT="financial",VALUE(LEFT(CRCP_y1,4)+9)&"-"&TEXT(MID(CRCP_y1,3,2)+10,"00"),VALUE(LEFT(CRCP_y1,4)+9)) -> 2012-13
C41: =IF(dms_RPT="financial",VALUE(LEFT(CRCP_y1,4)+10)&"-"&TEXT(MID(CRCP_y1,3,2)+11,"00"),VALUE(LEFT(CRCP_y1,4)+10)) -> 2013-14 | D41: =IF(dms_RPT="financial",VALUE(LEFT(CRCP_y1,4)+11)&"-"&TEXT(MID(CRCP_y1,3,2)+12,"00"),VALUE(LEFT(CRCP_y1,4)+11)) -> 2014-15 | E41: =IF(dms_RPT="financial",VALUE(LEFT(CRCP_y1,4)+12)&"-"&TEXT(MID(CRCP_y1,3,2)+13,"00"),VALUE(LEFT(CRCP_y1,4)+12)) -> 2015-16 | F41: =IF(dms_RPT="financial",VALUE(LEFT(CRCP_y1,4)+13)&"-"&TEXT(MID(CRCP_y1,3,2)+14,"00"),VALUE(LEFT(CRCP_y1,4)+13)) -> 2016-17 | G41: =IF(dms_RPT="financial",VALUE(LEFT(CRCP_y1,4)+14)&"-"&TEXT(MID(CRCP_y1,3,2)+15,"00"),VALUE(LEFT(CRCP_y1,4)+14)) -> 2017-18
B44: Previous regulatory control period | C44: =IF(dms_RPT="financial",VALUE(LEFT(PRCP_y2,4)-1)&"-"&TEXT(VALUE(MID(PRCP_y2,3,2)),"00"),VALUE(LEFT(PRCP_y2,4)-1)) -> 1998-99 | D44: =IF(dms_RPT="financial",VALUE(LEFT(PRCP_y3,4)-1)&"-"&TEXT(VALUE(MID(PRCP_y3,3,2)),"00"),VALUE(LEFT(PRCP_y3,4)-1)) -> 1999-00 | E44: =IF(dms_RPT="financial",VALUE(LEFT(PRCP_y4,4)-1)&"-"&TEXT(VALUE(MID(PRCP_y4,3,2)),"00"),VALUE(LEFT(PRCP_y4,4)-1)) -> 2000-01 | F44: =IF(dms_RPT="financial",VALUE(LEFT(PRCP_y5,4)-1)&"-"&TEXT(VALUE(RIGHT(PRCP_y5,2)-1),"00"),VALUE(LEFT(PRCP_y5,4)-1)) -> 2001-02 | G44: =IF(dms_RPT="financial",VALUE(LEFT(CRCP_y1,4)-1)&"-"&TEXT(VALUE(RIGHT(CRCP_y1,2)-1),"00"),VALUE(LEFT(CRCP_y1,4)-1)) -> 2002-03
B48: Commencing regulatory year | C48: 2008-09 | D48: CRY
B50: Last completed regulatory year | C50: 2018-19 | D50: dms_FinalYear
C54: IF THIS IS AN ABC RIN - make sure the the named range CRY is applied and the named range dms_dollar_nom_UOM is applied
C55: IF THIS IS A RESET RIN - make sure the named ranges CRY and dms_dollar_nom_UOM are NOT present in the workbook
C56: FOR ABC RINS THAT SPAN MULTIPLE YEARS - make sure MultiYear Flag is set and final year entered as required
B58: Source | C58: Regulatory proposal | E58: Please select the correct submission type from the dropdown list.
B59: Data quality (actual, estimate, public, consolidated) | C59: Public | E59: Use Consolidated for Consolidated Confidential version Use Public for Consolidated Public version
B60: Amended RIN submission - amendment reason | C60: .
B61: Submission Date | C61: 31/01/2019 | D61: dms_SubmissionDate | E61: Please enter date this file submitted to AER (dd/mm/yyyy)
B62: EBSS - First application of scheme in forthcoming period? | C62: No
B63: Sector | C63: =INDEX(dms_Sector_List,MATCH(dms_TradingName,dms_TradingName_List)) -> Electricity | D63: dms_Sector | E63: =INDEX(dms_Sector_List,MATCH(dms_TradingName,dms_TradingName_List))
B64: Segment | C64: =INDEX(dms_Segment_List,MATCH(dms_TradingName,dms_TradingName_List)) -> Distribution | D64: dms_Segment | E64: =INDEX(dms_Segment_List,MATCH(dms_TradingName,dms_TradingName_List))
B65: Regulatory Year Ending | C65: =IF(dms_MultiYear_Flag=1,LEFT(dms_Specified_FinalYear,2)&RIGHT(dms_Specified_FinalYear,2),INDEX(dms_RYE_Formula_Result,MATCH(dms_Model,dms_Model_List))) -> 2019 | D65: dms_RYE | E65: =IF(dms_MultiYear_Flag=1,LEFT(dms_Specified_FinalYear,2)&RIGHT(dms_Specified_FinalYear,2),INDEX(dms_RYE_Formula_Result,MATCH(dms_Model,dms_Model_List)))
B66: Reporting Period Type | C66: =INDEX(dms_RPT_List,MATCH(dms_TradingName,dms_TradingName_List)) -> Financial | D66: dms_RPT | E66: =INDEX(dms_RPT_List,MATCH(dms_TradingName,dms_TradingName_List))
B67: Model or RIN Type | C67: CA | D67: dms_Model | E67: Drop down selection
B68: EB/CA Unit of Measure for Monetary Values | C68: $0s | D68: dms_dollar_nom_UOM | E68: If the cover sheet is attached to an ABC RIN apply the NAMED RANGE to the cell
B69: Security Classification | C69: Public | D69: dms_Classification | E69: Always Public
B70: Jurisdiction | C70: =INDEX(dms_JurisdictionList,MATCH(dms_TradingName,dms_TradingName_List)) -> SA | D70: dms_Jurisdiction | E70: =INDEX(dms_JurisdictionList,MATCH(dms_TradingName,dms_TradingName_List))
B71: FORECAST and MultiYear RINS
B72: CRY-1 (last full calendar year before CRY) | C72: =IF(dms_RPT="financial",VALUE(LEFT(dms_SingleYear_FinalYear_Result,4)),VALUE(LEFT(dms_SingleYear_FinalYear_Result,4)-1)) -> 2008 | D72: dms_Cal_Year_B4_CRY | E72: '=IF(dms_RPT="financial",VALUE(LEFT(dms_SingleYear_FinalYear_Result,4)),VALUE(LEFT(dms_SingleYear_FinalYear_Result,4)-1))
B73: Dollar $ real month | C73: =INDEX(dms_RPTMonth_List,MATCH(dms_TradingName,dms_TradingName_List)) -> June | D73: dms_RPTMonth | E73: =INDEX(dms_RPTMonth_List,MATCH(dms_TradingName,dms_TradingName_List))
B74: Dollar $ real (the last month before the FRCP_y1) | C74: =IF(SUM(dms_SingleYear_Model)>0,CONCATENATE(dms_RPTMonth)&" "&VALUE((LEFT(CRY,2))&RIGHT(CRY,2)),CONCATENATE(dms_RPTMonth)&" "&VALUE((LEFT(dms_CRCP_FinalYear_Result,2)&RIGHT(dms_CRCP_FinalYear_Result,2)))) -> June 2009 | D74: dms_DollarReal | E74: =IF(SUM(dms_SingleYear_Model)>0,CONCATENATE(dms_RPTMonth)&" "&VALUE((LEFT(CRY,2))&RIGHT(CRY,2)),CONCATENATE(dms_RPTMonth)&" "&VALUE((LEFT(dms_CRCP_FinalYear_Result,2)&RIGHT(dms_CRCP_FinalYear_Result,2))))
B75: Dollar $ real previous year (PRCP_y5) | C75: =IF(SUM(dms_SingleYear_Model)>0,CONCATENATE(dms_RPTMonth)&" "&VALUE(((LEFT(CRY,2))&RIGHT(CRY,2))-1),CONCATENATE(dms_RPTMonth)&" "&VALUE(((LEFT(dms_CRCP_FirstYear_Result,2)&RIGHT(dms_CRCP_FirstYear_Result,2))))-1) -> June 2008 | D75: dms_DollarReal_Prev | E75: =IF(SUM(dms_SingleYear_Model)>0,CONCATENATE(dms_RPTMonth)&" "&VALUE(((LEFT(CRY,2))&RIGHT(CRY,2))-1),CONCATENATE(dms_RPTMonth)&" "&VALUE(((LEFT(dms_CRCP_FirstYear_Result,2)&RIGHT(dms_CRCP_FirstYear_Result,2))))-1)
B76: This block works out the various RYE's for ALL RIN types and MODELS
B77: Single Year Model T/F | C77: =IF(dms_Model="EB",1,0) -> 0 | D77: dms_EB
C78: =IF(dms_Model="CA",1,0) -> 1 | D78: dms_CA | E78: =dms_SingleYear_Model
C79: =IF(dms_Model="ARR",1,0) -> 0 | D79: dms_ARR
B80: Is this a single Year RIN? | C80: =IF(SUM(dms_SingleYear_Model)=1,"yes","no") -> yes | D80: dms_SingleYearModel | E80: =IF(SUM(dms_SingleYear_Model)=1,"yes","no")
B81: Single Year Final Year Reference | C81: CRY | D81: dms_SingleYear_FinalYear_Ref | E81: This is the reference for EB, CA & ARR RINs
B82: Single Year Final Year Result | C82: =IFERROR(IF(SUM(dms_SingleYear_Model)<>0,(INDIRECT(dms_SingleYear_FinalYear_Ref)),"not a single year RIN"),"CRY not present") -> 2008-09 | D82: dms_SingleYear_FinalYear_Result | E82: =IFERROR(IF(SUM(dms_SingleYear_Model)<>0,(INDIRECT(dms_SingleYear_FinalYear_Ref)),"not a single year RIN"),"CRY not present")
B83: FRCP length in years | C83: =INDEX(dms_FRCPlength_List,MATCH(dms_TradingName,dms_TradingName_List)) -> 5 | D83: dms_FRCPlength_Num | E83: =INDEX(dms_FRCPlength_List,MATCH(dms_TradingName,dms_TradingName_List))
B84: Multi Year Final Year Reference | C84: =INDEX(dms_FinalYear_List,MATCH(dms_FRCPlength_Num,dms_FRCPlength_Num_List)) -> dms_FRCP_y5 | D84: dms_MultiYear_FinalYear_Ref | E84: =INDEX(dms_FinalYear_List,MATCH(dms_FRCPlength_Num,dms_FRCPlength_Num_List))
B85: Multi Year Final Year Result | C85: =IF(dms_MultiYear_Flag=0,INDIRECT(dms_MultiYear_FinalYear_Ref),dms_Specified_FinalYear) -> 2018-19 | D85: dms_MultiYear_FinalYear_Result | E85: =IF(dms_MultiYear_Flag=0,INDIRECT(dms_MultiYear_FinalYear_Ref),dms_Specified_FinalYear) | I85: Formula errors OK
B86: CRCP length in years | C86: =INDEX(dms_CRCPlength_List,MATCH(dms_TradingName,dms_TradingName_List)) -> 5 | D86: dms_CRCPlength_Num | E86: =INDEX(dms_CRCPlength_List,MATCH(dms_TradingName,dms_TradingName_List))
B87: CRCP Final Year Reference | C87: =INDEX(dms_CFinalYear_List,MATCH(dms_CRCPlength_Num,dms_CRCPlength_Num_List)) -> CRCP_y5 | D87: dms_CRCP_FinalYear_Ref | E87: =INDEX(dms_CFinalYear_List,MATCH(dms_CRCPlength_Num,dms_CRCPlength_Num_List))
B88: CRCP First Year Result | C88: =INDEX(dms_CRCP_years,MATCH(dms_CRCPlength_Num,dms_CRCP_index)) -> 2003-04 | D88: dms_CRCP_FirstYear_Result | E88: =INDEX(dms_CRCP_years,MATCH(dms_CRCPlength_Num,dms_CRCP_index))
B89: CRCP Final Year Result | C89: =IF(dms_MultiYear_Flag=0,(IF(SUM(dms_SingleYear_Model)>0,CRY,dms_CRCP_yZ)),dms_Specified_FinalYear) -> 2018-19 | D89: dms_CRCP_FinalYear_Result | E89: =IF(dms_MultiYear_Flag=0,(IF(SUM(dms_SingleYear_Model)>0,CRY,dms_CRCP_yZ)),dms_Specified_FinalYear)
B90: PTRM/ RFMs
B91: Form of control | C91: =INDEX(dms_FormControl_List,MATCH(dms_TradingName,dms_TradingName_List)) -> Revenue cap | D91: dms_FormControl | E91: =INDEX(dms_FormControl_List,MATCH(dms_TradingName,dms_TradingName_List))
B92: ABC RINS THAT SPAN MULTIPLE YEARS
B93: Is this a multi year ABC RIN? | C93: Yes
B94: Multiyear EB, CA or ARR? | C94: =IF(dms_MultiYear_ResponseFlag="No",0,1) -> 1 | D94: dms_MultiYear_Flag | E94: This is set from the answer provided above
C95: =IF(dms_MultiYear_Flag=1,FRY,"not a Multiple year submission") -> 2018-19 | D95: dms_Specified_FinalYear | E95: The result here is returned to dms_CRCP_FinalYear_Result if response to Q in C73 is "yes" and dms_MultiYear_Flag is set to 1
B96: Start year for 5.2 in Multi year ABC RINS | C96: =IFERROR(IF(dms_MultiYear_Flag=1,FRY,CRY),"not an ABC") -> 2018-19 | D96: dms_0502_Inst_Year | E96: =IF(dms_MultiYear_Flag=1,FRY,CRY) | G96: For single year RINS this is CRY - multi year RINS need to start a the end of the span of years (ie. FRY)
B97: EB RINS
B98: Calendar Year for table 3.6 data | C98: =IF(dms_RPT="financial",VALUE(LEFT(dms_SingleYear_FinalYear_Result,4)),VALUE(LEFT(dms_SingleYear_FinalYear_Result,4)-1)) -> 2008 | D98: dms_0306_Year | E98: =IF(dms_RPT="financial",VALUE(LEFT(dms_SingleYear_FinalYear_Result,4)),VALUE(LEFT(dms_SingleYear_FinalYear_Result,4)-1))
B99: CA RINS
B100: Find how many rows in tables 6.3 sustained interruptions? | E100: dms_060301_MaxRows only returns a valid value when cover sheet is attached to a CA file
C101: =IF(dms_Model<>"CA","not a CA","Is a CA") -> Is a CA | E101: =IF(dms_Model<>"CA","not a CA","Is a CA")
B102: dms_060301_Avg_Duration_Sustained_Int_Values present? | C102: =IFERROR(IF(INDEX(dms_060301_Avg_Duration_Sustained_Int_Values,1,1)<>"","yes","no"),"no") -> no | D102: dms_060301_checkvalue | E102: =IFERROR(IF(INDEX(dms_060301_Avg_Duration_Sustained_Int_Values,1,1)<>"","yes","no"),"no")
C103: 6.3 not collected in backcast RIN | E103: =IF(AND(dms_Model="CA",(dms_060301_checkvalue="no")),"error - NR not present","no errors")
B104: Table 6.3.1 - last row reference | C104: 0 | D104: dms_060301_LastRow | E104: =IFERROR(IF(dms_Model="CA",LOOKUP(2,1/(dms_060301_Avg_Duration_Sustained_Int_Values<>""),(ROW(dms_060301_Avg_Duration_Sustained_Int_Values))),"not a CA"),"6.3 not present")
B105: Table 6.3.1 - max number rows | C105: 0 | D105: dms_060301_MaxRows | E105: =IFERROR(IF(dms_Model="CA",(dms_060301_LastRow-15),"not a CA"),"error")
B106: Table 6.6.3 - Public lighting repair - no. business days | C106: =INDEX(dms_663_List,MATCH(dms_TradingName,dms_TradingName_List)) -> 5 | D106: dms_663 | E106: =INDEX(dms_663_List,MATCH(dms_TradingName,dms_TradingName_List))
B107: ARR or RESET RINS
B108: How many rows in tables 6.1 or 6.7? (leap year?) | C108: insert dms_LeapYear NR if required | E108: 'dms_LeapYear is used to determine dms_060701_Max_Rows BUT it is only found on worksheet 6.1 or 6.7 and the date value in the cell is used to determine whether it is a leap year
B109: Is dms_LeapYear named range present? | C109: =IFERROR(IF(dms_LeapYear,"yes"),"no") -> no
B110: Table 6.7.1 - includes a leap year? | C110: =IFERROR(IF(MONTH(DATE(YEAR(dms_LeapYear),2,29))=2,"is a leap year","not a leap year"), "dms_LeapYear not present") -> dms_LeapYear not present | D110: dms_LeapYear_Result | E110: =IFERROR(IF(MONTH(DATE(YEAR(dms_LeapYear),2,29))=2,"is a leap year","not a leap year"),"dms_LeapYear not present")
B111: MaxRows if Reset and leap year | C111: =IF(dms_LeapYear_Result="is a leap year",1827,1826) -> 1826 | D111: dms_060701_Reset_MaxRows | E111: =IF(dms_LeapYear_Result="is a leap year",1827,1826) | H111: number of days present in Reset RIN table
B112: MaxRows if ARR and leap year | C112: =IF(dms_LeapYear_Result="is a leap year",366,365) -> 365 | D112: dms_060701_ARR_MaxRows | E112: =IF(dms_LeapYear_Result="is a leap year",366,365) | H112: number of days present in ARR RIN table
B113: Table 6.7.1 - Max Rows (leap year/ non leap year) | C113: =IF(dms_Model="ARR",dms_060701_ARR_MaxRows,IF(dms_Model="Reset",dms_060701_Reset_MaxRows,"not a relevant RIN type")) -> not a relevant RIN type | D113: dms_060701_MaxRows | E113: =IF(dms_Model="ARR",dms_060701_ARR_MaxRows,IF(dms_Model="Reset",dms_060701_Reset_MaxRows,"not a relevant RIN type"))
B114: How many columns in 6.7? (4 or 5 feeder categories) | C114: =IF(dms_FifthFeeder_flag_NSP="NO","This NSP has only 4 feeder categories","This NSP has 5 feeder categories") -> This NSP has only 4 feeder categories
B115: Table 6.7.1 - Last column (# of feeder categories > 4) | C115: =IF(dms_FifthFeeder_flag_NSP="NO",10,12) -> 10 | D115: dms_060701_MaxCols | E115: =IF(dms_FifthFeeder_flag_NSP="NO",8,10)
B116: Table 6.7.1 - Number of offset rows | C116: =IF(dms_Model="ARR",15,9) -> 9 | D116: dms_060701_OffsetRows | E116: =IF(dms_Model="ARR",15,9)
B117: Start date for telephone answering in 6.1 or 6.7? | E117: Using 060101 as naming standard not 060701 for start dates
B118: Table 6.1.1 and 6.7.1 - Start Date as Text | C118: =IF(dms_SingleYearModel="yes",(CONCATENATE(IF(LEN(CRY)=4,"1-Jan-","1-Jul-"),LEFT(CRY,4))),(CONCATENATE(IF(LEN(PRCP_y4)=4,"1-Jan-","1-Jul-"),LEFT(PRCP_y4,4)))) -> 1-Jul-2008 | D118: dms_060101_StartDateTxt | E118: =IF(SUM(dms_SingleYear_Model)>1,(CONCATENATE(IF(LEN(CRY)=4,"1-Jan-","1-Jul-"),LEFT(CRY,4))),(CONCATENATE(IF(LEN(CRCP_y4)=4,"1-Jan-","1-Jul-"),LEFT(CRCP_y4,4))))
B119: Table 6.1.1 and 6.7.1 - Start Date as Date Value | C119: =DATEVALUE(dms_060701_StartDateTxt) -> 39630 | D119: dms_060101_StartDateVal | E119: =DATEVALUE(dms_060701_StartDateTxt)
B120: ARRs
B121: How many rows in table 6.8? | C121: insert dms_060801_StartCell NR if required | E121: dms_060801_StartCell is only found on worksheet 6.8 and is used to determine the starting date for the date range
B122: Is dms_060801_StartCell named range present? | C122: yes | E122: =IFERROR(IF((ROW(dms_060801_StartCell)-1)=1,"yes","yes"),"no")
B123: Table 6.8 - Number of offset rows | C123: 12 | D123: dms_0608_OffsetRows | E123: =IFERROR(IF(dms_Model="ARR",(ROW(dms_060801_StartCell)-1),"not an ARR"),"6.8 error")
B124: Table 6.8 - Last row | C124: 6.8 not present | D124: dms_0608_LastRow | E124: =IFERROR(IF(dms_060801_StartCell<>"",IF(dms_Model="ARR",(LOOKUP(2,1/(dms_060801_01_Values<>""),(ROW(dms_060801_01_Values)))),"not an ARR"),0),"6.8 not present")
B125: Table 6.8 - MaxRows | C125: =IFERROR(IF(dms_Model="ARR",(MAX(0,dms_0608_LastRow-dms_0608_OffsetRows)),"not an ARR"),"6.8 not present") -> not an ARR | D125: dms_060801_MaxRows | E125: =IFERROR(IF(dms_Model="ARR",(MAX(0,dms_0608_LastRow-dms_0608_OffsetRows)),"not an ARR"),"6.8 not present")
B126: TNSP RESET RINS
B127: Table 7.9.4 only appears in TNSPs Reset RIN
B128: Table 7.9.4 - first year | C128: =LEFT(PRCP_y3,4) -> 2000 | D128: dms_070904_Start_Year | E128: =LEFT(PRCP_y3,4)
B129: SUBSET FILES
B130: Is this Submission File a Subset File | C130: YES | D130: dms_Partial
B131: MISC
B132: Distribution Determination Reference | C132: =INDEX(dms_DeterminationRef_List,MATCH(dms_TradingName,dms_TradingName_List)) -> 2015-20 Distribution Determination | D132: dms_DeterminationRef
B133: Public lighting NSP? | C133: =INDEX(dms_Public_Lighting_List,MATCH(dms_TradingName,dms_TradingName_List)) -> NO | D133: dms_Public_Lighting | E133: =INDEX(dms_Public_Lighting_List,MATCH(dms_TradingName,dms_TradingName_List))
B134: CBD Feeder for this business | C134: =INDEX(dms_CBD_flag,MATCH(dms_TradingName,dms_TradingName_List)) -> NO | D134: dms_CBD_flag_NSP
B135: Urban Feeder for this business | C135: =INDEX(dms_Urban_flag,MATCH(dms_TradingName,dms_TradingName_List)) -> NO | D135: dms_Urban_flag_NSP
B136: Short rural Feeder for this business | C136: =INDEX(dms_ShortRural_flag,MATCH(dms_TradingName,dms_TradingName_List)) -> YES | D136: dms_ShortRural_flag_NSP
B137: Long rural Feeder for this business | C137: =INDEX(dms_LongRural_flag,MATCH(dms_TradingName,dms_TradingName_List)) -> YES | D137: dms_LongRural_flag_NSP
B138: Fifth Feeder Category (eg. TasNetworks (D)) | C138: =INDEX(dms_FeederType_5_flag,MATCH(dms_TradingName,dms_TradingName_List)) -> NO | D138: dms_FifthFeeder_flag_NSP | E138: =INDEX(dms_FeederType_5_flag,MATCH(dms_TradingName,dms_TradingName_List))
B140: DISCARD FILES
B141: discard this record? | C141: NO | D141: dms_DISCARD | E141: If record is to be discarded from DB set this flag to YES
B143: USES NAMED RANGES FLAG | C143: yes | D143: dms_Defined_Names_Used
B145: REGULATORY YEARS FOR MULTI RYE SUBMISSIONS
B146: Multiple RYE flag | C146: YES | D146: dms_Multi_RYE_flag
C147: Manually specify RYE | D147: Named ranges to apply
C148: 2013 | D148: dms_RYE_01
C149: 2014 | D149: dms_RYE_02
C150: 2015 | D150: dms_RYE_03
C151: 2016 | D151: dms_RYE_04
C152: 2017 | D152: dms_RYE_05
C153: 2018 | D153: dms_RYE_06
C154: 2019 | D154: dms_RYE_07
C155: 2020 | D155: dms_RYE_08
C156: 2021 | D156: dms_RYE_09

Sheet 2.1 Expenditure summary
B1: REGULATORY REPORTING STATEMENT
B2: =INDEX(dms_TradingNameFull_List,MATCH(dms_TradingName,dms_TradingName_List)) -> SA Power Networks
B3: =IF(SUM(dms_SingleYear_Model)>0,("CATEGORY ANALYSIS "&CRY&" to "&FRY),("CATEGORY ANALYSIS "&CRY)) -> CATEGORY ANALYSIS 2008-09 to 2018-19
B4: 2.1 EXPENDITURE SUMMARY & RECONCILIATION
B6: There are EIGHT tables on this worksheet - see the Instructions sheet on how to group or ungroup tables.
B8: 2.1.1 - STANDARD CONTROL SERVICES CAPEX
C9: EXPENDITURE ($0's)
C10: =IF(dms_RPT="financial",dms_CRYf_y1,dms_CRYc_y1) -> 2008-09 | D10: =IF(dms_RPT="financial",dms_CRYf_y2,dms_CRYc_y2) -> 2009-10 | E10: =IF(dms_RPT="financial",dms_CRYf_y3,dms_CRYc_y3) -> 2010-11 | F10: =IF(dms_RPT="financial",dms_CRYf_y4,dms_CRYc_y4) -> 2011-12 | G10: =IF(dms_RPT="financial",dms_CRYf_y5,dms_CRYc_y5) -> 2012-13 | H10: =IF(dms_RPT="financial",dms_CRYf_y6,dms_CRYc_y6) -> 2013-14 | I10: =IF(dms_RPT="financial",dms_CRYf_y7,dms_CRYc_y7) -> 2014-15 | J10: =IF(dms_RPT="financial",dms_CRYf_y8,dms_CRYc_y8) -> 2015-16 | K10: =IF(dms_RPT="financial",dms_CRYf_y9,dms_CRYc_y9) -> 2016-17 | L10: =IF(dms_RPT="financial",dms_CRYf_y10,dms_CRYc_y10) -> 2017-18
B11: Replacement expenditure | C11: 27376822 | D11: 32420084 | E11: 48105266 | F11: 62171818 | G11: 75060740 | H11: 68782084 | I11: 78106620.67 | J11: 74866525.35 | K11: 83264524.76 | L11: 129522416.9
B12: Connections | C12: 91494000 | D12: 101043000 | E12: 74524000 | F12: 69081000 | G12: 73078000 | H12: 72868000 | I12: 64356543 | J12: 55537467.97 | K12: 58216593.9 | L12: 68973178.14
B13: Augmentation Expenditure | C13: 60942000 | D13: 68956000 | E13: 123942000 | F13: 139389000 | G13: 120221000 | H13: 83008000 | I13: 99556164.76 | J13: 51680564.97 | K13: 60077472.89 | L13: 87165260.98
B14: Non-network | C14: 40161000 | D14: 36922000 | E14: 58502000 | F14: 74591000 | G14: 80458000 | H14: 88839000 | I14: 104617563 | J14: 76417968.89 | K14: 86239351.39 | L14: 109262862.1
B15: capitalised network overheads | C15: 9120686.736 | D15: 10917801.96 | E15: 10254869.18 | F15: 9714721.693 | G15: 12031571.87 | H15: 10830014.79 | I15: 8803827.88 | J15: 7624423.697 | K15: 10655357.73 | L15: 6676733.493
B16: capitalised corporate overheads | C16: 3827000 | D16: 3192000 | E16: 3767000 | F16: -44000 | G16: -3730000 | H16: -7267000 | I16: -18253075.62 | J16: -13251556.65 | K16: -9361715.3 | L16: -6939995.236
B17: Metering | C17: 12449000 | D17: 13328000 | E17: 0 | F17: 0 | G17: 0 | H17: 0 | I17: 0 | J17: 0 | K17: 0 | L17: 0
B18: Public Lighting | C18: 0 | D18: 0 | E18: 0 | F18: 0 | G18: 0 | H18: 0 | I18: 0 | J18: 0 | K18: 0 | L18: 0
B25: balancing item | C25: 0 | D25: 0 | E25: 5760000 | F25: 0 | G25: 0 | H25: -1432000 | I25: -124098.049 | J25: -237665.36 | K25: -2248990.42 | L25: -8978387.81
B26: capcons (included in the above items) | C26: 85618474 | D26: 109706110 | E26: 70361518 | F26: 48234026 | G26: 41522635 | H26: 49969962 | I26: 37625366 | J26: 30384253 | K26: 27770975.24 | L26: 29535992.12
B27: TOTAL GROSS CAPEX (includes capcons) | C27: =+SUM(C11:C25) -> 245370508.7 | D27: 266778886 | E27: 324855135.2 | F27: 354903539.7 | H27: 315628098.8 | I27: 337063545.6 | J27: 252637728.9
B29: 2.1.2 - STANDARD CONTROL SERVICES OPEX
C30: EXPENDITURE ($0's)
C31: =IF(dms_RPT="financial",dms_CRYf_y1,dms_CRYc_y1) -> 2008-09 | D31: =IF(dms_RPT="financial",dms_CRYf_y2,dms_CRYc_y2) -> 2009-10 | E31: =IF(dms_RPT="financial",dms_CRYf_y3,dms_CRYc_y3) -> 2010-11 | F31: =IF(dms_RPT="financial",dms_CRYf_y4,dms_CRYc_y4) -> 2011-12 | G31: =IF(dms_RPT="financial",dms_CRYf_y5,dms_CRYc_y5) -> 2012-13 | H31: =IF(dms_RPT="financial",dms_CRYf_y6,dms_CRYc_y6) -> 2013-14 | I31: =IF(dms_RPT="financial",dms_CRYf_y7,dms_CRYc_y7) -> 2014-15 | J31: =IF(dms_RPT="financial",dms_CRYf_y8,dms_CRYc_y8) -> 2015-16 | K31: =IF(dms_RPT="financial",dms_CRYf_y9,dms_CRYc_y9) -> 2016-17 | L31: =IF(dms_RPT="financial",dms_CRYf_y10,dms_CRYc_y10) -> 2017-18
B32: Vegetation management | C32: 14063212.96 | D32: 14517424.64 | E32: 21379813.33 | F32: 35876503.9 | G32: 39625933.93 | H32: 34383322.96 | I32: 45571826.67 | J32: 30957006.8 | K32: 29750410.35 | L32: 37453791.97
B33: Maintenance | C33: 19609103.65 | D33: 20836569.98 | E33: 24605030.55 | F33: 30034665.49 | G33: 32631018.71 | H33: 39600129.04 | I33: 40563958.28 | J33: 37764145.04 | K33: 41895318.43 | L33: 48445662.09
B34: Emergency response | C34: 26374994.7 | D34: 25780475.29 | E34: 29003967.94 | F34: 25463049.77 | G34: 31006356.71 | H34: 31062481.83 | I34: 32087787.4 | J34: 33646840.3 | K34: 43002001.48 | L34: 34675799.24
B35: Non-network | C35: 18184223.55 | D35: 19883912.27 | E35: 25239475.8 | F35: 28970664.8 | G35: 30453704.52 | H35: 36122481.88 | I35: 34079042.52 | J35: 28638718.77 | K35: 35928982.09 | L35: 41720858.21
B36: network overheads | C36: 55402632.6 | D36: 57861008.86 | E36: 70568200.33 | F36: 65596180.82 | G36: 74174236.46 | H36: 85280970.7 | I36: 79442045.27 | J36: 70507151.36 | K36: 94276825.4 | L36: 80334962.48
B37: corporate overheads | C37: 36262960.15 | D37: 36615216.76 | E37: 55498211.43 | F37: 58888731.51 | G37: 56320348.19 | H37: 63044474.82 | I37: 65880082.84 | J37: 52874705.79 | K37: 58995611.88 | L37: 72593463.51
B38: Metering | C38: 4991982.858 | D38: 5494395.705 | E38: 0 | F38: 0 | G38: 0 | H38: 0 | I38: 0 | J38: 0 | K38: 0 | L38: 0
B39: Public Lighting | C39: 0 | D39: 0 | E39: 0 | F39: 0 | G39: 0 | H39: 0 | I39: 0 | J39: 0 | K39: 0 | L39: 0
B46: balancing tem | C46: -20460223.55 | D46: -21994912.27 | E46: -27090475.8 | F46: -30990664.8 | G46: -32445704.52 | H46: -38308481.88 | I46: -36963065.52 | J46: -31449097.03 | K46: -37995497.24 | L46: -49722218.21
B47: TOTAL OPEX | C47: =+SUM(C32:C46) -> 154428886.9 | D47: =+SUM(D32:D46) -> 158994091.2 | E47: 199204223.6 | F47: 213839131.5 | H47: 251185379.4 | I47: 260661677.5 | J47: 222939471
B49: 2.1.3 - ALTERNATIVE CONTROL SERVICES CAPEX
C50: EXPENDITURE ($0's)
C51: =IF(dms_RPT="financial",dms_CRYf_y1,dms_CRYc_y1) -> 2008-09 | D51: =IF(dms_RPT="financial",dms_CRYf_y2,dms_CRYc_y2) -> 2009-10 | E51: =IF(dms_RPT="financial",dms_CRYf_y3,dms_CRYc_y3) -> 2010-11 | F51: =IF(dms_RPT="financial",dms_CRYf_y4,dms_CRYc_y4) -> 2011-12 | G51: =IF(dms_RPT="financial",dms_CRYf_y5,dms_CRYc_y5) -> 2012-13 | H51: =IF(dms_RPT="financial",dms_CRYf_y6,dms_CRYc_y6) -> 2013-14 | I51: =IF(dms_RPT="financial",dms_CRYf_y7,dms_CRYc_y7) -> 2014-15 | J51: =IF(dms_RPT="financial",dms_CRYf_y8,dms_CRYc_y8) -> 2015-16 | K51: =IF(dms_RPT="financial",dms_CRYf_y9,dms_CRYc_y9) -> 2016-17 | L51: =IF(dms_RPT="financial",dms_CRYf_y10,dms_CRYc_y10) -> 2017-18
B52: Connections | C52: 0 | D52: 0 | E52: 0 | F52: 0 | G52: 0 | H52: 0 | I52: 0 | J52: 0 | K52: 0 | L52: 0
B53: capitalised network overheads | C53: 137618.7917 | D53: 202639.322 | E53: 785628.5135 | F53: 953855.8714 | G53: 873796.8625 | H53: 804609.1073 | I53: 685010.65 | J53: 522288.25 | K53: 867230.45 | L53: 186279.1951
B54: capitalised corporate overheads | C54: 54000 | D54: 39000 | E54: 3000 | F54: -179000 | G54: -295000 | H54: -332000 | I54: -532074.5003 | J54: -328613.2 | K54: -271916.28 | L54: -232615.5917
B55: Metering | C55: 0 | D55: 0 | E55: 18791000 | F55: 21685000 | G55: 16839000 | H55: 11835000 | I55: 9863000 | J55: 7607631 | K55: 6308184.92 | L55: 4927667.18
B56: Public lighting | C56: 2795381.208 | D56: 4067360.678 | E56: 3561371.486 | F56: 3787144.129 | G56: 3889203.137 | H56: 3987390.893 | I56: 4076071.26 | J56: 4038048.79 | K56: 7801733.57 | L56: 10541625.85
B57: Fee and quoted | C57: 0 | D57: 0 | E57: 0 | F57: 0 | G57: 0 | H57: 0 | I57: 0 | J57: 0 | K57: 0 | L57: 0
B64: balancing tem | C64: 0 | D64: 0 | E64: -15823000 | F64: -18448000 | G64: -13510000 | H64: -8717000 | I64: -5966081.91 | J64: 0 | K64: 0 | L64: 0
B65: TOTAL CAPEX | C65: =+SUM(C52:C64) -> 2987000 | D65: 4309000 | E65: 7318000 | F65: 7799000 | H65: 7578000 | I65: 8125925.5 | J65: 11839354.84
B67: 2.1.4 - ALTERNATIVE CONTROL SERVICES OPEX
C68: EXPENDITURE ($0's)
C69: =IF(dms_RPT="financial",dms_CRYf_y1,dms_CRYc_y1) -> 2008-09 | D69: =IF(dms_RPT="financial",dms_CRYf_y2,dms_CRYc_y2) -> 2009-10 | E69: =IF(dms_RPT="financial",dms_CRYf_y3,dms_CRYc_y3) -> 2010-11 | F69: =IF(dms_RPT="financial",dms_CRYf_y4,dms_CRYc_y4) -> 2011-12 | G69: =IF(dms_RPT="financial",dms_CRYf_y5,dms_CRYc_y5) -> 2012-13 | H69: =IF(dms_RPT="financial",dms_CRYf_y6,dms_CRYc_y6) -> 2013-14 | I69: =IF(dms_RPT="financial",dms_CRYf_y7,dms_CRYc_y7) -> 2014-15 | J69: =IF(dms_RPT="financial",dms_CRYf_y8,dms_CRYc_y8) -> 2015-16 | K69: =IF(dms_RPT="financial",dms_CRYf_y9,dms_CRYc_y9) -> 2016-17 | L69: =IF(dms_RPT="financial",dms_CRYf_y10,dms_CRYc_y10) -> 2017-18
B70: Connections | C70: 0 | D70: 0 | E70: 0 | F70: 0 | G70: 0 | H70: 0 | I70: 0 | J70: 0 | K70: 0 | L70: 0
B71: network overheads | C71: 1514162.896 | D71: 1834678.694 | E71: 1675562.077 | F71: 1519622.811 | G71: 1516834.433 | H71: 1590962.438 | I71: 1274937.834 | J71: 5284398.805 | K71: 5112147.491 | L71: 4342617.097
B72: corporate overheads | C72: 3087561.643 | D72: 3480097.48 | E72: 4793064.462 | F72: 5634173.11 | G72: 3989372.165 | H72: 4463089.949 | I72: 4254116.444 | J72: 5655373.517 | K72: 5382073.741 | L72: 9039711.123
B73: Metering | C73: 0 | D73: 0 | E73: 5584029.783 | F73: 6409210.066 | G73: 6526581.25 | H73: 6084000 | I73: 5555760.31 | J73: 6059552.49 | K73: 5478694.35 | L73: 4670009.52
B74: Public lighting | C74: 4316455.353 | D74: 4807401.384 | E74: 4625665.072 | F74: 5131812.892 | G74: 5902043.003 | H74: 6592344.907 | I74: 6811576.33 | J74: 7059389.66 | K74: 8300711.55 | L74: 12980682.68
B75: Fee and quoted | C75: 12415642.81 | D75: 13863026.4 | E75: 22626096.04 | F75: 16948406.43 | G75: 16225613.65 | H75: 15329904.9 | I75: 16851840.58 | J75: 42938356.57 | K75: 32015000.12 | L75: 35052684.68
B76: Non-network | C76: 0 | D76: 0 | E76: 0 | F76: 0 | G76: 0 | H76: 0 | I76: 0 | J76: 0 | K76: 0 | L76: 0
B82: balancing tem | C82: 0 | D82: 0 | E82: -684957.87 | F82: -1402994.78 | G82: -1683216.23 | H82: -1554013.42 | I82: -1011903.15 | J82: 0 | K82: 0 | L82: 0
B83: TOTAL OPEX | C83: =+SUM(C70:C82) -> 21333822.7 | D83: 23985203.96 | E83: 38619459.56 | F83: 34240230.53 | H83: 32506288.78 | I83: 33736328.35 | J83: 66997071.04
B85: 2.1.5 - DUAL FUNCTION ASSETS CAPEX
C86: EXPENDITURE ($0's)
C87: =IF(dms_RPT="financial",dms_CRYf_y1,dms_CRYc_y1) -> 2008-09 | D87: =IF(dms_RPT="financial",dms_CRYf_y2,dms_CRYc_y2) -> 2009-10 | E87: =IF(dms_RPT="financial",dms_CRYf_y3,dms_CRYc_y3) -> 2010-11 | F87: =IF(dms_RPT="financial",dms_CRYf_y4,dms_CRYc_y4) -> 2011-12 | G87: =IF(dms_RPT="financial",dms_CRYf_y5,dms_CRYc_y5) -> 2012-13 | H87: =IF(dms_RPT="financial",dms_CRYf_y6,dms_CRYc_y6) -> 2013-14 | I87: =IF(dms_RPT="financial",dms_CRYf_y7,dms_CRYc_y7) -> 2014-15 | J87: =IF(dms_RPT="financial",dms_CRYf_y8,dms_CRYc_y8) -> 2015-16 | K87: =IF(dms_RPT="financial",dms_CRYf_y9,dms_CRYc_y9) -> 2016-17 | L87: =IF(dms_RPT="financial",dms_CRYf_y10,dms_CRYc_y10) -> 2017-18
B88: Replacement expenditure | C88: 0 | D88: 0 | E88: 0 | F88: 0 | G88: 0 | H88: 0 | I88: 0 | J88: 0 | K88: 0 | L88: 0
B89: Connections | C89: 0 | D89: 0 | E89: 0 | F89: 0 | G89: 0 | H89: 0 | I89: 0 | J89: 0 | K89: 0 | L89: 0
B90: Augmentation Expenditure | C90: 0 | D90: 0 | E90: 0 | F90: 0 | G90: 0 | H90: 0 | I90: 0 | J90: 0 | K90: 0 | L90: 0
B91: Non-network | C91: 0 | D91: 0 | E91: 0 | F91: 0 | G91: 0 | H91: 0 | I91: 0 | J91: 0 | K91: 0 | L91: 0
B92: Capitalised network overheads | C92: 0 | D92: 0 | E92: 0 | F92: 0 | G92: 0 | H92: 0 | I92: 0 | J92: 0 | K92: 0 | L92: 0
B93: Capitalised corporate overheads | C93: 0 | D93: 0 | E93: 0 | F93: 0 | G93: 0 | H93: 0 | I93: 0 | J93: 0 | K93: 0 | L93: 0
B101: capcons (included in the above items)
B102: TOTAL GROSS CAPEX (includes capcons) | C102: =SUM(C88:C100) -> 0 | D102: 0 | E102: 0 | F102: 0 | H102: 0 | I102: 0 | J102: 0
B104: 2.1.6 - DUAL FUNCTION ASSETS OPEX
C105: EXPENDITURE ($0's)
C106: =IF(dms_RPT="financial",dms_CRYf_y1,dms_CRYc_y1) -> 2008-09 | D106: =IF(dms_RPT="financial",dms_CRYf_y2,dms_CRYc_y2) -> 2009-10 | E106: =IF(dms_RPT="financial",dms_CRYf_y3,dms_CRYc_y3) -> 2010-11 | F106: =IF(dms_RPT="financial",dms_CRYf_y4,dms_CRYc_y4) -> 2011-12 | G106: =IF(dms_RPT="financial",dms_CRYf_y5,dms_CRYc_y5) -> 2012-13 | H106: =IF(dms_RPT="financial",dms_CRYf_y6,dms_CRYc_y6) -> 2013-14 | I106: =IF(dms_RPT="financial",dms_CRYf_y7,dms_CRYc_y7) -> 2014-15 | J106: =IF(dms_RPT="financial",dms_CRYf_y8,dms_CRYc_y8) -> 2015-16 | K106: =IF(dms_RPT="financial",dms_CRYf_y9,dms_CRYc_y9) -> 2016-17 | L106: =IF(dms_RPT="financial",dms_CRYf_y10,dms_CRYc_y10) -> 2017-18
B107: Vegetation management | C107: 0 | D107: 0 | E107: 0 | F107: 0 | G107: 0 | H107: 0 | I107: 0 | J107: 0 | K107: 0 | L107: 0
B108: Maintenance | C108: 0 | D108: 0 | E108: 0 | F108: 0 | G108: 0 | H108: 0 | I108: 0 | J108: 0 | K108: 0 | L108: 0
B109: Emergency response | C109: 0 | D109: 0 | E109: 0 | F109: 0 | G109: 0 | H109: 0 | I109: 0 | J109: 0 | K109: 0 | L109: 0
B110: Non-network | C110: 0 | D110: 0 | E110: 0 | F110: 0 | G110: 0 | H110: 0 | I110: 0 | J110: 0 | K110: 0 | L110: 0
B111: network overheads | C111: 0 | D111: 0 | E111: 0 | F111: 0 | G111: 0 | H111: 0 | I111: 0 | J111: 0 | K111: 0 | L111: 0
B112: corporate overheads | C112: 0 | D112: 0 | E112: 0 | F112: 0 | G112: 0 | H112: 0 | I112: 0 | J112: 0 | K112: 0 | L112: 0
B113: Metering | C113: 0 | D113: 0 | E113: 0 | F113: 0 | G113: 0 | H113: 0 | I113: 0 | J113: 0 | K113: 0 | L113: 0
B120: TOTAL OPEX | C120: =SUM(C107:C119) -> 0 | D120: 0 | E120: 0 | F120: 0 | H120: 0 | I120: 0 | J120: 0
B122: 2.1.7 - STANDARD CONTROL SERVICES CAPCONS
C123: EXPENDITURE ($0's)
C124: =IF(dms_RPT="financial",dms_CRYf_y1,dms_CRYc_y1) -> 2008-09 | D124: =IF(dms_RPT="financial",dms_CRYf_y2,dms_CRYc_y2) -> 2009-10 | E124: =IF(dms_RPT="financial",dms_CRYf_y3,dms_CRYc_y3) -> 2010-11 | F124: =IF(dms_RPT="financial",dms_CRYf_y4,dms_CRYc_y4) -> 2011-12 | G124: =IF(dms_RPT="financial",dms_CRYf_y5,dms_CRYc_y5) -> 2012-13 | H124: =IF(dms_RPT="financial",dms_CRYf_y6,dms_CRYc_y6) -> 2013-14 | I124: =IF(dms_RPT="financial",dms_CRYf_y7,dms_CRYc_y7) -> 2014-15 | J124: =IF(dms_RPT="financial",dms_CRYf_y8,dms_CRYc_y8) -> 2015-16 | K124: =IF(dms_RPT="financial",dms_CRYf_y9,dms_CRYc_y9) -> 2016-17 | L124: =IF(dms_RPT="financial",dms_CRYf_y10,dms_CRYc_y10) -> 2017-18
B125: Replacement expenditure | C125: 3265025.073 | D125: 3020559.375 | E125: 2418843.807 | F125: 3125636.932 | G125: 2946292.256 | H125: 3337993.819 | I125: 2796244.773 | J125: 2848880.746 | K125: 3397225.925 | L125: 3031977.725
B126: Connections | C126: 73298296.87 | D126: 94631539.71 | E126: 63071030.5 | F126: 42020436.25 | G126: 34790243.38 | H126: 42564340.23 | I126: 30901026.01 | J126: 24213489.18 | K126: 21129267.86 | L126: 22740400.4
B127: Augmentation Expenditure | C127: 1816372.065 | D127: 1549819.891 | E127: 2089583.255 | F127: 1494460.025 | G127: 2117421.691 | H127: 1968132.566 | I127: 2653913.279 | J127: 2072915.112 | K127: 1770700.234 | L127: 3061677.7
B128: Non-network | C128: 0 | D128: 0 | E128: 0 | F128: 0 | G128: 0 | H128: 0 | I128: 0 | J128: 0 | K128: 0 | L128: 0
B129: capitalised network overheads | C129: 4101624.076 | D129: 5418451.965 | E129: 2782060.794 | F129: 1593492.911 | G129: 1668677.757 | H129: 2099495.044 | I129: 1274181.862 | J129: 1248967.955 | K129: 1473781.221 | L129: 701936.3003
B130: capitalised corporate overheads | C130: 0 | D130: 0 | E130: 0 | F130: 0 | G130: 0 | H130: 0 | I130: 0 | J130: 0 | K130: 0 | L130: 0
B131: Metering | C131: 3137156.213 | D131: 5085738.711 | E131: 0 | F131: 0 | G131: 0 | H131: 0 | I131: 0 | J131: 0 | K131: 0 | L131: 0
B132: Public Lighting | C132: 0 | D132: 0 | E132: 0 | F132: 0 | G132: 0 | H132: 0 | I132: 0 | J132: 0 | K132: 0 | L132: 0
B140: TOTAL CAPCONS | C140: =+SUM(C125:C139) -> 85618474.3 | D140: 109706109.7 | E140: 70361518.36 | F140: 48234026.12 | H140: 49969961.66 | I140: 37625365.92 | J140: 30384253
B142: 2.1.8 - STANDARD CONTROL SERVICES CAPITALISED OVERHEADS
C143: EXPENDITURE ($0's)
C144: =IF(dms_RPT="financial",dms_CRYf_y1,dms_CRYc_y1) -> 2008-09 | D144: =IF(dms_RPT="financial",dms_CRYf_y2,dms_CRYc_y2) -> 2009-10 | E144: =IF(dms_RPT="financial",dms_CRYf_y3,dms_CRYc_y3) -> 2010-11 | F144: =IF(dms_RPT="financial",dms_CRYf_y4,dms_CRYc_y4) -> 2011-12 | G144: =IF(dms_RPT="financial",dms_CRYf_y5,dms_CRYc_y5) -> 2012-13 | H144: =IF(dms_RPT="financial",dms_CRYf_y6,dms_CRYc_y6) -> 2013-14 | I144: =IF(dms_RPT="financial",dms_CRYf_y7,dms_CRYc_y7) -> 2014-15 | J144: =IF(dms_RPT="financial",dms_CRYf_y8,dms_CRYc_y8) -> 2015-16 | K144: =IF(dms_RPT="financial",dms_CRYf_y9,dms_CRYc_y9) -> 2016-17 | L144: =IF(dms_RPT="financial",dms_CRYf_y10,dms_CRYc_y10) -> 2017-18
B145: Vegetation management | C145: 0 | D145: 0 | E145: 0 | F145: 0 | G145: 0 | H145: 0 | I145: 0 | J145: 0 | K145: 0 | L145: 0
B146: Maintenance | C146: 0 | D146: 0 | E146: 0 | F146: 0 | G146: 0 | H146: 0 | I146: 0 | J146: 0 | K146: 0 | L146: 0
B147: Emergency response | C147: 0 | D147: 0 | E147: 0 | F147: 0 | G147: 0 | H147: 0 | I147: 0 | J147: 0 | K147: 0 | L147: 0
B148: Non-network | C148: 0 | D148: 0 | E148: 0 | F148: 0 | G148: 0 | H148: 0 | I148: 0 | J148: 0 | K148: 0 | L148: 0
B149: Metering | C149: 519338.6386 | D149: 548175.3696 | E149: 0 | F149: 0 | G149: 0 | H149: 0 | I149: 0 | J149: 0 | K149: 0 | L149: 0
B150: Public Lighting | C150: 0 | D150: 0 | E150: 0 | F150: 0 | G150: 0 | H150: 0 | I150: 0 | J150: 0 | K150: 0 | L150: 0
B151: Replacement expenditure | C151: 2430729.087 | D151: 2596758.964 | E151: 3006316.851 | F151: 2381511.23 | G151: 2664557.266 | H151: 1664929.074 | I151: -2484348.21 | J151: -1567966.27 | K151: 742087.481 | L151: -219179.4475
B152: Connections | C152: 6626149.217 | D152: 7296902.644 | E152: 4883439.841 | F152: 2566374.751 | G152: 1938927.766 | H152: 949110.8112 | I152: -2728613.693 | J152: -1543174.046 | K152: 434140.3176 | L152: -237040.7335
B153: Augmentation Expenditure | C153: 3132378.646 | D153: 3512068.9 | E153: 5731992.231 | F153: 4489550.752 | G153: 3563290.936 | H153: 1369318.442 | I153: -2392165.639 | J153: -1124289.862 | K153: 892493.909 | L153: 692761.6068
B154: Non-network | C154: 239091.1466 | D154: 155896.0822 | E154: 400120.2579 | F154: 233284.96 | G154: 134795.8992 | H154: -420343.5411 | I154: -1844120.202 | J154: -1391702.776 | K154: -775079.2732 | L154: -499803.1684
B157: capcons (included in the above items) | C157: 4101624.076 | D157: 5418451.965 | E157: 2782060.794 | F157: 1593492.911 | G157: 1668677.757 | H157: 2099495.044 | I157: 1274181.862 | J157: 1248967.955 | K157: 1473781.221 | L157: 701936.3003
B158: TOTAL CAPITALISED OVERHEADS | C158: =+SUM(C145:C156) -> 12947686.74 | D158: =+SUM(D145:D156) -> 14109801.96 | E158: 14021869.18 | F158: 9670721.693 | H158: 3563014.786 | I158: -9449247.744 | J158: -5627132.953

Sheet 2.2 Repex
B1: REGULATORY REPORTING STATEMENT
B2: =INDEX(dms_TradingNameFull_List,MATCH(dms_TradingName,dms_TradingName_List)) -> SA Power Networks
B3: =IF(SUM(dms_SingleYear_Model)>0,("CATEGORY ANALYSIS "&CRY&" to "&FRY),("CATEGORY ANALYSIS "&CRY)) -> CATEGORY ANALYSIS 2008-09 to 2018-19
B4: 2.2 REPEX
B6: There are TWO tables on this worksheet. These tables have been 'grouped' (and sub-grouped) for ease of navigation. See the Instructions sheet on how to group or ungroup tables.
B8: 2.2.1 - REPLACEMENT EXPENDITURE, VOLUMES AND ASSET FAILURES BY ASSET CATEGORY
B9: EXPENDITURE
E10: EXPENDITURE ($0's)
B11: ASSET GROUP | C11: ASSET CATEGORY | E11: =IF(dms_RPT="financial",dms_CRYf_y1,dms_CRYc_y1) -> 2008-09 | F11: =IF(dms_RPT="financial",dms_CRYf_y2,dms_CRYc_y2) -> 2009-10 | G11: =IF(dms_RPT="financial",dms_CRYf_y3,dms_CRYc_y3) -> 2010-11 | H11: =IF(dms_RPT="financial",dms_CRYf_y4,dms_CRYc_y4) -> 2011-12 | I11: =IF(dms_RPT="financial",dms_CRYf_y5,dms_CRYc_y5) -> 2012-13 | J11: =IF(dms_RPT="financial",dms_CRYf_y6,dms_CRYc_y6) -> 2013-14 | K11: =IF(dms_RPT="financial",dms_CRYf_y7,dms_CRYc_y7) -> 2014-15 | L11: =IF(dms_RPT="financial",dms_CRYf_y8,dms_CRYc_y8) -> 2015-16 | M11: =IF(dms_RPT="financial",dms_CRYf_y9,dms_CRYc_y9) -> 2016-17 | N11: =IF(dms_RPT="financial",dms_CRYf_y10,dms_CRYc_y10) -> 2017-18
B12: POLES BY: HIGHEST OPERATING VOLTAGE ; MATERIAL TYPE | C12: Staking of a wooden pole
C13: ˂ = 1 kV; Wood
C14: > 1 kV & < = 11 kV; Wood
C15: ˃ 11 kV & < = 22 kV; Wood
C16: > 22 kV & < = 66 kV; Wood
C17: > 66 kV & < = 132 kV; Wood
C18: > 132 kV; Wood
C19: ˂ = 1 kV; Concrete
C20: > 1 kV & < = 11 kV; Concrete
C21: ˃ 11 kV & < = 22 kV; Concrete
C22: > 22 kV & < = 66 kV; Concrete
C23: > 66 kV & < = 132 kV; Concrete
C24: > 132 kV; Concrete
C25: ˂ = 1 kV; Steel
C26: > 1 kV & < = 11 kV; Steel
C27: ˃ 11 kV & < = 22 kV; Steel
C28: > 22 kV & < = 66 kV; Steel
C29: > 66 kV & < = 132 kV; Steel
C30: > 132 kV; Steel
C31: Other
B32: POLE TOP STRUCTURES BY: HIGHEST OPERATING VOLTAGE | C32: ˂ = 1 kV
C33: > 1 kV & < = 11 kV
C34: ˃ 11 kV & < = 22 kV
C35: > 22 kV & < = 66 kV
C36: > 66 kV & < = 132 kV
C37: > 132 kV
C38: Other
B39: STAKING WOODEN POLES BY: HIGHEST OPERATING VOLTAGE | C39: ˂ = 1 Kv | D39: for year wooden pole staked
C40: > 1 kV & < = 11 kV | D40: for year wooden pole staked
C41: ˃ 11 kV & < = 22 kV | D41: for year wooden pole staked
C42: > 22 kV & < = 66 kV | D42: for year wooden pole staked
C43: > 66 kV & < = 132 kV | D43: for year wooden pole staked
C44: > 132 kV | D44: for year wooden pole staked
B45: OVERHEAD CONDUCTORS BY: HIGHEST OPERATING VOLTAGE; NUMBER OF PHASES (AT HV) | C45: ˂ = 1 kV | D45: per km
C46: > 1 kV & < = 11 kV | D46: per km
C47: ˃ 11 kV & < = 22 kV ; SWER | D47: per km
C48: ˃ 11 kV & < = 22 kV ; Single-Phase | D48: per km
C49: ˃ 11 kV & < = 22 kV ; Multiple-Phase | D49: per km
C50: > 22 kV & < = 66 kV | D50: per km
C51: > 66 kV & < = 132 kV | D51: per km
C52: > 132 kV | D52: per km
C53: Other | D53: per km
B54: UNDERGROUND CABLES BY: HIGHEST OPERATING VOLTAGE | C54: ˂ = 1 kV | D54: per km
C55: > 1 kV & < = 11 kV | D55: per km
C56: > 11 kV & < = 22 kV | D56: per km
C57: > 22 kV & < = 33 kV | D57: per km
C58: > 33 kV & < = 66 kV | D58: per km
C59: > 66 kV & < = 132 kV | D59: per km
C60: > 132 kV | D60: per km
C61: Other | D61: per km
B62: SERVICE LINES BY: CONNECTION VOLTAGE; CUSTOMER TYPE; CONNECTION COMPLEXITY | C62: ˂ = 11 kV ; Residential ; Simple Type | D62: per number of spans
C63: ˂ = 11 kV ; Commercial & Industrial ; Simple Type | D63: per number of spans
C64: ˂ = 11 kV ; Residential ; Complex Type | D64: per number of spans
C65: ˂ = 11 kV ; Commercial & Industrial ; Complex Type | D65: per number of spans
C66: ˂ = 11 kV ; Subdivision ; Complex Type | D66: per number of spans
C67: > 11 kV & < = 22 kV ; Commercial & Industrial | D67: per number of spans
C68: > 11 kV & < = 22 kV ; Subdivision | D68: per number of spans
C69: > 22 kV & < = 33 kV ; Commercial & Industrial | D69: per number of spans
C70: > 22 kV & < = 33 kV ; Subdivision | D70: per number of spans
C71: > 33 kV & < = 66 kV ; Commercial & Industrial | D71: per number of spans
C72: > 33 kV & < = 66 kV ; Subdivision | D72: per number of spans
C73: > 66 kV & < = 132 kV ; Commercial & Industrial | D73: per number of spans
C74: > 66 kV & < = 132 kV ; Subdivision | D74: per number of spans
C75: > 132 kV ; Commercial & Industrial | D75: per number of spans
C76: > 132 kV ; Subdivision | D76: per number of spans
C77: Other | D77: per number of spans
B78: TRANSFORMERS BY: MOUNTING TYPE; HIGHEST OPERATING VOLTAGE ; AMPERE RATING; NUMBER OF PHASES (AT LV) | C78: Pole Mounted ; < = 22kV ; < = 60 kVA ; Single Phase
C79: Pole Mounted ; < = 22kV ; > 60 kVA and < = 600 kVA ; Single Phase
C80: Pole Mounted ; < = 22kV ; > 600 kVA ; Single Phase
C81: Pole Mounted ; < = 22kV ; < = 60 kVA ; Multiple Phase
C82: Pole Mounted ; < = 22kV ; > 60 kVA and < = 600 kVA ; Multiple Phase
C83: Pole Mounted ; < = 22kV ; > 600 kVA ; Multiple Phase
C84: Kiosk Mounted ; < = 22kV ; < = 60 kVA ; Single Phase
C85: Kiosk Mounted ; < = 22kV ; > 60 kVA and < = 600 kVA ; Single Phase
C86: Kiosk Mounted ; < = 22kV ; > 600 kVA ; Single Phase
C87: Kiosk Mounted ; < = 22kV ; < = 60 kVA ; Multiple Phase
C88: Kiosk Mounted ; < = 22kV ; > 60 kVA and < = 600 kVA ; Multiple Phase
C89: Kiosk Mounted ; < = 22kV ; > 600 kVA ; Multiple Phase
C90: Ground Outdoor / Indoor Chamber Mounted; ˂ 22 kV ; < = 60 kVA ; Single Phase
C91: Ground Outdoor / Indoor Chamber Mounted; ˂ 22 kV ; > 60 kVA and < = 600 kVA ; Single Phase
C92: Ground Outdoor / Indoor Chamber Mounted; ˂ 22 kV ; > 600 kVA ; Single Phase
C93: Ground Outdoor / Indoor Chamber Mounted; ˂ 22 kV ; < = 60 kVA ; Multiple Phase
C94: Ground Outdoor / Indoor Chamber Mounted; ˂ 22 kV ; > 60 kVA and < = 600 kVA ; Multiple Phase
C95: Ground Outdoor / Indoor Chamber Mounted; ˂ 22 kV ; > 600 kVA ; Multiple Phase
C96: Ground Outdoor / Indoor Chamber Mounted; > = 22 kV & < = 33 kV ; < = 15 MVA
C97: Ground Outdoor / Indoor Chamber Mounted; > = 22 kV & < = 33 kV ; > 15 MVA and < = 40 MVA
C98: Ground Outdoor / Indoor Chamber Mounted; > = 22 kV & < = 33 kV ; > 40 MVA
C99: Ground Outdoor / Indoor Chamber Mounted; > 33 kV & < = 66 kV ; < = 15 MVA
C100: Ground Outdoor / Indoor Chamber Mounted; > 33 kV & < = 66 kV ; > 15 MVA and < = 40 MVA
C101: Ground Outdoor / Indoor Chamber Mounted; > 33 kV & < = 66 kV ; > 40 MVA
C102: Ground Outdoor / Indoor Chamber Mounted; > 66 kV & < = 132 kV ; < = 100 MVA
C103: Ground Outdoor / Indoor Chamber Mounted; > 66 kV & < = 132 kV ; > 100 MVA
C104: Ground Outdoor / Indoor Chamber Mounted; > 132 kV ; < = 100 MVA
C105: Ground Outdoor / Indoor Chamber Mounted; > 132 kV ; > 100 MVA
C106: Other
B107: SWITCHGEAR BY: HIGHEST OPERATING VOLTAGE ; SWITCH FUNCTION | C107: ˂ = 11 kV ; FUSE
C108: ˂ = 11 kV ; Switch
C109: ˂ = 11 kV ; Circuit Breaker
C110: > 11 kV & < = 22 kV ; Switch
C111: > 11 kV & < = 22 kV ; Circuit Breaker
C112: > 22 kV & < = 33 kV ; Switch
C113: > 22 kV & < = 33 kV ; Circuit Breaker
C114: > 33 kV & < = 66 kV ; Switch
C115: > 33 kV & < = 66 kV ; Circuit Breaker
C116: > 66 kV & < = 132 kV ; Switch
C117: > 66 kV & < = 132 kV ; Circuit Breaker
C118: > 132 kV ; Switch
C119: > 132 kV ; Circuit Breaker
C120: Other
B121: PUBLIC LIGHTING BY: ASSET TYPE ; LIGHTING OBLIGATION | C121: Luminaires ; Major Road
C122: Luminaires ; Minor Road
C123: Brackets ; Major Road
C124: Brackets ; Minor Road
C125: Lamps ; Major Road
C126: Lamps ; Minor Road
C127: Poles / Columns ; Major Road
C128: Poles / Columns ; Minor Road
C129: Other
B130: SCADA, NETWORK CONTROL AND PROTECTION SYSTEMS BY: FUNCTION | C130: Field Devices
C131: Local Network Wiring Assets
C132: Communications Network Assets
C133: Master Station Assets
C134: Communications Site Infrastructure
C135: Communications Linear Assets
C136: AFLC
C137: Other
B138: OTHER BY: DNSP DEFINED
B156: ASSET REPLACEMENTS
E157: VOLUMES (0's)
B158: ASSET GROUP | C158: ASSET CATEGORY | E158: =IF(dms_RPT="financial",dms_CRYf_y1,dms_CRYc_y1) -> 2008-09 | F158: =IF(dms_RPT="financial",dms_CRYf_y2,dms_CRYc_y2) -> 2009-10 | G158: =IF(dms_RPT="financial",dms_CRYf_y3,dms_CRYc_y3) -> 2010-11 | H158: =IF(dms_RPT="financial",dms_CRYf_y4,dms_CRYc_y4) -> 2011-12 | I158: =IF(dms_RPT="financial",dms_CRYf_y5,dms_CRYc_y5) -> 2012-13 | J158: =IF(dms_RPT="financial",dms_CRYf_y6,dms_CRYc_y6) -> 2013-14 | K158: =IF(dms_RPT="financial",dms_CRYf_y7,dms_CRYc_y7) -> 2014-15 | L158: =IF(dms_RPT="financial",dms_CRYf_y8,dms_CRYc_y8) -> 2015-16 | M158: =IF(dms_RPT="financial",dms_CRYf_y9,dms_CRYc_y9) -> 2016-17 | N158: =IF(dms_RPT="financial",dms_CRYf_y10,dms_CRYc_y10) -> 2017-18
B159: POLES BY: HIGHEST OPERATING VOLTAGE ; MATERIAL TYPE | C159: Staking of a wooden pole
C160: ˂ = 1 kV; Wood
C161: > 1 kV & < = 11 kV; Wood
C162: ˃ 11 kV & < = 22 kV; Wood
C163: > 22 kV & < = 66 kV; Wood
C164: > 66 kV & < = 132 kV; Wood
C165: > 132 kV; Wood
C166: ˂ = 1 kV; Concrete
C167: > 1 kV & < = 11 kV; Concrete
C168: ˃ 11 kV & < = 22 kV; Concrete
C169: > 22 kV & < = 66 kV; Concrete
C170: > 66 kV & < = 132 kV; Concrete
C171: > 132 kV; Concrete
C172: ˂ = 1 kV; Steel
C173: > 1 kV & < = 11 kV; Steel
C174: ˃ 11 kV & < = 22 kV; Steel
C175: > 22 kV & < = 66 kV; Steel
C176: > 66 kV & < = 132 kV; Steel
C177: > 132 kV; Steel
C178: Other
B179: POLE TOP STRUCTURES BY: HIGHEST OPERATING VOLTAGE | C179: ˂ = 1 kV
C180: > 1 kV & < = 11 kV
C181: ˃ 11 kV & < = 22 kV
C182: > 22 kV & < = 66 kV
C183: > 66 kV & < = 132 kV
C184: > 132 kV
C185: Other
B186: STAKING WOODEN POLES BY: HIGHEST OPERATING VOLTAGE | C186: ˂ = 1 Kv
C187: > 1 kV & < = 11 kV
C188: ˃ 11 kV & < = 22 kV
C189: > 22 kV & < = 66 kV
C190: > 66 kV & < = 132 kV
C191: > 132 kV
B192: OVERHEAD CONDUCTORS BY: HIGHEST OPERATING VOLTAGE; NUMBER OF PHASES (AT HV) | C192: ˂ = 1 kV
C193: > 1 kV & < = 11 kV
C194: ˃ 11 kV & < = 22 kV ; SWER
C195: ˃ 11 kV & < = 22 kV ; Single-Phase
C196: ˃ 11 kV & < = 22 kV ; Multiple-Phase
C197: > 22 kV & < = 66 kV
C198: > 66 kV & < = 132 kV
C199: > 132 kV
C200: Other
B201: UNDERGROUND CABLES BY: HIGHEST OPERATING VOLTAGE | C201: ˂ = 1 kV
C202: > 1 kV & < = 11 kV
C203: > 11 kV & < = 22 kV
C204: > 22 kV & < = 33 kV
C205: > 33 kV & < = 66 kV
C206: > 66 kV & < = 132 kV
C207: > 132 kV
C208: Other
B209: SERVICE LINES BY: CONNECTION VOLTAGE; CUSTOMER TYPE; CONNECTION COMPLEXITY | C209: ˂ = 11 kV ; Residential ; Simple Type
C210: ˂ = 11 kV ; Commercial & Industrial ; Simple Type
C211: ˂ = 11 kV ; Residential ; Complex Type
C212: ˂ = 11 kV ; Commercial & Industrial ; Complex Type
C213: ˂ = 11 kV ; Subdivision ; Complex Type
C214: > 11 kV & < = 22 kV ; Commercial & Industrial
C215: > 11 kV & < = 22 kV ; Subdivision
C216: > 22 kV & < = 33 kV ; Commercial & Industrial
C217: > 22 kV & < = 33 kV ; Subdivision
C218: > 33 kV & < = 66 kV ; Commercial & Industrial
C219: > 33 kV & < = 66 kV ; Subdivision
... 246 more rows

Sheet 2.2 Repex (Unlocked)
B1: REGULATORY REPORTING STATEMENT
B2: =INDEX(dms_TradingNameFull_List,MATCH(dms_TradingName,dms_TradingName_List)) -> SA Power Networks
B3: =IF(SUM(dms_SingleYear_Model)>0,("CATEGORY ANALYSIS "&CRY&" to "&FRY),("CATEGORY ANALYSIS "&CRY)) -> CATEGORY ANALYSIS 2008-09 to 2018-19
B4: 2.2 REPEX
B6: There are TWO tables on this worksheet. These tables have been 'grouped' (and sub-grouped) for ease of navigation. See the Instructions sheet on how to group or ungroup tables.
B8: 2.2.1 - REPLACEMENT EXPENDITURE, VOLUMES AND ASSET FAILURES BY ASSET CATEGORY
B9: EXPENDITURE
E10: EXPENDITURE ($0's)
B11: ASSET GROUP | C11: ASSET CATEGORY | E11: =IF(dms_RPT="financial",dms_CRYf_y1,dms_CRYc_y1) -> 2008-09 | F11: =IF(dms_RPT="financial",dms_CRYf_y2,dms_CRYc_y2) -> 2009-10 | G11: =IF(dms_RPT="financial",dms_CRYf_y3,dms_CRYc_y3) -> 2010-11 | H11: =IF(dms_RPT="financial",dms_CRYf_y4,dms_CRYc_y4) -> 2011-12 | I11: =IF(dms_RPT="financial",dms_CRYf_y5,dms_CRYc_y5) -> 2012-13 | J11: =IF(dms_RPT="financial",dms_CRYf_y6,dms_CRYc_y6) -> 2013-14 | K11: =IF(dms_RPT="financial",dms_CRYf_y7,dms_CRYc_y7) -> 2014-15 | L11: =IF(dms_RPT="financial",dms_CRYf_y8,dms_CRYc_y8) -> 2015-16 | M11: =IF(dms_RPT="financial",dms_CRYf_y9,dms_CRYc_y9) -> 2016-17 | N11: =IF(dms_RPT="financial",dms_CRYf_y10,dms_CRYc_y10) -> 2017-18
B12: POLES BY: HIGHEST OPERATING VOLTAGE ; MATERIAL TYPE | C12: Staking of a wooden pole | E12: 0 | F12: 0 | G12: 0 | H12: 0 | I12: 0 | J12: 0 | K12: 0 | L12: 0 | M12: 0 | N12: 0
C13: ˂ = 1 kV; Wood | E13: 0 | F13: 0 | G13: 0 | H13: 0 | I13: 0 | J13: 0 | K13: 0 | L13: 0 | M13: 0 | N13: 0
C14: > 1 kV & < = 11 kV; Wood | E14: 0 | F14: 0 | G14: 0 | H14: 0 | I14: 0 | J14: 0 | K14: 0 | L14: 0 | M14: 0 | N14: 0
C15: ˃ 11 kV & < = 22 kV; Wood | E15: 0 | F15: 0 | G15: 0 | H15: 0 | I15: 0 | J15: 0 | K15: 0 | L15: 0 | M15: 0 | N15: 0
C16: > 22 kV & < = 66 kV; Wood | E16: 0 | F16: 0 | G16: 0 | H16: 0 | I16: 0 | J16: 0 | K16: 0 | L16: 0 | M16: 0 | N16: 0
C17: > 66 kV & < = 132 kV; Wood | E17: 0 | F17: 0 | G17: 0 | H17: 0 | I17: 0 | J17: 0 | K17: 0 | L17: 0 | M17: 0 | N17: 0
C18: > 132 kV; Wood | E18: 0 | F18: 0 | G18: 0 | H18: 0 | I18: 0 | J18: 0 | K18: 0 | L18: 0 | M18: 0 | N18: 0
C19: ˂ = 1 kV; Concrete | E19: 0 | F19: 0 | G19: 0 | H19: 0 | I19: 0 | J19: 0 | K19: 0 | L19: 0 | M19: 0 | N19: 0
C20: > 1 kV & < = 11 kV; Concrete | E20: 0 | F20: 0 | G20: 0 | H20: 0 | I20: 0 | J20: 0 | K20: 0 | L20: 0 | M20: 0 | N20: 0
C21: ˃ 11 kV & < = 22 kV; Concrete | E21: 0 | F21: 0 | G21: 0 | H21: 0 | I21: 0 | J21: 0 | K21: 0 | L21: 0 | M21: 0 | N21: 0
C22: > 22 kV & < = 66 kV; Concrete | E22: 0 | F22: 0 | G22: 0 | H22: 0 | I22: 0 | J22: 0 | K22: 0 | L22: 0 | M22: 0 | N22: 0
C23: > 66 kV & < = 132 kV; Concrete | E23: 0 | F23: 0 | G23: 0 | H23: 0 | I23: 0 | J23: 0 | K23: 0 | L23: 0 | M23: 0 | N23: 0
C24: > 132 kV; Concrete | E24: 0 | F24: 0 | G24: 0 | H24: 0 | I24: 0 | J24: 0 | K24: 0 | L24: 0 | M24: 0 | N24: 0
C25: ˂ = 1 kV; Steel | E25: 0 | F25: 0 | G25: 0 | H25: 0 | I25: 0 | J25: 0 | K25: 0 | L25: 0 | M25: 0 | N25: 0
C26: > 1 kV & < = 11 kV; Steel | E26: 0 | F26: 0 | G26: 0 | H26: 0 | I26: 0 | J26: 0 | K26: 0 | L26: 0 | M26: 0 | N26: 0
C27: ˃ 11 kV & < = 22 kV; Steel | E27: 0 | F27: 0 | G27: 0 | H27: 0 | I27: 0 | J27: 0 | K27: 0 | L27: 0 | M27: 0 | N27: 0
C28: > 22 kV & < = 66 kV; Steel | E28: 0 | F28: 0 | G28: 0 | H28: 0 | I28: 0 | J28: 0 | K28: 0 | L28: 0 | M28: 0 | N28: 0
C29: > 66 kV & < = 132 kV; Steel | E29: 0 | F29: 0 | G29: 0 | H29: 0 | I29: 0 | J29: 0 | K29: 0 | L29: 0 | M29: 0 | N29: 0
C30: > 132 kV; Steel | E30: 0 | F30: 0 | G30: 0 | H30: 0 | I30: 0 | J30: 0 | K30: 0 | L30: 0 | M30: 0 | N30: 0
C31: Other | E31: 0 | F31: 0 | G31: 0 | H31: 0 | I31: 0 | J31: 0 | K31: 0 | L31: 0 | M31: 0 | N31: 0
B32: POLE TOP STRUCTURES BY: HIGHEST OPERATING VOLTAGE | C32: ˂ = 1 kV | E32: 1126355.493 | F32: 1359745.074 | G32: 1396804.478 | H32: 1654654.06 | I32: 1801497.529 | J32: 6906474.429 | K32: 3087465.611 | L32: 2567482.502 | M32: 6750082.623 | N32: 6273970.56
C33: > 1 kV & < = 11 kV | E33: 3799902.024 | F33: 3100937.663 | G33: 3466881.746 | H33: 4438716.169 | I33: 5717380.197 | J33: 4372092.666 | K33: 9912894.929 | L33: 14648836.25 | M33: 7154441.857 | N33: 11547393.46
C34: ˃ 11 kV & < = 22 kV | E34: 665052.1968 | F34: 880207.8233 | G34: 821159.3735 | H34: 1112487.601 | I34: 2108145.846 | J34: 2565067.103 | K34: 3702562.898 | L34: 4005431.701 | M34: 3075153.322 | N34: 2887675.881
C35: > 22 kV & < = 66 kV | E35: 1769270.767 | F35: 1441816.35 | G35: 1293022.237 | H35: 1538460.783 | I35: 1534810.37 | J35: 1010343.223 | K35: 1726821.994 | L35: 2364021.937 | M35: 2790832.322 | N35: 3799179.692
C36: > 66 kV & < = 132 kV | E36: 0 | F36: 0 | G36: 0 | H36: 0 | I36: 0 | J36: 0 | K36: 0 | L36: 0 | M36: 15429.61436 | N36: 3059.866717
C37: > 132 kV | E37: 0 | F37: 0 | G37: 0 | H37: 0 | I37: 0 | J37: 0 | K37: 0 | L37: 0 | M37: 0 | N37: 0
C38: Other | E38: 0 | F38: 0 | G38: 0 | H38: 0 | I38: 0 | J38: 0 | K38: 0 | L38: 0 | M38: 0 | N38: 0
B39: STAKING WOODEN POLES BY: HIGHEST OPERATING VOLTAGE | C39: ˂ = 1 Kv | D39: for year wooden pole staked | E39: 0 | F39: 0 | G39: 0 | H39: 0 | I39: 0 | J39: 0 | K39: 0 | L39: 0 | M39: 0 | N39: 0
C40: > 1 kV & < = 11 kV | D40: for year wooden pole staked | E40: 0 | F40: 0 | G40: 0 | H40: 0 | I40: 0 | J40: 0 | K40: 0 | L40: 0 | M40: 0 | N40: 0
C41: ˃ 11 kV & < = 22 kV | D41: for year wooden pole staked | E41: 0 | F41: 0 | G41: 0 | H41: 0 | I41: 0 | J41: 0 | K41: 0 | L41: 0 | M41: 0 | N41: 0
C42: > 22 kV & < = 66 kV | D42: for year wooden pole staked | E42: 0 | F42: 0 | G42: 0 | H42: 0 | I42: 0 | J42: 0 | K42: 0 | L42: 0 | M42: 0 | N42: 0
C43: > 66 kV & < = 132 kV | D43: for year wooden pole staked | E43: 0 | F43: 0 | G43: 0 | H43: 0 | I43: 0 | J43: 0 | K43: 0 | L43: 0 | M43: 0 | N43: 0
C44: > 132 kV | D44: for year wooden pole staked | E44: 0 | F44: 0 | G44: 0 | H44: 0 | I44: 0 | J44: 0 | K44: 0 | L44: 0 | M44: 0 | N44: 0
B45: OVERHEAD CONDUCTORS BY: HIGHEST OPERATING VOLTAGE; NUMBER OF PHASES (AT HV) | C45: ˂ = 1 kV | D45: per km | E45: 0 | F45: 71600 | G45: 82500 | H45: 0 | I45: 64000 | J45: 95375.48 | K45: 0 | L45: 0 | M45: 0 | N45: 0
C46: > 1 kV & < = 11 kV | D46: per km | E46: 556300 | F46: 912970 | G46: 995900 | H46: 1836695 | I46: 2597356 | J46: 979294.34 | K46: 699495.07 | L46: 304941 | M46: 80684.41 | N46: 306951.48
C47: ˃ 11 kV & < = 22 kV ; SWER | D47: per km | E47: 47200 | F47: 0 | G47: 317000 | H47: 92000 | I47: 0 | J47: 236336.61 | K47: 24312.26 | L47: 0 | M47: 0 | N47: 52809.68
C48: ˃ 11 kV & < = 22 kV ; Single-Phase | D48: per km | E48: 0 | F48: 0 | G48: 0 | H48: 0 | I48: 0 | J48: 0 | K48: 0 | L48: 0 | M48: 0 | N48: 0
C49: ˃ 11 kV & < = 22 kV ; Multiple-Phase | D49: per km | E49: 0 | F49: 0 | G49: 0 | H49: 0 | I49: 0 | J49: 0 | K49: 0 | L49: 0 | M49: 0 | N49: 0
C50: > 22 kV & < = 66 kV | D50: per km | E50: 0 | F50: 11000 | G50: 265000 | H50: 0 | I50: 0 | J50: 358703.87 | K50: 92910.93 | L50: 0 | M50: 0 | N50: 1404809.2
C51: > 66 kV & < = 132 kV | D51: per km | E51: 0 | F51: 0 | G51: 0 | H51: 0 | I51: 0 | J51: 0 | K51: 0 | L51: 0 | M51: 0 | N51: 0
C52: > 132 kV | D52: per km | E52: 0 | F52: 0 | G52: 0 | H52: 0 | I52: 0 | J52: 0 | K52: 0 | L52: 0 | M52: 0 | N52: 0
C53: Other | D53: per km | E53: 0 | F53: 0 | G53: 0 | H53: 0 | I53: 0 | J53: 0 | K53: 0 | L53: 0 | M53: 0 | N53: 0
B54: UNDERGROUND CABLES BY: HIGHEST OPERATING VOLTAGE | C54: ˂ = 1 kV | D54: per km | E54: 240312 | F54: 92371 | G54: 565876 | H54: 889428 | I54: 285189 | J54: 33103 | K54: 147522.17 | L54: 17662.35 | M54: 52361.79 | N54: 826770.37
C55: > 1 kV & < = 11 kV | D55: per km | E55: 119501 | F55: 127731 | G55: 304780 | H55: 424448 | I55: 403643 | J55: 117455 | K55: 53070.76 | L55: 304343.9 | M55: 0 | N55: 1365318.8
C56: > 11 kV & < = 22 kV | D56: per km | E56: 0 | F56: 0 | G56: 0 | H56: 0 | I56: 0 | J56: 0 | K56: 0 | L56: 0 | M56: 0 | N56: 0
C57: > 22 kV & < = 33 kV | D57: per km | E57: 924.48 | F57: 7694.35 | G57: 0 | H57: 0 | I57: 0 | J57: 0 | K57: 0 | L57: 0 | M57: 0 | N57: 0
C58: > 33 kV & < = 66 kV | D58: per km | E58: 0 | F58: 0 | G58: 0 | H58: 0 | I58: 0 | J58: 0 | K58: 0 | L58: 0 | M58: 0 | N58: 0
C59: > 66 kV & < = 132 kV | D59: per km | E59: 0 | F59: 0 | G59: 0 | H59: 0 | I59: 0 | J59: 0 | K59: 0 | L59: 0 | M59: 0 | N59: 0
C60: > 132 kV | D60: per km | E60: 0 | F60: 0 | G60: 0 | H60: 0 | I60: 0 | J60: 0 | K60: 0 | L60: 0 | M60: 0 | N60: 0
C61: Other | D61: per km | J61: 0 | K61: 0 | L61: 0 | M61: 0 | N61: 0
B62: SERVICE LINES BY: CONNECTION VOLTAGE; CUSTOMER TYPE; CONNECTION COMPLEXITY | C62: ˂ = 11 kV ; Residential ; Simple Type | D62: per number of spans | E62: 2165698.252 | F62: 2567265.893 | G62: 2739799.689 | H62: 2882046.591 | I62: 3788825.767 | J62: 4060537.957 | K62: 4569986.827 | L62: 5981657.934 | M62: 5484412.191 | N62: 7900886.851
C63: ˂ = 11 kV ; Commercial & Industrial ; Simple Type | D63: per number of spans | E63: 0 | F63: 0 | G63: 0 | H63: 0 | I63: 0 | J63: 0 | K63: 0 | L63: 0 | M63: 0 | N63: 0
C64: ˂ = 11 kV ; Residential ; Complex Type | D64: per number of spans | E64: 0 | F64: 0 | G64: 0 | H64: 0 | I64: 0 | J64: 0 | K64: 0 | L64: 0 | M64: 0 | N64: 0
C65: ˂ = 11 kV ; Commercial & Industrial ; Complex Type | D65: per number of spans | E65: 267670.5705 | F65: 317302.5261 | G65: 338626.9279 | H65: 356208.0056 | I65: 468281.8364 | J65: 502109.5323 | K65: 564829.8326 | L65: 739306.0368 | M65: 677848.6978 | N65: 876414.002
C66: ˂ = 11 kV ; Subdivision ; Complex Type | D66: per number of spans | E66: 0 | F66: 0 | G66: 0 | H66: 0 | I66: 0 | J66: 0 | K66: 0 | L66: 0 | M66: 0 | N66: 0
C67: > 11 kV & < = 22 kV ; Commercial & Industrial | D67: per number of spans | E67: 0 | F67: 0 | G67: 0 | H67: 0 | I67: 0 | J67: 0 | K67: 0 | L67: 0 | M67: 0 | N67: 0
C68: > 11 kV & < = 22 kV ; Subdivision | D68: per number of spans | E68: 0 | F68: 0 | G68: 0 | H68: 0 | I68: 0 | J68: 0 | K68: 0 | L68: 0 | M68: 0 | N68: 0
C69: > 22 kV & < = 33 kV ; Commercial & Industrial | D69: per number of spans | E69: 0 | F69: 0 | G69: 0 | H69: 0 | I69: 0 | J69: 0 | K69: 0 | L69: 0 | M69: 0 | N69: 0
C70: > 22 kV & < = 33 kV ; Subdivision | D70: per number of spans | E70: 0 | F70: 0 | G70: 0 | H70: 0 | I70: 0 | J70: 0 | K70: 0 | L70: 0 | M70: 0 | N70: 0
C71: > 33 kV & < = 66 kV ; Commercial & Industrial | D71: per number of spans | E71: 0 | F71: 0 | G71: 0 | H71: 0 | I71: 0 | J71: 0 | K71: 0 | L71: 0 | M71: 0 | N71: 0
C72: > 33 kV & < = 66 kV ; Subdivision | D72: per number of spans | E72: 0 | F72: 0 | G72: 0 | H72: 0 | I72: 0 | J72: 0 | K72: 0 | L72: 0 | M72: 0 | N72: 0
C73: > 66 kV & < = 132 kV ; Commercial & Industrial | D73: per number of spans | E73: 0 | F73: 0 | G73: 0 | H73: 0 | I73: 0 | J73: 0 | K73: 0 | L73: 0 | M73: 0 | N73: 0
C74: > 66 kV & < = 132 kV ; Subdivision | D74: per number of spans | E74: 0 | F74: 0 | G74: 0 | H74: 0 | I74: 0 | J74: 0 | K74: 0 | L74: 0 | M74: 0 | N74: 0
C75: > 132 kV ; Commercial & Industrial | D75: per number of spans | E75: 0 | F75: 0 | G75: 0 | H75: 0 | I75: 0 | J75: 0 | K75: 0 | L75: 0 | M75: 0 | N75: 0
C76: > 132 kV ; Subdivision | D76: per number of spans | E76: 0 | F76: 0 | G76: 0 | H76: 0 | I76: 0 | J76: 0 | K76: 0 | L76: 0 | M76: 0 | N76: 0
C77: Other | D77: per number of spans | E77: 0 | F77: 0 | G77: 0 | H77: 0 | I77: 0 | J77: 0 | K77: 0 | L77: 0 | M77: 0 | N77: 0
B78: TRANSFORMERS BY: MOUNTING TYPE; HIGHEST OPERATING VOLTAGE ; AMPERE RATING; NUMBER OF PHASES (AT LV) | C78: Pole Mounted ; < = 22kV ; < = 60 kVA ; Single Phase | E78: 1538443.761 | F78: 1981347.286 | G78: 1758696.766 | H78: 1510948.829 | I78: 2244938.181 | J78: 2275151.547 | K78: 2534828.054 | L78: 2728767.656 | M78: 2688973.833 | N78: 4876827.591
C79: Pole Mounted ; < = 22kV ; > 60 kVA and < = 600 kVA ; Single Phase | E79: 114429.7012 | F79: 157249.7846 | G79: 149966.3909 | H79: 137358.9844 | I79: 171224.0985 | J79: 57844.19819 | K79: 204421.6172 | L79: 505820.346 | M79: 237043.4515 | N79: 488969.0419
C80: Pole Mounted ; < = 22kV ; > 600 kVA ; Single Phase | E80: 0 | F80: 0 | G80: 0 | H80: 0 | I80: 0 | J80: 0 | K80: 0 | L80: 0 | M80: 0
C81: Pole Mounted ; < = 22kV ; < = 60 kVA ; Multiple Phase | E81: 317860.2812 | F81: 345949.5261 | G81: 340832.7065 | H81: 259455.8594 | I81: 418547.7964 | J81: 578429.6168 | K81: 545124.3126 | L81: 226288.0495 | M81: 906828.4798 | N81: 1115956.28
C82: Pole Mounted ; < = 22kV ; > 60 kVA and < = 600 kVA ; Multiple Phase | E82: 495862.0387 | F82: 770523.9445 | G82: 327199.3982 | H82: 549435.9376 | I82: 684896.3941 | J82: 829083.6872 | K82: 858570.7923 | L82: 252910.173 | M82: 628777.7202 | N82: 4193057.071
C83: Pole Mounted ; < = 22kV ; > 600 kVA ; Multiple Phase | E83: 0 | F83: 0 | G83: 0 | H83: 0 | I83: 0 | J83: 0 | K83: 40884.32345 | L83: 0 | M83: 0 | N83: 0
C84: Kiosk Mounted ; < = 22kV ; < = 60 kVA ; Single Phase | E84: 0 | F84: 0 | G84: 0 | H84: 0 | I84: 35968.45183 | J84: 0 | K84: 0 | L84: 0 | M84: 0 | N84: 10670.94913
C85: Kiosk Mounted ; < = 22kV ; > 60 kVA and < = 600 kVA ; Single Phase | E85: 33589.22208 | F85: 65687.74084 | G85: 0 | H85: 27667.87176 | I85: 0 | J85: 0 | K85: 0 | L85: 671363.9262 | M85: 0 | N85: 0
C86: Kiosk Mounted ; < = 22kV ; > 600 kVA ; Single Phase | E86: 0 | F86: 0 | G86: 0 | H86: 0 | I86: 0 | J86: 0 | K86: 0 | L86: 261085.9713 | M86: 0 | N86: 0
C87: Kiosk Mounted ; < = 22kV ; < = 60 kVA ; Multiple Phase | E87: 18575.18868 | F87: 16658.5479 | G87: 0 | H87: 0 | I87: 0 | J87: 0 | K87: 0 | L87: 0 | M87: 19959.367 | N87: 155134.087
C88: Kiosk Mounted ; < = 22kV ; > 60 kVA and < = 600 kVA ; Multiple Phase | E88: 302302.9987 | F88: 525501.9267 | G88: 351591.5682 | H88: 332014.4611 | I88: 197960.598 | J88: 417942.2614 | K88: 530085.0709 | L88: 0 | M88: 653853.1732 | N88: 1502546.026
C89: Kiosk Mounted ; < = 22kV ; > 600 kVA ; Multiple Phase | E89: 16794.61104 | F89: 32843.87042 | G89: 0 | H89: 0 | I89: 0 | J89: 0 | K89: 0 | L89: 0 | M89: 200751.97 | N89: 833787.7447
C90: Ground Outdoor / Indoor Chamber Mounted; ˂ 22 kV ; < = 60 kVA ; Single Phase | E90: 0 | F90: 0 | G90: 0 | H90: 0 | I90: 0 | J90: 0 | K90: 0 | L90: 0 | M90: 0 | N90: 0
C91: Ground Outdoor / Indoor Chamber Mounted; ˂ 22 kV ; > 60 kVA and < = 600 kVA ; Single Phase | E91: 0 | F91: 0 | G91: 0 | H91: 0 | I91: 0 | J91: 0 | K91: 0 | L91: 0 | M91: 0 | N91: 0
C92: Ground Outdoor / Indoor Chamber Mounted; ˂ 22 kV ; > 600 kVA ; Single Phase | E92: 0 | F92: 0 | G92: 0 | H92: 0 | I92: 0 | J92: 0 | K92: 0 | L92: 0 | M92: 0 | N92: 0
C93: Ground Outdoor / Indoor Chamber Mounted; ˂ 22 kV ; < = 60 kVA ; Multiple Phase | E93: 0 | F93: 0 | G93: 29299.29735 | H93: 0 | I93: 0 | J93: 0 | K93: 0 | L93: 0 | M93: 0 | N93: 0
C94: Ground Outdoor / Indoor Chamber Mounted; ˂ 22 kV ; > 60 kVA and < = 600 kVA ; Multiple Phase | E94: 283174.0515 | F94: 61096.88719 | G94: 227999.6831 | H94: 32850.02006 | I94: 131973.732 | J94: 0 | K94: 0 | L94: 0 | M94: 0 | N94: 0
C95: Ground Outdoor / Indoor Chamber Mounted; ˂ 22 kV ; > 600 kVA ; Multiple Phase | E95: 0 | F95: 47.43121006 | G95: 83394.12062 | H95: 127955.9849 | I95: 4017.493411 | J95: 0 | K95: 117829.8693 | L95: 0 | M95: 0 | N95: 0
C96: Ground Outdoor / Indoor Chamber Mounted; > = 22 kV & < = 33 kV ; < = 15 MVA | E96: 173919.6298 | F96: 1032812.121 | G96: 1280456.446 | H96: 642733.7815 | I96: 3008206.564 | J96: 711837.2812 | K96: 376757.0422 | L96: 1250168.821 | M96: 790818.9451 | N96: 348396.2959
C97: Ground Outdoor / Indoor Chamber Mounted; > = 22 kV & < = 33 kV ; > 15 MVA and < = 40 MVA | E97: 0 | F97: 0 | G97: 0 | H97: 0 | I97: 0 | J97: 0 | K97: 0 | L97: 0 | M97: 0 | N97: 0
C98: Ground Outdoor / Indoor Chamber Mounted; > = 22 kV & < = 33 kV ; > 40 MVA | E98: 0 | F98: 0 | G98: 0 | H98: 0 | I98: 0 | J98: 0 | K98: 0 | L98: 0 | M98: 0 | N98: 0
C99: Ground Outdoor / Indoor Chamber Mounted; > 33 kV & < = 66 kV ; < = 15 MVA | E99: 593891.2135 | F99: 1325161.573 | G99: 2953898.789 | H99: 198452.2923 | I99: 55300.16241 | J99: 758354.9968 | K99: 0 | L99: 2686.469735 | M99: 0 | N99: 228599.2617
C100: Ground Outdoor / Indoor Chamber Mounted; > 33 kV & < = 66 kV ; > 15 MVA and < = 40 MVA | E100: 380767.9259 | F100: 43186.23935 | G100: 3756260.004 | H100: 714709.6978 | I100: 1276724.534 | J100: 1100498.854 | K100: 0 | L100: 0 | M100: 0 | N100: 267931.7174
C101: Ground Outdoor / Indoor Chamber Mounted; > 33 kV & < = 66 kV ; > 40 MVA | E101: 0 | F101: 0 | G101: 0 | H101: 0 | I101: 0 | J101: 0 | K101: 0 | L101: 0 | M101: 0 | N101: 0
C102: Ground Outdoor / Indoor Chamber Mounted; > 66 kV & < = 132 kV ; < = 100 MVA | E102: 0 | F102: 0 | G102: 0 | H102: 0 | I102: 0 | J102: 0 | K102: 0 | L102: 0 | M102: 0 | N102: 0
C103: Ground Outdoor / Indoor Chamber Mounted; > 66 kV & < = 132 kV ; > 100 MVA | E103: 0 | F103: 0 | G103: 0 | H103: 0 | I103: 0 | J103: 0 | K103: 0 | L103: 0 | M103: 0 | N103: 0
C104: Ground Outdoor / Indoor Chamber Mounted; > 132 kV ; < = 100 MVA | E104: 0 | F104: 0 | G104: 0 | H104: 0 | I104: 0 | J104: 0 | K104: 0 | L104: 0 | M104: 0 | N104: 0
C105: Ground Outdoor / Indoor Chamber Mounted; > 132 kV ; > 100 MVA | E105: 0 | F105: 0 | G105: 0 | H105: 0 | I105: 0 | J105: 0 | K105: 0 | L105: 0 | M105: 0 | N105: 0
C106: Other | E106: 0 | F106: 0 | G106: 0 | H106: 0 | I106: 0 | J106: 0 | K106: 0 | L106: 0 | M106: 0 | N106: 0
B107: SWITCHGEAR BY: HIGHEST OPERATING VOLTAGE ; SWITCH FUNCTION | C107: ˂ = 11 kV ; FUSE | E107: 0 | F107: 0 | G107: 0 | H107: 0 | I107: 0 | J107: 0 | K107: 0 | L107: 0 | M107: 0 | N107: 0
C108: ˂ = 11 kV ; Switch | E108: 583471.0997 | F108: 618455.4858 | G108: 978129.9715 | H108: 2611655.857 | I108: 2532737.519 | J108: 231823.1065 | K108: 0 | L108: 162190.6653 | M108: 193263.6618 | N108: 100474.1207
C109: ˂ = 11 kV ; Circuit Breaker | E109: 139158.0463 | F109: 280104.6563 | G109: 2050461.124 | H109: 9691397.15 | I109: 4691579.447 | J109: 181353.6039 | K109: 0 | L109: 1595380.57 | M109: 5975486.381 | N109: 12220623.73
C110: > 11 kV & < = 22 kV ; Switch | E110: 0 | F110: 0 | G110: 0 | H110: 0 | I110: 0 | J110: 0 | K110: 0 | L110: 0 | M110: 0 | N110: 0
C111: > 11 kV & < = 22 kV ; Circuit Breaker | E111: 0 | F111: 0 | G111: 0 | H111: 0 | I111: 0 | J111: 0 | K111: 0 | L111: 0 | M111: 0 | N111: 0
C112: > 22 kV & < = 33 kV ; Switch | E112: 366458.0845 | F112: 389146.3179 | G112: 557547.848 | H112: 668746.9394 | I112: 768508.3107 | J112: 686318.4336 | K112: 790597.7051 | L112: 213828.2894 | M112: 0 | N112: 68853.11798
C113: > 22 kV & < = 33 kV ; Circuit Breaker | E113: 381378.054 | F113: 597379.5025 | G113: 998963.6227 | H113: 941093.1747 | I113: 1058596.047 | J113: 1560623.721 | K113: 1529891.343 | L113: 453676.0274 | M113: 289728.3508 | N113: 3039771.021
C114: > 33 kV & < = 66 kV ; Switch | E114: 302006.7216 | F114: 421711.6527 | G114: 682734.5577 | H114: 596903.8434 | I114: 293441.9153 | J114: 1333000.065 | K114: 133345.9748 | L114: 320855.3532 | M114: 337169.1859 | N114: 92066.19874
C115: > 33 kV & < = 66 kV ; Circuit Breaker | E115: 976930.6945 | F115: 1896179.402 | G115: 1585049.684 | H115: 3650937.39 | I115: 2537692.183 | J115: 5333507.125 | K115: 761055.5745 | L115: 1263687.86 | M115: 115984.6686 | N115: 1028902.229
C116: > 66 kV & < = 132 kV ; Switch | E116: 0 | F116: 0 | G116: 0 | H116: 0 | I116: 0 | J116: 0 | K116: 0 | L116: 0 | M116: 0 | N116: 0
C117: > 66 kV & < = 132 kV ; Circuit Breaker | E117: 0 | F117: 0 | G117: 0 | H117: 0 | I117: 0 | J117: 0 | K117: 0 | L117: 0 | M117: 0 | N117: 0
C118: > 132 kV ; Switch | E118: 0 | F118: 0 | G118: 0 | H118: 0 | I118: 0 | J118: 0 | K118: 0 | L118: 0 | M118: 0 | N118: 0
C119: > 132 kV ; Circuit Breaker | E119: 0 | F119: 0 | G119: 0 | H119: 0 | I119: 0 | J119: 0 | K119: 0 | L119: 0 | M119: 0 | N119: 0
C120: Other | E120: 0 | F120: 0 | G120: 0 | H120: 0 | I120: 0 | J120: 0 | K120: 0 | L120: 0 | M120: 0 | N120: 0
B121: PUBLIC LIGHTING BY: ASSET TYPE ; LIGHTING OBLIGATION | C121: Luminaires ; Major Road | E121: 0 | F121: 0 | G121: 0 | H121: 0 | I121: 0 | J121: 0 | K121: 0 | L121: 0 | M121: 0 | N121: 0
C122: Luminaires ; Minor Road | E122: 0 | F122: 0 | G122: 0 | H122: 0 | I122: 0 | J122: 0 | K122: 0 | L122: 0 | M122: 0 | N122: 0
C123: Brackets ; Major Road | E123: 0 | F123: 0 | G123: 0 | H123: 0 | I123: 0 | J123: 0 | K123: 0 | L123: 0 | M123: 0 | N123: 0
C124: Brackets ; Minor Road | E124: 0 | F124: 0 | G124: 0 | H124: 0 | I124: 0 | J124: 0 | K124: 0 | L124: 0 | M124: 0 | N124: 0
C125: Lamps ; Major Road | E125: 0 | F125: 0 | G125: 0 | H125: 0 | I125: 0 | J125: 0 | K125: 0 | L125: 0 | M125: 0 | N125: 0
C126: Lamps ; Minor Road | E126: 0 | F126: 0 | G126: 0 | H126: 0 | I126: 0 | J126: 0 | K126: 0 | L126: 0 | M126: 0 | N126: 0
C127: Poles / Columns ; Major Road | E127: 0 | F127: 0 | G127: 0 | H127: 0 | I127: 0 | J127: 0 | K127: 0 | L127: 0 | M127: 0 | N127: 0
C128: Poles / Columns ; Minor Road | E128: 0 | F128: 0 | G128: 0 | H128: 0 | I128: 0 | J128: 0 | K128: 0 | L128: 0 | M128: 0 | N128: 0
C129: Other | E129: 0 | F129: 0 | G129: 0 | H129: 0 | I129: 0 | J129: 0 | K129: 0 | L129: 0 | M129: 0 | N129: 0
B130: SCADA, NETWORK CONTROL AND PROTECTION SYSTEMS BY: FUNCTION | C130: Field Devices | E130: 212401.2941 | F130: 887603.5621 | G130: 1519974.355 | H130: 3032438.893 | I130: 2425434.624 | J130: 2068001.225 | K130: 1671716.557 | L130: 987588.4675 | M130: 3472721.51 | N130: 5794116.954
C131: Local Network Wiring Assets | E131: 0 | F131: 0 | G131: 0 | H131: 0 | I131: 0 | J131: 0 | K131: 0 | L131: 0 | M131: 0 | N131: 0
C132: Communications Network Assets | E132: 636432.4276 | F132: 1430030.448 | G132: 2275416.151 | H132: 3486710.283 | I132: 1339438.079 | J132: 2113878.96 | K132: 1809293.966 | L132: 903265.1925 | M132: 3425504.876 | N132: 4355466.246
C133: Master Station Assets | E133: 0 | F133: 0 | G133: 0 | H133: 0 | I133: 0 | J133: 0 | K133: 0 | L133: 0 | M133: 0 | N133: 0
C134: Communications Site Infrastructure | E134: 0 | F134: 0 | G134: 0 | H134: 0 | I134: 0 | J134: 0 | K134: 635145.4789 | L134: 7143.270706 | M134: 7187.537912 | N134: 0
C135: Communications Linear Assets | E135: 0 | F135: 0 | G135: 0 | H135: 0 | I135: 0 | J135: 0 | K135: 1952444.546 | L135: 535704.4693 | M135: 263269.0599 | N135: 659791.7217
C136: AFLC | E136: 0 | F136: 0 | G136: 0 | H136: 0 | I136: 0 | J136: 0 | K136: 0 | L136: 0 | M136: 0 | N136: 0
C137: Other | E137: 0 | F137: 368148.8307 | G137: 486181.7712 | H137: 873038.1805 | I137: 797444.4719 | J137: 394363.4404 | K137: 1340367.357 | L137: 0 | M137: 0 | N137: 0
B138: OTHER BY: DNSP DEFINED | C138: ˂ ≈ 11 kV ; STOBIE Pole | E138: 3258495.297 | F138: 2804297.823 | G138: 3735258.166 | H138: 7160128.542 | I138: 17733919.51 | J138: 14091854.38 | K138: 16859774.61 | L138: 14366882.18 | M138: 15547326.1 | N138: 15033292
C139: > 11 kV & <≈ 33 kV ; STOBIE Pole | E139: 590847.6691 | F139: 733113.6842 | G139: 884898.6939 | H139: 966459.9269 | I139: 1382149.65 | J139: 1209906.689 | K139: 2139057.313 | L139: 1792843.093 | M139: 2376845.088 | N139: 3173474.076
C140: > 33 kV & <≈ 66 kV ; STOBIE Pole | E140: 47070.11043 | F140: 64835.56427 | G140: 99207.52695 | H140: 5097.163434 | I140: 216750.8299 | J140: 154009.3375 | K140: 45912.26006 | L140: 145260.6381 | M140: 1449265.585 | N140: 841103.0939
C141: Pole REFURBISHED; STOBIE Pole | E141: 673661.1331 | F141: 454689.9795 | G141: 229423.4685 | H141: 1274345.851 | I141: 2742413.815 | J141: 2247136.242 | K141: 3937261.568 | L141: 2606543.398 | M141: 4965358.146 | N141: 9470902.986
C142: POLE MOUNTED ; > 22 kV ; < ≈ 60 kVA | E142: 25428.8225 | F142: 47174.93538 | G142: 109066.4661 | H142: 45786.32814 | I142: 57074.69951 | J142: 70885.24788 | K142: 80500.01797 | L142: 39933.18521 | M142: 94108.19749 | N142: 29760.52559
C143: POLE MOUNTED ; > 22 kV ; > 60 kVA and < ≈ 600 kVA | E143: 12714.41125 | F143: 0 | G143: 13633.30826 | H143: 15262.10938 | I143: 114149.399 | J143: 17721.31197 | K143: 80500.01797 | L143: 53244.24694 | M143: 205045.9944 | N143: 517288.5515
C144: KIOSK MOUNTED TRANSFORMER; > 22 kV ; > 60 kVA and < ≈ 600 kVA | E144: 0 | F144: 0 | G144: 0 | H144: 0 | I144: 0 | J144: 0 | K144: 0 | L144: 0 | M144: 12700 | N144: 0
C145: OTHER - Non Category Substation asset replacement/refurbishment | E145: 3255392.987 | F145: 2923161.369 | G145: 6887170 | H145: 6276110.021 | I145: 7617819.749 | J145: 7344825.998 | K145: 7883758.403 | L145: 5682097.878 | M145: 5349667.874 | N145: 8370326.781
C146: Recloser ;SWITCHGEAR | E146: 795503.911 | F146: 1110916.149 | G146: 1071289.269 | H146: 987489.2551 | I146: 1662360.728 | J146: 1194455.262 | K146: 3268340.872 | L146: 1865934.566 | M146: 1304554.086 | N146: 5085627.765
C147: Sectionalizer ;SWITCHGEAR | E147: 91497.1208 | F147: 144699.7155 | G147: 93506.76081 | H147: 129489.0608 | I147: 90389.87073 | J147: 79554.58451 | K147: 29350.39109 | L147: 31183.79552 | M147: 78491.92687 | N147: 0
C148: >= 11 kV & < ≈ 22 kV ; LOAD BREAK SWITCH; GROUND LEVEL (Switching Cubical);SWITCHGEAR | E148: 0 | F148: 0 | G148: 0 | H148: 0 | I148: 0 | J148: 502284.9167 | K148: 3367933.096 | L148: 2159010.482 | M148: 3073540.83 | N148: 3791049.598
C149: > 22 kV & < ≈ 33 kV ; LOAD BREAK SWITCH; GROUND LEVEL (Switching Cubical);SWITCHGEAR | E149: 0 | F149: 0 | G149: 0 | H149: 0 | I149: 0 | J149: 0 | K149: 0 | L149: 0 | M149: 0 | N149: 0
C150: ˂ = 11 kV ; Circuit Breaker REFURBISHED | E150: 0 | F150: 0 | G150: 0 | H150: 0 | I150: 0 | J150: 0 | K150: 0 | L150: 708433.4094 | M150: 1010842.456 | N150: 1305674.171
C151: > 22 kV & < = 33 kV ; Circuit Breaker REFURBISHED | E151: 0 | F151: 0 | G151: 0 | H151: 0 | I151: 0 | J151: 0 | K151: 0 | L151: 472420.8557 | M151: 125839.9904 | N151: 48472.80717
C152: > 33 kV & < = 66 kV ; Circuit Breaker REFURBISHED | E152: 0 | F152: 0 | G152: 0 | H152: 0 | I152: 0 | J152: 0 | K152: 0 | L152: 39795.28756 | M152: 10052.86483 | N152: 8919.679037
C153: Ground Outdoor / Indoor Chamber Mounted; > 33 kV & < = 66 kV ; > 15 MVA and < = 40 MVA REFURBISHED | E153: 0 | F153: 0 | G153: 0 | H153: 0 | I153: 0 | J153: 0 | K153: 0 | L153: 0 | M153: 265158.5532 | N153: 433087.7029
C154: Ground Outdoor / Indoor Chamber Mounted; > = 22 kV & < = 33 kV ; < = 15 MVA REFURBISHED | E154: 0 | F154: 0 | G154: 0 | H154: 0 | I154: 0 | J154: 0 | K154: 0 | L154: 76470.39459 | M154: 96030.17875 | N154: 311962
C155: Ground Outdoor / Indoor Chamber Mounted; > 33 kV & < = 66 kV ; < = 15 MVA REFURBISHED | E155: 0 | F155: 0 | G155: 0 | H155: 0 | I155: 0 | J155: 0 | K155: 0 | L155: 64894.43785 | M155: 25883.79522 | N155: 39186.99539
C156: Ground Outdoor / Indoor Chamber Mounted; ˂ 22 kV ; > 600 kVA ; Multiple Phase ; REFURBISHED | E156: 0 | F156: 0 | G156: 0 | H156: 0 | I156: 0 | J156: 0 | K156: 0 | L156: 342504.4433 | M156: 12440.14679 | N156: 1947
C157: Pipework Bus Substation Replacements | E157: 0 | F157: 0 | G157: 0 | H157: 0 | I157: 0 | J157: 0 | K157: 0 | L157: 1142979 | M157: 972805 | N157: 2433160
B162: ASSET REPLACEMENTS
E163: VOLUMES (0's)
B164: ASSET GROUP | C164: ASSET CATEGORY | E164: =IF(dms_RPT="financial",dms_CRYf_y1,dms_CRYc_y1) -> 2008-09 | F164: =IF(dms_RPT="financial",dms_CRYf_y2,dms_CRYc_y2) -> 2009-10 | G164: =IF(dms_RPT="financial",dms_CRYf_y3,dms_CRYc_y3) -> 2010-11 | H164: =IF(dms_RPT="financial",dms_CRYf_y4,dms_CRYc_y4) -> 2011-12 | I164: =IF(dms_RPT="financial",dms_CRYf_y5,dms_CRYc_y5) -> 2012-13 | J164: =IF(dms_RPT="financial",dms_CRYf_y6,dms_CRYc_y6) -> 2013-14 | K164: =IF(dms_RPT="financial",dms_CRYf_y7,dms_CRYc_y7) -> 2014-15 | L164: =IF(dms_RPT="financial",dms_CRYf_y8,dms_CRYc_y8) -> 2015-16 | M164: =IF(dms_RPT="financial",dms_CRYf_y9,dms_CRYc_y9) -> 2016-17 | N164: =IF(dms_RPT="financial",dms_CRYf_y10,dms_CRYc_y10) -> 2017-18
B165: POLES BY: HIGHEST OPERATING VOLTAGE ; MATERIAL TYPE | C165: Staking of a wooden pole | E165: 0 | F165: 0 | G165: 0 | H165: 0 | I165: 0 | J165: 0 | K165: 0 | L165: 0 | M165: 0 | N165: 0
C166: ˂ = 1 kV; Wood | E166: 0 | F166: 0 | G166: 0 | H166: 0 | I166: 0 | J166: 0 | K166: 0 | L166: 0 | M166: 0 | N166: 0
C167: > 1 kV & < = 11 kV; Wood | E167: 0 | F167: 0 | G167: 0 | H167: 0 | I167: 0 | J167: 0 | K167: 0 | L167: 0 | M167: 0 | N167: 0
C168: ˃ 11 kV & < = 22 kV; Wood | E168: 0 | F168: 0 | G168: 0 | H168: 0 | I168: 0 | J168: 0 | K168: 0 | L168: 0 | M168: 0 | N168: 0
C169: > 22 kV & < = 66 kV; Wood | E169: 0 | F169: 0 | G169: 0 | H169: 0 | I169: 0 | J169: 0 | K169: 0 | L169: 0 | M169: 0 | N169: 0
C170: > 66 kV & < = 132 kV; Wood | E170: 0 | F170: 0 | G170: 0 | H170: 0 | I170: 0 | J170: 0 | K170: 0 | L170: 0 | M170: 0 | N170: 0
C171: > 132 kV; Wood | E171: 0 | F171: 0 | G171: 0 | H171: 0 | I171: 0 | J171: 0 | K171: 0 | L171: 0 | M171: 0 | N171: 0
C172: ˂ = 1 kV; Concrete | E172: 0 | F172: 0 | G172: 0 | H172: 0 | I172: 0 | J172: 0 | K172: 0 | L172: 0 | M172: 0 | N172: 0
C173: > 1 kV & < = 11 kV; Concrete | E173: 0 | F173: 0 | G173: 0 | H173: 0 | I173: 0 | J173: 0 | K173: 0 | L173: 0 | M173: 0 | N173: 0
C174: ˃ 11 kV & < = 22 kV; Concrete | E174: 0 | F174: 0 | G174: 0 | H174: 0 | I174: 0 | J174: 0 | K174: 0 | L174: 0 | M174: 0 | N174: 0
C175: > 22 kV & < = 66 kV; Concrete | E175: 0 | F175: 0 | G175: 0 | H175: 0 | I175: 0 | J175: 0 | K175: 0 | L175: 0 | M175: 0 | N175: 0
C176: > 66 kV & < = 132 kV; Concrete | E176: 0 | F176: 0 | G176: 0 | H176: 0 | I176: 0 | J176: 0 | K176: 0 | L176: 0 | M176: 0 | N176: 0
C177: > 132 kV; Concrete | E177: 0 | F177: 0 | G177: 0 | H177: 0 | I177: 0 | J177: 0 | K177: 0 | L177: 0 | M177: 0 | N177: 0
C178: ˂ = 1 kV; Steel | E178: 0 | F178: 0 | G178: 0 | H178: 0 | I178: 0 | J178: 0 | K178: 0 | L178: 0 | M178: 0 | N178: 0
C179: > 1 kV & < = 11 kV; Steel | E179: 0 | F179: 0 | G179: 0 | H179: 0 | I179: 0 | J179: 0 | K179: 0 | L179: 0 | M179: 0 | N179: 0
C180: ˃ 11 kV & < = 22 kV; Steel | E180: 0 | F180: 0 | G180: 0 | H180: 0 | I180: 0 | J180: 0 | K180: 0 | L180: 0 | M180: 0 | N180: 0
C181: > 22 kV & < = 66 kV; Steel | E181: 0 | F181: 0 | G181: 0 | H181: 0 | I181: 0 | J181: 0 | K181: 0 | L181: 0 | M181: 0 | N181: 0
C182: > 66 kV & < = 132 kV; Steel | E182: 0 | F182: 0 | G182: 0 | H182: 0 | I182: 0 | J182: 0 | K182: 0 | L182: 0 | M182: 0 | N182: 0
C183: > 132 kV; Steel | E183: 0 | F183: 0 | G183: 0 | H183: 0 | I183: 0 | J183: 0 | K183: 0 | L183: 0 | M183: 0 | N183: 0
C184: Other | E184: 0 | F184: 0 | G184: 0 | H184: 0 | I184: 0 | J184: 0 | K184: 0 | L184: 0 | M184: 0 | N184: 0
B185: POLE TOP STRUCTURES BY: HIGHEST OPERATING VOLTAGE | C185: ˂ = 1 kV | E185: 2469 | F185: 3081 | G185: 3040 | H185: 3247 | I185: 2665 | J185: 3295 | K185: 3117 | L185: 3069 | M185: 7860 | N185: 7510
C186: > 1 kV & < = 11 kV | E186: 1789 | F186: 1472 | G186: 1786 | H186: 2637 | I186: 3110 | J186: 2805 | K186: 5282 | L186: 9453 | M186: 3087 | N186: 6216
C187: ˃ 11 kV & < = 22 kV | E187: 460 | F187: 486 | G187: 555 | H187: 727 | I187: 1303 | J187: 1476 | K187: 1607 | L187: 1540 | M187: 1275 | N187: 1320
C188: > 22 kV & < = 66 kV | E188: 477 | F188: 536 | G188: 364 | H188: 393 | I188: 304 | J188: 219 | K188: 410 | L188: 504 | M188: 485 | N188: 806
C189: > 66 kV & < = 132 kV | E189: 0 | F189: 0 | G189: 0 | H189: 0 | I189: 0 | J189: 0 | K189: 0 | L189: 0 | M189: 4 | N189: 1
C190: > 132 kV | E190: 0 | F190: 0 | G190: 0 | H190: 0 | I190: 0 | J190: 0 | K190: 0 | L190: 0 | M190: 0 | N190: 0
C191: Other | E191: 0 | F191: 0 | G191: 0 | H191: 0 | I191: 0 | J191: 0 | K191: 0 | L191: 0 | M191: 0 | N191: 0
B192: STAKING WOODEN POLES BY: HIGHEST OPERATING VOLTAGE | C192: ˂ = 1 Kv | E192: 0 | F192: 0 | G192: 0 | H192: 0 | I192: 0 | J192: 0 | K192: 0 | L192: 0 | M192: 0 | N192: 0
C193: > 1 kV & < = 11 kV | E193: 0 | F193: 0 | G193: 0 | H193: 0 | I193: 0 | J193: 0 | K193: 0 | L193: 0 | M193: 0 | N193: 0
C194: ˃ 11 kV & < = 22 kV | E194: 0 | F194: 0 | G194: 0 | H194: 0 | I194: 0 | J194: 0 | K194: 0 | L194: 0 | M194: 0 | N194: 0
C195: > 22 kV & < = 66 kV | E195: 0 | F195: 0 | G195: 0 | H195: 0 | I195: 0 | J195: 0 | K195: 0 | L195: 0 | M195: 0 | N195: 0
C196: > 66 kV & < = 132 kV | E196: 0 | F196: 0 | G196: 0 | H196: 0 | I196: 0 | J196: 0 | K196: 0 | L196: 0 | M196: 0 | N196: 0
C197: > 132 kV | E197: 0 | F197: 0 | G197: 0 | H197: 0 | I197: 0 | J197: 0 | K197: 0 | L197: 0 | M197: 0 | N197: 0
B198: OVERHEAD CONDUCTORS BY: HIGHEST OPERATING VOLTAGE; NUMBER OF PHASES (AT HV) | C198: ˂ = 1 kV | E198: 0 | F198: 4.8 | G198: 2.64 | H198: 0 | I198: 0.48 | J198: 4.35 | K198: 0 | L198: 0 | M198: 0 | N198: 0
C199: > 1 kV & < = 11 kV | E199: 28.2 | F199: 78.55 | G199: 68.3 | H199: 89.203 | I199: 120.51 | J199: 54.44 | K199: 64.825 | L199: 8.46 | M199: 7.5 | N199: 25.9
C200: ˃ 11 kV & < = 22 kV ; SWER | E200: 7.2 | F200: 0 | G200: 28 | H200: 5.8 | I200: 0 | J200: 12.4 | K200: 26 | L200: 0 | M200: 0 | N200: 5.8
C201: ˃ 11 kV & < = 22 kV ; Single-Phase | E201: 0 | F201: 0 | G201: 0 | H201: 0 | I201: 0 | J201: 0 | K201: 0 | L201: 0 | M201: 0 | N201: 0
C202: ˃ 11 kV & < = 22 kV ; Multiple-Phase | E202: 0 | F202: 0 | G202: 0 | H202: 0 | I202: 0 | J202: 0 | K202: 0 | L202: 0 | M202: 0 | N202: 0
C203: > 22 kV & < = 66 kV | E203: 0 | F203: 0.5 | G203: 20.1 | H203: 0 | I203: 0 | J203: 14.85 | K203: 12 | L203: 0 | M203: 0 | N203: 9.9
C204: > 66 kV & < = 132 kV | E204: 0 | F204: 0 | G204: 0 | H204: 0 | I204: 0 | J204: 0 | K204: 0 | L204: 0 | M204: 0 | N204: 0
C205: > 132 kV | E205: 0 | F205: 0 | G205: 0 | H205: 0 | I205: 0 | J205: 0 | K205: 0 | L205: 0 | M205: 0 | N205: 0
C206: Other | E206: 0 | F206: 0 | G206: 0 | H206: 0 | I206: 0 | J206: 0 | K206: 0 | L206: 0 | M206: 0 | N206: 0
... 304 more rows

Sheet 2.3(a) Augex
B1: REGULATORY REPORTING STATEMENT
B2: =INDEX(dms_TradingNameFull_List,MATCH(dms_TradingName,dms_TradingName_List)) -> SA Power Networks
B3: =IF(SUM(dms_SingleYear_Model)>0,("CATEGORY ANALYSIS "&CRY&" to "&FRY),("CATEGORY ANALYSIS "&CRY)) -> CATEGORY ANALYSIS 2008-09 to 2018-19
B4: 2.3 AUGEX PROJECT DATA
B7: There are TWO tables on this worksheet - each has been 'grouped' (and sub-grouped) for easy navigation. Both rows and columns have been grouped. See the Instructions sheet on how to group or ungroup tables.
B9: 2.3.1 - AUGEX ASSET DATA - SUBTRANSMISSION SUBSTATIONS, SWITCHING STATIONS AND ZONE SUBSTATIONS
B10: NOTE: DNSP MUST PROVIDE EXPENDITURE INFORMATION ON A PROJECT CLOSE BASIS.
B11: AUG231_1 | C11: AUG231_2 | D11: AUG231_3 | E11: AUG231_4 | F11: AUG231_5 | G11: AUG231_6 | H11: ED_AUG231_00001 | I11: ED_AUG231_00002 | J11: ED_AUG231_00003 | K11: ED_AUG231_00004 | L11: ED_AUG231_00005 | M11: ED_AUG231_00006 | N11: ED_AUG231_00007 | O11: ED_AUG231_00008 | P11: ED_AUG231_00009 | Q11: ED_AUG231_00010 | R11: ED_AUG231_00011 | U11: ED_AUG231_00012 | V11: ED_AUG231_00013 | W11: ED_AUG231_00014 | X11: ED_AUG231_00015 | Y11: ED_AUG231_00016 | Z11: ED_AUG231_00017 | AA11: ED_AUG231_00018 | AB11: ED_AUG231_00019 | AC11: ED_AUG231_00020 | AD11: ED_AUG231_00021 | AE11: ED_AUG231_00022 | AF11: ED_AUG231_00023
B12: PROJECT DESCRIPTION AND CHANGES | L12: PLANT AND EQUIPMENT EXPENDITURE AND VOLUME | X12: OTHER EXPENDITURE | Z12: TOTAL DIRECT EXPENDITURE ($0's) | AA12: YEARS INCURRED | AB12: ALL RELATED PARTY CONTRACTS | AD12: ALL NON RELATED PARTYCONTRACTS | AE12: LAND AND EASEMENTS
B13: SUBSTATION ID | C13: SUBSTATION TYPE (drop down) | D13: PROJECT ID | E13: PROJECT TYPE (drop down) | F13: PROJECT TRIGGER (drop down) | G13: VOLTAGE (KV) | H13: SUBSTATION RATING NORMAL CYCLIC (MVA) | J13: SUBSTATION RATING N-1 EMERGENCY (MVA) | L13: TRANSFORMERS | O13: SWITCHGEAR | Q13: CAPACITORS | U13: OTHER PLANT ITEM | V13: INSTALLATION (LABOUR) | X13: CIVIL WORKS | Y13: OTHER DIRECT | AB13: RELATED PARTY MARGINS | AC13: TOTAL | AE13: LAND PURCHASE | AF13: EASEMENTS
H14: PRE | I14: POST | J14: PRE | K14: POST | L14: UNITS ADDED | M14: MVA ADDED | N14: EXPENDITURE ($0's) | O14: UNITS ADDED | P14: EXPENDITURE ($0's) | Q14: MVAR ADDED | R14: EXPENDITURE ($0's) | U14: EXPENDITURE ($0's) | V14: VOLUME | W14: EXPENDITURE ($0's) | X14: EXPENDITURE ($0's) | AB14: EXPENDITURE ($0's) | AE14: EXPENDITURE ($0's)
Z15: =SUM(N15,P15,R15,U15,W15,X15,Y15) -> 0
Z16: 0
Z17: 0
Z18: 0
Z19: 0
Z20: 0
Z21: 0
Z22: 0
Z23: 0
Z24: 0
Z25: 0
Z26: 0
Z27: 0
Z28: 0
Z29: 0
Z30: 0
Z31: 0
Z32: 0
Z33: 0
Z34: 0
Z35: 0
Z36: 0
Z37: 0
Z38: 0
Z39: 0
Z40: 0
Z41: 0
Z42: 0
Z43: 0
Z44: 0
Z45: 0
Z46: 0
Z47: =SUM(N47,P47,R47,U47,W47,X47,Y47) -> 0
Z48: 0
Z49: 0
Z50: 0
Z51: 0
Z52: 0
Z53: 0
Z54: 0
Z55: 0
Z56: 0
Z57: 0
Z58: 0
Z59: 0
Z60: 0
Z61: 0
Z62: 0
Z63: 0
Z64: 0
Z65: 0
Z66: 0
D67: Non material projects - [actual]
B70: AUG232_1 | C70: AUG232_2 | D70: AUG232_3 | E70: AUG232_4 | F70: AUG232_5 | G70: AUG232_6 | H70: ED_AUG232_00001 | I70: ED_AUG232_00002 | J70: ED_AUG232_00003 | K70: ED_AUG232_00004 | L70: ED_AUG232_00005 | M70: ED_AUG232_00006 | N70: ED_AUG232_00007 | O70: ED_AUG232_00008 | P70: ED_AUG232_00009 | Q70: ED_AUG232_00010 | R70: ED_AUG232_00011 | S70: ED_AUG232_00012 | T70: ED_AUG232_00013 | U70: ED_AUG232_00014 | V70: ED_AUG232_00015 | W70: ED_AUG232_00016 | X70: ED_AUG232_00017 | Y70: ED_AUG232_00018 | Z70: ED_AUG232_00019 | AA70: ED_AUG232_00020 | AB70: ED_AUG232_00021
B71: 2.3.2 - AUGEX ASSET DATA - SUBTRANSMISSION LINES
B72: NOTE: DNSP MUST PROVIDE EXPENDITURE INFORMATION ON A PROJECT CLOSE BASIS.
B73: PROJECT DESCRIPTION AND CHANGES | L73: PLANT AND EQUIPMENT EXPENDITURE AND VOLUME | X73: OTHER EXPENDITURE | Z73: TOTAL DIRECT EXPENDITURE ($0's) | AA73: YEARS INCURRED | AB73: ALL RELATED PARTY CONTRACTS | AD73: ALL NON RELATED PARTYCONTRACTS | AE73: LAND AND EASEMENTS
B74: LINE ID | C74: PROJECT ID | D74: PROJECT TYPE | E74: PROJECT TRIGGER | F74: PROJECT TRIGGER (drop down) | G74: VOLTAGE (KV) | H74: ROUTE LINE LENGTH ADDED | L74: POLES/TOWERS (INCLUDING STRUCTURES, AND CIVIL WORKS) | O74: OVERHEAD LINES | R74: UNDERGROUND CABLES | U74: OTHER PLANT ITEM | V74: INSTALLATION (LABOUR) | X74: CIVIL WORKS | Y74: OTHER DIRECT | AB74: RELATED PARTY MARGINS | AC74: TOTAL | AE74: LAND PURCHASE | AF74: EASEMENTS
H75: KM ADDED | L75: POLES/TOWERS ADDED | M75: POLES/TOWERS UPGRADED | N75: EXPENDITURE ($0's) | O75: CIRCUIT KM ADDED | P75: CIRCUIT KM UPGRADED | Q75: EXPENDITURE ($0's) | R75: CIRCUIT KM ADDED | S75: CIRCUIT KM UPGRADED | T75: EXPENDITURE ($0's) | U75: EXPENDITURE ($0's) | V75: VOLUME | W75: EXPENDITURE ($0's) | X75: EXPENDITURE ($0's) | AB75: EXPENDITURE ($0's) | AE75: EXPENDITURE ($0's)
Z76: =SUM(N76,Q76,T76,U76,W76,X76,Y76) -> 0 | AH76: New line on new route - single circuit
Z77: 0 | AH77: New line on new route - dual circuit
Z78: 0 | AH78: New line on new route - other
Z79: 0 | AH79: Line rebuild over existing route - single circuit
Z80: 0 | AH80: Line rebuild over existing route - dual circuit
Z81: 0 | AH81: Reconductor - Single circuit
Z82: 0 | AH82: Reconductor - Dual circuit
Z83: 0 | AH83: Reconductor - Other
Z84: 0 | AH84: Line upgrade - raising/retensoring
Z85: 0 | AH85: Line upgrade - voltage upgrade
Z86: 0 | AH86: Line upgrade - capacity
Z87: 0 | AH87: String spare circuit
Z88: 0 | AH88: Other
Z89: 0
Z90: 0
Z91: 0
Z92: 0
Z93: 0
Z94: 0
Z95: 0
Z96: 0
Z97: 0
Z98: 0
Z99: 0
Z100: 0
Z101: 0
Z102: 0
Z103: 0
Z104: 0
Z105: 0
Z106: 0
Z107: 0
Z108: =SUM(N108,Q108,T108,U108,W108,X108,Y108) -> 0
Z109: 0
Z110: 0
Z111: 0
Z112: 0
Z113: 0
Z114: 0
Z115: 0
Z116: 0
Z117: 0
Z118: 0
Z119: 0
Z120: 0
Z121: 0
Z122: 0
Z123: 0
Z124: 0
Z125: 0
Z126: 0
Z127: 0
Z128: 0
Z129: 0
C130: Non material projects - [actual]

Sheet 2.3(b) Augex
B1: REGULATORY REPORTING STATEMENT
B2: =INDEX(dms_TradingNameFull_List,MATCH(dms_TradingName,dms_TradingName_List)) -> SA Power Networks
B3: =IF(SUM(dms_SingleYear_Model)>0,("CATEGORY ANALYSIS "&CRY&" to "&FRY),("CATEGORY ANALYSIS "&CRY)) -> CATEGORY ANALYSIS 2008-09 to 2018-19
B4: 2.3 AUGEX PROJECT DATA
B6: There are FOUR tables on this worksheet. These tables have been 'grouped' (and sub-grouped) for easy navigation. See the Instructions sheet on how to group or ungroup tables.
B8: NOTE: DNSP MUST PROVIDE EXPENDITURE INFORMATION ON AN AS INCURRED BASIS.
B9: 2.3.3 - AUGEX DATA - HV/LV FEEDERS AND DISTRIBUTION SUBSTATIONS
B10: PROJECT TYPE | C10: Units | D10: VOLUME (0's)
D11: =IF(dms_RPT="financial",dms_CRYf_y1,dms_CRYc_y1) -> 2008-09 | E11: =IF(dms_RPT="financial",dms_CRYf_y2,dms_CRYc_y2) -> 2009-10 | F11: =IF(dms_RPT="financial",dms_CRYf_y3,dms_CRYc_y3) -> 2010-11 | G11: =IF(dms_RPT="financial",dms_CRYf_y4,dms_CRYc_y4) -> 2011-12 | H11: =IF(dms_RPT="financial",dms_CRYf_y5,dms_CRYc_y5) -> 2012-13 | I11: =IF(dms_RPT="financial",dms_CRYf_y6,dms_CRYc_y6) -> 2013-14 | J11: =IF(dms_RPT="financial",dms_CRYf_y7,dms_CRYc_y7) -> 2014-15 | K11: =IF(dms_RPT="financial",dms_CRYf_y8,dms_CRYc_y8) -> 2015-16 | L11: =IF(dms_RPT="financial",dms_CRYf_y9,dms_CRYc_y9) -> 2016-17 | M11: =IF(dms_RPT="financial",dms_CRYf_y10,dms_CRYc_y10) -> 2017-18
B12: DESCRIPTOR METRICS - UNITS ADDED
B13: HV Feeder Augmentations - Overhead Lines | C13: Circuit Line Length in KM
B14: HV Feeder Augmentations - Underground Cables | C14: Circuit Line Length in KM
B15: LV Feeder Augmentations - Overhead Lines | C15: Circuit Line Length in KM
B16: LV Feeder Augmentations - Underground Cables | C16: Circuit Line Length in KM
B17: Distribution Substation Augmentations - Pole Mounted | C17: Number
B18: Distribution Substation Augmentations - Ground Mounted | C18: Number
B19: Distribution Substation Augmentations - Indoor | C19: Number
B20: DESCRIPTOR METRICS - UNITS UPGRADED
B21: HV Feeder Augmentations - Overhead Lines | C21: Circuit Line Length in KM
B22: HV Feeder Augmentations - Underground Cables | C22: Circuit Line Length in KM
B23: LV Feeder Augmentations - Overhead Lines | C23: Circuit Line Length in KM
B24: LV Feeder Augmentations - Underground Cables | C24: Circuit Line Length in KM
B25: Distribution Substation Augmentations - Pole Mounted | C25: Number
B26: Distribution Substation Augmentations - Ground Mounted | C26: Number
B27: Distribution Substation Augmentations - Indoor | C27: Number
B29: COST METRICS
B30: TOTAL DIRECT EXPENDITURE - Project Type | D30: EXPENDITURE ($0's)
D31: =IF(dms_RPT="financial",dms_CRYf_y1,dms_CRYc_y1) -> 2008-09 | E31: =IF(dms_RPT="financial",dms_CRYf_y2,dms_CRYc_y2) -> 2009-10 | F31: =IF(dms_RPT="financial",dms_CRYf_y3,dms_CRYc_y3) -> 2010-11 | G31: =IF(dms_RPT="financial",dms_CRYf_y4,dms_CRYc_y4) -> 2011-12 | H31: =IF(dms_RPT="financial",dms_CRYf_y5,dms_CRYc_y5) -> 2012-13 | I31: =IF(dms_RPT="financial",dms_CRYf_y6,dms_CRYc_y6) -> 2013-14 | J31: =IF(dms_RPT="financial",dms_CRYf_y7,dms_CRYc_y7) -> 2014-15 | K31: =IF(dms_RPT="financial",dms_CRYf_y8,dms_CRYc_y8) -> 2015-16 | L31: =IF(dms_RPT="financial",dms_CRYf_y9,dms_CRYc_y9) -> 2016-17 | M31: =IF(dms_RPT="financial",dms_CRYf_y10,dms_CRYc_y10) -> 2017-18
B32: HV Feeder Augmentations - Overhead Lines
B33: HV Feeder Augmentations - Underground Cables
B34: HV Feeder Non-Material Projects
B35: LV Feeder Augmentations - Overhead Lines
B36: LV Feeder Augmentations - Underground Cables
B37: LV Feeder Non-Material Projects
B38: Distribution Substation Augmentations - Pole Mounted
B39: Distribution Substation Augmentations - Ground Mounted
B40: Distribution Substation Augmentations - Indoor
B44: 2.3.4 - AUGEX - TOTAL EXPENDITURE
B45: AUGMENTATION CAPEX (as incurred) | D45: EXPENDITURE ($0's)
D46: =IF(dms_RPT="financial",dms_CRYf_y1,dms_CRYc_y1) -> 2008-09 | E46: =IF(dms_RPT="financial",dms_CRYf_y2,dms_CRYc_y2) -> 2009-10 | F46: =IF(dms_RPT="financial",dms_CRYf_y3,dms_CRYc_y3) -> 2010-11 | G46: =IF(dms_RPT="financial",dms_CRYf_y4,dms_CRYc_y4) -> 2011-12 | H46: =IF(dms_RPT="financial",dms_CRYf_y5,dms_CRYc_y5) -> 2012-13 | I46: =IF(dms_RPT="financial",dms_CRYf_y6,dms_CRYc_y6) -> 2013-14 | J46: =IF(dms_RPT="financial",dms_CRYf_y7,dms_CRYc_y7) -> 2014-15 | K46: =IF(dms_RPT="financial",dms_CRYf_y8,dms_CRYc_y8) -> 2015-16 | L46: =IF(dms_RPT="financial",dms_CRYf_y9,dms_CRYc_y9) -> 2016-17 | M46: =IF(dms_RPT="financial",dms_CRYf_y10,dms_CRYc_y10) -> 2017-18
B47: Subtransmission Substations, Switching Stations, Zone Substations
B48: Subtransmission Lines
B49: HV Feeders
B50: HV Feeders - Land Purchases and Easements
B51: Distribution Substations
B52: Distribution Substations - Land Purchases And Easements
B53: LV Feeders
B54: LV Feeders - Land Purchases And Easements
B55: Other Assets

Sheet 2.5 Connections
B1: REGULATORY REPORTING STATEMENT
B2: =INDEX(dms_TradingNameFull_List,MATCH(dms_TradingName,dms_TradingName_List)) -> SA Power Networks
B3: =IF(SUM(dms_SingleYear_Model)>0,("CATEGORY ANALYSIS "&CRY&" to "&FRY),("CATEGORY ANALYSIS "&CRY)) -> CATEGORY ANALYSIS 2008-09 to 2018-19
B4: 2.5 CONNECTIONS
B6: There are THREE tables on this worksheet - each has been 'grouped' (and sub-grouped) for easy navigation. See the Instructions sheet on how to group or ungroup tables.
B8: 2.5.1 - DESCRIPTOR METRICS
E9: VOLUMES AND EXPENDITURE
D10: Units | E10: =IF(dms_RPT="financial",dms_CRYf_y1,dms_CRYc_y1) -> 2008-09 | F10: =IF(dms_RPT="financial",dms_CRYf_y2,dms_CRYc_y2) -> 2009-10 | G10: =IF(dms_RPT="financial",dms_CRYf_y3,dms_CRYc_y3) -> 2010-11 | H10: =IF(dms_RPT="financial",dms_CRYf_y4,dms_CRYc_y4) -> 2011-12 | I10: =IF(dms_RPT="financial",dms_CRYf_y5,dms_CRYc_y5) -> 2012-13 | J10: =IF(dms_RPT="financial",dms_CRYf_y6,dms_CRYc_y6) -> 2013-14 | K10: =IF(dms_RPT="financial",dms_CRYf_y7,dms_CRYc_y7) -> 2014-15 | L10: =IF(dms_RPT="financial",dms_CRYf_y8,dms_CRYc_y8) -> 2015-16 | M10: =IF(dms_RPT="financial",dms_CRYf_y9,dms_CRYc_y9) -> 2016-17 | N10: =IF(dms_RPT="financial",dms_CRYf_y10,dms_CRYc_y10) -> 2017-18
B11: RESIDENTIAL | C11: Underground connections | D11: 0's
C12: Overhead connections | D12: 0's
C13: Distribution substation installed (MVA added) | D13: MVA
C14: Distribution substations installed | D14: 0's
C15: Distribution substation installed (total spend $0's) | D15: total spend $0s
C16: Augmentation HV (net circuit KM added) | D16: KM
C17: Augmentation HV (total spend $0's) | D17: total spend $0s
C18: Augmentation LV (net circuit KM added) | D18: KM
C19: Augmentation LV (total spend $0's) | D19: total spend $0s
C20: Mean days to connect residential customer with LV single phase connection | D20: 0's
C21: Volume of GSL breaches for residential customers | D21: 0's
C22: Volume of customer complaints relating to connection services | D22: 0's
C23: GSL payments | D23: $0s
B24: COMMERCIAL/INDUSTRIAL | C24: Underground connections | D24: 0's
C25: Overhead connections | D25: 0's
C26: Distribution substation installed (MVA added) | D26: MVA
C27: Distribution substations installed (0's) | D27: 0's
C28: Distribution substation installed (total spend ($0's) | D28: total spend $0s
C29: Augmentation HV (net circuit KM added) | D29: KM
C30: Augmentation HV (total spend $0's) | D30: total spend $0s
C31: Augmentation LV (net circuit KM added) | D31: KM
C32: Augmentation LV (total spend $0's) | D32: total spend $0s
B33: SUBDIVISION | C33: Underground connections | D33: 0's
C34: Overhead connections | D34: 0's
C35: Distribution substation installed (MVA added) | D35: MVA
C36: Distribution substations installed | D36: 0's
C37: Distribution substation installed (total spend $0's) | D37: total spend $0s
C38: Augmentation HV (net circuit KM added) | D38: KM
C39: Augmentation HV (total spend $0's) | D39: total spend $0s
C40: Augmentation LV (net circuit KM added) | D40: KM
C41: Augmentation LV (total spend $0's) | D41: total spend $0s
C42: Cost per lot ($) | D42: $0s
B43: EMBEDDED GENERATION | C43: Underground connections | D43: 0's
C44: Overhead connections | D44: 0's
C45: Distribution substation installed (MVA added) | D45: MVA
C46: Distribution substations installed | D46: 0's
C47: Distribution substation installed (total spend $0's) | D47: total spend $0s
C48: Augmentation HV (net circuit KM added) | D48: KM
C49: Augmentation HV (total spend $0's) | D49: total spend $0s
C50: Augmentation LV (net circuit KM added) | D50: KM
C51: Augmentation LV (total spend $0's) | D51: total spend $0s
B55: 2.5.2 - COST METRICS BY CONNECTION CLASSIFICATION
E56: EXPENDITURE ($0's)
E57: =IF(dms_RPT="financial",dms_CRYf_y1,dms_CRYc_y1) -> 2008-09 | F57: =IF(dms_RPT="financial",dms_CRYf_y2,dms_CRYc_y2) -> 2009-10 | G57: =IF(dms_RPT="financial",dms_CRYf_y3,dms_CRYc_y3) -> 2010-11 | H57: =IF(dms_RPT="financial",dms_CRYf_y4,dms_CRYc_y4) -> 2011-12 | I57: =IF(dms_RPT="financial",dms_CRYf_y5,dms_CRYc_y5) -> 2012-13 | J57: =IF(dms_RPT="financial",dms_CRYf_y6,dms_CRYc_y6) -> 2013-14 | K57: =IF(dms_RPT="financial",dms_CRYf_y7,dms_CRYc_y7) -> 2014-15 | L57: =IF(dms_RPT="financial",dms_CRYf_y8,dms_CRYc_y8) -> 2015-16 | M57: =IF(dms_RPT="financial",dms_CRYf_y9,dms_CRYc_y9) -> 2016-17 | N57: =IF(dms_RPT="financial",dms_CRYf_y10,dms_CRYc_y10) -> 2017-18
B58: RESIDENTIAL | C58: Simple connection LV
C59: Complex connection LV
C60: Complex connection HV
B61: COMMERCIAL/INDUSTRIAL | C61: Simple connection LV
C62: Complex connection HV (customer connected at LV, minor HV works)
C63: Complex connection HV (customer connected at LV, upstream asset works)
C64: Complex connection HV (customer connected at HV)
C65: Complex connection sub-transmission
B66: SUBDIVISION | C66: Complex connection LV
C67: Complex connection HV (no upstream asset works)
C68: Complex connection HV (with upstream asset works)
B69: EMBEDDED GENERATION | C69: Simple connection LV
C70: Complex connection HV (small capacity)
C71: Complex connection HV (large capacity)
B73: 2.5.3 - VOLUMES BY CONNECTION CLASSIFICATION
E74: VOLUMES (0's)
E75: =IF(dms_RPT="financial",dms_CRYf_y1,dms_CRYc_y1) -> 2008-09 | F75: =IF(dms_RPT="financial",dms_CRYf_y2,dms_CRYc_y2) -> 2009-10 | G75: =IF(dms_RPT="financial",dms_CRYf_y3,dms_CRYc_y3) -> 2010-11 | H75: =IF(dms_RPT="financial",dms_CRYf_y4,dms_CRYc_y4) -> 2011-12 | I75: =IF(dms_RPT="financial",dms_CRYf_y5,dms_CRYc_y5) -> 2012-13 | J75: =IF(dms_RPT="financial",dms_CRYf_y6,dms_CRYc_y6) -> 2013-14 | K75: =IF(dms_RPT="financial",dms_CRYf_y7,dms_CRYc_y7) -> 2014-15 | L75: =IF(dms_RPT="financial",dms_CRYf_y8,dms_CRYc_y8) -> 2015-16 | M75: =IF(dms_RPT="financial",dms_CRYf_y9,dms_CRYc_y9) -> 2016-17 | N75: =IF(dms_RPT="financial",dms_CRYf_y10,dms_CRYc_y10) -> 2017-18
B76: RESIDENTIAL | C76: Simple connection LV
C77: Complex connection LV
C78: Complex connection HV
B79: COMMERCIAL/INDUSTRIAL | C79: Simple connection LV
C80: Complex connection HV (customer connected at LV, minor HV works)
C81: Complex connection HV (customer connected at LV, upstream asset works)
C82: Complex connection HV (customer connected at HV)
C83: Complex connection sub-transmission
B84: SUBDIVISION | C84: Complex connection LV
C85: Complex connection HV (no upstream asset works)
C86: Complex connection HV (with upstream asset works)
B87: EMBEDDED GENERATION | C87: Simple connection LV
C88: Complex connection HV (small capacity)
C89: Complex connection HV (large capacity)

Sheet 2.6 Non-network
B1: REGULATORY REPORTING STATEMENT
B2: =INDEX(dms_TradingNameFull_List,MATCH(dms_TradingName,dms_TradingName_List)) -> SA Power Networks
B3: =IF(SUM(dms_SingleYear_Model)>0,("CATEGORY ANALYSIS "&CRY&" to "&FRY),("CATEGORY ANALYSIS "&CRY)) -> CATEGORY ANALYSIS 2008-09 to 2018-19
B4: 2.6 NON-NETWORK EXPENDITURE
B6: There are THREE tables on this worksheet - each has been 'grouped' (and sub-grouped) for easy navigation. See the Instructions sheet on how to group or ungroup tables.
B8: 2.6.1 - NON-NETWORK EXPENDITURE
F9: EXPENDITURE ($0's)
B10: SERVICE SUBCATEGORY | C10: ASSET CATEGORY | F10: =IF(dms_RPT="financial",dms_CRYf_y1,dms_CRYc_y1) -> 2008-09 | G10: =IF(dms_RPT="financial",dms_CRYf_y2,dms_CRYc_y2) -> 2009-10 | H10: =IF(dms_RPT="financial",dms_CRYf_y3,dms_CRYc_y3) -> 2010-11 | I10: =IF(dms_RPT="financial",dms_CRYf_y4,dms_CRYc_y4) -> 2011-12 | J10: =IF(dms_RPT="financial",dms_CRYf_y5,dms_CRYc_y5) -> 2012-13 | K10: =IF(dms_RPT="financial",dms_CRYf_y6,dms_CRYc_y6) -> 2013-14 | L10: =IF(dms_RPT="financial",dms_CRYf_y7,dms_CRYc_y7) -> 2014-15 | M10: =IF(dms_RPT="financial",dms_CRYf_y8,dms_CRYc_y8) -> 2015-16 | N10: =IF(dms_RPT="financial",dms_CRYf_y9,dms_CRYc_y9) -> 2016-17 | O10: =IF(dms_RPT="financial",dms_CRYf_y10,dms_CRYc_y10) -> 2017-18
B11: OPEX
B12: IT & COMMUNICATIONS | C12: Total | F12: 5377905.819 | G12: 7215261.805 | H12: 9455107.349 | I12: 11369942.78 | J12: 10338150.97 | K12: 15531373.69 | L12: 11921208.59 | M12: 10075374.63 | N12: 17834184.5 | O12: 22246011.73
B13: MOTOR VEHICLES | C13: Car | F13: 984000 | G13: 892000 | H13: 895000 | I13: 965000 | J13: 1127000 | K13: 1039000 | L13: 484666 | M13: 922012.3364 | N13: 562751.9759 | O13: 601594
C14: Light commercial vehicle | F14: 2960000 | G14: 3039000 | H14: 3572000 | I14: 4503000 | J14: 5376000 | K14: 4573000 | L14: 3955837 | M14: 3762467.917 | N14: 1960251.164 | O14: 1969370
C15: Elevated work platform (LCV) | F15: 0 | G15: 0 | H15: 0 | I15: 0 | J15: 0 | K15: 0 | L15: 0 | M15: 0 | N15: 0 | O15: 0
C16: Elevated work platform (HCV) | F16: 3084000 | G16: 2933000 | H16: 2995000 | I16: 3305000 | J16: 3718000 | K16: 5220000 | L16: 6478817 | M16: 4171094.472 | N16: 4460624.494 | O16: 5503360
C17: Heavy commercial vehicle | F17: 641000 | G17: 664000 | H17: 542000 | I17: 819000 | J17: 731000 | K17: 1007000 | L17: 1209399 | M17: 1399746.327 | N17: 1803498.421 | O17: 1669927
B18: BUILDINGS AND PROPERTY | C18: Total buildings and property expenditure | F18: 777317.7351 | G18: 896650.4635 | H18: 3324368.45 | I18: 3140722.026 | J18: 3801553.546 | K18: 3299108.189 | L18: 3904216.933 | M18: 3750186.531 | N18: 3717191.677 | O18: 4412763.115
B19: OTHER | C19: Other expenditure | F19: 4360000 | G19: 4244000 | H19: 4456000 | I19: 4868000 | J19: 5362000 | K19: 5453000 | L19: 6124898 | M19: 4557836.555 | N19: 5590479.566 | O19: 5317832.36
B20: OTHER - DNSP nominated | C20: Cranes | F20: 1131000 | G20: 902000 | H20: 1138000 | I20: 1372000 | J20: 1430000 | K20: 1382000 | L20: 1306030 | M20: 1486672.847 | N20: 1168588.139 | O20: 1405478
C21: Trailers | F21: 813000 | G21: 671000 | H21: 419000 | I21: 379000 | J21: 515000 | K21: 650000 | L21: 0 | M21: 0 | N21: 0 | O21: 474622
C22: Other commercial vehicles | F22: 168000 | G22: 112000 | H22: 141000 | I22: 141000 | J22: 162000 | K22: 157000 | L22: 1158064 | M22: 587595.4643 | N22: 1362208.127 | O22: 707323
C23: TEC vehicles | F23: 0 | G23: 0 | H23: 0 | I23: 0 | J23: 0 | K23: 0 | L23: 505804 | M23: 617651.5641 | N23: 283423.3904 | O23: 238857
C24: Network telephony | F24: 2248000 | G24: 2559000 | H24: 2758000 | I24: 2976000 | J24: 3255000 | K24: 3264000 | L24: 3155000 | M24: 1865916.68 | N24: 2776259.91 | O24: 2491552.36
B31: CAPEX
B32: IT & COMMUNICATIONS | C32: Total | F32: 15549000 | G32: 10821000 | H32: 20610000 | I32: 26633000 | J32: 25615000 | K32: 27638000 | L32: 44696000 | M32: 41996999.44 | N32: 54766407.4 | O32: 63120452.2
B33: MOTOR VEHICLES | C33: Car | F33: 1907000 | G33: 2088000 | H33: 2218000 | I33: 1740000 | J33: 2095000 | K33: 1619000 | L33: 51974 | M33: 642792.45 | N33: 180213.85 | O33: 657794
C34: Light commercial vehicle | F34: 6549000 | G34: 3424000 | H34: 4949000 | I34: 3080000 | J34: 5416000 | K34: 4596000 | L34: 4415710 | M34: 4339002.35 | N34: 3867685.55 | O34: 6205282
C35: Elevated work platform (LCV) | F35: 0 | G35: 0 | H35: 0 | I35: 0 | J35: 0 | K35: 0 | L35: 0 | M35: 0 | N35: 0 | O35: -
C36: Elevated work platform (HCV) | F36: 1951000 | G36: 4962000 | H36: 5639000 | I36: 5605000 | J36: 7410000 | K36: 10925000 | L36: 11155586 | M36: 5902081.99 | N36: 7025729.12 | O36: 4265932
C37: Heavy commercial vehicle | F37: 3042000 | G37: 680000 | H37: 1735000 | I37: 729000 | J37: 807000 | K37: 1343000 | L37: 989134 | M37: 832398.65 | N37: 529069.26 | O37: 3870295
B38: BUILDINGS AND PROPERTY | C38: Total buildings and property expenditure | F38: 6372000 | G38: 5679000 | H38: 10091000 | I38: 19766000 | J38: 15611000 | K38: 10921000 | L38: 4639000 | M38: 7670788.37 | N38: 6839633.92 | O38: 11369906.99
B39: OTHER | C39: Other expenditure | F39: 4791000 | G39: 9268000 | H39: 13260000 | I39: 17038000 | J39: 23504000 | K39: 31797000 | L39: 38670159 | M39: 15033905.5 | N39: 13030612.29 | O39: 19773200
B40: OTHER - DNSP nominated | C40: Trailers | F40: 460000 | G40: 847000 | H40: 642000 | I40: 1145000 | J40: 1223000 | K40: 793000 | L40: 0 | M40: 0 | N40: 0 | O40: 448265
C41: Cranes | F41: 68000 | G41: 1262000 | H41: 977000 | I41: 499000 | J41: 1474000 | K41: 3285000 | L41: 3003140 | M41: 336520.34 | N41: 533887.52 | O41: 750897
C42: Other commercial vehicles | F42: 290000 | G42: 495000 | H42: 385000 | I42: 546000 | J42: 266000 | K42: 598000 | L42: 2530446 | M42: 1488207.48 | N42: 337865.65 | O42: 673430
C43: TEC vehicles | F43: 0 | G43: 0 | H43: 0 | I43: 0 | J43: 0 | K43: 0 | L43: 1915495 | M43: 1231920.74 | N43: 1635073.49 | O43: 1985024
C44: Plant and Tools | F44: 3456000 | G44: 5555000 | H44: 4584000 | I44: 2092000 | J44: 2616000 | K44: 5627000 | L44: 9791000 | M44: 2427746.85 | N44: 2768171.83 | O44: 5043409
C45: ADMS | F45: 0 | G45: 0 | H45: 0 | I45: 997000 | J45: 10021000 | K45: 8997000 | L45: 8999989 | M45: 4770567.66 | N45: 968968.49 | O45: 238911
C46: NOC | F46: 0 | G46: 178000 | H46: 3920000 | I46: 2226000 | J46: 1428000 | K46: 0 | L46: 0 | M46: 0 | N46: 0 | O46: 0
C47: SCADA / OMS | F47: 0 | G47: 17000 | H47: 1621000 | I47: 2944000 | J47: 516000 | K47: 0 | L47: 0 | M47: 0 | N47: 0 | O47: 2184082
C48: Asset Condition | F48: 0 | G48: 0 | H48: 0 | I48: 574000 | J48: 1084000 | K48: 2290000 | L48: 0 | M48: 0 | N48: 0 | O48: 0
C49: Vegetation Management Data | F49: 0 | G49: 0 | H49: 0 | I49: 0 | J49: 3522000 | K49: 1319000 | L49: 3172954 | M49: 0 | N49: 0 | O49: 0
C50: V&V Rollout | F50: 0 | G50: 0 | H50: 0 | I50: 0 | J50: 0 | K50: 0 | L50: 0 | M50: 0 | N50: 1635844.66 | O50: 1331303
C51: Non-Network Telecommunications | F51: 0 | G51: 0 | H51: 0 | I51: 0 | J51: 0 | K51: 0 | L51: 542923 | M51: 1093717 | N51: 1032681.86 | O51: 1227949
C52: Asset Information | F52: 0 | G52: 0 | H52: 0 | I52: 0 | J52: 0 | K52: 0 | L52: 1797771 | M52: 0 | N52: 0 | O52: 0
C53: Other Network Strategic | F53: 322000 | G53: 521000 | H53: 560000 | I53: 5437000 | J53: 903000 | K53: 8888000 | L53: 6916441 | M53: 3685225.43 | N53: 4118118.79 | O53: 5889930
C54: Miscellaneous Other | F54: 195000 | G54: 393000 | H54: 571000 | I54: 578000 | J54: 451000 | K54: 0 | L54: 0 | M54: 0 | N54: 0 | O54: 0
B58: 2.6.2 - ANNUAL DESCRIPTOR METRICS
B59: IT & COMMUNICATIONS
F60: VOLUMES (0's)
F61: =IF(dms_RPT="financial",dms_CRYf_y1,dms_CRYc_y1) -> 2008-09 | G61: =IF(dms_RPT="financial",dms_CRYf_y2,dms_CRYc_y2) -> 2009-10 | H61: =IF(dms_RPT="financial",dms_CRYf_y3,dms_CRYc_y3) -> 2010-11 | I61: =IF(dms_RPT="financial",dms_CRYf_y4,dms_CRYc_y4) -> 2011-12 | J61: =IF(dms_RPT="financial",dms_CRYf_y5,dms_CRYc_y5) -> 2012-13 | K61: =IF(dms_RPT="financial",dms_CRYf_y6,dms_CRYc_y6) -> 2013-14 | L61: =IF(dms_RPT="financial",dms_CRYf_y7,dms_CRYc_y7) -> 2014-15 | M61: =IF(dms_RPT="financial",dms_CRYf_y8,dms_CRYc_y8) -> 2015-16 | N61: =IF(dms_RPT="financial",dms_CRYf_y9,dms_CRYc_y9) -> 2016-17 | O61: =IF(dms_RPT="financial",dms_CRYf_y10,dms_CRYc_y10) -> 2017-18
B62: Employee numbers
B63: User numbers
B64: Number of devices
B66: MOTOR VEHICLES
F67: VOLUMES / %
B68: ASSET CATEGORY | C68: DESCRIPTOR METRIC | E68: Units | F68: =IF(dms_RPT="financial",dms_CRYf_y1,dms_CRYc_y1) -> 2008-09 | G68: =IF(dms_RPT="financial",dms_CRYf_y2,dms_CRYc_y2) -> 2009-10 | H68: =IF(dms_RPT="financial",dms_CRYf_y3,dms_CRYc_y3) -> 2010-11 | I68: =IF(dms_RPT="financial",dms_CRYf_y4,dms_CRYc_y4) -> 2011-12 | J68: =IF(dms_RPT="financial",dms_CRYf_y5,dms_CRYc_y5) -> 2012-13 | K68: =IF(dms_RPT="financial",dms_CRYf_y6,dms_CRYc_y6) -> 2013-14 | L68: =IF(dms_RPT="financial",dms_CRYf_y7,dms_CRYc_y7) -> 2014-15 | M68: =IF(dms_RPT="financial",dms_CRYf_y8,dms_CRYc_y8) -> 2015-16 | N68: =IF(dms_RPT="financial",dms_CRYf_y9,dms_CRYc_y9) -> 2016-17 | O68: =IF(dms_RPT="financial",dms_CRYf_y10,dms_CRYc_y10) -> 2017-18
B69: CAR | C69: Average kilometres travelled | E69: 0's
C70: Number purchased | E70: 0's
C71: Number leased | E71: 0's
C72: Number in fleet | E72: 0's
C73: Proportion of total fleet expenditure allocated as regulatory expenditure | E73: (per cent)
B74: LIGHT COMMERCIAL VEHICLE | C74: Average kilometres travelled | E74: 0's
C75: Number purchased | E75: 0's
C76: Number leased | E76: 0's
C77: Number in fleet | E77: 0's
C78: Proportion of total fleet expenditure allocated as regulatory expenditure | E78: (per cent)
B79: ELEVATED WORK PLATFORM (LCV) | C79: Average kilometres travelled | E79: 0's
C80: Number purchased | E80: 0's
C81: Number leased | E81: 0's
C82: Number in fleet | E82: 0's
C83: Proportion of total fleet expenditure allocated as regulatory expenditure | E83: (per cent)
B84: ELEVATED WORK PLATFORM (HCV) | C84: Average kilometres travelled | E84: 0's
C85: Number purchased | E85: 0's
C86: Number leased | E86: 0's
C87: Number in fleet | E87: 0's
C88: Proportion of total fleet expenditure allocated as regulatory expenditure | E88: (per cent)
B89: HEAVY COMMERCIAL VEHICLE | C89: Average kilometres travelled | E89: 0's
C90: Number purchased | E90: 0's
C91: Number leased | E91: 0's
C92: Number in fleet | E92: 0's
C93: Proportion of total fleet expenditure allocated as regulatory expenditure | E93: (per cent)

Sheet 2.7 Vegetation management
B1: REGULATORY REPORTING STATEMENT
B2: =INDEX(dms_TradingNameFull_List,MATCH(dms_TradingName,dms_TradingName_List)) -> SA Power Networks
B3: =IF(SUM(dms_SingleYear_Model)>0,("CATEGORY ANALYSIS "&CRY&" to "&FRY),("CATEGORY ANALYSIS "&CRY)) -> CATEGORY ANALYSIS 2008-09 to 2018-19
B4: 2.7 VEGETATION MANAGEMENT
B6: There are THREE tables on this worksheet. Each has been 'grouped' (and sub-grouped) for easy navigation. See the Instructions sheet on how to group and ungroup data.
B8: 2.7.1 - DESCRIPTOR METRICS BY ZONE
B9: URBAN AND CBD
B10: ZONES | C10: ASSET | D10: Units | E10: VOLUMES (0's)
E11: =IF(dms_RPT="financial",dms_CRYf_y1,dms_CRYc_y1) -> 2008-09 | F11: =IF(dms_RPT="financial",dms_CRYf_y2,dms_CRYc_y2) -> 2009-10 | G11: =IF(dms_RPT="financial",dms_CRYf_y3,dms_CRYc_y3) -> 2010-11 | H11: =IF(dms_RPT="financial",dms_CRYf_y4,dms_CRYc_y4) -> 2011-12 | I11: =IF(dms_RPT="financial",dms_CRYf_y5,dms_CRYc_y5) -> 2012-13 | J11: =IF(dms_RPT="financial",dms_CRYf_y6,dms_CRYc_y6) -> 2013-14 | K11: =IF(dms_RPT="financial",dms_CRYf_y7,dms_CRYc_y7) -> 2014-15 | L11: =IF(dms_RPT="financial",dms_CRYf_y8,dms_CRYc_y8) -> 2015-16 | M11: =IF(dms_RPT="financial",dms_CRYf_y9,dms_CRYc_y9) -> 2016-17 | N11: =IF(dms_RPT="financial",dms_CRYf_y10,dms_CRYc_y10) -> 2017-18
B12: ZONE 1 | C12: Route line length within zone | D12: KM
C13: Number of maintenance spans | D13: 0's
C14: Total length of maintenance spans | D14: KM
C15: Length of vegetation corridors | D15: KM
C16: Average number of trees per maintenance span | D16: 0's
C17: Average frequency of cutting cycle | D17: years
B18: ZONE 2 | C18: Route line length within zone | D18: KM
C19: Number of maintenance spans | D19: 0's
C20: Total length of maintenance spans | D20: KM
C21: Length of vegetation corridors | D21: KM
C22: Average number of trees per maintenance span | D22: 0's
C23: Average frequency of cutting cycle | D23: years
B24: ` | C24: Route line length within zone | D24: KM
C25: Number of maintenance spans | D25: 0's
C26: Total length of maintenance spans | D26: KM
C27: Length of vegetation corridors | D27: KM
C28: Average number of trees per maintenance span | D28: 0's
C29: Average frequency of cutting cycle | D29: years
B30: ZONE 4 | C30: Route line length within zone | D30: KM
C31: Number of maintenance spans | D31: 0's
C32: Total length of maintenance spans | D32: KM
C33: Length of vegetation corridors | D33: KM
C34: Average number of trees per maintenance span | D34: 0's
C35: Average frequency of cutting cycle | D35: years
B36: ZONE 5 | C36: Route line length within zone | D36: KM
C37: Number of maintenance spans | D37: 0's
C38: Total length of maintenance spans | D38: KM
C39: Length of vegetation corridors | D39: KM
C40: Average number of trees per maintenance span | D40: 0's
C41: Average frequency of cutting cycle | D41: years
B42: ZONE 6 | C42: Route line length within zone | D42: KM
C43: Number of maintenance spans | D43: 0's
C44: Total length of maintenance spans | D44: KM
C45: Length of vegetation corridors | D45: KM
C46: Average number of trees per maintenance span | D46: 0's
C47: Average frequency of cutting cycle | D47: years
B48: ZONE 7 | C48: Route line length within zone | D48: KM
C49: Number of maintenance spans | D49: 0's
C50: Total length of maintenance spans | D50: KM
C51: Length of vegetation corridors | D51: KM
C52: Average number of trees per maintenance span | D52: 0's
C53: Average frequency of cutting cycle | D53: years
B54: ZONE 8 | C54: Route line length within zone | D54: KM
C55: Number of maintenance spans | D55: 0's
C56: Total length of maintenance spans | D56: KM
C57: Length of vegetation corridors | D57: KM
C58: Average number of trees per maintenance span | D58: 0's
C59: Average frequency of cutting cycle | D59: years
B60: ZONE 9 | C60: Route line length within zone | D60: KM
C61: Number of maintenance spans | D61: 0's
C62: Total length of maintenance spans | D62: KM
C63: Length of vegetation corridors | D63: KM
C64: Average number of trees per maintenance span | D64: 0's
C65: Average frequency of cutting cycle | D65: years
B66: ZONE 10 | C66: Route line length within zone | D66: KM
C67: Number of maintenance spans | D67: 0's
C68: Total length of maintenance spans | D68: KM
C69: Length of vegetation corridors | D69: KM
C70: Average number of trees per maintenance span | D70: 0's
C71: Average frequency of cutting cycle | D71: years
B72: ZONE 11 | C72: Route line length within zone | D72: KM
C73: Number of maintenance spans | D73: 0's
C74: Total length of maintenance spans | D74: KM
C75: Length of vegetation corridors | D75: KM
C76: Average number of trees per maintenance span | D76: 0's
C77: Average frequency of cutting cycle | D77: years
B78: ZONE 12 | C78: Route line length within zone | D78: KM
C79: Number of maintenance spans | D79: 0's
C80: Total length of maintenance spans | D80: KM
C81: Length of vegetation corridors | D81: KM
C82: Average number of trees per maintenance span | D82: 0's
C83: Average frequency of cutting cycle | D83: years
B84: ZONE 13 | C84: Route line length within zone | D84: KM
C85: Number of maintenance spans | D85: 0's
C86: Total length of maintenance spans | D86: KM
C87: Length of vegetation corridors | D87: KM
C88: Average number of trees per maintenance span | D88: 0's
C89: Average frequency of cutting cycle | D89: years
B90: ZONE 14 | C90: Route line length within zone | D90: KM
C91: Number of maintenance spans | D91: 0's
C92: Total length of maintenance spans | D92: KM
C93: Length of vegetation corridors | D93: KM
C94: Average number of trees per maintenance span | D94: 0's
C95: Average frequency of cutting cycle | D95: years
B96: ZONE 15 | C96: Route line length within zone | D96: KM
C97: Number of maintenance spans | D97: 0's
C98: Total length of maintenance spans | D98: KM
C99: Length of vegetation corridors | D99: KM
C100: Average number of trees per maintenance span | D100: 0's
C101: Average frequency of cutting cycle | D101: years
B102: ZONE 16 | C102: Route line length within zone | D102: KM
C103: Number of maintenance spans | D103: 0's
C104: Total length of maintenance spans | D104: KM
C105: Length of vegetation corridors | D105: KM
C106: Average number of trees per maintenance span | D106: 0's
C107: Average frequency of cutting cycle | D107: years
B108: ZONE 17 | C108: Route line length within zone | D108: KM
C109: Number of maintenance spans | D109: 0's
C110: Total length of maintenance spans | D110: KM
C111: Length of vegetation corridors | D111: KM
C112: Average number of trees per maintenance span | D112: 0's
C113: Average frequency of cutting cycle | D113: years
B114: ZONE 18 | C114: Route line length within zone | D114: KM
C115: Number of maintenance spans | D115: 0's
C116: Total length of maintenance spans | D116: KM
C117: Length of vegetation corridors | D117: KM
C118: Average number of trees per maintenance span | D118: 0's
C119: Average frequency of cutting cycle | D119: years
B121: RURAL
B122: ZONES | C122: ASSET | D122: Units | E122: VOLUMES (0's)
E123: =IF(dms_RPT="financial",dms_CRYf_y1,dms_CRYc_y1) -> 2008-09 | F123: =IF(dms_RPT="financial",dms_CRYf_y2,dms_CRYc_y2) -> 2009-10 | G123: =IF(dms_RPT="financial",dms_CRYf_y3,dms_CRYc_y3) -> 2010-11 | H123: =IF(dms_RPT="financial",dms_CRYf_y4,dms_CRYc_y4) -> 2011-12 | I123: =IF(dms_RPT="financial",dms_CRYf_y5,dms_CRYc_y5) -> 2012-13 | J123: =IF(dms_RPT="financial",dms_CRYf_y6,dms_CRYc_y6) -> 2013-14 | K123: =IF(dms_RPT="financial",dms_CRYf_y7,dms_CRYc_y7) -> 2014-15 | L123: =IF(dms_RPT="financial",dms_CRYf_y8,dms_CRYc_y8) -> 2015-16 | M123: =IF(dms_RPT="financial",dms_CRYf_y9,dms_CRYc_y9) -> 2016-17 | N123: =IF(dms_RPT="financial",dms_CRYf_y10,dms_CRYc_y10) -> 2017-18
B124: =IF(ISBLANK(B12),"",B12) -> ZONE 1 | C124: Route line length within zone | D124: KM
C125: Number of maintenance spans | D125: 0's
C126: Total length of maintenance spans | D126: KM
C127: Length of vegetation corridors | D127: KM
C128: Average number of trees per maintenance span | D128: 0's
C129: Average frequency of cutting cycle | D129: years
B130: =IF(ISBLANK(B18),"",B18) -> ZONE 2 | C130: Route line length within zone | D130: KM
C131: Number of maintenance spans | D131: 0's
C132: Total length of maintenance spans | D132: KM
C133: Length of vegetation corridors | D133: KM
C134: Average number of trees per maintenance span | D134: 0's
C135: Average frequency of cutting cycle | D135: years
B136: =IF(ISBLANK(B24),"",B24) -> ` | C136: Route line length within zone | D136: KM
C137: Number of maintenance spans | D137: 0's
C138: Total length of maintenance spans | D138: KM
C139: Length of vegetation corridors | D139: KM
C140: Average number of trees per maintenance span | D140: 0's
C141: Average frequency of cutting cycle | D141: years
B142: =IF(ISBLANK(B30),"",B30) -> ZONE 4 | C142: Route line length within zone | D142: KM
C143: Number of maintenance spans | D143: 0's
C144: Total length of maintenance spans | D144: KM
C145: Length of vegetation corridors | D145: KM
C146: Average number of trees per maintenance span | D146: 0's
C147: Average frequency of cutting cycle | D147: years
B148: =IF(ISBLANK(B36),"",B36) -> ZONE 5 | C148: Route line length within zone | D148: KM
C149: Number of maintenance spans | D149: 0's
C150: Total length of maintenance spans | D150: KM
C151: Length of vegetation corridors | D151: KM
C152: Average number of trees per maintenance span | D152: 0's
C153: Average frequency of cutting cycle | D153: years
B154: =IF(ISBLANK(B42),"",B42) -> ZONE 6 | C154: Route line length within zone | D154: KM
C155: Number of maintenance spans | D155: 0's
C156: Total length of maintenance spans | D156: KM
C157: Length of vegetation corridors | D157: KM
C158: Average number of trees per maintenance span | D158: 0's
C159: Average frequency of cutting cycle | D159: years
B160: =IF(ISBLANK(B48),"",B48) -> ZONE 7 | C160: Route line length within zone | D160: KM
C161: Number of maintenance spans | D161: 0's
C162: Total length of maintenance spans | D162: KM
C163: Length of vegetation corridors | D163: KM
C164: Average number of trees per maintenance span | D164: 0's
C165: Average frequency of cutting cycle | D165: years
B166: =IF(ISBLANK(B54),"",B54) -> ZONE 8 | C166: Route line length within zone | D166: KM
C167: Number of maintenance spans | D167: 0's
C168: Total length of maintenance spans | D168: KM
C169: Length of vegetation corridors | D169: KM
C170: Average number of trees per maintenance span | D170: 0's
C171: Average frequency of cutting cycle | D171: years
B172: =IF(ISBLANK(B60),"",B60) -> ZONE 9 | C172: Route line length within zone | D172: KM
C173: Number of maintenance spans | D173: 0's
C174: Total length of maintenance spans | D174: KM
C175: Length of vegetation corridors | D175: KM
C176: Average number of trees per maintenance span | D176: 0's
C177: Average frequency of cutting cycle | D177: years
B178: =IF(ISBLANK(B66),"",B66) -> ZONE 10 | C178: Route line length within zone | D178: KM
C179: Number of maintenance spans | D179: 0's
C180: Total length of maintenance spans | D180: KM
C181: Length of vegetation corridors | D181: KM
C182: Average number of trees per maintenance span | D182: 0's
C183: Average frequency of cutting cycle | D183: years
B184: =IF(ISBLANK(B72),"",B72) -> ZONE 11 | C184: Route line length within zone | D184: KM
C185: Number of maintenance spans | D185: 0's
C186: Total length of maintenance spans | D186: KM
C187: Length of vegetation corridors | D187: KM
C188: Average number of trees per maintenance span | D188: 0's
C189: Average frequency of cutting cycle | D189: years
B190: =IF(ISBLANK(B78),"",B78) -> ZONE 12 | C190: Route line length within zone | D190: KM
C191: Number of maintenance spans | D191: 0's
C192: Total length of maintenance spans | D192: KM
C193: Length of vegetation corridors | D193: KM
C194: Average number of trees per maintenance span | D194: 0's
C195: Average frequency of cutting cycle | D195: years
B196: =IF(ISBLANK(B84),"",B84) -> ZONE 13 | C196: Route line length within zone | D196: KM
C197: Number of maintenance spans | D197: 0's
C198: Total length of maintenance spans | D198: KM
C199: Length of vegetation corridors | D199: KM
C200: Average number of trees per maintenance span | D200: 0's
C201: Average frequency of cutting cycle | D201: years
B202: =IF(ISBLANK(B90),"",B90) -> ZONE 14 | C202: Route line length within zone | D202: KM
C203: Number of maintenance spans | D203: 0's
... 200 more rows

Sheet 2.8 Maintenance
B1: REGULATORY REPORTING STATEMENT
B2: =INDEX(dms_TradingNameFull_List,MATCH(dms_TradingName,dms_TradingName_List)) -> SA Power Networks
B3: =IF(SUM(dms_SingleYear_Model)>0,("CATEGORY ANALYSIS "&CRY&" to "&FRY),("CATEGORY ANALYSIS "&CRY)) -> CATEGORY ANALYSIS 2008-09 to 2018-19
B4: 2.8 MAINTENANCE
B6: There are TWO tables on this worksheet. It has been 'grouped' (and sub-grouped) for easy navigation. See the Instructions sheet on how to group or ungroup data.
B8: 2.8.1 - DESCRIPTOR METRICS FOR ROUTINE AND NON-ROUTINE MAINTENANCE
B9: ASSET QUANTITY AT YEAR END
F10: VOLUME | Q10: AVERAGE AGE OF ASSET GROUP | R10: INSPECTION CYCLE (YEARS) | S10: MAINTENANCE CYCLE (YEARS)
F11: (0's)
B12: MAINTENANCE ACTIVITY | C12: MAINTENANCE ASSET CATEGORY | D12: ASSET QUANTITY | E12: Units | F12: =IF(dms_RPT="financial",dms_CRYf_y1,dms_CRYc_y1) -> 2008-09 | G12: =IF(dms_RPT="financial",dms_CRYf_y2,dms_CRYc_y2) -> 2009-10 | H12: =IF(dms_RPT="financial",dms_CRYf_y3,dms_CRYc_y3) -> 2010-11 | I12: =IF(dms_RPT="financial",dms_CRYf_y4,dms_CRYc_y4) -> 2011-12 | J12: =IF(dms_RPT="financial",dms_CRYf_y5,dms_CRYc_y5) -> 2012-13 | K12: =IF(dms_RPT="financial",dms_CRYf_y6,dms_CRYc_y6) -> 2013-14 | L12: =IF(dms_RPT="financial",dms_CRYf_y7,dms_CRYc_y7) -> 2014-15 | M12: =IF(dms_RPT="financial",dms_CRYf_y8,dms_CRYc_y8) -> 2015-16 | N12: =IF(dms_RPT="financial",dms_CRYf_y9,dms_CRYc_y9) -> 2016-17 | O12: =IF(dms_RPT="financial",dms_CRYf_y10,dms_CRYc_y10) -> 2017-18 | Q12: =dms_CRCP_FinalYear_Result -> 2018-19
B13: Pole top, overhead line & service line maintenance | C13: Pole tops and overhead lines | D13: Number of poles | E13: Number | F13: 730110 | G13: 731860 | H13: 733780 | I13: 736217 | J13: 739635 | K13: 744856 | L13: 745860 | M13: 745696 | N13: 745140 | O13: 647497 | Q13: 45.6 | R13: 5 | S13: 0
C14: Service lines | D14: Number of customers | E14: Number | F14: 704667 | G14: 714037 | H14: 722809 | I14: 730127 | J14: 736831 | K14: 751851 | L14: 758917 | M14: 767814 | N14: 776103 | O14: 796125 | Q14: 28.64 | R14: 10 | S14: 0
B15: Pole inspection and treatment | C15: All poles | D15: Number of poles | E15: Number | F15: 0 | G15: 0 | H15: 0 | I15: 0 | J15: 0 | K15: 744856 | L15: 745860 | M15: 745696 | N15: 745140 | O15: 647497 | Q15: 45.6 | R15: 5 | S15: 0
B16: Overhead asset inspection | C16: All overhead assets | D16: Line patrolled (route KM) | E16: KM | F16: 0 | G16: 0 | H16: 0 | I16: 0 | J16: 0 | K16: 65296 | L16: 65355 | M16: 71863 | N16: 71222 | O16: 65326 | Q16: 50.5 | R16: 5 | S16: 0
B17: Network underground cable maintenance: by voltage | C17: LV - 11 to 22 KV | D17: Length (KM) | E17: KM | F17: 15713 | G17: 15963 | H17: 16263 | I17: 16520 | J17: 16570 | K17: 16757 | L17: 16800 | M17: 17314 | N17: 17581 | O17: 17876 | Q17: 24 | R17: 0 | S17: 0
C18: 33 KV and above | D18: Length (KM) | E18: KM | F18: 142 | G18: 147 | H18: 154 | I18: 159 | J18: 161 | K18: 164 | L18: 170 | M18: 53 | N18: 172 | O18: 188 | Q18: 28.9 | R18: 0.5 | S18: 0
B19: Network underground cable maintenance: by location | C19: Cbd | D19: Length (KM) | E19: KM | F19: 476 | G19: 483 | H19: 493 | I19: 500 | J19: 502 | K19: 507 | L19: 509 | M19: 521 | N19: 266 | O19: 272 | Q19: 28.9 | R19: 0 | S19: 0
C20: Non-CBD | D20: Length (KM) | E20: KM | F20: 15380 | G20: 15627 | H20: 15925 | I20: 16179 | J20: 16230 | K20: 16413 | L20: 16461 | M20: 16846 | N20: 17487 | O20: 17792 | Q20: 24 | R20: 0 | S20: 0
B21: Distribution substation equipment & property maintenance | C21: Distribution substation transformers | D21: Number of installed transformers | E21: Number | F21: 70285 | G21: 72181 | H21: 73400 | I21: 74408 | J21: 75042 | K21: 75559 | L21: 74624 | M21: 75616 | N21: 77847 | O21: 75945 | Q21: 30.2 | R21: 5 | S21: 0
C22: Distribution substation switchgear (within-substations and stand-alone switchgear) | D22: Number of switches | E22: Number | F22: 10923 | G22: 11497 | H22: 12046 | I22: 12660 | J22: 13030 | K22: 13971 | L22: 8235 | M22: 8287 | N22: 10107 | O22: 9621 | Q22: 13.9 | R22: 1 | S22: 0
C23: Distribution substation - other equipment | D23: Earth mat | E23: Number | F23: 485 | G23: 0 | H23: 0 | I23: 0 | J23: 0 | K23: 0 | L23: 0 | M23: 0 | N23: 0 | O23: 0 | Q23: 0 | R23: 0 | S23: 0
C24: Distribution substation - property | D24: Number of distribution substation properties maintained | E24: Number | F24: 0 | G24: 0 | H24: 0 | I24: 0 | J24: 0 | K24: 1419 | L24: 1420 | M24: 1416 | N24: 721 | O24: 730 | Q24: 41 | R24: 0 | S24: 0
B25: Zone substation equipment maintenance | C25: Transformers - zone substation | D25: Number | E25: Number | F25: 651 | G25: 669 | H25: 686 | I25: 702 | J25: 708 | K25: 696 | L25: 697 | M25: 694 | N25: 693 | O25: 750 | Q25: 31.425 | R25: 0.5 | S25: 6
C26: Transformers - distribution | D26: Number of distribution transformers within zone substation | E26: Number | F26: 172 | G26: 185 | H26: 209 | I26: 226 | J26: 246 | K26: 267 | L26: 285 | M26: 346 | N26: 324 | O26: 338 | Q26: 21 | R26: 0.5 | S26: 0
C27: Transformers - HV | D27: Number of HV transformers | E27: Number | F27: 0 | G27: 0 | H27: 0 | I27: 0 | J27: 0 | K27: 0 | L27: 0 | M27: 0 | N27: 0 | O27: 0 | Q27: 0 | R27: 0 | S27: 0
C28: Zone substation - other equipment | D28: <DNSP to nominate> | E28: =D28 -> <DNSP to nominate> | F28: 317 | G28: 318 | H28: 322 | I28: 324 | J28: 324 | K28: 332 | L28: 339 | M28: 348 | N28: 355 | O28: 341 | Q28: 5.5 | R28: 0.5 | S28: 10
B29: Zone substation property maintenance | C29: All zone substation properties | D29: Number of zone substation properties maintained | E29: Number | F29: 406 | G29: 407 | H29: 413 | I29: 408 | J29: 408 | K29: 406 | L29: 407 | M29: 410 | N29: 416 | O29: 417 | Q29: 42 | R29: 0.5 | S29: 4.5
B30: Public lighting maintenance | C30: Minor roads | D30: Number of public lights maintained | E30: Number | F30: 0 | G30: 0 | H30: 0 | I30: 0 | J30: 0 | K30: 0 | L30: 0 | M30: 0 | N30: 0 | O30: 0 | Q30: 0 | R30: 0 | S30: 0
C31: Major roads | D31: Number of public lights maintained | E31: Number | F31: 0 | G31: 0 | H31: 0 | I31: 0 | J31: 0 | K31: 0 | L31: 0 | M31: 0 | N31: 0 | O31: 0 | Q31: 0 | R31: 0 | S31: 0
B32: SCADA & network control maintenance | C32: SCADA & network control | D32: Number of systems | E32: Number | F32: 235 | G32: 242 | H32: 255 | I32: 252 | J32: 272 | K32: 299 | L32: 319 | M32: 331 | N32: 340 | O32: 345 | Q32: 10 | R32: 0 | S32: 0
B33: Protection systems maintenance | C33: Protection systems | D33: Number of systems | E33: Number | F33: 11972 | G33: 12126 | H33: 12275 | I33: 12426 | J33: 12566 | K33: 2886 | L33: 2963 | M33: 2989 | N33: 3002 | O33: 6491 | Q33: 34.6 | R33: 0.5 | S33: 4.5
B34: Subtransmission asset maintenance | C34: Subtransmission asset maintenance - for DNSPs with dual function assets | D34: <DNSP to nominate> | E34: =D34 -> <DNSP to nominate> | F34: 0 | G34: 0 | H34: 0 | I34: 0 | J34: 0 | K34: 0 | L34: 0 | M34: 0 | N34: 0 | O34: 0 | Q34: 0 | R34: 0 | S34: 0
B35: Various assets | C35: includes rates, electricity, communications equip, metering | D35: Various | E35: Number | F35: 1576 | G35: 1757 | H35: 1943 | I35: 2149 | J35: 2360 | K35: 42 | L35: 5089 | M35: 5418 | N35: 5615 | O35: 6045 | Q35: 11 | R35: 1.5 | S35: 1.5
B36: Ground clearance - access tracks | C36: Access tracks | D36: Number | E36: Number | F36: 0 | G36: 0 | H36: 0 | I36: 0 | J36: 0 | K36: 0 | L36: 0 | M36: 0 | N36: 0 | O36: 0 | Q36: 0 | R36: 0 | S36: 0
B37: Other | C37: (1) Substation asset inspection | D37: No. of sites | F37: 397 | G37: 396 | H37: 400 | I37: 395 | J37: 402 | K37: 0 | L37: 400 | M37: 406 | N37: 408 | O37: 408 | Q37: 42 | R37: 0.5 | S37: 0
C38: (2) Zone substation equipment maintenance (switchgear) | D38: No. of CBs and disconnectors | F38: 4794 | G38: 4956 | H38: 5141 | I38: 5421 | J38: 5538 | K38: 0 | L38: 5901 | M38: 6001 | N38: 5996 | O38: 5920 | Q38: 33.5 | R38: 0.5 | S38: 4.5
C39: (3) Numbers of signages and IDs replaced | D39: No. of sites | F39: 0 | G39: 0 | H39: 0 | I39: 0 | J39: 0 | K39: 0 | L39: 74624 | M39: 75616 | N39: 78864 | O39: 75945 | Q39: 0 | R39: 0 | S39: 0
C40: (4) Power Station Maintenance, Asset Records Feeder Diagram Maintenance, Compliance Audting, Asset Location Services, Customer Service Penalties | D40: Units not quoted as various UOM | F40: 0 | G40: 0 | H40: 0 | I40: 0 | J40: 0 | K40: 0 | L40: 0 | M40: 0 | N40: 0 | O40: 0 | Q40: 0 | R40: 0 | S40: 0
B48: ASSET QUANTITY INSPECTED / MAINTAINED
F49: VOLUME
F50: (0's)
B51: MAINTENANCE ACTIVITY | C51: MAINTENANCE ASSET CATEGORY | D51: ASSET QUANTITY | E51: Units | F51: =IF(dms_RPT="financial",dms_CRYf_y1,dms_CRYc_y1) -> 2008-09 | G51: =IF(dms_RPT="financial",dms_CRYf_y2,dms_CRYc_y2) -> 2009-10 | H51: =IF(dms_RPT="financial",dms_CRYf_y3,dms_CRYc_y3) -> 2010-11 | I51: =IF(dms_RPT="financial",dms_CRYf_y4,dms_CRYc_y4) -> 2011-12 | J51: =IF(dms_RPT="financial",dms_CRYf_y5,dms_CRYc_y5) -> 2012-13 | K51: =IF(dms_RPT="financial",dms_CRYf_y6,dms_CRYc_y6) -> 2013-14 | L51: =IF(dms_RPT="financial",dms_CRYf_y7,dms_CRYc_y7) -> 2014-15 | M51: =IF(dms_RPT="financial",dms_CRYf_y8,dms_CRYc_y8) -> 2015-16 | N51: =IF(dms_RPT="financial",dms_CRYf_y9,dms_CRYc_y9) -> 2016-17 | O51: =IF(dms_RPT="financial",dms_CRYf_y10,dms_CRYc_y10) -> 2017-18
B52: Pole top, overhead line & service line maintenance | C52: Pole tops and overhead lines | D52: Number of poles | E52: Number | F52: 1151 | G52: 1317 | H52: 1979 | I52: 4819 | J52: 6788 | K52: 2802 | L52: 3725 | M52: 2680 | N52: 88616 | O52: 100102
C53: Service lines | D53: Number of customers | E53: Number | F53: 0 | G53: 0 | H53: 0 | I53: 0 | J53: 0 | K53: 0 | L53: 0 | M53: 0 | N53: 0 | O53: 0
B54: Pole inspection and treatment | C54: All poles | D54: Number of poles | E54: Number | F54: 15819 | G54: 16949 | H54: 37512 | I54: 119200 | J54: 133713 | K54: 88402 | L54: 89710 | M54: 105501 | N54: 88616 | O54: 100102
B55: Overhead asset inspection | C55: All overhead assets | D55: Line patrolled (route KM) | E55: KM | F55: 49861 | G55: 49861 | H55: 49861 | I55: 49861 | J55: 49861 | K55: 49861 | L55: 49861 | M55: 49876 | N55: 49876 | O55: 49898
B56: Network underground cable maintenance: by voltage | C56: LV - 11 to 22 KV | D56: Length (KM) | E56: KM | F56: 1174 | G56: 1750 | H56: 2026 | I56: 1536 | J56: 1495 | K56: 970 | L56: 1 | M56: 1 | N56: 556 | O56: 835
C57: 33 KV and above | D57: Length (KM) | E57: KM | F57: 180 | G57: 156 | H57: 140 | I57: 144 | J57: 180 | K57: 150 | L57: 0 | M57: 0 | N57: 17 | O57: 12
B58: Network underground cable maintenance: by location | C58: Cbd | D58: Length (KM) | E58: KM | F58: 1354 | G58: 1906 | H58: 2166 | I58: 1680 | J58: 1675 | K58: 1 | L58: 1 | M58: 1 | N58: 572 | O58: 15
C59: Non-CBD | D59: Length (KM) | E59: KM | F59: 0 | G59: 0 | H59: 0 | I59: 0 | J59: 0 | K59: 0 | L59: 0 | M59: 0 | N59: 0 | O59: 832
B60: Distribution substation equipment & property maintenance | C60: Distribution substation transformers | D60: Number of installed transformers | E60: Number | F60: 562 | G60: 418 | H60: 785 | I60: 484 | J60: 648 | K60: 653 | L60: 400 | M60: 401 | N60: 405 | O60: 401
C61: Distribution substation switchgear (within-substations and stand-alone switchgear) | D61: Number of switches | E61: Number | F61: 3910 | G61: 3475 | H61: 3417 | I61: 3520 | J61: 3810 | K61: 4820 | L61: 4623 | M61: 4438 | N61: 4405 | O61: 1807
C62: Distribution substation - other equipment | D62: Earth mat | E62: Number | F62: 485 | G62: 1116 | H62: 716 | I62: 851 | J62: 742 | K62: 0 | L62: 0 | M62: 0 | N62: 0 | O62: 0
C63: Distribution substation - property | D63: Number of distribution substation properties maintained | E63: Number | F63: 59 | G63: 77 | H63: 65 | I63: 118 | J63: 246 | K63: 141 | L63: 58 | M63: 76 | N63: 80 | O63: 35
B64: Zone substation equipment maintenance | C64: Transformers - zone substation | D64: Number | E64: Number | F64: 165 | G64: 111 | H64: 346 | I64: 1008 | J64: 703 | K64: 566 | L64: 668 | M64: 724 | N64: 594 | O64: 613
C65: Transformers - distribution | D65: Number of distribution transformers within zone substation | E65: Number | F65: 0 | G65: 0 | H65: 0 | I65: 0 | J65: 0 | K65: 0 | L65: 0 | M65: 0 | N65: 0 | O65: 0
C66: Transformers - HV | D66: Number of HV transformers | E66: Number | F66: 0 | G66: 0 | H66: 0 | I66: 0 | J66: 0 | K66: 0 | L66: 0 | M66: 0 | N66: 0 | O66: 0
C67: Zone substation - other equipment | D67: =IF(ISBLANK(D28),"",D28) -> <DNSP to nominate> | E67: =IF(ISBLANK(E28),"",E28) -> <DNSP to nominate> | F67: 377 | G67: 383 | H67: 469 | I67: 538 | J67: 468 | K67: 737 | L67: 552 | M67: 481 | N67: 451 | O67: 239
B68: Zone substation property maintenance | C68: All zone substation properties | D68: Number of zone substation properties maintained | E68: Number | F68: 1157 | G68: 1029 | H68: 1263 | I68: 1090 | J68: 1079 | K68: 1133 | L68: 1373 | M68: 1562 | N68: 1197 | O68: 1008
B69: Public lighting maintenance | C69: Minor roads | D69: Number of public lights maintained | E69: Number | F69: 0 | G69: 0 | H69: 0 | I69: 0 | J69: 0 | K69: 0 | L69: 0 | M69: 0 | N69: 0 | O69: 0
C70: Major roads | D70: Number of public lights maintained | E70: Number | F70: 0 | G70: 0 | H70: 0 | I70: 0 | J70: 0 | K70: 0 | L70: 0 | M70: 0 | N70: 0 | O70: 0
B71: SCADA & network control maintenance | C71: SCADA & network control | D71: Number of systems | E71: Number | F71: 10 | G71: 10 | H71: 10 | I71: 11 | J71: 11 | K71: 0 | L71: 375 | M71: 0 | N71: 0 | O71: 0
B72: Protection systems maintenance | C72: Protection systems | D72: Number of systems | E72: Number | F72: 395 | G72: 629 | H72: 639 | I72: 551 | J72: 705 | K72: 664 | L72: 600 | M72: 498 | N72: 342 | O72: 233
B73: Subtransmission asset maintenance | C73: Subtransmission asset maintenance - for DNSPs with dual function assets | D73: =IF(ISBLANK(D34),"",D34) -> <DNSP to nominate> | E73: =IF(ISBLANK(E34),"",E34) -> <DNSP to nominate> | F73: 0 | G73: 0 | H73: 0 | I73: 0 | J73: 0 | K73: 0 | L73: 0 | M73: 0 | N73: 0 | O73: 0
B74: Various assets | C74: includes rates, electricity, communications equip, metering | D74: Various | E74: Number | F74: 1 | G74: 66 | H74: 336 | I74: 477 | J74: 52 | K74: 1 | L74: 345 | M74: 0 | N74: 350 | O74: 311
B75: Ground clearance - access tracks | C75: Access tracks | D75: Number | E75: Number | F75: 0 | G75: 0 | H75: 0 | I75: 0 | J75: 0 | K75: 0 | L75: 0 | M75: 0 | N75: 0 | O75: 0
B76: Other | C76: =IF(ISBLANK(C37),"",C37) -> (1) Substation asset inspection | D76: No. of sites | F76: 756 | G76: 628 | H76: 512 | I76: 802 | J76: 798 | K76: 0 | L76: 761 | M76: 787 | N76: 874 | O76: 441
C77: (2) Zone substation equipment maintenance (switchgear) | D77: No. of CBs and disconnectors | F77: 480 | G77: 455 | H77: 540 | I77: 289 | J77: 734 | K77: 0 | L77: 844 | M77: 525 | N77: 1323 | O77: 619
C78: (3) Numbers of signages and IDs replaced | D78: No. of sites | F78: 0 | G78: 0 | H78: 0 | I78: 0 | J78: 0 | K78: 0 | L78: 1042 | M78: 1741 | N78: 671 | O78: 2049
C79: (4) Power Station Maintenance, Asset Records Feeder Diagram Maintenance, Compliance Audting, Asset Location Services, Customer Service Penalties | D79: Units not quoted as various UOM | F79: 0 | G79: 0 | H79: 0 | I79: 0 | J79: 0 | K79: 0 | L79: 0 | M79: 0 | N79: 0 | O79: 0
B89: 2.8.2 - COST METRICS FOR ROUTINE AND NON-ROUTINE MAINTENANCE
B90: ROUTINE MAINTENANCE
F91: EXPENDITURE
F92: ($0'S)
B93: MAINTENANCE ACTIVITY | C93: MAINTENANCE ASSET CATEGORY | D93: ASSET QUANTITY | E93: Units | F93: =IF(dms_RPT="financial",dms_CRYf_y1,dms_CRYc_y1) -> 2008-09 | G93: =IF(dms_RPT="financial",dms_CRYf_y2,dms_CRYc_y2) -> 2009-10 | H93: =IF(dms_RPT="financial",dms_CRYf_y3,dms_CRYc_y3) -> 2010-11 | I93: =IF(dms_RPT="financial",dms_CRYf_y4,dms_CRYc_y4) -> 2011-12 | J93: =IF(dms_RPT="financial",dms_CRYf_y5,dms_CRYc_y5) -> 2012-13 | K93: =IF(dms_RPT="financial",dms_CRYf_y6,dms_CRYc_y6) -> 2013-14 | L93: =IF(dms_RPT="financial",dms_CRYf_y7,dms_CRYc_y7) -> 2014-15 | M93: =IF(dms_RPT="financial",dms_CRYf_y8,dms_CRYc_y8) -> 2015-16 | N93: =IF(dms_RPT="financial",dms_CRYf_y9,dms_CRYc_y9) -> 2016-17 | O93: =IF(dms_RPT="financial",dms_CRYf_y10,dms_CRYc_y10) -> 2017-18
B94: Pole top, overhead line & service line maintenance | C94: Pole tops and overhead lines | D94: Number of poles | E94: Number | F94: 31259.52098 | G94: 1099.921293 | H94: 929.2725656 | I94: 39774.00188 | J94: 0 | K94: 39256 | L94: 160020 | M94: 3133 | N94: 7284 | O94: 19658.93
C95: Service lines | D95: Number of customers | E95: Number | F95: 0 | G95: 0 | H95: 0 | I95: 0 | J95: 0 | K95: 0 | L95: 0 | M95: 0 | N95: 0 | O95: 0
B96: Pole inspection and treatment | C96: All poles | D96: Number of poles | E96: Number | F96: 629803.342 | G96: 666438.3832 | H96: 1162190.286 | I96: 4074341.992 | J96: 5222782.607 | K96: 4441131 | L96: 6346702 | M96: 6316534 | N96: 5745181 | O96: 5241065.13
B97: Overhead asset inspection | C97: All overhead assets | D97: Line patrolled (route KM) | E97: KM | F97: 3326040.242 | G97: 4502456.737 | H97: 6373237.454 | I97: 4308974.766 | J97: 6520438.575 | K97: 5395136 | L97: 6472355 | M97: 5865975 | N97: 5727497 | O97: 4939638.58
B98: Network underground cable maintenance: by voltage | C98: LV - 11 to 22 KV | D98: Length (KM) | E98: KM | F98: 111650.9874 | G98: 3061.532079 | H98: 30473.0661 | I98: 39406.87401 | J98: 31016.73475 | K98: 0 | L98: 183638 | M98: 111695 | N98: 429981 | O98: 572731.5
C99: 33 KV and above | D99: Length (KM) | E99: KM | F99: 23040.24683 | G99: 21245.71475 | H99: 5358.054851 | I99: 9993.068181 | J99: 18582.86779 | K99: 90359 | L99: 87835 | M99: 25190 | N99: 80287 | O99: 10310.81
B100: Network underground cable maintenance: by location | C100: Cbd | D100: Length (KM) | E100: KM | F100: 134691.8593 | G100: 24308.09584 | H100: 35831.12096 | I100: 49399.75699 | J100: 49598.50686 | K100: 90359 | L100: 271473 | M100: 136885 | N100: 510268 | O100: 583042.31
C101: Non-CBD | D101: Length (KM) | E101: KM | F101: 0 | G101: 0 | H101: 0 | I101: 0 | J101: 0 | K101: 0 | L101: 0 | M101: 0 | N101: 0 | O101: 0
B102: Distribution substation equipment & property maintenance | C102: Distribution substation transformers | D102: Number of installed transformers | E102: Number | F102: 6248.332262 | G102: 653.8702618 | H102: 4892.882655 | I102: 311.5684618 | J102: 1753.100735 | K102: 1330 | L102: 0 | M102: 4518 | N102: 8371 | O102: 4550.28
C103: Distribution substation switchgear (within-substations and stand-alone switchgear) | D103: Number of switches | E103: Number | F103: 160849.2687 | G103: 157995.8372 | H103: 150938.731 | I103: 141637.2797 | J103: 153958.4022 | K103: 202336 | L103: 302035 | M103: 330985 | N103: 288857 | O103: 250988.67
C104: Distribution substation - other equipment | D104: Earth mat | E104: Number | F104: 0 | G104: 10857.2876 | H104: 0 | I104: 0 | J104: 0 | K104: 0 | L104: 0 | M104: 0 | N104: 0 | O104: 0
C105: Distribution substation - property | D105: Number of distribution substation properties maintained | E105: Number | F105: 0 | G105: 0 | H105: 0 | I105: 0 | J105: 0 | K105: 0 | L105: 0 | M105: 0 | N105: 0 | O105: 0
B106: Zone substation equipment maintenance | C106: Transformers - zone substation | D106: Number | E106: Number | F106: 324069.37 | G106: 292418.8024 | H106: 1329841.346 | I106: 2075935.919 | J106: 1340785.182 | K106: 582667 | L106: 642767 | M106: 982526 | N106: 1481535 | O106: 1390177.2
C107: Transformers - distribution | D107: Number of distribution transformers within zone substation | E107: Number | F107: 0 | G107: 0 | H107: 0 | I107: 0 | J107: 0 | K107: 0 | L107: 0 | M107: 0 | N107: 0 | O107: 0
C108: Transformers - HV | D108: Number of HV transformers | E108: Number | F108: 0 | G108: 0 | H108: 0 | I108: 0 | J108: 0 | K108: 0 | L108: 0 | M108: 0 | N108: 0 | O108: 0
C109: Zone substation - other equipment | D109: =IF(ISBLANK(D28),"",D28) -> <DNSP to nominate> | E109: =IF(ISBLANK(E28),"",E28) -> <DNSP to nominate> | F109: 1230392.044 | G109: 553730.5381 | H109: 327191.6077 | I109: 250339.2128 | J109: 327100.0435 | K109: 434744 | L109: 930780 | M109: 995167 | N109: 675733 | O109: 953798.54
B110: Zone substation property maintenance | C110: All zone substation properties | D110: Number of zone substation properties maintained | E110: Number | F110: 845024.2892 | G110: 1139881.142 | H110: 906090.2805 | I110: 939532.8662 | J110: 915132.5098 | K110: 1077934 | L110: 1152193 | M110: 961342 | N110: 964907 | O110: 1086746.96
B111: Public lighting maintenance | C111: Minor roads | D111: Number of public lights maintained | E111: Number | F111: 0 | G111: 0 | H111: 0 | I111: 0 | J111: 0 | K111: 0 | L111: 0 | M111: 0 | N111: 0 | O111: 0
C112: Major roads | D112: Number of public lights maintained | E112: Number | F112: 0 | G112: 0 | H112: 0 | I112: 0 | J112: 0 | K112: 0 | L112: 0 | M112: 0 | N112: 0 | O112: 0
B113: SCADA & network control maintenance | C113: SCADA & network control | D113: Number of systems | E113: Number | F113: 0 | G113: 0 | H113: 0 | I113: 0 | J113: 0 | K113: 0 | L113: 0 | M113: 0 | N113: 0 | O113: 0
B114: Protection systems maintenance | C114: Protection systems | D114: Number of systems | E114: Number | F114: 356592.1053 | G114: 699746.4203 | H114: 620413.9515 | I114: 475276.9353 | J114: 1149712.432 | K114: 975951 | L114: 1107097 | M114: 736064 | N114: 813357 | O114: 652255.53
B115: Subtransmission asset maintenance | C115: Subtransmission asset maintenance - for DNSPs with dual function assets | D115: =IF(ISBLANK(D34),"",D34) -> <DNSP to nominate> | E115: =IF(ISBLANK(E34),"",E34) -> <DNSP to nominate> | F115: 0 | G115: 0 | H115: 0 | I115: 0 | J115: 0 | K115: 0 | L115: 0 | M115: 0 | N115: 0 | O115: 0
B116: Various assets | C116: includes rates, electricity, communications equip, metering | D116: Various | E116: Number | F116: 676806.1344 | G116: 745864.4855 | H116: 794066.0869 | I116: 663681.1313 | J116: 521911.237 | K116: 804000 | L116: 678196 | M116: 762630 | N116: 634506 | O116: 503219.83
B117: Ground clearance - access tracks | C117: Access tracks | D117: Number | E117: Number | F117: 0 | G117: 0 | H117: 0 | I117: 0 | J117: 0 | K117: 0 | L117: 0 | M117: 0 | N117: 0 | O117: 0
B118: Other | C118: =IF(ISBLANK(C37),"",C37) -> (1) Substation asset inspection | D118: =IF(ISBLANK(D37),"",D37) -> No. of sites | F118: 358366.9863 | G118: 460585.7055 | H118: 492064.2931 | I118: 750585.8548 | J118: 738515.5984 | K118: 3815000 | L118: 3743437 | M118: 857414 | N118: 940563 | O118: 948743.22
C119: =IF(ISBLANK(C38),"",C38) -> (2) Zone substation equipment maintenance (switchgear) | D119: No. of CBs and disconnectors | F119: 784569.7356 | G119: 802688.6751 | H119: 652675.6797 | I119: 367604.7359 | J119: 1440500.423 | K119: 0 | L119: 0 | M119: 1497201 | N119: 774001 | O119: 814670.01
C120: (3) Numbers of signages and IDs replaced | D120: No. of sites | F120: 0 | G120: 0 | H120: 0 | I120: 0 | J120: 0 | K120: 0 | L120: 0 | M120: 0 | N120: 0 | O120: 0
C121: (4) Power Station Maintenance, Asset Records Feeder Diagram Maintenance, Compliance Audting, Asset Location Services, Customer Service Penalties | D121: Units not quoted as various UOM | F121: 433929.964 | G121: 573209.7894 | H121: 382054.2844 | I121: 520055.6963 | J121: 612625.4346 | K121: 0 | L121: 0 | M121: 872965 | N121: 1096115 | O121: 827864.76
B129: NON-ROUTINE MAINTENANCE
F130: EXPENDITURE
F131: ($0'S)
B132: MAINTENANCE ACTIVITY | C132: MAINTENANCE ASSET CATEGORY | D132: ASSET QUANTITY | E132: Units | F132: =IF(dms_RPT="financial",dms_CRYf_y1,dms_CRYc_y1) -> 2008-09 | G132: =IF(dms_RPT="financial",dms_CRYf_y2,dms_CRYc_y2) -> 2009-10 | H132: =IF(dms_RPT="financial",dms_CRYf_y3,dms_CRYc_y3) -> 2010-11 | I132: =IF(dms_RPT="financial",dms_CRYf_y4,dms_CRYc_y4) -> 2011-12 | J132: =IF(dms_RPT="financial",dms_CRYf_y5,dms_CRYc_y5) -> 2012-13 | K132: =IF(dms_RPT="financial",dms_CRYf_y6,dms_CRYc_y6) -> 2013-14 | L132: =IF(dms_RPT="financial",dms_CRYf_y7,dms_CRYc_y7) -> 2014-15 | M132: =IF(dms_RPT="financial",dms_CRYf_y8,dms_CRYc_y8) -> 2015-16 | N132: =IF(dms_RPT="financial",dms_CRYf_y9,dms_CRYc_y9) -> 2016-17 | O132: =IF(dms_RPT="financial",dms_CRYf_y10,dms_CRYc_y10) -> 2017-18
B133: Pole top, overhead line & service line maintenance | C133: Pole tops and overhead lines | D133: Number of poles | E133: Number | F133: 1619036.679 | G133: 1951865.069 | H133: 2235363.239 | I133: 2689529.295 | J133: 1354837.476 | K133: 5614077.438 | L133: 2729473.834 | M133: 3251498.959 | N133: 5696180.916 | O133: 4017163.138
C134: Service lines | D134: Number of customers | E134: Number | F134: 0 | G134: 0 | H134: 0 | I134: 0 | J134: 0 | K134: 0 | L134: 0 | M134: 0 | N134: 0 | O134: 0
B135: Pole inspection and treatment | C135: All poles | D135: Number of poles | E135: Number | F135: 0 | G135: 0 | H135: 0 | I135: 0 | J135: 0 | K135: 0 | L135: 0 | M135: 0 | N135: 0 | O135: 0
B136: Overhead asset inspection | C136: All overhead assets | D136: Line patrolled (route KM) | E136: KM | F136: 0 | G136: 0 | H136: 0 | I136: 0 | J136: 0 | K136: 0 | L136: 0 | M136: 0 | N136: 0 | O136: 0
B137: Network underground cable maintenance: by voltage | C137: LV - 11 to 22 KV | D137: Length (KM) | E137: KM | F137: 2283361.741 | G137: 2985526.121 | H137: 3604629.727 | I137: 4721853.499 | J137: 5479495.529 | K137: 8939655.682 | L137: 7685759.437 | M137: 6641357.969 | N137: 10283227.33 | O137: 10854068.87
C138: 33 KV and above | D138: Length (KM) | E138: KM | F138: 61314.87666 | G138: 98602.81263 | H138: 135338.8921 | I138: 57559.06768 | J138: 169098.0754 | K138: 90390.57939 | L138: 601380.9846 | M138: 334895.5017 | N138: 0 | O138: 1271081.834
B139: Network underground cable maintenance: by location | C139: Cbd | D139: Length (KM) | E139: KM | F139: 2344676.617 | G139: 3084128.934 | H139: 3739968.619 | I139: 4779412.566 | J139: 5648593.604 | K139: 9030046.261 | L139: 8287140.422 | M139: 6976253.471 | N139: 10283227.33 | O139: 12125150.71
C140: Non-CBD | D140: Length (KM) | E140: KM | F140: 0 | G140: 0 | H140: 0 | I140: 0 | J140: 0 | L140: 0 | M140: 0 | N140: 0
B141: Distribution substation equipment & property maintenance | C141: Distribution substation transformers | D141: Number of installed transformers | E141: Number | F141: 450084.0333 | G141: 292135.5473 | H141: 221622.3964 | I141: 543478.8903 | J141: 360818.8105 | K141: 407663 | L141: 864463 | M141: 493142 | N141: 550049 | O141: 933998.8
C142: Distribution substation switchgear (within-substations and stand-alone switchgear) | D142: Number of switches | E142: Number | F142: 29379.15312 | G142: 11289.39954 | H142: 13301.35241 | I142: 27821.10271 | J142: 29552.89564 | K142: 29896 | L142: 56601 | M142: 110932 | N142: 84464 | O142: 160069.21
C143: Distribution substation - other equipment | D143: Earth mat | E143: Number | F143: 91122.57523 | G143: 234785.0428 | H143: 148767.2129 | I143: 176917.5057 | J143: 154353.9456 | K143: 0 | L143: 0 | M143: 0 | N143: 0 | O143: 0
C144: Distribution substation - property | D144: Number of distribution substation properties maintained | E144: Number | F144: 41499.48894 | G144: 55004.93499 | H144: 45410.02398 | I144: 82663.68838 | J144: 172060.263 | K144: 98591 | L144: 48188 | M144: 133390 | N144: 139767 | O144: 25289.11
B145: Zone substation equipment maintenance | C145: Transformers - zone substation | D145: Number | E145: Number | F145: 1096876.958 | G145: 1183258.819 | H145: 1243399.823 | I145: 2392939.279 | J145: 1119854.99 | K145: 1329203 | L145: 1209551 | M145: 1189864 | N145: 1303438 | O145: 1429181.9
C146: Transformers - distribution | D146: Number of distribution transformers within zone substation | E146: Number | F146: 0 | G146: 0 | H146: 0 | I146: 0 | J146: 0 | K146: 0 | L146: 0 | M146: 0 | N146: 0 | O146: 0
C147: Transformers - HV | D147: Number of HV transformers | E147: Number | F147: 0 | G147: 0 | H147: 0 | I147: 0 | J147: 0 | K147: 0 | L147: 0 | M147: 0 | N147: 0 | O147: 0
C148: Zone substation - other equipment | D148: =IF(ISBLANK(D28),"",D28) -> <DNSP to nominate> | E148: =IF(ISBLANK(E28),"",E28) -> <DNSP to nominate> | F148: 1219134.075 | G148: 615602.378 | H148: 728553.9787 | I148: 815533.7168 | J148: 1181654.541 | K148: 752725 | L148: 843950 | M148: 685935 | N148: 642354 | O148: 670461.52
B149: Zone substation property maintenance | C149: All zone substation properties | D149: Number of zone substation properties maintained | E149: Number | F149: 955086.5444 | G149: 578069.4647 | H149: 898156.5115 | I149: 1151039.657 | J149: 876037.706 | K149: 689512 | L149: 614640 | M149: 695641 | N149: 597462 | O149: 819584.59
B150: Public lighting maintenance | C150: Minor roads | D150: Number of public lights maintained | E150: Number | F150: 0 | G150: 0 | H150: 0 | I150: 0 | J150: 0 | K150: 0 | L150: 0 | M150: 0 | N150: 0 | O150: 0
C151: Major roads | D151: Number of public lights maintained | E151: Number | F151: 0 | G151: 0 | H151: 0 | I151: 0 | J151: 0 | K151: 0 | L151: 0 | M151: 0 | N151: 0 | O151: 0
B152: SCADA & network control maintenance | C152: SCADA & network control | D152: Number of systems | E152: Number | F152: 76059.0555 | G152: 20813.22265 | H152: 10680.06422 | I152: 39264.65281 | J152: 70693.27216 | K152: 741202 | L152: 535098 | M152: 459570 | N152: 500344 | O152: 724338.7
B153: Protection systems maintenance | C153: Protection systems | D153: Number of systems | E153: Number | F153: 144062.1252 | G153: 253052.8601 | H153: 208781.5323 | I153: 213625.9789 | J153: 313233.5974 | K153: 425051 | L153: 339057 | M153: 152049 | N153: 81874 | O153: 168426.46
B154: Subtransmission asset maintenance | C154: Subtransmission asset maintenance - for DNSPs with dual function assets | D154: =IF(ISBLANK(D34),"",D34) -> <DNSP to nominate> | E154: =IF(ISBLANK(E34),"",E34) -> <DNSP to nominate> | F154: 0 | G154: 0 | H154: 0 | I154: 0 | J154: 0 | K154: 0 | L154: 0 | M154: 0 | N154: 0 | O154: 0
B155: Various assets | C155: includes rates, electricity, communications equip, metering | D155: Various | E155: Number | F155: 1616227.199 | G155: 1360031.137 | H155: 1189444.232 | I155: 1536958.507 | J155: 1660665.212 | K155: 1521318 | L155: 2328383 | M155: 2154088 | N155: 1432010 | O155: 7494285
B156: Ground clearance - access tracks | C156: Access tracks | D156: Number | E156: Number | F156: 0 | G156: 0 | H156: 0 | I156: 0 | J156: 0 | K156: 0 | L156: 0 | M156: 0 | N156: 0 | O156: 0
B157: Other | C157: =IF(ISBLANK(C37),"",C37) -> (1) Substation asset inspection | D157: No. of sites | F157: 0 | G157: 0 | H157: 0 | I157: 0 | J157: 0 | K157: 1101000 | L157: 900358 | M157: 0 | N157: 0 | O157: 0
C158: (2) Zone substation equipment maintenance (switchgear) | D158: No. of CBs and disconnectors | F158: 627217.1218 | G158: 564598.3687 | H158: 689164.6442 | I158: 928028.1354 | J158: 693848.0051 | K158: 0 | L158: 0 | M158: 855807 | N158: 553706 | O158: 498911.24
C159: (3) Numbers of signages and IDs replaced | D159: No. of sites | F159: 0 | G159: 0 | H159: 0 | I159: 0 | J159: 0 | K159: 0 | L159: 0 | M159: 282636 | N159: 362267 | O159: 1162381.71
C160: (4) Power Station Maintenance, Asset Records Feeder Diagram Maintenance, Compliance Audting, Asset Location Services, Customer Service Penalties | D160: Units not quoted as various UOM | F160: 0 | G160: 0 | H160: 0 | I160: 0 | J160: 0 | K160: 0 | L160: 0 | M160: 0 | N160: 0 | O160: 0

Sheet 2.9 Emergency Response
B1: REGULATORY REPORTING STATEMENT
B2: =INDEX(dms_TradingNameFull_List,MATCH(dms_TradingName,dms_TradingName_List)) -> SA Power Networks
B3: =IF(SUM(dms_SingleYear_Model)>0,("CATEGORY ANALYSIS "&CRY&" to "&FRY),("CATEGORY ANALYSIS "&CRY)) -> CATEGORY ANALYSIS 2008-09 to 2018-19
B4: 2.9 EMERGENCY RESPONSE
B6: There is ONE table on this worksheet. It has been 'sub-grouped' for easy navigation. See the Instructions sheet on how to group or ungroup data.
B8: 2.9.1 - EMERGENCY RESPONSE EXPENDITURE (OPEX)
D9: EXPENDITURE ($0's)
D10: =IF(dms_RPT="financial",dms_CRYf_y1,dms_CRYc_y1) -> 2008-09 | E10: =IF(dms_RPT="financial",dms_CRYf_y2,dms_CRYc_y2) -> 2009-10 | F10: =IF(dms_RPT="financial",dms_CRYf_y3,dms_CRYc_y3) -> 2010-11 | G10: =IF(dms_RPT="financial",dms_CRYf_y4,dms_CRYc_y4) -> 2011-12 | H10: =IF(dms_RPT="financial",dms_CRYf_y5,dms_CRYc_y5) -> 2012-13 | I10: =IF(dms_RPT="financial",dms_CRYf_y6,dms_CRYc_y6) -> 2013-14 | J10: =IF(dms_RPT="financial",dms_CRYf_y7,dms_CRYc_y7) -> 2014-15 | K10: =IF(dms_RPT="financial",dms_CRYf_y8,dms_CRYc_y8) -> 2015-16 | L10: =IF(dms_RPT="financial",dms_CRYf_y9,dms_CRYc_y9) -> 2016-17 | M10: =IF(dms_RPT="financial",dms_CRYf_y10,dms_CRYc_y10) -> 2017-18
B11: (A) TOTAL EMERGENCY RESPONSE EXPENDITURE | C11: Total Expenditure
B12: (B) MAJOR EVENTS O&M EXPENDITURE
B55: (C) MAJOR EVENT DAYS O&M EXPENDITURE

Sheet 2.10 Overheads
B1: REGULATORY REPORTING STATEMENT
B2: =INDEX(dms_TradingNameFull_List,MATCH(dms_TradingName,dms_TradingName_List)) -> SA Power Networks
B3: =IF(SUM(dms_SingleYear_Model)>0,("CATEGORY ANALYSIS "&CRY&" to "&FRY),("CATEGORY ANALYSIS "&CRY)) -> CATEGORY ANALYSIS 2008-09 to 2018-19
B4: 2.10 OVERHEADS
B6: There are TWO tables on this worksheet. Each table has been 'grouped' (and sub-grouped) for easy navigation. See the Instructions sheet on how to group or ungroup data.
B8: 2.10.1 - NETWORK OVERHEADS EXPENDITURE
D9: EXPENDITURE ($0's)
D10: =IF(dms_RPT="financial",dms_CRYf_y1,dms_CRYc_y1) -> 2008-09 | E10: =IF(dms_RPT="financial",dms_CRYf_y2,dms_CRYc_y2) -> 2009-10 | F10: =IF(dms_RPT="financial",dms_CRYf_y3,dms_CRYc_y3) -> 2010-11 | G10: =IF(dms_RPT="financial",dms_CRYf_y4,dms_CRYc_y4) -> 2011-12 | H10: =IF(dms_RPT="financial",dms_CRYf_y5,dms_CRYc_y5) -> 2012-13 | I10: =IF(dms_RPT="financial",dms_CRYf_y6,dms_CRYc_y6) -> 2013-14 | J10: =IF(dms_RPT="financial",dms_CRYf_y7,dms_CRYc_y7) -> 2014-15 | K10: =IF(dms_RPT="financial",dms_CRYf_y8,dms_CRYc_y8) -> 2015-16 | L10: =IF(dms_RPT="financial",dms_CRYf_y9,dms_CRYc_y9) -> 2016-17 | M10: =IF(dms_RPT="financial",dms_CRYf_y10,dms_CRYc_y10) -> 2017-18
B11: NETWORK OVERHEADS
B12: Standard Control Services
B32: Alternative Control Services
B52: Negotiated Services | C52: Total
B53: Unregulated Services | C53: Total
B55: CAPITALISED NETWORK OVERHEADS
B56: Standard Control Services
B78: 2.10.2 - CORPORATE OVERHEADS EXPENDITURE
D79: EXPENDITURE ($0's)
D80: =IF(dms_RPT="financial",dms_CRYf_y1,dms_CRYc_y1) -> 2008-09 | E80: =IF(dms_RPT="financial",dms_CRYf_y2,dms_CRYc_y2) -> 2009-10 | F80: =IF(dms_RPT="financial",dms_CRYf_y3,dms_CRYc_y3) -> 2010-11 | G80: =IF(dms_RPT="financial",dms_CRYf_y4,dms_CRYc_y4) -> 2011-12 | H80: =IF(dms_RPT="financial",dms_CRYf_y5,dms_CRYc_y5) -> 2012-13 | I80: =IF(dms_RPT="financial",dms_CRYf_y6,dms_CRYc_y6) -> 2013-14 | J80: =IF(dms_RPT="financial",dms_CRYf_y7,dms_CRYc_y7) -> 2014-15 | K80: =IF(dms_RPT="financial",dms_CRYf_y8,dms_CRYc_y8) -> 2015-16 | L80: =IF(dms_RPT="financial",dms_CRYf_y9,dms_CRYc_y9) -> 2016-17 | M80: =IF(dms_RPT="financial",dms_CRYf_y10,dms_CRYc_y10) -> 2017-18
B81: CORPORATE OVERHEADS
B82: Standard Control Services
B102: Alternative Control Services
B122: Negotiated Services | C122: Total
B123: Unregulated Services | C123: Total
B126: CAPITALISED CORPORATE OVERHEADS
B127: Standard Control Services

Sheet 2.11 Labour
B1: REGULATORY REPORTING STATEMENT
B2: =INDEX(dms_TradingNameFull_List,MATCH(dms_TradingName,dms_TradingName_List)) -> SA Power Networks
B3: =IF(SUM(dms_SingleYear_Model)>0,("CATEGORY ANALYSIS "&CRY&" to "&FRY),("CATEGORY ANALYSIS "&CRY)) -> CATEGORY ANALYSIS 2008-09 to 2018-19
B4: 2.11 LABOUR
B6: There are TWO tables on this worksheet. Each table has been 'grouped' (and sub-grouped) for easy navigation. See the Instructions sheet on how to group or ungroup data.
B8: 2.11.1 - COST METRICS PER ANNUM
B9: AVERAGE STAFFING LEVEL (ASL)
D10: VOLUME (0's)
B11: INTERNAL LABOUR | D11: =IF(dms_RPT="financial",dms_CRYf_y1,dms_CRYc_y1) -> 2008-09 | E11: =IF(dms_RPT="financial",dms_CRYf_y2,dms_CRYc_y2) -> 2009-10 | F11: =IF(dms_RPT="financial",dms_CRYf_y3,dms_CRYc_y3) -> 2010-11 | G11: =IF(dms_RPT="financial",dms_CRYf_y4,dms_CRYc_y4) -> 2011-12 | H11: =IF(dms_RPT="financial",dms_CRYf_y5,dms_CRYc_y5) -> 2012-13 | I11: =IF(dms_RPT="financial",dms_CRYf_y6,dms_CRYc_y6) -> 2013-14 | J11: =IF(dms_RPT="financial",dms_CRYf_y7,dms_CRYc_y7) -> 2014-15 | K11: =IF(dms_RPT="financial",dms_CRYf_y8,dms_CRYc_y8) -> 2015-16 | L11: =IF(dms_RPT="financial",dms_CRYf_y9,dms_CRYc_y9) -> 2016-17 | M11: =IF(dms_RPT="financial",dms_CRYf_y10,dms_CRYc_y10) -> 2017-18
B12: CORPORATE OVERHEADS | C12: Executive manager
C13: Senior manager
C14: Manager
C15: Professional
C16: Semi professional
C17: Support staff
C18: Intern, junior staff, apprentice
B19: NETWORK OVERHEADS | C19: Executive manager
C20: Senior manager
C21: Manager
C22: Professional
C23: Semi professional
C24: Support staff
C25: Intern, junior staff, apprentice
B26: TOTAL DIRECT NETWORK LABOUR | C26: Skilled electrical worker
C27: Skilled non electical worker
C28: Apprentice
C29: Unskilled worker
B31: TOTAL LABOUR EXPENDITURE
D32: EXPENDITURE ($0's)
B33: INTERNAL LABOUR | D33: =IF(dms_RPT="financial",dms_CRYf_y1,dms_CRYc_y1) -> 2008-09 | E33: =IF(dms_RPT="financial",dms_CRYf_y2,dms_CRYc_y2) -> 2009-10 | F33: =IF(dms_RPT="financial",dms_CRYf_y3,dms_CRYc_y3) -> 2010-11 | G33: =IF(dms_RPT="financial",dms_CRYf_y4,dms_CRYc_y4) -> 2011-12 | H33: =IF(dms_RPT="financial",dms_CRYf_y5,dms_CRYc_y5) -> 2012-13 | I33: =IF(dms_RPT="financial",dms_CRYf_y6,dms_CRYc_y6) -> 2013-14 | J33: =IF(dms_RPT="financial",dms_CRYf_y7,dms_CRYc_y7) -> 2014-15 | K33: =IF(dms_RPT="financial",dms_CRYf_y8,dms_CRYc_y8) -> 2015-16 | L33: =IF(dms_RPT="financial",dms_CRYf_y9,dms_CRYc_y9) -> 2016-17 | M33: =IF(dms_RPT="financial",dms_CRYf_y10,dms_CRYc_y10) -> 2017-18
B34: CORPORATE OVERHEADS | C34: Executive manager
C35: Senior manager
C36: Manager
C37: Professional
C38: Semi professional
C39: Support staff
C40: Intern, junior staff, apprentice
B41: NETWORK OVERHEADS | C41: Executive manager
C42: Senior manager
C43: Manager
C44: Professional
C45: Semi professional
C46: Support staff
C47: Intern, junior staff, apprentice
B48: TOTAL DIRECT NETWORK LABOUR | C48: Skilled electrical worker
C49: Skilled non electical worker
C50: Apprentice
C51: Unskilled worker
B53: AVERAGE PRODUCTIVE WORK HOURS PER ASL
D54: VOLUME (0's)
B55: INTERNAL LABOUR | D55: =IF(dms_RPT="financial",dms_CRYf_y1,dms_CRYc_y1) -> 2008-09 | E55: =IF(dms_RPT="financial",dms_CRYf_y2,dms_CRYc_y2) -> 2009-10 | F55: =IF(dms_RPT="financial",dms_CRYf_y3,dms_CRYc_y3) -> 2010-11 | G55: =IF(dms_RPT="financial",dms_CRYf_y4,dms_CRYc_y4) -> 2011-12 | H55: =IF(dms_RPT="financial",dms_CRYf_y5,dms_CRYc_y5) -> 2012-13 | I55: =IF(dms_RPT="financial",dms_CRYf_y6,dms_CRYc_y6) -> 2013-14 | J55: =IF(dms_RPT="financial",dms_CRYf_y7,dms_CRYc_y7) -> 2014-15 | K55: =IF(dms_RPT="financial",dms_CRYf_y8,dms_CRYc_y8) -> 2015-16 | L55: =IF(dms_RPT="financial",dms_CRYf_y9,dms_CRYc_y9) -> 2016-17 | M55: =IF(dms_RPT="financial",dms_CRYf_y10,dms_CRYc_y10) -> 2017-18
B56: CORPORATE OVERHEADS | C56: Executive manager
C57: Senior manager
C58: Manager
C59: Professional
C60: Semi professional
C61: Support staff
C62: Intern, junior staff, apprentice
B63: NETWORK OVERHEADS | C63: Executive manager
C64: Senior manager
C65: Manager
C66: Professional
C67: Semi professional
C68: Support staff
C69: Intern, junior staff, apprentice
B70: TOTAL DIRECT NETWORK LABOUR | C70: Skilled electrical worker
C71: Skilled non electical worker
C72: Apprentice
C73: Unskilled worker
B75: STAND DOWN OCCURENCES PER ASL
D76: VOLUME (0's)
B77: INTERNAL LABOUR | D77: =IF(dms_RPT="financial",dms_CRYf_y1,dms_CRYc_y1) -> 2008-09 | E77: =IF(dms_RPT="financial",dms_CRYf_y2,dms_CRYc_y2) -> 2009-10 | F77: =IF(dms_RPT="financial",dms_CRYf_y3,dms_CRYc_y3) -> 2010-11 | G77: =IF(dms_RPT="financial",dms_CRYf_y4,dms_CRYc_y4) -> 2011-12 | H77: =IF(dms_RPT="financial",dms_CRYf_y5,dms_CRYc_y5) -> 2012-13 | I77: =IF(dms_RPT="financial",dms_CRYf_y6,dms_CRYc_y6) -> 2013-14 | J77: =IF(dms_RPT="financial",dms_CRYf_y7,dms_CRYc_y7) -> 2014-15 | K77: =IF(dms_RPT="financial",dms_CRYf_y8,dms_CRYc_y8) -> 2015-16 | L77: =IF(dms_RPT="financial",dms_CRYf_y9,dms_CRYc_y9) -> 2016-17 | M77: =IF(dms_RPT="financial",dms_CRYf_y10,dms_CRYc_y10) -> 2017-18
B78: CORPORATE OVERHEADS | C78: Executive manager
C79: Senior manager
C80: Manager
C81: Professional
C82: Semi professional
C83: Support staff
C84: Intern, junior staff, apprentice
B85: NETWORK OVERHEADS | C85: Executive manager
C86: Senior manager
C87: Manager
C88: Professional
C89: Semi professional
C90: Support staff
C91: Intern, junior staff, apprentice
B92: TOTAL DIRECT NETWORK LABOUR | C92: Skilled electrical worker
C93: Skilled non electical worker
C94: Apprentice
C95: Unskilled worker

Sheet 2.12 Input tables
B1: REGULATORY REPORTING STATEMENT
B2: =INDEX(dms_TradingNameFull_List,MATCH(dms_TradingName,dms_TradingName_List)) -> SA Power Networks
B3: =IF(SUM(dms_SingleYear_Model)>0,("CATEGORY ANALYSIS "&CRY&" to "&FRY),("CATEGORY ANALYSIS "&CRY)) -> CATEGORY ANALYSIS 2008-09 to 2018-19
B4: 2.12 INPUT TABLES
B6: There are SIX tables on this worksheet. Each table has been 'grouped' for easy navigation. See the Instructions sheet on how to group or ungroup data.
B8: 2.12 INPUT TABLES
B9: 2.12.1 - DIRECT MATERIALS EXPENDITURE
D10: EXPENDITURE
D11: Actual ($0's)
D12: =IF(dms_RPT="financial",dms_CRYf_y1,dms_CRYc_y1) -> 2008-09 | E12: =IF(dms_RPT="financial",dms_CRYf_y2,dms_CRYc_y2) -> 2009-10 | F12: =IF(dms_RPT="financial",dms_CRYf_y3,dms_CRYc_y3) -> 2010-11 | G12: =IF(dms_RPT="financial",dms_CRYf_y4,dms_CRYc_y4) -> 2011-12 | H12: =IF(dms_RPT="financial",dms_CRYf_y5,dms_CRYc_y5) -> 2012-13 | I12: =IF(dms_RPT="financial",dms_CRYf_y6,dms_CRYc_y6) -> 2013-14 | J12: =IF(dms_RPT="financial",dms_CRYf_y7,dms_CRYc_y7) -> 2014-15 | K12: =IF(dms_RPT="financial",dms_CRYf_y8,dms_CRYc_y8) -> 2015-16 | L12: =IF(dms_RPT="financial",dms_CRYf_y9,dms_CRYc_y9) -> 2016-17 | M12: =IF(dms_RPT="financial",dms_CRYf_y10,dms_CRYc_y10) -> 2017-18
B13: VEGETATION MANAGEMENT | C13: Zone 1
C14: Zone 2 | D14: 0 | E14: 0 | F14: 0 | G14: 0 | H14: 0 | I14: 0 | J14: 0 | K14: 0 | L14: 0 | M14: 0
C15: Zone 3 | D15: 0 | E15: 0 | F15: 0 | G15: 0 | H15: 0 | I15: 0 | J15: 0 | K15: 0 | L15: 0 | M15: 0
C16: Zone 4 | D16: 0 | E16: 0 | F16: 0 | G16: 0 | H16: 0 | I16: 0 | J16: 0 | K16: 0 | L16: 0 | M16: 0
C17: Zone 5 | D17: 0 | E17: 0 | F17: 0 | G17: 0 | H17: 0 | I17: 0 | J17: 0 | K17: 0 | L17: 0 | M17: 0
C18: Zone 6 | D18: 0 | E18: 0 | F18: 0 | G18: 0 | H18: 0 | I18: 0 | J18: 0 | K18: 0 | L18: 0 | M18: 0
C19: Zone 7 | D19: 0 | E19: 0 | F19: 0 | G19: 0 | H19: 0 | I19: 0 | J19: 0 | K19: 0 | L19: 0 | M19: 0
C20: Zone 8 | D20: 0 | E20: 0 | F20: 0 | G20: 0 | H20: 0 | I20: 0 | J20: 0 | K20: 0 | L20: 0 | M20: 0
C21: Zone 9 | D21: 0 | E21: 0 | F21: 0 | G21: 0 | H21: 0 | I21: 0 | J21: 0 | K21: 0 | L21: 0 | M21: 0
C22: Zone 10 | D22: 0 | E22: 0 | F22: 0 | G22: 0 | H22: 0 | I22: 0 | J22: 0 | K22: 0 | L22: 0 | M22: 0
C23: Zone 11 | D23: 0 | E23: 0 | F23: 0 | G23: 0 | H23: 0 | I23: 0 | J23: 0 | K23: 0 | L23: 0 | M23: 0
C24: Zone 12 | D24: 0 | E24: 0 | F24: 0 | G24: 0 | H24: 0 | I24: 0 | J24: 0 | K24: 0 | L24: 0 | M24: 0
C25: Zone 13 | D25: 0 | E25: 0 | F25: 0 | G25: 0 | H25: 0 | I25: 0 | J25: 0 | K25: 0 | L25: 0 | M25: 0
C26: Zone 14 | D26: 0 | E26: 0 | F26: 0 | G26: 0 | H26: 0 | I26: 0 | J26: 0 | K26: 0 | L26: 0 | M26: 0
C27: Zone 15 | D27: 0 | E27: 0 | F27: 0 | G27: 0 | H27: 0 | I27: 0 | J27: 0 | K27: 0 | L27: 0 | M27: 0
C28: Zone 16 | D28: 0 | E28: 0 | F28: 0 | G28: 0 | H28: 0 | I28: 0 | J28: 0 | K28: 0 | L28: 0 | M28: 0
C29: Zone 17 | D29: 0 | E29: 0 | F29: 0 | G29: 0 | H29: 0 | I29: 0 | J29: 0 | K29: 0 | L29: 0 | M29: 0
C30: Zone 18 | D30: 0 | E30: 0 | F30: 0 | G30: 0 | H30: 0 | I30: 0 | J30: 0 | K30: 0 | L30: 0 | M30: 0
B31: ROUTINE MAINTENANCE | C31: Pole top, overhead line & service line maintenance | D31: 13000 | E31: 1000 | F31: 0 | G31: 0 | H31: 0 | I31: 619.160667 | J31: 9488 | K31: 0 | L31: 0 | M31: 1038.59
C32: Pole inspection and treatment | D32: 1000 | E32: 3000 | F32: 3000 | G32: 92000 | H32: 1000 | I32: 295.2101898 | J32: 15 | K32: 214.3759035 | L32: 154.39 | M32: 4336.45
C33: Overhead asset inspection | D33: 40000 | E33: 24000 | F33: 8000 | G33: 43000 | H33: 11000 | I33: 29441.77578 | J33: 26187 | K33: 9285.426157 | L33: 16200.34539 | M33: 43926.36
C34: Network underground cable maintenance | D34: 1000 | E34: 0 | F34: 1000 | G34: 0 | H34: 10000 | I34: 10310.92375 | J34: 19272 | K34: 395.6447614 | L34: 21581.47547 | M34: 10821.7
C35: Distribution substation equipment & property maintenance | D35: 7000 | E35: 12000 | F35: 2000 | G35: 1000 | H35: 0 | I35: 3709.315929 | J35: 650 | K35: 122.7347712 | L35: 770.679099 | M35: 100.93
C36: Zone substation equipment maintenance | D36: 252000 | E36: 137000 | F36: 305000 | G36: 371000 | H36: 261000 | I36: 116713.75 | J36: 63417 | K36: 88140.58629 | L36: 80097.07922 | M36: 490519.21
C37: Zone substation property maintenance | D37: 383000 | E37: 665000 | F37: 359000 | G37: 108000 | H37: 315000 | I37: 35093.40117 | J37: 30285 | K37: 6548.957602 | L37: 12277.13101 | M37: 9767.73
C38: Public lighting maintenance | D38: 0 | E38: 0 | F38: 0 | G38: 0 | H38: 0 | I38: 0 | J38: 0 | K38: 0 | L38: 0 | M38: 0
C39: Scada & network control maintenance | D39: 0 | E39: 0 | F39: 0 | G39: 0 | H39: 0 | I39: 0 | J39: 0 | K39: 0 | L39: 0 | M39: 0
C40: Protection systems maintenance | D40: 4000 | E40: 3000 | F40: 3000 | G40: 14000 | H40: 26000 | I40: 19630.30759 | J40: 22940 | K40: 3348.087491 | L40: 3867.527819 | M40: 9908.13
C41: Subtransmission asset maintenance - for dnsps with dual function assets | D41: 0 | E41: 0 | F41: 0 | G41: 0 | H41: 0 | I41: 0 | J41: 0 | K41: 0 | L41: 0 | M41: 0
C42: Other | D42: 329000 | E42: 423000 | F42: 417000 | G42: 235000 | H42: 34000 | I42: 257506.4 | J42: 370561 | K42: 147963.0041 | L42: 83561.2165 | M42: 159913.78
B43: NON-ROUTINE MAINTENANCE | C43: Pole top, overhead line & service line maintenance | D43: 338771.1197 | E43: 367761.5226 | F43: 543890.826 | G43: 663336.2841 | H43: 121786.8926 | I43: 1856399.303 | J43: 171636.6284 | K43: 197005.6825 | L43: 608452.2972 | M43: 454882.9239
C44: Pole inspection and treatment | D44: 0 | E44: 0 | F44: 0 | G44: 0 | H44: 0 | I44: 0 | J44: 0 | K44: 0 | L44: 0 | M44: 0
C45: Overhead asset inspection | D45: 0 | E45: 0 | F45: 0 | G45: 0 | H45: 0 | I45: 0 | J45: 0 | K45: 0 | L45: 0 | M45: 0
C46: Network underground cable maintenance | D46: 713187.0502 | E46: 882771.6086 | F46: 865082.9082 | G46: 704878.9665 | H46: 980259.3241 | I46: 1939187.938 | J46: 329141.5886 | K46: 459632.8303 | L46: 465171.7128 | M46: 605005.5304
C47: Distribution substation equipment & property maintenance | D47: 176000 | E47: 146000 | F47: 111000 | G47: 181000 | H47: 75000 | I47: 96833.29 | J47: 113242 | K47: 79960.98735 | L47: 44181.58183 | M47: 272088.62
C48: Zone substation equipment maintenance | D48: 380000 | E48: 179000 | F48: 298000 | G48: 316000 | H48: 279000 | I48: 184489.04 | J48: 51814 | K48: 161765.6739 | L48: 139141.4213 | M48: 148619.73
C49: Zone substation property maintenance | D49: 301000 | E49: 199000 | F49: 448000 | G49: 301000 | H49: 128000 | I49: 71111.34185 | J49: 60839 | K49: 5041.933193 | L49: 9705.803946 | M49: 26832.52
C50: Public lighting maintenance | D50: 0 | E50: 0 | F50: 0 | G50: 0 | H50: 0 | I50: 0 | J50: 0 | K50: 0 | L50: 0 | M50: 0
C51: SCADA & network control maintenance | D51: 4000 | E51: 8000 | F51: 1000 | G51: 3000 | H51: 0 | I51: 128882.6698 | J51: 88663 | K51: 17922.8779 | L51: 24137.62977 | M51: 38916.18
C52: Protection systems maintenance | D52: 4000 | E52: 5000 | F52: 12000 | G52: 20000 | H52: 14000 | I52: 77426.11054 | J52: 73623 | K52: 9370.881773 | L52: 2525.871439 | M52: 8738.5
C53: Subtransmission asset maintenance - for DNSP with dual function assets | D53: 0 | E53: 0 | F53: 0 | G53: 0 | H53: 0 | I53: 0 | J53: 0 | K53: 0 | L53: 0 | M53: 0
C54: Other | D54: 239000 | E54: 106000 | F54: 127000 | G54: 67000 | H54: 66000 | I54: 187036.52 | J54: 150769 | K54: 139437.3276 | L54: 82940.16028 | M54: 164719.08
B55: OVERHEADS | C55: Network overheads | D55: 5239118.377 | E55: 5791738.351 | F55: 9953183.348 | G55: 4966482.103 | H55: 5541747.003 | I55: 4391035.865 | J55: 3215781.227 | K55: 2259078.293 | L55: 3415804.111 | M55: 2740081.479
C56: Corporate overheads | D56: 1503683.003 | E56: 1336880.57 | F56: 1831446.022 | G56: 1983496.109 | H56: 2056315.187 | I56: 1121520.354 | J56: 4365650.437 | K56: 3544409.752 | L56: 6968714.267 | M56: 8936410.537
B57: AUGMENTATION | C57: Subtransmission substations, switching stations, zone substations | D57: 20428574.29 | E57: 18906620.42 | F57: 39677485.56 | G57: 31072940.3 | H57: 23247458.16 | I57: 11350207.61 | J57: 12560812.11 | K57: 4261917.222 | L57: 7611414.37 | M57: 8666872.36
C58: Subtransmission lines | D58: 462631.1471 | E58: 1622157.393 | F58: 1777503.994 | G58: 5754698.824 | H58: 2264443.694 | I58: 1226849.388 | J58: 2756434.201 | K58: 280048.5353 | L58: 441840.2356 | M58: 17523538.06
C59: HV feeders | D59: 1588724.849 | E59: 1354051.519 | F59: 1676355.163 | G59: 2879967.911 | H59: 1041119.558 | I59: 1398530.868 | J59: 3827113.344 | K59: 1254509.502 | L59: 3885667.244 | M59: 7999040.79
C60: Distribution substations | D60: 0 | E60: 0 | F60: 0 | G60: 0 | H60: 0 | I60: 1515128.863 | J60: 1905284.981 | K60: 1583060.486 | L60: 920218.364 | M60: 758088.91
C61: LV feeders | D61: 6687267.277 | E61: 7866241.328 | F61: 8777248.596 | G61: 10434905.68 | H61: 5242817.663 | I61: 546485.4894 | J61: 96562.32385 | K61: 157246.7205 | L61: 294750.9157 | M61: 795787.61
C62: Other assets | D62: 0 | E62: 0 | F62: 0 | G62: 0 | H62: 0 | I62: 1201012.464 | J62: 5681313.573 | K62: 1317487.184 | L62: 123908.8951 | M62: 315067.89
B63: CONNECTIONS | C63: Simple and complex customer connections | D63: 41847484.15 | E63: 38854122.75 | F63: 26755051.58 | G63: 24185064.36 | H63: 22022118.14 | I63: 18770620 | J63: 15753958 | K63: 12037829.58 | L63: 14934675.17 | M63: 15741647.32
B64: EMERGENCY RESPONSE | C64: Major storms | D64: 4411000 | E64: 4260000 | F64: 4673000 | G64: 2734000 | H64: 2426000 | I64: -1563000 | J64: 2707848 | K64: 1563389.876 | L64: 1878930.393 | M64: 1441302.5
C65: Major event days | D65: 175000 | E65: 103000 | F65: 84000 | G65: 22000 | H65: 42000 | I65: 0 | J65: 0 | K65: 22000.34261 | L65: 0 | M65: 0
B66: PUBLIC LIGHTING | C66: All public lighting services | D66: 3285307.324 | E66: 3543211.878 | F66: 2842733.002 | G66: 3105899.239 | H66: 2949505.564 | I66: 2778447.511 | J66: 3002616.327 | K66: 3141745.242 | L66: 6203438.75 | M66: 5230289.206
B67: METERING | C67: All metering services | D67: 7095000 | E67: 9620000 | F67: 14202000 | G67: 14396000 | H67: 10459000 | I67: 7373683.12 | J67: 6411483.062 | K67: 4796566.752 | L67: 4237501.772 | M67: 3180460.28
B68: FEE-BASED SERVICES | C68: All fee-based services | D68: 1887840.174 | E68: 1939225.419 | F68: 2271726.09 | G68: 1879112.27 | H68: 1334351.757 | I68: 1192349.415 | J68: 1210529.471 | K68: 2143868.62 | L68: 1301647.844 | M68: 1313776.303
B69: QUOTED SERVICES | C69: All quoted services | D69: 2703474.515 | E69: 2709787.288 | F69: 6862535.065 | G69: 2586173.438 | H69: 1668411.18 | I69: 1053680.874 | J69: 1538502.916 | K69: 7809429.464 | L69: 4435408.792 | M69: 3786115.238
B70: REPLACEMENT | C70: Poles | D70: 1693509.075 | E70: 1475402.949 | F70: 1677570.83 | G70: 3138010.978 | H70: 6170217.821 | I70: 3262089.652 | J70: 3200765.407 | K70: 2658053.425 | L70: 3357706.091 | M70: 3309969.04
C71: Pole top structures | D71: 1490359.336 | E71: 885373.9919 | F71: 1158006.057 | G71: 1597943.291 | H71: 1285750.005 | I71: 2998071.342 | J71: 2176898.814 | K71: 3712996.998 | L71: 3087814.949 | M71: 5117256.1
C72: Overhead conductors | D72: 150099.9301 | E72: 212983.0037 | F72: 474451.419 | G72: 547629.1708 | H72: 369861.0892 | I72: 614925.0876 | J72: 51767.76915 | K72: 17818.7791 | L72: 9499.396306 | M72: 242682.9561
C73: Underground cables | D73: 109244.3023 | E73: 64758.61215 | F73: 202559.2118 | G73: 195085.1177 | H73: 122076.7303 | I73: 32716.24336 | J73: 6449.521631 | K73: 21124.78878 | L73: 2288.605487 | M73: 77584.72957
C74: Service lines | D74: 86936.50446 | E74: 79150.70422 | F74: 106072.518 | G74: 95975.98942 | H74: 125791.0077 | I74: 176639.1695 | J74: 168491.9447 | K74: 243227.7982 | L74: 283352.3968 | M74: 422721.74
C75: Transformers | D75: 2584781.1 | E75: 4103421.529 | F75: 7212175.254 | G75: 2317892.182 | H75: 3665633.167 | I75: 3292265.689 | J75: 1988365.497 | K75: 2439010.921 | L75: 2843724.349 | M75: 6343935.51
C76: Switchgear | D76: 1637018.28 | E76: 2736080.828 | F76: 4323874.954 | G76: 5895791.478 | H76: 3464804.358 | I76: 2938923.514 | J76: 3377165.745 | K76: 2747972.759 | L76: 4019763.467 | M76: 8574596.43
C77: Public lighting | D77: 0 | E77: 0 | F77: 0 | G77: 0 | H77: 0 | I77: 0 | J77: 0 | K77: 0 | L77: 0 | M77: 0
C78: SCADA network control and protection systems | D78: 366696.8668 | E78: 985700.4476 | F78: 2020575.477 | G78: 2372026.634 | H78: 1201509.536 | I78: 0 | J78: 1135982.745 | K78: 482350.0736 | L78: 1639294.073 | M78: 3296410.04
C79: Other | D79: 1121696.275 | E79: 1878081.763 | F79: 5157372.548 | G79: 2288190.596 | H79: 2450039.94 | I79: 3138774.206 | J79: 1721439.612 | K79: 2443288.869 | L79: 2302649.887 | M79: 4182721.39
B80: NON-NETWORK EXPENDITURE | C80: IT and communications | D80: 6326971.016 | E80: 4546066.531 | F80: 6242022.368 | G80: 7180893.989 | H80: 4837635.816 | I80: 3915939.978 | J80: 10728059.71 | K80: 12436767.38 | L80: 10579616.17 | M80: 13565168.17
C81: Motor vehicles | D81: 16252000 | E81: 13522000 | F81: 16837000 | G81: 14959000 | H81: 19878000 | I81: 22229000 | J81: 20140971 | K81: 14637500.47 | L81: 13760088.29 | M81: 17672400
C82: Buildings and property | D82: 1197053.2 | E82: 580969.1179 | F82: 37001.01623 | G82: 8848599.953 | H82: 1025862.594 | I82: 1467605.356 | J82: 103183.7394 | K82: 219177.1542 | L82: 335532.9851 | M82: 1676166.187
C83: Other | D83: 4883000 | E83: 6864000 | F83: 9353000 | G83: 7831000 | H83: 9456000 | I83: 11152000 | J83: 13661176 | K83: 5520724.171 | L83: 5572360.948 | M83: 7896771
B86: 2.12.2 - DIRECT LABOUR EXPENDITURE
D87: EXPENDITURE
D88: Actual ($0's)
D89: =IF(dms_RPT="financial",dms_CRYf_y1,dms_CRYc_y1) -> 2008-09 | E89: =IF(dms_RPT="financial",dms_CRYf_y2,dms_CRYc_y2) -> 2009-10 | F89: =IF(dms_RPT="financial",dms_CRYf_y3,dms_CRYc_y3) -> 2010-11 | G89: =IF(dms_RPT="financial",dms_CRYf_y4,dms_CRYc_y4) -> 2011-12 | H89: =IF(dms_RPT="financial",dms_CRYf_y5,dms_CRYc_y5) -> 2012-13 | I89: =IF(dms_RPT="financial",dms_CRYf_y6,dms_CRYc_y6) -> 2013-14 | J89: =IF(dms_RPT="financial",dms_CRYf_y7,dms_CRYc_y7) -> 2014-15 | K89: =IF(dms_RPT="financial",dms_CRYf_y8,dms_CRYc_y8) -> 2015-16 | L89: =IF(dms_RPT="financial",dms_CRYf_y9,dms_CRYc_y9) -> 2016-17 | M89: =IF(dms_RPT="financial",dms_CRYf_y10,dms_CRYc_y10) -> 2017-18
B90: VEGETATION MANAGEMENT | C90: =IF(ISBLANK(C13)," ",C13) -> Zone 1
C91: =IF(ISBLANK(C14)," ",C14) -> Zone 2 | D91: 0 | E91: 0 | F91: 0 | G91: 0 | H91: 0 | I91: 0 | J91: 0 | K91: 0 | L91: 0 | M91: 0
C92: Zone 3 | D92: 0 | E92: 0 | F92: 0 | G92: 0 | H92: 0 | I92: 0 | J92: 0 | K92: 0 | L92: 0 | M92: 0
C93: Zone 4 | D93: 0 | E93: 0 | F93: 0 | G93: 0 | H93: 0 | I93: 0 | J93: 0 | K93: 0 | L93: 0 | M93: 0
C94: Zone 5 | D94: 0 | E94: 0 | F94: 0 | G94: 0 | H94: 0 | I94: 0 | J94: 0 | K94: 0 | L94: 0 | M94: 0
C95: Zone 6 | D95: 0 | E95: 0 | F95: 0 | G95: 0 | H95: 0 | I95: 0 | J95: 0 | K95: 0 | L95: 0 | M95: 0
C96: Zone 7 | D96: 0 | E96: 0 | F96: 0 | G96: 0 | H96: 0 | I96: 0 | J96: 0 | K96: 0 | L96: 0 | M96: 0
C97: Zone 8 | D97: 0 | E97: 0 | F97: 0 | G97: 0 | H97: 0 | I97: 0 | J97: 0 | K97: 0 | L97: 0 | M97: 0
C98: Zone 9 | D98: 0 | E98: 0 | F98: 0 | G98: 0 | H98: 0 | I98: 0 | J98: 0 | K98: 0 | L98: 0 | M98: 0
C99: Zone 10 | D99: 0 | E99: 0 | F99: 0 | G99: 0 | H99: 0 | I99: 0 | J99: 0 | K99: 0 | L99: 0 | M99: 0
C100: Zone 11 | D100: 0 | E100: 0 | F100: 0 | G100: 0 | H100: 0 | I100: 0 | J100: 0 | K100: 0 | L100: 0 | M100: 0
C101: Zone 12 | D101: 0 | E101: 0 | F101: 0 | G101: 0 | H101: 0 | I101: 0 | J101: 0 | K101: 0 | L101: 0 | M101: 0
C102: Zone 13 | D102: 0 | E102: 0 | F102: 0 | G102: 0 | H102: 0 | I102: 0 | J102: 0 | K102: 0 | L102: 0 | M102: 0
C103: Zone 14 | D103: 0 | E103: 0 | F103: 0 | G103: 0 | H103: 0 | I103: 0 | J103: 0 | K103: 0 | L103: 0 | M103: 0
C104: Zone 15 | D104: 0 | E104: 0 | F104: 0 | G104: 0 | H104: 0 | I104: 0 | J104: 0 | K104: 0 | L104: 0 | M104: 0
C105: Zone 16 | D105: 0 | E105: 0 | F105: 0 | G105: 0 | H105: 0 | I105: 0 | J105: 0 | K105: 0 | L105: 0 | M105: 0
C106: Zone 17 | D106: 0 | E106: 0 | F106: 0 | G106: 0 | H106: 0 | I106: 0 | J106: 0 | K106: 0 | L106: 0 | M106: 0
C107: Zone 18 | D107: 0 | E107: 0 | F107: 0 | G107: 0 | H107: 0 | I107: 0 | J107: 0 | K107: 0 | L107: 0 | M107: 0
B108: ROUTINE MAINTENANCE | C108: Pole top, overhead line & service line maintenance | D108: 16000 | E108: 0 | F108: 1000 | G108: 31000 | H108: 0 | I108: 13337.79082 | J108: 115224 | K108: 1761.647686 | L108: 5220.866338 | M108: 6444.78
C109: Pole inspection and treatment | D109: 572000 | E109: 582000 | F109: 992000 | G109: 2034000 | H109: 1059000 | I109: 451935.3055 | J109: 346974 | K109: 169437.0226 | L109: 123589.14 | M109: 54882.82
C110: Overhead asset inspection | D110: 1560000 | E110: 1285000 | F110: 810000 | G110: 823000 | H110: 1193000 | I110: 1047204.529 | J110: 1215003 | K110: 1334229.502 | L110: 1524301.938 | M110: 1732057.47
C111: Network underground cable maintenance | D111: 123000 | E111: 23000 | F111: 32000 | G111: 48000 | H111: 39000 | I111: 74847.66429 | J111: 239089 | K111: 109685.4995 | L111: 263967.8048 | M111: 209844.9
C112: Distribution substation equipment & property maintenance | D112: 153000 | E112: 140000 | F112: 147000 | G112: 136000 | H112: 151000 | I112: 197392.8455 | J112: 294926 | K112: 320376.5681 | L112: 288443.4533 | M112: 251026.53
C113: Zone substation equipment maintenance | D113: 2025000 | E113: 1619000 | F113: 1992000 | G113: 2425000 | H113: 2990000 | I113: 699202.69 | J113: 1228629 | K113: 1341267.676 | L113: 1660062.433 | M113: 1406288.02
C114: Zone substation property maintenance | D114: 367000 | E114: 374000 | F114: 429000 | G114: 502000 | H114: 546000 | I114: 327570.094 | J114: 155952 | K114: 156777.2413 | L114: 166721.1294 | M114: 181314.41
C115: Public lighting maintenance | D115: 0 | E115: 0 | F115: 0 | G115: 0 | H115: 0 | I115: 0 | J115: 0 | K115: 0 | L115: 0 | M115: 0
C116: Scada & network control maintenance | D116: 0 | E116: 0 | F116: 0 | G116: 0 | H116: 0 | I116: 0 | J116: 0 | K116: 0 | L116: 0 | M116: 0
C117: Protection systems maintenance | D117: 333000 | E117: 671000 | F117: 565000 | G117: 438000 | H117: 1065000 | I117: 911681.7998 | J117: 1004620 | K117: 651269.283 | L117: 699512.51 | M117: 530623.44
C118: Subtransmission asset maintenance - for dnsps with dual function assets | D118: 0 | E118: 0 | F118: 0 | G118: 0 | H118: 0 | I118: 0 | J118: 0 | K118: 0 | L118: 0 | M118: 0
C119: Other | D119: 677000 | E119: 751000 | F119: 646000 | G119: 552000 | H119: 439000 | I119: 3013676.15 | J119: 3029016 | K119: 2796931.402 | L119: 2118235.389 | M119: 1855604.5
B120: NON-ROUTINE MAINTENANCE | C120: Pole top, overhead line & service line maintenance | D120: 1024791.343 | E120: 1317597.667 | F120: 1262076.089 | G120: 1451067.482 | H120: 883574.2796 | I120: 2546325.816 | J120: 1876849.821 | K120: 2355160.532 | L120: 3752415.206 | M120: 2147855.822
C121: Pole inspection and treatment | D121: 0 | E121: 0 | F121: 0 | G121: 0 | H121: 0 | I121: 0 | J121: 0 | K121: 0 | L121: 0 | M121: 0
C122: Overhead asset inspection | D122: 0 | E122: 0 | F122: 0 | G122: 0 | H122: 0 | I122: 0 | J122: 0 | K122: 0 | L122: 0 | M122: 0
C123: Network underground cable maintenance | D123: 1060575.908 | E123: 1655162.481 | F123: 1736947.524 | G123: 2024300.782 | H123: 2933005.984 | I123: 3437595.064 | J123: 3154079.189 | K123: 3082420.274 | L123: 3996258.568 | M123: 3096578.344
C124: Distribution substation equipment & property maintenance | D124: 333000 | E124: 376000 | F124: 263000 | G124: 413000 | H124: 453000 | I124: 252806.68 | J124: 269011 | K124: 213006.5276 | L124: 217913.6428 | M124: 375899.8
C125: Zone substation equipment maintenance | D125: 2170000 | E125: 1984000 | F125: 2079000 | G125: 2837000 | H125: 2451000 | I125: 1413980.7 | J125: 1625154 | K125: 1279839.462 | L125: 1493780.411 | M125: 1534774.52
C126: Zone substation property maintenance | D126: 436000 | E126: 305000 | F126: 335000 | G126: 499000 | H126: 509000 | I126: 340817.0795 | J126: 179374 | K126: 62687.7963 | L126: 66600.80167 | M126: 169512.8
C127: Public lighting maintenance | D127: 0 | E127: 0 | F127: 0 | G127: 0 | H127: 0 | I127: 0 | J127: 0 | K127: 0 | L127: 0 | M127: 0
C128: SCADA & network control maintenance | D128: 67000 | E128: 12000 | F128: 8000 | G128: 32000 | H128: 65000 | I128: 563119.3724 | J128: 336570 | K128: 214804.0741 | L128: 292051.799 | M128: 224843.09
C129: Protection systems maintenance | D129: 118000 | E129: 226000 | F129: 175000 | G129: 182000 | H129: 278000 | I129: 328235.5561 | J129: 239951 | K129: 124344.7492 | L129: 68346.09333 | M129: 132791.77
C130: Subtransmission asset maintenance - for DNSP with dual function assets | D130: 0 | E130: 0 | F130: 0 | G130: 0 | H130: 0 | I130: 0 | J130: 0 | K130: 0 | L130: 0 | M130: 0
C131: Other | D131: 711000 | E131: 752000 | F131: 608000 | G131: 747000 | H131: 789000 | I131: 1737506.94 | J131: 1573274 | K131: 1838821.216 | L131: 1479245.463 | M131: 1607957.92
B132: OVERHEADS | C132: Network overheads | D132: 23453845.03 | E132: 28125831.92 | F132: 29906731.25 | G132: 33287912.8 | H132: 37873194.59 | I132: 39433783.13 | J132: 37032470.64 | K132: 36014229.14 | L132: 37796142.68 | M132: 36251846.6
C133: Corporate overheads | D133: 35008631.18 | E133: 35016908.41 | F133: 42073526.21 | G133: 42549121.1 | H133: 32191238.17 | I133: 28776130.67 | J133: 28079369.7 | K133: 18231824.14 | L133: 15816247.24 | M133: 35592721.99
B134: AUGMENTATION | C134: Subtransmission substations, switching stations, zone substations | D134: 11018567.7 | E134: 14609268.74 | F134: 20113635.59 | G134: 19125826.53 | H134: 23519924.39 | I134: 19992254.17 | J134: 21884605.9 | K134: 13018920.36 | L134: 14685191.91 | M134: 9896229.94
C135: Subtransmission lines | D135: 1106207.838 | E135: 1128840.741 | F135: 1704062.64 | G135: 4327695.899 | H135: 3615356.969 | I135: 5012182.477 | J135: 2718810.215 | K135: 584888.6255 | L135: 1297381.493 | M135: 3107504.53
C136: HV feeders | D136: 1315046.116 | E136: 704043.5074 | F136: 1292989.538 | G136: 1758846.886 | H136: 1222776.548 | I136: 1620997.363 | J136: 6236658.337 | K136: 5890765.7 | L136: 6391500.58 | M136: 8902601.27
C137: Distribution substations | D137: 0 | E137: 0 | F137: 0 | G137: 0 | H137: 0 | I137: 1173208.713 | J137: 700899.9942 | K137: 1218253.466 | L137: 1064667.683 | M137: 670431.02
C138: LV feeders | D138: 5402967.969 | E138: 6115329.1 | F138: 6776571.138 | G138: 9119002.363 | H138: 7797111.029 | I138: 1723776.948 | J138: 112235.2647 | K138: 390895.3292 | L138: 363305.5541 | M138: 1004058.89
C139: Other assets | D139: 0 | E139: 0 | F139: 0 | G139: 0 | H139: 0 | I139: 1838572.238 | J139: 4760663.631 | K139: 3087652.831 | L139: 1217740.412 | M139: 842958.06
B140: CONNECTIONS | C140: Simple and complex customer connections | D140: 30291902.44 | E140: 38835376.38 | F140: 31325415.65 | G140: 29518007.4 | H140: 32758542.78 | I140: 36714760 | J140: 33035979 | K140: 32727138.03 | L140: 32410152.06 | M140: 37086008.51
B141: EMERGENCY RESPONSE | C141: Major storms | D141: 17217000 | E141: 16840000 | F141: 18559000 | G141: 17029000 | H141: 22029000 | I141: 25609000 | J141: 19735537 | K141: 22064742.08 | L141: 26763309.11 | M141: 19771628.72
C142: Major event days | D142: 336000 | E142: 413000 | F142: 826000 | G142: 282000 | H142: 692000 | I142: 0 | J142: 0 | K142: 274669.0804 | L142: 0 | M142: 0
B143: PUBLIC LIGHTING | C143: All public lighting services | D143: 3384646.503 | E143: 4004919.278 | F143: 3669294.983 | G143: 4083760.166 | H143: 4051100.209 | I143: 4398780.681 | J143: 3402074.635 | K143: 3486312.37 | L143: 4626224.421 | M143: 3580726.898
B144: METERING | C144: All metering services | D144: 4609000 | E144: 4109000 | F144: 5312000 | G144: 8291000 | H144: 7083000 | I144: 5034645.305 | J144: 4082751.022 | K144: 3773608.834 | L144: 2996066.632 | M144: 1873199.18
B145: FEE-BASED SERVICES | C145: All fee-based services | D145: 1892458.938 | E145: 2680168.536 | F145: 1800430.81 | G145: 2645223.976 | H145: 3213695.6 | I145: 4148911.751 | J145: 3748414.03 | K145: 3930977.136 | L145: 2930886.243 | M145: 3525722.077
B146: QUOTED SERVICES | C146: All quoted services | D146: 2710088.799 | E146: 3745148.22 | F146: 5438824.523 | G146: 3640553.091 | H146: 4018255.036 | I146: 3666399.215 | J146: 4763986.383 | K146: 14319295.68 | L146: 9987093.412 | M146: 10160626.32
B147: REPLACEMENT | C147: Poles | D147: 1799580.651 | E147: 1720957.535 | F147: 1874769.813 | G147: 2235781.105 | H147: 5788267.638 | I147: 4498497.388 | J147: 4285357.578 | K147: 4804811.708 | L147: 8030182.875 | M147: 6674779.45
C148: Pole top structures | D148: 4762098.182 | E148: 4972098.577 | F148: 4825281.306 | G148: 5721695.207 | H148: 7525942.944 | I148: 7913408.171 | J148: 12030505.12 | K148: 14592138.92 | L148: 12239558.8 | M148: 12775330.34
C149: Overhead conductors | D149: 355847.7789 | E149: 647470.0197 | F149: 843411.1054 | G149: 972898.5981 | H149: 1481807.442 | I149: 690041.5892 | J149: 584250.6793 | K149: 229920.7965 | L149: 53324.71851 | M149: 990025.6877
C150: Underground cables | D150: 162074.783 | E150: 121390.5324 | F150: 400576.4569 | G150: 551288.3777 | H150: 365752.1556 | I150: 56824.08214 | J150: 73125.89608 | K150: 133948.0648 | L150: 19791.76288 | M150: 419096.3665
C151: Service lines | D151: 1987676.515 | E151: 2477574.522 | F151: 2568354.698 | G151: 2640334.776 | H151: 3405942.026 | I151: 3577446.253 | J151: 3806872.152 | K151: 5021451.505 | L151: 4708003.455 | M151: 5592218.45
C152: Transformers | D152: 1256211.167 | E152: 1711966.522 | F152: 2184839.782 | G152: 1450175.76 | H152: 3075719.735 | I152: 2227448.58 | J152: 2316804.312 | K152: 2448717.865 | L152: 2379094.249 | M152: 5339453.72
C153: Switchgear | D153: 1638556.924 | E153: 2327482.68 | F153: 2910438.985 | G153: 3841792.54 | H153: 3999337.582 | I153: 5292252.336 | J153: 4589670.408 | K153: 3721105.246 | L153: 5466241.58 | M153: 10179155.72
C154: Public lighting | D154: 0 | E154: 0 | F154: 0 | G154: 0 | H154: 0 | I154: 0 | J154: 0 | K154: 0 | L154: 0 | M154: 0
C155: SCADA network control and protection systems | D155: 411136.6185 | E155: 1007691.055 | F155: 1528239.28 | G155: 2419496.533 | H155: 2023297.704 | I155: 0 | J155: 3480006.57 | K155: 1488388.337 | L155: 3839949.286 | M155: 4838793.13
C156: Other | D156: 1673016.98 | E156: 1151242.963 | F156: 1397060.412 | G156: 2468027.706 | H156: 3431299.591 | I156: 6223139.113 | J156: 4271726.679 | K156: 4099174.899 | L156: 4341717.35 | M156: 5152604.73
B157: NON-NETWORK EXPENDITURE | C157: IT and communications | D157: 10148953.51 | E157: 10428152.61 | F157: 18822067.45 | G157: 22448389.28 | H157: 21445888.51 | I157: 23428879.57 | J157: 15411554.15 | K157: 15841594.72 | L157: 17860435.19 | M157: 19855511.91
C158: Motor vehicles | D158: 883000 | E158: 1116000 | F158: 1081000 | G158: 904000 | H158: 1361000 | I158: 3033000 | J158: 3332397 | K158: 2893898.71 | L158: 2521196 | M158: 2618895
C159: Buildings and property | D159: 1010044.889 | E159: 887952.7998 | F159: 1348037.024 | G159: 1888925.997 | H159: 2028773.01 | I159: 2291699.187 | J159: 1565958.72 | K159: 4132293.25 | L159: 1054183.225 | M159: 1103173.014
C160: Other | D160: 873000 | E160: 2276000 | F160: 2447000 | G160: 4990000 | H160: 5797000 | I160: 16106000 | J160: 14669719 | K160: 5792807.343 | L160: 3419253.541 | M160: 4031333
B163: 2.12.3 - CONTRACT EXPENDITURE
D164: EXPENDITURE
D165: Actual ($0's)
D166: =IF(dms_RPT="financial",dms_CRYf_y1,dms_CRYc_y1) -> 2008-09 | E166: =IF(dms_RPT="financial",dms_CRYf_y2,dms_CRYc_y2) -> 2009-10 | F166: =IF(dms_RPT="financial",dms_CRYf_y3,dms_CRYc_y3) -> 2010-11 | G166: =IF(dms_RPT="financial",dms_CRYf_y4,dms_CRYc_y4) -> 2011-12 | H166: =IF(dms_RPT="financial",dms_CRYf_y5,dms_CRYc_y5) -> 2012-13 | I166: =IF(dms_RPT="financial",dms_CRYf_y6,dms_CRYc_y6) -> 2013-14 | J166: =IF(dms_RPT="financial",dms_CRYf_y7,dms_CRYc_y7) -> 2014-15 | K166: =IF(dms_RPT="financial",dms_CRYf_y8,dms_CRYc_y8) -> 2015-16 | L166: =IF(dms_RPT="financial",dms_CRYf_y9,dms_CRYc_y9) -> 2016-17 | M166: =IF(dms_RPT="financial",dms_CRYf_y10,dms_CRYc_y10) -> 2017-18
B167: VEGETATION MANAGEMENT | C167: =IF(ISBLANK(C13)," ",C13) -> Zone 1
C168: Zone 2 | D168: 0 | E168: 0 | F168: 0 | G168: 0 | H168: 0 | I168: 0 | J168: 0 | K168: 0 | L168: 0 | M168: 0
C169: Zone 3 | D169: 0 | E169: 0 | F169: 0 | G169: 0 | H169: 0 | I169: 0 | J169: 0 | K169: 0 | L169: 0 | M169: 0
C170: Zone 4 | D170: 0 | E170: 0 | F170: 0 | G170: 0 | H170: 0 | I170: 0 | J170: 0 | K170: 0 | L170: 0 | M170: 0
C171: Zone 5 | D171: 0 | E171: 0 | F171: 0 | G171: 0 | H171: 0 | I171: 0 | J171: 0 | K171: 0 | L171: 0 | M171: 0
C172: Zone 6 | D172: 0 | E172: 0 | F172: 0 | G172: 0 | H172: 0 | I172: 0 | J172: 0 | K172: 0 | L172: 0 | M172: 0
C173: Zone 7 | D173: 0 | E173: 0 | F173: 0 | G173: 0 | H173: 0 | I173: 0 | J173: 0 | K173: 0 | L173: 0 | M173: 0
C174: Zone 8 | D174: 0 | E174: 0 | F174: 0 | G174: 0 | H174: 0 | I174: 0 | J174: 0 | K174: 0 | L174: 0 | M174: 0
C175: Zone 9 | D175: 0 | E175: 0 | F175: 0 | G175: 0 | H175: 0 | I175: 0 | J175: 0 | K175: 0 | L175: 0 | M175: 0
C176: Zone 10 | D176: 0 | E176: 0 | F176: 0 | G176: 0 | H176: 0 | I176: 0 | J176: 0 | K176: 0 | L176: 0 | M176: 0
C177: Zone 11 | D177: 0 | E177: 0 | F177: 0 | G177: 0 | H177: 0 | I177: 0 | J177: 0 | K177: 0 | L177: 0 | M177: 0
C178: Zone 12 | D178: 0 | E178: 0 | F178: 0 | G178: 0 | H178: 0 | I178: 0 | J178: 0 | K178: 0 | L178: 0 | M178: 0
C179: Zone 13 | D179: 0 | E179: 0 | F179: 0 | G179: 0 | H179: 0 | I179: 0 | J179: 0 | K179: 0 | L179: 0 | M179: 0
C180: Zone 14 | D180: 0 | E180: 0 | F180: 0 | G180: 0 | H180: 0 | I180: 0 | J180: 0 | K180: 0 | L180: 0 | M180: 0
C181: Zone 15 | D181: 0 | E181: 0 | F181: 0 | G181: 0 | H181: 0 | I181: 0 | J181: 0 | K181: 0 | L181: 0 | M181: 0
C182: Zone 16 | D182: 0 | E182: 0 | F182: 0 | G182: 0 | H182: 0 | I182: 0 | J182: 0 | K182: 0 | L182: 0 | M182: 0
C183: Zone 17 | D183: 0 | E183: 0 | F183: 0 | G183: 0 | H183: 0 | I183: 0 | J183: 0 | K183: 0 | L183: 0 | M183: 0
C184: Zone 18 | D184: 0 | E184: 0 | F184: 0 | G184: 0 | H184: 0 | I184: 0 | J184: 0 | K184: 0 | L184: 0 | M184: 0
B185: ROUTINE MAINTENANCE | C185: Pole top, overhead line & service line maintenance | D185: 0 | E185: 0 | F185: 0 | G185: 6000 | H185: 0 | I185: 23690.26141 | J185: 3389 | K185: 651.6483638 | L185: 1005.855081 | M185: 10603.17
C186: Pole inspection and treatment | D186: 34000 | E186: 25000 | F186: 61000 | G186: 1747000 | H186: 4076000 | I186: 3988818.956 | J186: 5999714 | K186: 6141147.206 | L186: 5620718.5 | M186: 5098843.06
C187: Overhead asset inspection | D187: 1619000 | E187: 3094000 | F187: 5507000 | G187: 3413000 | H187: 5265000 | I187: 4289769.215 | J187: 5212298 | K187: 4495177.062 | L187: 4174997.342 | M187: 3109527.78
C188: Network underground cable maintenance | D188: 0 | E188: 0 | F188: 0 | G188: 0 | H188: 0 | I188: 0 | J188: 5741 | K188: 19978.63861 | L188: 214734.5944 | M188: 345814.81
C189: Distribution substation equipment & property maintenance | D189: 4000 | E189: 13000 | F189: 4000 | G189: 4000 | H189: 2000 | I189: 2348.694142 | J189: 5721 | K189: 13961.05428 | L189: 7101.041306 | M189: 3848.73
C190: Zone substation equipment maintenance | D190: 307000 | E190: 283000 | F190: 412000 | G190: 563000 | H190: 472000 | I190: 154206.48 | J190: 226685 | K190: 445682.2207 | L190: 303093.1013 | M190: 342376.28
C191: Zone substation property maintenance | D191: 43000 | E191: 27000 | F191: 30000 | G191: 279000 | H191: 42000 | I191: 700989.2215 | J191: 962325 | K191: 795275.3517 | L191: 782428.6575 | M191: 868713.15
C192: Public lighting maintenance | D192: 0 | E192: 0 | F192: 0 | G192: 0 | H192: 0 | I192: 0 | J192: 0 | K192: 0 | L192: 0 | M192: 0
C193: Scada & network control maintenance | D193: 0 | E193: 0 | F193: 0 | G193: 0 | H193: 0 | I193: 0 | J193: 0 | K193: 0 | L193: 0 | M193: 0
C194: Protection systems maintenance | D194: 4000 | E194: 9000 | F194: 20000 | G194: 9000 | H194: 19000 | I194: 13061.20544 | J194: 33976 | K194: 18800.8892 | L194: 47581.37409 | M194: 45242.37
C195: Subtransmission asset maintenance - for dnsps with dual function assets | D195: 0 | E195: 0 | F195: 0 | G195: 0 | H195: 0 | I195: 0 | J195: 0 | K195: 0 | L195: 0 | M195: 0
C196: Other | D196: 99000 | E196: 113000 | F196: 78000 | G196: 371000 | H196: 645000 | I196: 1265287.73 | J196: 940607 | K196: 905324.5098 | L196: 1172633.895 | M196: 966795.71
B197: NON-ROUTINE MAINTENANCE | C197: Pole top, overhead line & service line maintenance | D197: 80903.64179 | E197: 77873.52744 | F197: 216802.4491 | G197: 337934.7063 | H197: 134669.1562 | I197: 691747.981 | J197: 311400.6055 | K197: 221142.2455 | L197: 843540.9098 | M197: 1089397.383
C198: Pole inspection and treatment | D198: 0 | E198: 0 | F198: 0 | G198: 0 | H198: 0 | I198: 0 | J198: 0 | K198: 0 | L198: 0 | M198: 0
C199: Overhead asset inspection | D199: 0 | E199: 0 | F199: 0 | G199: 0 | H199: 0 | I199: 0 | J199: 0 | K199: 0 | L199: 0 | M199: 0
C200: Network underground cable maintenance | D200: 432191.137 | E200: 358073.3695 | F200: 919480.1916 | G200: 1770381.182 | H200: 1265329.909 | I200: 3088264.616 | J200: 4334247.85 | K200: 2908736.93 | L200: 5098932.485 | M200: 8086476.642
C201: Distribution substation equipment & property maintenance | D201: 54000 | E201: 16000 | F201: 14000 | G201: 194000 | H201: 121000 | I201: 149164.5 | J201: 525772 | K201: 401620.2095 | L201: 461728.7843 | M201: 404462.89
C202: Zone substation equipment maintenance | D202: 265000 | E202: 95000 | F202: 173000 | G202: 883000 | H202: 142000 | I202: 404745.21 | J202: 314198 | K202: 313665.4171 | L202: 192407.4708 | M202: 267341.36
C203: Zone substation property maintenance | D203: 155000 | E203: 13000 | F203: 28000 | G203: 306000 | H203: 211000 | I203: 263002.5284 | J203: 367407 | K203: 622614.6784 | L203: 516771.462 | M203: 604010.66
C204: Public lighting maintenance | D204: 0 | E204: 0 | F204: 0 | G204: 0 | H204: 0 | I204: 0 | J204: 0 | K204: 0 | L204: 0 | M204: 0
C205: SCADA & network control maintenance | D205: 2000 | E205: 1000 | F205: 0 | G205: 1000 | H205: 1000 | I205: 24192.32295 | J205: 94567 | K205: 212273.6891 | L205: 170988.5543 | M205: 431082.29
C206: Protection systems maintenance | D206: 17000 | E206: 8000 | F206: 14000 | G206: 4000 | H206: 12000 | I206: 6966.073382 | J206: 10004 | K206: 5841.494289 | L206: 5595.650694 | M206: 10019.56
... 256 more rows

Sheet 4.1 Public lighting
B1: REGULATORY REPORTING STATEMENT
B2: =INDEX(dms_TradingNameFull_List,MATCH(dms_TradingName,dms_TradingName_List)) -> SA Power Networks
B3: =IF(SUM(dms_SingleYear_Model)>0,("CATEGORY ANALYSIS "&CRY&" to "&FRY),("CATEGORY ANALYSIS "&CRY)) -> CATEGORY ANALYSIS 2008-09 to 2018-19
B4: 4.1 PUBLIC LIGHTING
B6: There are THREE tables on this worksheet. Each table has been 'grouped' (and 'sub-grouped') for easy navigation. See the Instructions sheet on how to group or ungroup data.
B8: 4.1.1 - DESCRIPTOR METRICS OVER YEAR
C9: LIGHT TYPE | E9: VOLUMES (0's)
E10: =IF(dms_RPT="financial",dms_CRYf_y1,dms_CRYc_y1) -> 2008-09 | F10: =IF(dms_RPT="financial",dms_CRYf_y2,dms_CRYc_y2) -> 2009-10 | G10: =IF(dms_RPT="financial",dms_CRYf_y3,dms_CRYc_y3) -> 2010-11 | H10: =IF(dms_RPT="financial",dms_CRYf_y4,dms_CRYc_y4) -> 2011-12 | I10: =IF(dms_RPT="financial",dms_CRYf_y5,dms_CRYc_y5) -> 2012-13 | J10: =IF(dms_RPT="financial",dms_CRYf_y6,dms_CRYc_y6) -> 2013-14 | K10: =IF(dms_RPT="financial",dms_CRYf_y7,dms_CRYc_y7) -> 2014-15 | L10: =IF(dms_RPT="financial",dms_CRYf_y8,dms_CRYc_y8) -> 2015-16 | M10: =IF(dms_RPT="financial",dms_CRYf_y9,dms_CRYc_y9) -> 2016-17 | N10: =IF(dms_RPT="financial",dms_CRYf_y10,dms_CRYc_y10) -> 2017-18
B11: POPULATION OF LIGHTS | C11: Fluor/Gas Tube 2x8 | E11: 25 | F11: 25 | G11: 25 | H11: 25 | I11: 25 | J11: 25 | K11: 25 | L11: 25 | M11: 25 | N11: 25
C12: Fluorescent 20 | E12: 41 | F12: 41 | G12: 41 | H12: 41 | I12: 41 | J12: 41 | K12: 41 | L12: 41 | M12: 71 | N12: 73
C13: Fluorescent 2x11 | E13: 0 | F13: 0 | G13: 0 | H13: 0 | I13: 90 | J13: 90 | K13: 90 | L13: 90 | M13: 90 | N13: 90
C14: Fluorescent 2x14W | E14: 51 | F14: 51 | G14: 51 | H14: 51 | I14: 318 | J14: 527 | K14: 526 | L14: 523 | M14: 508 | N14: 483
C15: Fluorescent 2x20 | E15: 106 | F15: 106 | G15: 106 | H15: 106 | I15: 100 | J15: 100 | K15: 100 | L15: 98 | M15: 273 | N15: 289
C16: Fluorescent 2x40 | E16: 72 | F16: 72 | G16: 72 | H16: 72 | I16: 72 | J16: 73 | K16: 33 | L16: 33 | M16: 63 | N16: 116
C17: Fluorescent 32 | E17: 0 | F17: 0 | G17: 0 | H17: 21 | I17: 21 | J17: 21 | K17: 21 | L17: 21 | M17: 21 | N17: 21
C18: Fluorescent 40 | E18: 25242 | F18: 24934 | G18: 24437 | H18: 21000 | I18: 19730 | J18: 18792 | K18: 18451 | L18: 17775 | M18: 15879 | N18: 14063
C19: Fluorescent 42 | E19: 0 | F19: 262 | G19: 687 | H19: 1358 | I19: 3150 | J19: 5624 | K19: 7381 | L19: 9467 | M19: 10677 | N19: 9505
C20: Fluorescent 4x40 | E20: 30 | F20: 28 | G20: 28 | H20: 28 | I20: 27 | J20: 27 | K20: 27 | L20: 23 | M20: 20 | N20: 23
C21: Incandescent Flood 150 | E21: 3 | F21: 3 | G21: 3 | H21: 3 | I21: 3 | J21: 3 | K21: 3 | L21: 3 | M21: 3 | N21: 3
C22: Incandescent Flood 1500 | E22: 1 | F22: 1 | G22: 1 | H22: 1 | I22: 1 | J22: 1 | K22: 1 | L22: 1 | M22: 1 | N22: 1
C23: Incandescent Flood 500 | E23: 3 | F23: 3 | G23: 3 | H23: 3 | I23: 3 | J23: 3 | K23: 3 | L23: 3 | M23: 3 | N23: 3
C24: Incandescent Flood 750 | E24: 2 | F24: 2 | G24: 2 | H24: 2 | I24: 2 | J24: 2 | K24: 2 | L24: 2 | M24: 2 | N24: 2
C25: 105W LED | E25: 0 | F25: 0 | G25: 0 | H25: 0 | I25: 0 | J25: 0 | K25: 0 | L25: 0 | M25: 45 | N25: 225
C26: 117W LED | E26: 0 | F26: 0 | G26: 0 | H26: 0 | I26: 0 | J26: 0 | K26: 0 | L26: 0 | M26: 25 | N26: 37
C27: 150W LED | E27: 0 | F27: 0 | G27: 0 | H27: 0 | I27: 0 | J27: 0 | K27: 0 | L27: 0 | M27: 109 | N27: 109
C28: 158W LED | E28: 0 | F28: 0 | G28: 0 | H28: 0 | I28: 0 | J28: 0 | K28: 0 | L28: 0 | M28: 14 | N28: 20
C29: 175W LED | E29: 0 | F29: 0 | G29: 0 | H29: 0 | I29: 0 | J29: 59 | K29: 59 | L29: 65 | M29: 65 | N29: 65
C30: 178W LED | E30: 0 | F30: 0 | G30: 0 | H30: 0 | I30: 0 | J30: 0 | K30: 0 | L30: 0 | M30: 3 | N30: 3
C31: 17W LED | E31: 0 | F31: 0 | G31: 0 | H31: 0 | I31: 0 | J31: 0 | K31: 0 | L31: 0 | M31: 3752 | N31: 30440
C32: 18W LED | E32: 0 | F32: 0 | G32: 0 | H32: 0 | I32: 0 | J32: 0 | K32: 0 | L32: 89 | M32: 0 | N32: 3
C33: 198W LED | E33: 0 | F33: 0 | G33: 0 | H33: 0 | I33: 0 | J33: 0 | K33: 0 | L33: 0 | M33: 841 | N33: 1010
C34: 200W LED | E34: 0 | F34: 0 | G34: 0 | H34: 0 | I34: 0 | J34: 586 | K34: 586 | L34: 577 | M34: 600 | N34: 583
C35: 20W LED | E35: 0 | F35: 0 | G35: 0 | H35: 0 | I35: 0 | J35: 0 | K35: 0 | L35: 0 | M35: 9 | N35: 9
C36: 22W LED | E36: 0 | F36: 0 | G36: 0 | H36: 0 | I36: 0 | J36: 0 | K36: 0 | L36: 103 | M36: 1340 | N36: 1519
C37: 26W LED | E37: 0 | F37: 0 | G37: 0 | H37: 0 | I37: 0 | J37: 0 | K37: 0 | L37: 0 | M37: 29 | N37: 29
C38: 28W LED | E38: 0 | F38: 0 | G38: 0 | H38: 0 | I38: 0 | J38: 0 | K38: 0 | L38: 0 | M38: 40 | N38: 43
C39: 298W LED | E39: 0 | F39: 0 | G39: 0 | H39: 0 | I39: 0 | J39: 0 | K39: 0 | L39: 0 | M39: 18 | N39: 18
C40: 29W LED | E40: 0 | F40: 0 | G40: 0 | H40: 0 | I40: 0 | J40: 0 | K40: 0 | L40: 0 | M40: 214 | N40: 288
C41: 34W LED | E41: 0 | F41: 0 | G41: 0 | H41: 0 | I41: 0 | J41: 0 | K41: 0 | L41: 0 | M41: 0 | N41: 174
C42: 35W LED | E42: 0 | F42: 0 | G42: 0 | H42: 0 | I42: 0 | J42: 0 | K42: 0 | L42: 0 | M42: 19 | N42: 49
C43: 39W LED | E43: 0 | F43: 0 | G43: 0 | H43: 0 | I43: 0 | J43: 0 | K43: 0 | L43: 0 | M43: 7 | N43: 7
C44: 40W LED | E44: 0 | F44: 0 | G44: 0 | H44: 0 | I44: 0 | J44: 0 | K44: 0 | L44: 13 | M44: 0 | N44: 0
C45: 43W LED | E45: 0 | F45: 0 | G45: 0 | H45: 0 | I45: 0 | J45: 131 | K45: 131 | L45: 139 | M45: 89 | N45: 92
C46: 46W LED | E46: 0 | F46: 0 | G46: 0 | H46: 0 | I46: 0 | J46: 0 | K46: 0 | L46: 0 | M46: 756 | N46: 756
C47: 47W LED | E47: 0 | F47: 0 | G47: 0 | H47: 0 | I47: 0 | J47: 705 | K47: 705 | L47: 705 | M47: 0 | N47: 0
C48: 70W LED | E48: 0 | F48: 0 | G48: 0 | H48: 0 | I48: 0 | J48: 133 | K48: 133 | L48: 157 | M48: 206 | N48: 206
C49: 72W LED | E49: 0 | F49: 0 | G49: 0 | H49: 0 | I49: 0 | J49: 0 | K49: 0 | L49: 0 | M49: 20 | N49: 20
C50: 79W LED | E50: 0 | F50: 0 | G50: 0 | H50: 0 | I50: 0 | J50: 0 | K50: 0 | L50: 0 | M50: 3 | N50: 3
C51: 80W LED | E51: 0 | F51: 0 | G51: 0 | H51: 0 | I51: 0 | J51: 0 | K51: 0 | L51: 0 | M51: 0 | N51: 2
C52: 88W LED | E52: 0 | F52: 0 | G52: 0 | H52: 0 | I52: 0 | J52: 38 | K52: 38 | L52: 38 | M52: 38 | N52: 38
C53: 90W LED | E53: 0 | F53: 0 | G53: 0 | H53: 0 | I53: 0 | J53: 0 | K53: 0 | L53: 0 | M53: 63 | N53: 63
C54: LED Ribbon Flex Strip | E54: 0 | F54: 0 | G54: 7 | H54: 7 | I54: 7 | J54: 7 | K54: 7 | L54: 7 | M54: 0 | N54: 0
C55: RUUD LED 20x1.3W | E55: 0 | F55: 0 | G55: 24 | H55: 24 | I55: 24 | J55: 24 | K55: 24 | L55: 24 | M55: 0 | N55: 0
C56: RUUD LED 30x1.3W | E56: 0 | F56: 0 | G56: 7 | H56: 7 | I56: 7 | J56: 7 | K56: 7 | L56: 7 | M56: 0 | N56: 0
C57: Mercury 100 | E57: 59 | F57: 65 | G57: 65 | H57: 65 | I57: 75 | J57: 67 | K57: 67 | L57: 67 | M57: 68 | N57: 64
C58: Mercury 125 | E58: 484 | F58: 484 | G58: 483 | H58: 483 | I58: 489 | J58: 410 | K58: 397 | L58: 396 | M58: 372 | N58: 339
C59: Mercury 250 | E59: 4727 | F59: 4691 | G59: 4668 | H59: 4679 | I59: 4552 | J59: 4442 | K59: 4385 | L59: 4262 | M59: 4102 | N59: 4128
C60: Mercury 2x400 | E60: 6 | F60: 6 | G60: 6 | H60: 6 | I60: 6 | J60: 6 | K60: 6 | L60: 6 | M60: 6 | N60: 6
C61: Mercury 400 | E61: 1194 | F61: 1178 | G61: 1198 | H61: 1165 | I61: 1102 | J61: 952 | K61: 943 | L61: 926 | M61: 877 | N61: 881
C62: Mercury 50 | E62: 5145 | F62: 5078 | G62: 5034 | H62: 5100 | I62: 5184 | J62: 5415 | K62: 5398 | L62: 5263 | M62: 5265 | N62: 5199
C63: Mercury 70 | E63: 22 | F63: 24 | G63: 24 | H63: 24 | I63: 24 | J63: 24 | K63: 24 | L63: 24 | M63: 2 | N63: 2
C64: Mercury 80 | E64: 74941 | F64: 76236 | G64: 77514 | H64: 80405 | I64: 80261 | J64: 79713 | K64: 79393 | L64: 79266 | M64: 78052 | N64: 63585
C65: Mercury Flood 1000 | E65: 99 | F65: 100 | G65: 100 | H65: 100 | I65: 100 | J65: 100 | K65: 100 | L65: 100 | M65: 117 | N65: 116
C66: Mercury Flood 250 | E66: 21 | F66: 24 | G66: 25 | H66: 25 | I66: 25 | J66: 25 | K66: 25 | L66: 25 | M66: 55 | N66: 56
C67: Mercury Flood 400 | E67: 492 | F67: 501 | G67: 527 | H67: 527 | I67: 526 | J67: 524 | K67: 526 | L67: 526 | M67: 606 | N67: 613
C68: Mercury Flood 750 | E68: 2 | F68: 2 | G68: 2 | H68: 2 | I68: 2 | J68: 2 | K68: 2 | L68: 2 | M68: 2 | N68: 2
C69: Mercury Flood 80 | E69: 4 | F69: 4 | G69: 4 | H69: 4 | I69: 4 | J69: 4 | K69: 4 | L69: 4 | M69: 4 | N69: 4
C70: Metal Halide 100 | E70: 0 | F70: 0 | G70: 0 | H70: 0 | I70: 0 | J70: 0 | K70: 0 | L70: 0 | M70: 83 | N70: 1444
C71: Metal Halide 150 | E71: 0 | F71: 0 | G71: 35 | H71: 35 | I71: 35 | J71: 35 | K71: 35 | L71: 35 | M71: 57 | N71: 396
C72: Metal Halide 250 | E72: 0 | F72: 0 | G72: 0 | H72: 0 | I72: 0 | J72: 0 | K72: 0 | L72: 0 | M72: 4 | N72: 449
C73: Metal Halide 400 | E73: 0 | F73: 0 | G73: 0 | H73: 0 | I73: 0 | J73: 0 | K73: 0 | L73: 0 | M73: 1 | N73: 144
C74: Metal Halide 50 | E74: 0 | F74: 0 | G74: 0 | H74: 0 | I74: 0 | J74: 0 | K74: 0 | L74: 0 | M74: 6 | N74: 54
C75: Metal Halide 70 | E75: 0 | F75: 0 | G75: 116 | H75: 116 | I75: 116 | J75: 116 | K75: 116 | L75: 116 | M75: 189 | N75: 247
C76: Dichroic 35 | E76: 0 | F76: 0 | G76: 0 | H76: 0 | I76: 0 | J76: 0 | K76: 0 | L76: 0 | M76: 63 | N76: 63
C77: Sodium 100 | E77: 15871 | F77: 16471 | G77: 16831 | H77: 17034 | I77: 17594 | J77: 17563 | K77: 17908 | L77: 18415 | M77: 18935 | N77: 18227
C78: Sodium 135 | E78: 945 | F78: 939 | G78: 930 | H78: 913 | I78: 891 | J78: 860 | K78: 842 | L78: 804 | M78: 749 | N78: 751
C79: Sodium 150 | E79: 11096 | F79: 11278 | G79: 11448 | H79: 11674 | I79: 12118 | J79: 12265 | K79: 12405 | L79: 12692 | M79: 13692 | N79: 13824
C80: Sodium 18 | E80: 12675 | F80: 12593 | G80: 12516 | H80: 11666 | I80: 11673 | J80: 11515 | K80: 11336 | L80: 10915 | M80: 10585 | N80: 7925
C81: Sodium 250 | E81: 10592 | F81: 10862 | G81: 11417 | H81: 11734 | I81: 12637 | J81: 12611 | K81: 12664 | L81: 12928 | M81: 14496 | N81: 14598
C82: Sodium 26 | E82: 8238 | F82: 8145 | G82: 8089 | H82: 7559 | I82: 7317 | J82: 6691 | K82: 6360 | L82: 5934 | M82: 5216 | N82: 3745
C83: Sodium 400 | E83: 41 | F83: 41 | G83: 53 | H83: 107 | I83: 169 | J83: 169 | K83: 169 | L83: 169 | M83: 238 | N83: 146
C84: Sodium 50 | E84: 23586 | F84: 24131 | G84: 24463 | H84: 26523 | I84: 26750 | J84: 26710 | K84: 27119 | L84: 27654 | M84: 27183 | N84: 24704
C85: Sodium 55 | E85: 1498 | F85: 1483 | G85: 1442 | H85: 1417 | I85: 1397 | J85: 1375 | K85: 1354 | L85: 1320 | M85: 1298 | N85: 1264
C86: Sodium 70 | E86: 931 | F86: 935 | G86: 858 | H86: 859 | I86: 887 | J86: 833 | K86: 832 | L86: 832 | M86: 951 | N86: 927
C87: Sodium 90 | E87: 12200 | F87: 12113 | G87: 11904 | H87: 11820 | I87: 11421 | J87: 11215 | K87: 11028 | L87: 10618 | M87: 10023 | N87: 10328
C88: Sodium Flood 360 | E88: 347 | F88: 364 | G88: 367 | H88: 371 | I88: 374 | J88: 378 | K88: 377 | L88: 371 | M88: 409 | N88: 423
C89: Sodium Flood 400 | E89: 13 | F89: 10 | G89: 10 | H89: 10 | I89: 12 | J89: 12 | K89: 12 | L89: 12 | M89: 21 | N89: 22
B183: 4.1.2 - DESCRIPTOR METRICS ANNUALLY
B186: SERVICE/SERVICE QUALITY | C186: DESCRIPTOR METRIC | E186: VOLUMES & EXPENDITURE
D187: UNITS | E187: =IF(dms_RPT="financial",dms_CRYf_y1,dms_CRYc_y1) -> 2008-09 | F187: =IF(dms_RPT="financial",dms_CRYf_y2,dms_CRYc_y2) -> 2009-10 | G187: =IF(dms_RPT="financial",dms_CRYf_y3,dms_CRYc_y3) -> 2010-11 | H187: =IF(dms_RPT="financial",dms_CRYf_y4,dms_CRYc_y4) -> 2011-12 | I187: =IF(dms_RPT="financial",dms_CRYf_y5,dms_CRYc_y5) -> 2012-13 | J187: =IF(dms_RPT="financial",dms_CRYf_y6,dms_CRYc_y6) -> 2013-14 | K187: =IF(dms_RPT="financial",dms_CRYf_y7,dms_CRYc_y7) -> 2014-15 | L187: =IF(dms_RPT="financial",dms_CRYf_y8,dms_CRYc_y8) -> 2015-16 | M187: =IF(dms_RPT="financial",dms_CRYf_y9,dms_CRYc_y9) -> 2016-17 | N187: =IF(dms_RPT="financial",dms_CRYf_y10,dms_CRYc_y10) -> 2017-18
B188: LIGHT INSTALLATION | C188: Major road light installation | D188: 0's | E188: 1331 | F188: 913 | G188: 910 | H188: 677 | I188: 1374 | J188: 322 | K188: 310 | L188: 531 | M188: 3598 | N188: 858
C189: Minor road light installation | D189: 0's | E189: 2301 | F189: 1568 | G189: 1427 | H189: 872 | I189: 816 | J189: 1367 | K189: 1120 | L189: 1085 | M189: 2359 | N189: 562
C190: Number of poles installed | D190: 0's | E190: 2337 | F190: 1577 | G190: 1468 | H190: 1096 | I190: 1125 | J190: 749 | K190: 1140 | L190: 1313 | M190: 1332 | N190: 1054
C191: Total cost | D191: $0s | E191: 1000983 | F191: 1074087 | G191: 835799 | H191: 680982 | I191: 662391 | J191: 754396 | K191: 777015 | L191: 836748 | M191: 1480527 | N191: 400157
B192: LIGHT REPLACEMENT | C192: Major road light replacement | D192: 0's | E192: 808 | F192: 1157 | G192: 1135 | H192: 1089 | I192: 1480 | J192: 1436 | K192: 1339 | L192: 1347 | M192: 3442 | N192: 10360
C193: Minor road light replacement | D193: 0's | E193: 2170 | F193: 3088 | G193: 3011 | H193: 2872 | I193: 3835 | J193: 3733 | K193: 3484 | L193: 3500 | M193: 8580 | N193: 25400
C194: Number of poles replaced | D194: 0's | E194: 80 | F194: 122 | G194: 95 | H194: 93 | I194: 53 | J194: 65 | K194: 58 | L194: 54 | M194: 61 | N194: 55
C195: Total cost | D195: $0s | E195: 1918975 | F195: 3181777 | G195: 2830310 | H195: 3207194 | I195: 3364691 | J195: 3468973 | K195: 3432713 | L195: 3934902 | M195: 8013635 | N195: 11207331
B196: LIGHT MAINTENANCE | C196: Major road light maintenance | D196: 0's | E196: 16133 | F196: 18509 | G196: 15643 | H196: 19454 | I196: 15478 | J196: 14891 | K196: 19818 | L196: 17636 | M196: 21113 | N196: 19170
C197: Minor road light maintenance | D197: 0's | E197: 45863 | F197: 52029 | G197: 43890 | H197: 54886 | I197: 43073 | J197: 41300 | K197: 55971 | L197: 48958 | M197: 56806 | N197: 51469
C198: Number of poles installed | D198: 0's | E198: - | F198: - | G198: - | H198: - | I198: - | J198: - | K198: - | L198: - | M198: - | N198: -
C199: Total cost | D199: $0s | E199: 4987589 | F199: 5600319 | G199: 5319811 | H199: 5814384 | I199: 6696773 | J199: 7648271 | K199: 7870899 | L199: 8355637 | M199: 9951035 | N199: 15270226
B200: QUALITY OF SUPPLY | C200: Mean days to rectify/replace public lighting assets | D200: days | E200: 3 | F200: 4 | G200: 5 | H200: 4 | I200: 5 | J200: 5 | K200: 7 | L200: 6 | M200: 9 | N200: 6
C201: GSO breaches | D201: 0's | E201: 448 | F201: 1883 | G201: 2647 | H201: 1875 | I201: 1715 | J201: 1299 | K201: 2486 | L201: 1715 | M201: 4267 | N201: 1571
C202: GSL payments | D202: $0s | E202: 16020 | F202: 29720 | G202: 75455 | H202: 44975 | I202: 75455 | J202: 72775 | K202: 256975 | L202: 191075 | M202: 444750 | N202: 156535
C203: Customer complaints | D203: 0's | E203: 86 | F203: 155 | G203: 86 | H203: 79 | I203: 71 | J203: 67 | K203: 79 | L203: 61 | M203: 71 | N203: 109
B206: 4.1.3 - COST METRICS
E207: AVERAGE UNIT COST ($)
B208: ACTIVITY TYPE | C208: LIGHT TYPE | E208: =IF(dms_RPT="financial",dms_CRYf_y1,dms_CRYc_y1) -> 2008-09 | F208: =IF(dms_RPT="financial",dms_CRYf_y2,dms_CRYc_y2) -> 2009-10 | G208: =IF(dms_RPT="financial",dms_CRYf_y3,dms_CRYc_y3) -> 2010-11 | H208: =IF(dms_RPT="financial",dms_CRYf_y4,dms_CRYc_y4) -> 2011-12 | I208: =IF(dms_RPT="financial",dms_CRYf_y5,dms_CRYc_y5) -> 2012-13 | J208: =IF(dms_RPT="financial",dms_CRYf_y6,dms_CRYc_y6) -> 2013-14 | K208: =IF(dms_RPT="financial",dms_CRYf_y7,dms_CRYc_y7) -> 2014-15 | L208: =IF(dms_RPT="financial",dms_CRYf_y8,dms_CRYc_y8) -> 2015-16 | M208: =IF(dms_RPT="financial",dms_CRYf_y9,dms_CRYc_y9) -> 2016-17 | N208: =IF(dms_RPT="financial",dms_CRYf_y10,dms_CRYc_y10) -> 2017-18
B209: LIGHT INSTALLATION | C209: All Types | E209: 276 | F209: 433 | G209: 358 | H209: 440 | I209: 302 | J209: 447 | K209: 543 | L209: 518 | M209: 249 | N209: 282
B279: LIGHT REPLACEMENT | C279: All Types | E279: 644 | F279: 750 | G279: 683 | H279: 810 | I279: 633 | J279: 671 | K279: 712 | L279: 812 | M279: 667 | N279: 313
B349: LIGHT MAINTENANCE | C349: All Types | E349: 80 | F349: 79 | G349: 89 | H349: 78 | I349: 114 | J349: 136 | K349: 104 | L349: 125 | M349: 128 | N349: 216

Sheet 4.2 Metering
B1: REGULATORY REPORTING STATEMENT
B2: =INDEX(dms_TradingNameFull_List,MATCH(dms_TradingName,dms_TradingName_List)) -> SA Power Networks
B3: =IF(SUM(dms_SingleYear_Model)>0,("CATEGORY ANALYSIS "&CRY&" to "&FRY),("CATEGORY ANALYSIS "&CRY)) -> CATEGORY ANALYSIS 2008-09 to 2018-19
B4: 4.2 METERING
B6: There are TWO tables on this worksheet. Each table has been 'grouped' (and 'sub-grouped') for easy navigation. See the Instructions sheet on how to group or ungroup data.
B8: 4.2.1 - METERING DESCRIPTOR METRIC
D9: VOLUMES (0's)
B10: ASSET CATEGORY | C10: ASSET SUBCATEGORY | D10: =IF(dms_RPT="financial",dms_CRYf_y1,dms_CRYc_y1) -> 2008-09 | E10: =IF(dms_RPT="financial",dms_CRYf_y2,dms_CRYc_y2) -> 2009-10 | F10: =IF(dms_RPT="financial",dms_CRYf_y3,dms_CRYc_y3) -> 2010-11 | G10: =IF(dms_RPT="financial",dms_CRYf_y4,dms_CRYc_y4) -> 2011-12 | H10: =IF(dms_RPT="financial",dms_CRYf_y5,dms_CRYc_y5) -> 2012-13 | I10: =IF(dms_RPT="financial",dms_CRYf_y6,dms_CRYc_y6) -> 2013-14 | J10: =IF(dms_RPT="financial",dms_CRYf_y7,dms_CRYc_y7) -> 2014-15 | K10: =IF(dms_RPT="financial",dms_CRYf_y8,dms_CRYc_y8) -> 2015-16 | L10: =IF(dms_RPT="financial",dms_CRYf_y9,dms_CRYc_y9) -> 2016-17 | M10: =IF(dms_RPT="financial",dms_CRYf_y10,dms_CRYc_y10) -> 2017-18
B11: Meter Type 4 | C11: Single phase meter population
C12: Multi phase meter population
C13: Current transformer connected meter population
C14: Direct connect meter population
B15: Meter Type 5 | C15: Single phase meter population
C16: Multi phase meter population
C17: Current transformer connected meter population
C18: Direct connect meter population
B19: Meter Type 6 | C19: Single phase meter population
C20: Multi phase meter population
C21: Current transformer connected meter population
C22: Direct connect meter population
B25: 4.2.2 - COST METRICS
B26: EXPENDITURE
D27: EXPENDITURE ($0's)
B28: SERVICE SUBCATEGORY | C28: METER TYPE | D28: =IF(dms_RPT="financial",dms_CRYf_y1,dms_CRYc_y1) -> 2008-09 | E28: =IF(dms_RPT="financial",dms_CRYf_y2,dms_CRYc_y2) -> 2009-10 | F28: =IF(dms_RPT="financial",dms_CRYf_y3,dms_CRYc_y3) -> 2010-11 | G28: =IF(dms_RPT="financial",dms_CRYf_y4,dms_CRYc_y4) -> 2011-12 | H28: =IF(dms_RPT="financial",dms_CRYf_y5,dms_CRYc_y5) -> 2012-13 | I28: =IF(dms_RPT="financial",dms_CRYf_y6,dms_CRYc_y6) -> 2013-14 | J28: =IF(dms_RPT="financial",dms_CRYf_y7,dms_CRYc_y7) -> 2014-15 | K28: =IF(dms_RPT="financial",dms_CRYf_y8,dms_CRYc_y8) -> 2015-16 | L28: =IF(dms_RPT="financial",dms_CRYf_y9,dms_CRYc_y9) -> 2016-17 | M28: =IF(dms_RPT="financial",dms_CRYf_y10,dms_CRYc_y10) -> 2017-18
B29: Meter purchase | C29: Meter Type 4
C30: Meter Type 5
C31: Meter Type 6
B32: Meter testing | C32: Meter Type 4
C33: Meter Type 5
C34: Meter Type 6
B35: Meter investigation | C35: Meter Type 4
C36: Meter Type 5
C37: Meter Type 6
B38: Scheduled meter reading | C38: Meter Type 4
C39: Meter Type 5
C40: Meter Type 6
B41: Special meter reading | C41: Meter Type 4
C42: Meter Type 5
C43: Meter Type 6
B44: New meter installation | C44: Meter Type 4
C45: Meter Type 5
C46: Meter Type 6
B47: Meter replacement | C47: Meter Type 4
C48: Meter Type 5
C49: Meter Type 6
B50: Meter maintenance | C50: Meter Type 4
C51: Meter Type 5
C52: Meter Type 6
B53: Remote meter reading | C53: Meter Type 4
B54: Remote meter re-configuration | C54: Meter Type 4
B55: Other metering | C55: Meter Type 4
C56: Meter Type 5
C57: Meter Type 6
C58: Meter Type 7
B59: IT infrastructure capex | C59: Meter Type 4
B60: IT infrastructure opex | C60: Meter Type 4
B61: Communications infrastructure capex | C61: Meter Type 4
B62: Communications infrastructure opex | C62: Meter Type 4
B64: VOLUMES
D65: VOLUMES (0's)
D66: =IF(dms_RPT="financial",dms_CRYf_y1,dms_CRYc_y1) -> 2008-09 | E66: =IF(dms_RPT="financial",dms_CRYf_y2,dms_CRYc_y2) -> 2009-10 | F66: =IF(dms_RPT="financial",dms_CRYf_y3,dms_CRYc_y3) -> 2010-11 | G66: =IF(dms_RPT="financial",dms_CRYf_y4,dms_CRYc_y4) -> 2011-12 | H66: =IF(dms_RPT="financial",dms_CRYf_y5,dms_CRYc_y5) -> 2012-13 | I66: =IF(dms_RPT="financial",dms_CRYf_y6,dms_CRYc_y6) -> 2013-14 | J66: =IF(dms_RPT="financial",dms_CRYf_y7,dms_CRYc_y7) -> 2014-15 | K66: =IF(dms_RPT="financial",dms_CRYf_y8,dms_CRYc_y8) -> 2015-16 | L66: =IF(dms_RPT="financial",dms_CRYf_y9,dms_CRYc_y9) -> 2016-17 | M66: =IF(dms_RPT="financial",dms_CRYf_y10,dms_CRYc_y10) -> 2017-18
B67: Meter purchase | C67: Meter Type 4
C68: Meter Type 5
C69: Meter Type 6
B70: Meter testing | C70: Meter Type 4
C71: Meter Type 5
C72: Meter Type 6
B73: Meter investigation | C73: Meter Type 4
C74: Meter Type 5
C75: Meter Type 6
B76: Scheduled meter reading | C76: Meter Type 4
C77: Meter Type 5
C78: Meter Type 6
B79: Special meter reading | C79: Meter Type 4
C80: Meter Type 5
C81: Meter Type 6
B82: New meter installation | C82: Meter Type 4
C83: Meter Type 5
C84: Meter Type 6
B85: Meter replacement | C85: Meter Type 4
C86: Meter Type 5
C87: Meter Type 6
B88: Meter maintenance | C88: Meter Type 4
C89: Meter Type 5
C90: Meter Type 6
B91: Remote meter reading | C91: Meter Type 4
B92: Remote meter re-configuration | C92: Meter Type 4

Sheet 4.3 Fee-based services
B1: REGULATORY REPORTING STATEMENT
B2: =INDEX(dms_TradingNameFull_List,MATCH(dms_TradingName,dms_TradingName_List)) -> SA Power Networks
B3: =IF(SUM(dms_SingleYear_Model)>0,("CATEGORY ANALYSIS "&CRY&" to "&FRY),("CATEGORY ANALYSIS "&CRY)) -> CATEGORY ANALYSIS 2008-09 to 2018-19
B4: 4.3 ANCILLARY SERVICES - FEE BASED SERVICES
B6: There is ONE table on this worksheet. The COLUMNS AND ROWS have been 'grouped' for easy navigation. See the Instructions sheet on how to group or ungroup data.
B8: 4.3.1 - COST METRICS FOR FEE-BASED SERVICES
B9: COMMON FEE-BASED SERVICES
C10: EXPENDITURE ($0's) | M10: VOLUMES (0's)
B11: SERVICE SUBCATEGORY | C11: =IF(dms_RPT="financial",dms_CRYf_y1,dms_CRYc_y1) -> 2008-09 | D11: =IF(dms_RPT="financial",dms_CRYf_y2,dms_CRYc_y2) -> 2009-10 | E11: =IF(dms_RPT="financial",dms_CRYf_y3,dms_CRYc_y3) -> 2010-11 | F11: =IF(dms_RPT="financial",dms_CRYf_y4,dms_CRYc_y4) -> 2011-12 | G11: =IF(dms_RPT="financial",dms_CRYf_y5,dms_CRYc_y5) -> 2012-13 | H11: =IF(dms_RPT="financial",dms_CRYf_y6,dms_CRYc_y6) -> 2013-14 | I11: =IF(dms_RPT="financial",dms_CRYf_y7,dms_CRYc_y7) -> 2014-15 | J11: =IF(dms_RPT="financial",dms_CRYf_y8,dms_CRYc_y8) -> 2015-16 | K11: =IF(dms_RPT="financial",dms_CRYf_y9,dms_CRYc_y9) -> 2016-17 | L11: =IF(dms_RPT="financial",dms_CRYf_y10,dms_CRYc_y10) -> 2017-18 | M11: =IF(dms_RPT="financial",dms_CRYf_y1,dms_CRYc_y1) -> 2008-09 | N11: =IF(dms_RPT="financial",dms_CRYf_y2,dms_CRYc_y2) -> 2009-10 | O11: =IF(dms_RPT="financial",dms_CRYf_y3,dms_CRYc_y3) -> 2010-11 | P11: =IF(dms_RPT="financial",dms_CRYf_y4,dms_CRYc_y4) -> 2011-12 | Q11: =IF(dms_RPT="financial",dms_CRYf_y5,dms_CRYc_y5) -> 2012-13 | R11: =IF(dms_RPT="financial",dms_CRYf_y6,dms_CRYc_y6) -> 2013-14 | S11: =IF(dms_RPT="financial",dms_CRYf_y7,dms_CRYc_y7) -> 2014-15 | T11: =IF(dms_RPT="financial",dms_CRYf_y8,dms_CRYc_y8) -> 2015-16 | U11: =IF(dms_RPT="financial",dms_CRYf_y9,dms_CRYc_y9) -> 2016-17 | V11: =IF(dms_RPT="financial",dms_CRYf_y10,dms_CRYc_y10) -> 2017-18
B12: Energisation
B13: De-energisation
B14: Re-energisation
B15: MISCELLANEOUS FEE-BASED SERVICES
B16: Alt/upgrade/relocate to O/under or U/ground service (diagram 1 or 2) or O/head service | C16: 0 | D16: 0 | E16: 0 | F16: 0 | G16: 0 | H16: 0 | I16: 0 | J16: 1375136.334 | K16: 723409.8936 | L16: 772237.4319 | M16: 0 | N16: 0 | O16: 0 | P16: 0 | Q16: 0 | R16: 0 | S16: 0 | T16: 997 | U16: 1109 | V16: 1046
B17: Multiphase upgrade - O/under or O/head (diagram 1 or 3) | C17: 509245.4559 | D17: 768375.5629 | E17: 642699.2286 | F17: 532931.291 | G17: 482024.4215 | H17: 439071.7502 | I17: 421572.5138 | J17: 673029.5908 | K17: 263407.2887 | L17: 360097.4554 | M17: 320.1111111 | N17: 483 | O17: 404 | P17: 335 | Q17: 303 | R17: 276 | S17: 265 | T17: 291 | U17: 236 | V17: 288
B18: Multiphase upgrade - existing pit/pillar (diagram 2) | C18: 26404.72327 | D18: 35062.00959 | E18: 37186.97987 | F18: 30457.90732 | G18: 30103.74561 | H18: 26562.12848 | I18: 19478.89422 | J18: 32197.85342 | K18: 9962.726596 | L18: 16630.26435 | M18: 74.55555556 | N18: 99 | O18: 105 | P18: 86 | Q18: 85 | R18: 75 | S18: 55 | T18: 64 | U18: 41 | V18: 61
B19: Additional service from existing asset - O/under or pit/pillar (diagram 1 or 2) | C19: 38607.89676 | D19: 112831.9344 | E19: 82059.58868 | F19: 53851.60507 | G19: 28207.98361 | H19: 25643.62146 | I19: 6410.905366 | J19: 20474.38996 | K19: 8935.052793 | L19: 9055.989438 | M19: 30.11111111 | N19: 88 | O19: 64 | P19: 42 | Q19: 22 | R19: 20 | S19: 5 | T19: 11 | U19: 10 | V19: 9
B20: Temp supply - O/head or O/Under on existing pole (diagram 3 or 3A) | C20: 178993.0092 | D20: 459622.4606 | E20: 392501.8817 | F20: 558953.4145 | G20: 570549.2552 | H20: 721026.3896 | I20: 375171.5181 | J20: 417664.5909 | K20: 182609.7297 | L20: 188391.4769 | M20: 80 | N20: 205 | O20: 175 | P20: 249 | Q20: 254 | R20: 321 | S20: 167 | T20: 134 | U20: 112 | V20: 105
B21: Temp supply - Existing pit/pillar (diagram 2) | C21: 25536.59633 | D21: 65573.47292 | E21: 55997.50604 | F21: 79744.8335 | G21: 81399.19031 | H21: 102867.4804 | I21: 53525.01563 | J21: 51394.3303 | K21: 33388.4192 | L21: 27734.71812 | M21: 28 | N21: 72 | O21: 62 | P21: 88 | Q21: 90 | R21: 113 | S21: 59 | T21: 37 | U21: 50 | V21: 37
B22: Permanent abolishment of LV service | C22: 304266.1498 | D22: 275800 | E22: 301500 | F22: 263780 | G22: 263545.54 | H22: 309899.36 | I22: 334402 | J22: 398120 | K22: 447686 | L22: 241276.1 | M22: 2500 | N22: 2585 | O22: 2741 | P22: 2398 | Q22: 2362 | R22: 2699 | S22: 2845 | T22: 3323 | U22: 3675 | V22: 1934
B23: Temp disconnect & reconnect - truck attendance | C23: 300163.3854 | D23: 234943.5335 | E23: 292728.9981 | F23: 278282.632 | G23: 288927.3228 | H23: 352035.1328 | I23: 429589.3089 | J23: 377715.9169 | K23: 198472.7972 | L23: 248774.8261 | M23: 394.7777778 | N23: 309 | O23: 385 | P23: 366 | Q23: 380 | R23: 463 | S23: 565 | T23: 358 | U23: 343 | V23: 384
B24: Temp disconnect & reconnect - single person crew | C24: 161650.4641 | D24: 415089.8653 | E24: 354472.5665 | F24: 504796.6918 | G24: 515269.0172 | H24: 651166.4956 | I24: 338821.3334 | J24: 316607.1321 | K24: 175969.1563 | L24: 219676.0661 | M24: 453 | N24: 1163 | O24: 993 | P24: 1414 | Q24: 1443 | R24: 1824 | S24: 949 | T24: 579 | U24: 670 | V24: 746
B25: Connections specification fee - $0-$100k proj | C25: 176044.4333 | D25: 452051.0381 | E25: 386036.1455 | F25: 549745.6999 | G25: 561150.5207 | H25: 709148.8251 | I25: 368991.2673 | J25: 296514 | K25: 267800 | L25: 211360 | M25: 79 | N25: 203 | O25: 173 | P25: 247 | Q25: 252 | R25: 318 | S25: 166 | T25: 136 | U25: 117 | V25: 95
B26: Connections specification fee - $101k-$200k proj | C26: 10959.74041 | D26: 28142.67931 | E26: 24032.88684 | F26: 34224.71276 | G26: 34934.72599 | H26: 44148.43963 | I26: 22971.74883 | J26: 17610 | K26: 10710 | L26: 19970 | M26: 5 | N26: 13 | O26: 11 | P26: 16 | Q26: 16 | R26: 20 | S26: 10 | T26: 7 | U26: 6 | V26: 9
B27: Works re-inspection for compliance - Up to 3hrs normal time | C27: 766.772449 | D27: 766.772449 | E27: 766.772449 | F27: 1192.757143 | G27: 853.65 | H27: 1460 | I27: 300 | J27: 610 | K27: 620 | L27: 331 | M27: 2.571428571 | N27: 2.571428571 | O27: 2.571428571 | P27: 4 | Q27: 3 | R27: 5 | S27: 1 | T27: 2 | U27: 2 | V27: 1
B28: Works re-inspection for compliance - After 3hrs normal time | C28: 0 | D28: 0 | E28: 0 | F28: 0 | G28: 0 | H28: 0 | I28: 0 | J28: 0 | K28: 0 | L28: 0 | M28: 0 | N28: 0 | O28: 0 | P28: 0 | Q28: 0 | R28: 0 | S28: 0 | T28: 0 | U28: 0 | V28: 0
B29: Works re-inspection for compliance - Out of hours | C29: 238.94 | D29: 119.47 | E29: 119.47 | F29: 119.47 | G29: 111.82 | H29: 115 | I29: 118 | J29: 120 | K29: 122 | L29: 130 | M29: 2 | N29: 1 | O29: 1 | P29: 1 | Q29: 1 | R29: 1 | S29: 1 | T29: 1 | U29: 1 | V29: 1
B30: Meter test - 1ph | C30: 10877 | D30: 26727.27273 | E30: 40909.09091 | F30: 49309.09091 | G30: 26689.65455 | H30: 22958.18182 | I30: 20909.09091 | J30: 20781.81818 | K30: 20991.81818 | L30: 30285.81818 | M30: 149 | N30: 245 | O30: 375 | P30: 452 | Q30: 241 | R30: 207 | S30: 184 | T30: 180 | U30: 179 | V30: 252
B31: Meter test - Additional 1ph meter | C31: 0 | D31: 0 | E31: 0 | F31: 0 | G31: 0 | H31: 0 | I31: 0 | J31: 0 | K31: 0 | L31: 0 | M31: 0 | N31: 0 | O31: 0 | P31: 0 | Q31: 0 | R31: 0 | S31: 0 | T31: 0 | U31: 0 | V31: 0
B32: Meter test - 3ph | C32: 6862 | D32: 12436.36364 | E32: 19418.18182 | F32: 18218.18182 | G32: 13067.96364 | H32: 11201.81818 | I32: 7159.090909 | J32: 9005.454545 | K32: 8091.818182 | L32: 12138.36364 | M32: 94 | N32: 114 | O32: 178 | P32: 167 | Q32: 118 | R32: 101 | S32: 63 | T32: 78 | U32: 69 | V32: 101
B33: Meter test - Additional 3ph meter | C33: 0 | D33: 0 | E33: 0 | F33: 0 | G33: 0 | H33: 0 | I33: 0 | J33: 0 | K33: 0 | L33: 0 | M33: 0 | N33: 0 | O33: 0 | P33: 0 | Q33: 0 | R33: 0 | S33: 0 | T33: 0 | U33: 0 | V33: 0
B34: PV installation enquiry - 1ph | C34: 0 | D34: 0 | E34: 0 | F34: 0 | G34: 0 | H34: 0 | I34: 0 | J34: 0 | K34: 0 | L34: 0 | M34: 0 | N34: 0 | O34: 0 | P34: 0 | Q34: 0 | R34: 0 | S34: 0 | T34: 0 | U34: 0 | V34: 0
B35: PV installation enquiry - 3ph | C35: 0 | D35: 0 | E35: 0 | F35: 0 | G35: 0 | H35: 0 | I35: 0 | J35: 0 | K35: 0 | L35: 0 | M35: 0 | N35: 0 | O35: 0 | P35: 0 | Q35: 0 | R35: 0 | S35: 0 | T35: 0 | U35: 0 | V35: 0
B36: Meter inspection fee - 1st meter | C36: 19772.72727 | D36: 19227.27273 | E36: 16718.18182 | F36: 19063.63636 | G36: 10790.4 | H36: 4903.636364 | I36: 15360 | J36: 18840 | K36: 16443.63636 | L36: 22050.45455 | M36: 719 | N36: 705 | O36: 613 | P36: 699 | Q36: 384 | R36: 174 | S36: 528 | T36: 628 | U36: 532 | V36: 695
B37: Meter inspection fee - Addition meter | C37: 0 | D37: 0 | E37: 0 | F37: 0 | G37: 0 | H37: 0 | I37: 0 | J37: 0 | K37: 0 | L37: 0 | M37: 0 | N37: 0 | O37: 0 | P37: 0 | Q37: 0 | R37: 0 | S37: 0 | T37: 0 | U37: 0 | V37: 0
B38: Temporary line insulation (eg Tiger Tails) | C38: 63204.78172 | D38: 162298.7257 | E38: 138597.568 | F38: 197373.7898 | G38: 201468.4334 | H38: 254603.8853 | I38: 132477.9891 | J38: 98115.71215 | K38: 43007.75342 | L38: 137364.7828 | M38: 108 | N38: 278 | O38: 237 | P38: 338 | Q38: 345 | R38: 436 | S38: 227 | T38: 175 | U38: 159 | V38: 143
B39: Location of U/ground mains - Provision of plans from office | C39: 0 | D39: 0 | E39: 0 | F39: 0 | G39: 0 | H39: 0 | I39: 0 | J39: 0 | K39: 0 | L39: 0 | M39: 0 | N39: 0 | O39: 0 | P39: 0 | Q39: 0 | R39: 0 | S39: 0 | T39: 0 | U39: 0 | V39: 0
B40: Asset info request - <1hr | C40: 0 | D40: 0 | E40: 0 | F40: 0 | G40: 0 | H40: 0 | I40: 0 | J40: 0 | K40: 0 | L40: 0 | M40: 0 | N40: 0 | O40: 0 | P40: 0 | Q40: 0 | R40: 0 | S40: 0 | T40: 0 | U40: 0 | V40: 0
B41: Asset info request - Ground level T/fs (site visit to open and visually see equipment) | C41: 0 | D41: 0 | E41: 0 | F41: 0 | G41: 0 | H41: 0 | I41: 0 | J41: 0 | K41: 0 | L41: 0 | M41: 0 | N41: 0 | O41: 0 | P41: 0 | Q41: 0 | R41: 0 | S41: 0 | T41: 0 | U41: 0 | V41: 0
B42: Network Access Management fee - <0.5 day planning req | C42: 1223786.601 | D42: 1223786.601 | E42: 1223786.601 | F42: 1223786.601 | G42: 1223786.601 | H42: 750201.346 | I42: 1259148.515 | J42: 2054384.176 | K42: 1073040.771 | L42: 982158.1969 | M42: 1481.2 | N42: 1481.2 | O42: 1481.2 | P42: 1481.2 | Q42: 1481.2 | R42: 908 | S42: 1524 | T42: 1700 | U42: 1844 | V42: 1430
B43: Special meter reader visit - Normal hours | C43: 299849 | D43: 201124 | E43: 244365 | F43: 585057 | G43: 754690.8727 | H43: 588104.9364 | I43: 665306.3182 | J43: 783664.3182 | K43: 945772.8 | L43: 1423950.6 | M43: 27259 | N43: 18284 | O43: 22215 | P43: 53187 | Q43: 66626 | R43: 50659 | S43: 55653 | T43: 64475 | U43: 76272 | V43: 103938
B44: Special meter reader visit - Out of hours | C44: 0 | D44: 0 | E44: 0 | F44: 0 | G44: 0 | H44: 0 | I44: 0 | J44: 0 | K44: 0 | L44: 0 | M44: 0 | N44: 0 | O44: 0 | P44: 0 | Q44: 0 | R44: 0 | S44: 0 | T44: 0 | U44: 0 | V44: 0
B45: Special meter reader visit - Request cancellation | C45: 7436 | D45: 6204 | E45: 6391 | F45: 18524 | G45: 20762.89091 | H45: 27501.93636 | I45: 29085.40909 | J45: 41981.8 | K45: 91685.6 | L45: 77213.2 | M45: 676 | N45: 564 | O45: 581 | P45: 1684 | Q45: 1833 | R45: 2369 | S45: 2433 | T45: 3454 | U45: 7394 | V45: 5636
B46: Meter read - Subsequent attempt | C46: 0 | D46: 0 | E46: 0 | F46: 0 | G46: 0 | H46: 0 | I46: 0 | J46: 0 | K46: 0 | L46: 0 | M46: 0 | N46: 0 | O46: 0 | P46: 0 | Q46: 0 | R46: 0 | S46: 0 | T46: 0 | U46: 0 | V46: 0
B47: Site inspection to determine nature of connection service - <2hrs | C47: 0 | D47: 0 | E47: 0 | F47: 0 | G47: 0 | H47: 0 | I47: 0 | J47: 0 | K47: 0 | L47: 0 | M47: 0 | N47: 0 | O47: 0 | P47: 0 | Q47: 0 | R47: 0 | S47: 0 | T47: 0 | U47: 0 | V47: 0
B48: Priority or out of hour appointment - <3hrs | C48: 0 | D48: 0 | E48: 0 | F48: 0 | G48: 0 | H48: 0 | I48: 0 | J48: 0 | K48: 0 | L48: 0 | M48: 0 | N48: 0 | O48: 0 | P48: 0 | Q48: 0 | R48: 0 | S48: 0 | T48: 0 | U48: 0 | V48: 0
B49: Retailer fee - disconnection & reconnection - R/C at meter | C49: 428070 | D49: 477570 | E49: 552450 | F49: 657900 | G49: 636387.2727 | H49: 804384 | I49: 852852 | J49: 971992 | K49: 1142610 | L49: 1293556.8 | M49: 14269 | N49: 15919 | O49: 18415 | P49: 21930 | Q49: 20589 | R49: 25137 | S49: 25844 | T49: 28588 | U49: 32646 | V49: 35151
B50: Retailer fee - disconnection & reconnection - R/C at meter after hours | C50: 1242381 | D50: 716766 | E50: 730702 | F50: 1354472 | G50: 1289218 | H50: 1490503 | I50: 1886612 | J50: 1032892 | K50: 1052325 | L50: 1494984.4 | M50: 18543 | N50: 10698 | O50: 10906 | P50: 20216 | Q50: 18158 | R50: 20993 | S50: 25844 | T50: 13958 | U50: 14031 | V50: 17164
B51: Swing & sag calculations - up to and incld 11kV | C51: 0 | D51: 0 | E51: 0 | F51: 0 | G51: 0 | H51: 0 | I51: 0 | J51: 0 | K51: 0 | L51: 0 | M51: 0 | N51: 0 | O51: 0 | P51: 0 | Q51: 0 | R51: 0 | S51: 0 | T51: 0 | U51: 0 | V51: 0
B52: Embedded generation firm offer - >30kW-200kW | C52: 0 | D52: 0 | E52: 0 | F52: 26000 | G52: 81000 | H52: 727000 | I52: 98570 | J52: 174366.8985 | K52: 465513.3218 | L52: 1112199.893 | M52: 0 | N52: 2 | O52: 0 | P52: 2 | Q52: 0 | R52: 61 | S52: 44 | T52: 42 | U52: 84 | V52: 251
B53: Swing & sag calculations - >11kV | C53: 11615.64536 | D53: 29826.92746 | E53: 25471.17723 | F53: 36272.9509 | G53: 37025.45612 | H53: 46790.58067 | I53: 24346.53355 | J53: 17060 | K53: 17060 | L53: 17060 | M53: 7 | N53: 17 | O53: 15 | P53: 21 | Q53: 22 | R53: 27 | S53: 14 | T53: 10 | U53: 10 | V53: 10
B54: Network Access Management request cancellation - <2 business days | C54: 58286.8 | D54: 58286.8 | E54: 58286.8 | F54: 58286.8 | G54: 58286.8 | H54: 26884 | I54: 57486 | J54: 48334 | K54: 64064 | L54: 94666 | M54: 203.8 | N54: 203.8 | O54: 203.8 | P54: 203.8 | Q54: 203.8 | R54: 94 | S54: 201 | T54: 169 | U54: 224 | V54: 331
B55: Temp disconnect & reconnect retailer O/head - truck attendance | C55: 0 | D55: 0 | E55: 0 | F55: 0 | G55: 0 | H55: 0 | I55: 0 | J55: 0 | K55: 0 | L55: 13636.36364 | M55: 0 | N55: 0 | O55: 0 | P55: 0 | Q55: 0 | R55: 0 | S55: 0 | T55: 0 | U55: 0 | V55: 6
B56: Temp disconnect & reconnect retailer - single person crew | C56: 0 | D56: 0 | E56: 0 | F56: 0 | G56: 0 | H56: 0 | I56: 0 | J56: 0 | K56: 0 | L56: 2945.454545 | M56: 0 | N56: 0 | O56: 0 | P56: 0 | Q56: 0 | R56: 0 | S56: 0 | T56: 0 | U56: 0 | V56: 60
B57: Excess kVAr Incentive | C57: 0 | D57: 0 | E57: 0 | F57: 0 | G57: 0 | H57: 0 | I57: 0 | J57: 0 | K57: 0 | L57: 0 | M57: 0 | N57: 0 | O57: 0 | P57: 0 | Q57: 0 | R57: 0 | S57: 0 | T57: 0 | U57: 0 | V57: 0

Sheet 4.4 Quoted services
B1: REGULATORY REPORTING STATEMENT
B2: =INDEX(dms_TradingNameFull_List,MATCH(dms_TradingName,dms_TradingName_List)) -> SA Power Networks
B3: =IF(SUM(dms_SingleYear_Model)>0,("CATEGORY ANALYSIS "&CRY&" to "&FRY),("CATEGORY ANALYSIS "&CRY)) -> CATEGORY ANALYSIS 2008-09 to 2018-19
B4: 4.4 ANCILLARY SERVICES - QUOTED SERVICES
B6: There is ONE table on this worksheet. The COLUMNS have been 'grouped' for easy navigation. See the Instructions sheet on how to group or ungroup data.
B8: 4.4.1 - COST METRICS FOR QUOTED SERVICES
B9: SERVICE SUBCATEGORY | C9: EXPENDITURE ($0's) | M9: VOLUMES (0's)
